Workbook

Sheet Erhebungsbogen
C3: =VLOOKUP("PREFA HWS ERHEBUNGSBOGEN",Sprachindex!A:Z,$O$6,FALSE) -> PREFA HWS ERHEBUNGSBOGEN
C6: PROJEKTDATEN | F6: =IF('HWS Experten'!C14>0,"HWS Experten Sonderrabatt","HWS") -> HWS | O6: =Haftungsausschluß!O6 -> 1
B8: Name:
B10: Straße:
B12: Ort:
B14: Tel.:
B16: E-Mail:
B18: Kommission:
B20: ANSTAUHÖHE: | F20: MONTAGE: | J20: ABDECKUNG:
D21: [mm] | O21: 1 | P21: 3
B23: LICHTE BREITE:
D24: [mm]
J25: gerade | L25: Winkelabdeckung
C26: lichte Breite | G26: vor der Laibung | J26: keine
J28: SPANNER
P29: 1
J30: mit Sterngriff | L30: mit 6kt-Schraube
B31: MENGE: | D31: [Stk.]
B34: BESCHICHTUNG: | G34: in der Laibung
B35: ja | O35: FALSE
B37: Farbe:
K38: DAMMBALKENHALTERUNG
B39: Abdeckung: | K39: (FÜR LAGERUNG) | O39: FALSE | P39: FALSE
B40: Wandprofil: | O40: FALSE
B41: Dammbalken: (≤ 3 m) | O41: FALSE
B42: Lagerabdeckung: | G42: bündig | O42: FALSE
K43: LAGERABDECKUNG
B46: Der Untergrund für das System sollte eben sein, um eine optimale Anpassung der Bodendichtung gewährleisten zu können. Weiters ist bei Pflasterstein auf eine adäquate Fundamentierung und Befestigung zu achten, um eine Unterspülung zu vermeiden. Bevor das PREFA Hochwasser-Dammbalkensystem montiert wird, muss zunächst geklärt werden, ob das Bauwerk in statischer Hinsicht für die Montage geeignet ist. Alle PREFA Hochwasserschutzprodukte sind bei unseren PREFA Partnern erhältlich. Anfragen bitte an: technik.ch@prefa.com | K46: DAMMBALKENHAKEN | P46: FALSE
P47: TRUE
J49: DAUERBODENDICHTUNG
J50: (diese ist bei dauerhaftem Aufbau des
J51: Hochwasserschutzes erforderlich)
J53: =VLOOKUP("zusätzlicher Randabstand:",Sprachindex!$A:$Z,Haftungsausschluß!$O$6,FALSE) -> zusätzlicher Randabstand:
K54: [mm] | P54: FALSE
B56: Erhebungsbogen bitte als Excel zurücksenden
B58: NOTIZEN:
M65: WWW.PREFA.COM
A67: =VLOOKUP("Anwendungstechnik",Sprachindex!A:Z,$O$6,FALSE) -> Anwendungstechnik | E67: =VLOOKUP("Stand:",Sprachindex!A:Z,$O$6,FALSE) -> Stand: | F67: 2022-07-01 | K67: =VLOOKUP("Version:",Sprachindex!A:Z,$O$6,FALSE) -> Version: | L67: 01.07.2022

Sheet Haftungsausschluß (hidden)
B3: =VLOOKUP("PREFA HWS BERECHNUNGSTOOL",Sprachindex!A:Z,$O$6,FALSE) -> PREFA HWS BERECHNUNGSTOOL
B4: =VLOOKUP("Einverständniserklärung",Sprachindex!A:Z,$O$6,FALSE) -> Einverständniserklärung
B6: =VLOOKUP("PREFA bietet dem Anwender ein kostenloses Berechnungstool für PREFA Hochwasserschutzsysteme.",Sprachindex!A:Z,$O$6,FALSE) -> PREFA bietet dem Anwender ein kostenloses Berechnungstool für PREFA Hochwasserschutzsysteme. | J6: =VLOOKUP("Sprache",Sprachindex!A:Z,$O$6,FALSE) -> Sprache | O6: 1
B7: =VLOOKUP("Das Berechnungstool berücksichtigt die Anforderungen des Merkblattes 6/BWK Ausgabe Dezember 2005:",Sprachindex!A:Z,$O$6,FALSE) -> Das Berechnungstool berücksichtigt die Anforderungen des Merkblattes 6/BWK Ausgabe Dezember 2005: | L7: Deutsch
L8: English
L9: français
L10: italiano
B11: =VLOOKUP("Die vom Anwender eingegebenen Daten werden vom Berechnungstool automatisch verarbeitet ohne auf deren Richtigkeit überprüft werden zu können.",Sprachindex!A:Z,$O$6,FALSE) & " " & VLOOKUP("Die Berechnungsergebnisse sind nur für das von den Eingabedaten erfassten Hochwasserschutzsystem heranzuziehen.",Sprachindex!A:Z,$O$6,FALSE) & " " & VLOOKUP("Das Berechnungstool bezieht sich ausschließlich auf PREFA Hochwasserschutzsysteme.",Sprachindex!A:Z,$O$6,FALSE) & " " & VLOOKUP("Die Berechnungsergebnisse sind nicht auf andere Produkte oder Einsätze anwendbar.",Sprachindex!A:Z,$O$6,FALSE) & " " & VLOOKUP("Obwohl das Berechnungstool von PREFA mit größtmöglicher Sorgfalt erstellt wurde,",Sprachindex!A:Z,$O$6,FALSE) & " " & VLOOKUP("können die Berechnungsergebnisse zufolge der individuellen konstruktiven Besonderheiten jedes",Sprachindex!A:Z,$O$6,FALSE) & " " & VLOOKUP("Hochwasser-schutzsystemes und möglicher fehlerhafter Eingabe der Berechnungsgrundlagen nur unverbindliche Empfehlungen darstellen.",Sprachindex!A:Z,$O$6,FALSE) & " " & VLOOKUP("PREFA versteht das Berechnungstool als Hilfestellung an den Fachmann, die diesen aber nicht von der Pflicht zur eigenständigen Prüfung im Einzelfall entbindet.",Sprachindex!A:Z,$O$6,FALSE) & " " & VLOOKUP("PREFA übernimmt im Hinblick hierauf keinerlei Haftung für die Richtigkeit oder Vollständigkeit der Berechnungsergebnisse oder für hieraus abgeleitete Schadenersatzansprüche.",Sprachindex!A:Z,$O$6,FALSE) & " " & VLOOKUP("Bei nicht fachgerechter Montage und/oder Wartung oder bei Benutzung von nicht originalem Zubehör übernimmt PREFA keinerlei Haftung.",Sprachindex!A:Z,$O$6,FALSE) & " " & VLOOKUP("Ebenso sind bauliche Mängel, insbesondere nicht entsprechend wasserdichte Bausubstanz des Bauwerks, hydrostatische Krafteinwirkung und unsachgemäße Handhabung der Bauteile,",Sprachindex!A:Z,$O$6,FALSE) & " " & VLOOKUP("darunter auch Beschädigung durch mechanische Einwirkung von Personen oder Gegenständen, ausschlussgebend für eine Haftung seitens PREFA.",Sprachindex!A:Z,$O$6,FALSE) & " " & VLOOKUP("PREFA übernimmt keine Garantie für absolute Schadensverhinderung.",Sprachindex!A:Z,$O$6,FALSE) -> Die vom Anwender eingegebenen Daten werden vom Berechnungstool automatisch verarbeitet ohne auf deren Richtigkeit überprüft werden zu können. Die Berechnungsergebnisse sind nur für das von den Eingabedaten erfassten Hochwasserschutzsystem heranzuziehen. Das Berechnungstool bezieht sich ausschließlich auf PREFA Hochwasserschutzsysteme. Die Berechnungsergebnisse sind nicht auf andere Produkte oder Einsätze anwendbar. Obwohl das Berechnungstool von PREFA mit größtmöglicher Sorgfalt erstellt wurde, können die Berechnungsergebnisse zufolge der individuellen konstruktiven Besonderheiten jedes Hochwasser-schutzsystemes und möglicher fehlerhafter Eingabe der Berechnungsgrundlagen nur unverbindliche Empfehlungen darstellen. PREFA versteht das Berechnungstool als Hilfestellung an den Fachmann, die diesen aber nicht von der Pflicht zur eigenständigen Prüfung im Einzelfall entbindet. PREFA übernimmt im Hinblick hierauf keinerlei Haftung für die Richtigkeit oder Vollständigkeit der Berechnungsergebnisse oder für hieraus abgeleitete Schadenersatzansprüche. Bei nicht fachgerechter Montage und/oder Wartung oder bei Benutzung von nicht originalem Zubehör übernimmt PREFA keinerlei Haftung. Ebenso sind bauliche Mängel, insbesondere nicht entsprechend wasserdichte Bausubstanz des Bauwerks, hydrostatische Krafteinwirkung und unsachgemäße Handhabung der Bauteile, darunter auch Beschädigung durch mechanische Einwirkung von Personen oder Gegenständen, ausschlussgebend für eine Haftung seitens PREFA. PREFA übernimmt keine Garantie für absolute Schadensverhinderung. | L11: český
L12: polski
L13: magyar
L14: slovenský
L15: Nederlands
L16: Slovenski
L17: svenska
L18: dansk
L19: norsk
L20: hrvatski
L21: 1
L23: 3 | O23: =TODAY() -> 44789 | Q23: =Q24 -> 44926 | R23: =Q23-O23 -> 137
Q24: 2022-12-31
B29: =VLOOKUP("Vorannahmen für den statischen Nachweis (bei Bedarf änderbar):",Sprachindex!A:Z,$O$6,FALSE) -> Vorannahmen für den statischen Nachweis (bei Bedarf änderbar):
C30: =VLOOKUP("Dichte Wasser inkl. Geschiebe: rw",Sprachindex!A:Z,$O$6,FALSE) -> Dichte Wasser inkl. Geschiebe: rw | F30: 1000 | G30: =VLOOKUP("kg/m³",Sprachindex!A:Z,$O$6,FALSE) -> kg/m³ | J30: =VLOOKUP("MwSt.",Sprachindex!A:Z,$O$6,FALSE) -> MwSt.
C31: =VLOOKUP("Fließgeschwindigkeit: v",Sprachindex!A:Z,$O$6,FALSE) -> Fließgeschwindigkeit: v | F31: 4 | G31: =VLOOKUP("m/s",Sprachindex!A:Z,$O$6,FALSE) -> m/s | J31: 7.7
C32: =VLOOKUP("anprallende Treibgutmasse: m",Sprachindex!A:Z,$O$6,FALSE) -> anprallende Treibgutmasse: m | F32: 0.4 | G32: =VLOOKUP("t",Sprachindex!A:Z,$O$6,FALSE) -> t
C33: =VLOOKUP("Maximale Durchbiegung Dammbalken (1/150 = Standard)",Sprachindex!A:Z,$O$6,FALSE) -> Maximale Durchbiegung Dammbalken (1/150 = Standard) | F33: 150 | I33: 1
C34: =VLOOKUP("Maximale Durchbiegung Rundsteher (1/150 = Standard)",Sprachindex!A:Z,$O$6,FALSE) -> Maximale Durchbiegung Rundsteher (1/150 = Standard) | F34: 150
B37: =VLOOKUP("Folgende Nachweise werden berechnet bzw berücksichtigt:",Sprachindex!A:Z,$O$6,FALSE) -> Folgende Nachweise werden berechnet bzw berücksichtigt: | G37: =VLOOKUP("Die Gültigkeit dieses Dokumentes endet mit 31.12.2022",Sprachindex!A:Z,$O$6,FALSE) -> Die Gültigkeit dieses Dokumentes endet mit 31.12.2022
C38: =VLOOKUP("Hydrostatische Einwirkung",Sprachindex!A:Z,$O$6,FALSE) -> Hydrostatische Einwirkung | G38: =VLOOKUP("Die hinterlegten Preise gelten bis Neuauflage der Preisliste vorbehaltlich vorgezogener Preisanpassungen",Sprachindex!A:Z,$O$6,FALSE) -> Die hinterlegten Preise gelten bis Neuauflage der Preisliste vorbehaltlich vorgezogener Preisanpassungen
C39: =VLOOKUP("Hydrodynamische Einwirkung",Sprachindex!A:Z,$O$6,FALSE) -> Hydrodynamische Einwirkung
C40: =VLOOKUP("Anprall von Treibgut (nur bei Eingabe von Anströmwinkel)",Sprachindex!A:Z,$O$6,FALSE) -> Anprall von Treibgut (nur bei Eingabe von Anströmwinkel)
G43: =VLOOKUP("Nach Ablauf des Datums (noch",Sprachindex!A:Z,$O$6,FALSE) & " " & Q23-O23 & " " & VLOOKUP("Tage)",Sprachindex!A:Z,$O$6,FALSE) -> Nach Ablauf des Datums (noch 137 Tage)
G44: =VLOOKUP("verliert die Excel seine Funktionsfähigkeit",Sprachindex!A:Z,$O$6,FALSE) -> verliert die Excel seine Funktionsfähigkeit
E51: =VLOOKUP("BHW = Bemessungshochwasser",Sprachindex!A:Z,$O$6,FALSE) -> BHW = Bemessungshochwasser
E52: =VLOOKUP("FB = Freibord",Sprachindex!A:Z,$O$6,FALSE) -> FB = Freibord
E53: =VLOOKUP("VS = Volleinstau",Sprachindex!A:Z,$O$6,FALSE) -> VS = Volleinstau
C54: =VLOOKUP("Abbildung 1",Sprachindex!A:Z,$O$6,FALSE) -> Abbildung 1
A56: =VLOOKUP("Anwendungstechnik",Sprachindex!A:Z,$O$6,FALSE) -> Anwendungstechnik | E56: =VLOOKUP("Stand:",Sprachindex!A:Z,$O$6,FALSE) -> Stand: | F56: 2022-07-01 | J56: =VLOOKUP("Version:",Sprachindex!A:Z,$O$6,FALSE) -> Version: | K56: 01.07.2022

Sheet Leibungshöhe (hidden)
A1: =VLOOKUP("Berechnung U-Profilhöhe bei Montage in Leibung zum Einfädeln",Sprachindex!$A:$Z,Haftungsausschluß!$O$6,FALSE) -> Berechnung U-Profilhöhe bei Montage in Leibung zum Einfädeln | I1: HWS | J1: Berechnung der erforderlichen Überstände (Kippmaß)
I2: Stand: | J2: 2022-02-08
A3: =VLOOKUP("Lichteweite [mm]:",Sprachindex!$A:$Z,Haftungsausschluß!$O$6,FALSE) -> Lichteweite [mm]: | B3: 1000 | I3: Bearbeiter: | J3: HAD
Q4: Dammbalken
B5: =VLOOKUP("System 25:",Sprachindex!$A:$Z,Haftungsausschluß!$O$6,FALSE) -> System 25: | D5: =VLOOKUP("System 50:",Sprachindex!$A:$Z,Haftungsausschluß!$O$6,FALSE) -> System 50: | F5: =VLOOKUP("System 50 + 80:",Sprachindex!$A:$Z,Haftungsausschluß!$O$6,FALSE) -> System 50 + 80: | I5: Eingabedaten | N5: 25/200 | P5: Maß [mm] | Q5: 25/200 | R5: 50/150 | S5: 50/200 | T5: 80/200
B6: 200 | D6: 150 | F6: 200 | I6: Lichte Breite | J6: l = | K6: =B3 -> 1000 | L6: mm | P6: hDS | Q6: 200 | R6: 150 | S6: 200 | T6: 200
A7: =VLOOKUP("Dammbalkenlänge:",Sprachindex!$A:$Z,Haftungsausschluß!$O$6,FALSE) -> Dammbalkenlänge: | B7: =+($B$3+B15) -> 1065 | D7: =+($B$3+D15) -> 1076 | F7: =+($B$3+F15) -> 1076 | I7: Dammbalken | K7: 25/200 | P7: hN | Q7: 19 | R7: 15 | S7: 15 | T7: 15
I8: Länge Dammbalken | J8: lD = | K8: =K6+2*HLOOKUP(K7,$Q$5:$T$9,5,) -> 1065 | L8: mm | P8: hDG | Q8: =Q7+Q6 -> 219 | R8: =R7+R6 -> 165 | S8: 215 | T8: 215
B9: =K17 -> 311 | D9: =K32 -> 307 | F9: =K47 -> 324 | I9: Gesamthöhe Dammbalken | J9: hDG = | K9: =HLOOKUP(K7,$Q$5:$T$9,4,) -> 219 | L9: mm | P9: Einstand | Q9: 32.5 | R9: 38 | S9: 38 | T9: 38 | U9: in Wandprofil
I10: Nuthöhe Dammbalken | J10: hN = | K10: =HLOOKUP(K7,$Q$5:$T$9,3,) -> 19 | L10: mm | P10: Profiltiefe t | Q10: 42 | R10: 47 | S10: 47 | T10: 47
B11: =K18 -> 615 | D11: =K33 -> 585 | F11: =K48 -> 625 | I11: Profiltiefe Wandprofil | J11: t = | K11: =HLOOKUP(K7,$Q$5:$T$10,6,) -> 42 | L11: mm
I12: Toleranz Lichte (für Dichtung etc..) | J12: Dl = | K12: 5 | L12: mm | M12: Festlegung
A13: Berechnungsparameter aus Profilgeometrien:
J14: alphaD1 = | K14: =ACOS((K6+K11)/(K8^2+K9^2)^0.5)/PI()*180 -> 16.59420407 | L14: °
A15: Dammbalkenlänge über Lichte: | B15: 65 | D15: 76 | F15: 76 | J15: alpha1 = | K15: =K14+ATAN(K9/K8)/PI()*180 -> 28.21417562 | L15: °
A16: Mögliche Eintauchtiefe von Dammb. in Steher beidseitig: | B16: 42 | D16: 47.3 | F16: 47.3 | J16: üP = | K16: =SIN(K15/180*PI())*K8-K9+K10 -> 303.4987664
I17: Überstand Profil | J17: üP = | K17: =ROUNDUP(SIN(ACOS((K6+K11-K12/2)/(K8^2+K9^2)^0.5)+ATAN(K9/K8))*K8-K9+K10,0) -> 311 | L17: mm
I18: Überstand Sturz | J18: üST = | K18: =ROUNDUP(SIN(ACOS((K6-K12)/(K8^2+K9^2)^0.5)+ATAN(K9/K8))*K8-K9+K10+COS(ACOS((K6-K12)/(K8^2+K9^2)^0.5)+ATAN(K9/K8))*K9+K10,0) -> 615 | L18: mm
I20: Eingabedaten | N20: 50/150
I21: Lichte Breite | J21: l = | K21: =B3 -> 1000 | L21: mm
I22: Dammbalken | K22: 50/150
I23: Länge Dammbalken | J23: lD = | K23: =K21+2*HLOOKUP(K22,$Q$5:$T$9,5,) -> 1076 | L23: mm
I24: Gesamthöhe Dammbalken | J24: hDG = | K24: =HLOOKUP(K22,$Q$5:$T$9,4,) -> 165 | L24: mm
I25: Nuthöhe Dammbalken | J25: hN = | K25: =HLOOKUP(K22,$Q$5:$T$9,3,) -> 15 | L25: mm
I26: Profiltiefe Wandprofil | J26: t = | K26: =HLOOKUP(K22,$Q$5:$T$10,6,) -> 47 | L26: mm
I27: Toleranz Lichte (für Dichtung etc..) | J27: Dl = | K27: 5 | L27: mm | M27: Festlegung
J29: alphaD1 = | K29: =ACOS((K21+K26)/(K23^2+K24^2)^0.5)/PI()*180 -> 15.88653862 | L29: °
J30: alpha1 = | K30: =K29+ATAN(K24/K23)/PI()*180 -> 24.60468926 | L30: °
J31: üP = | K31: =SIN(K30/180*PI())*K23-K24+K25 -> 297.9982011
I32: Überstand Profil | J32: üP = | K32: =ROUNDUP(SIN(ACOS((K21+K26-K27/2)/(K23^2+K24^2)^0.5)+ATAN(K24/K23))*K23-K24+K25,0) -> 307 | L32: mm
I33: Überstand Sturz | J33: üST = | K33: =ROUNDUP(SIN(ACOS((K21-K27)/(K23^2+K24^2)^0.5)+ATAN(K24/K23))*K23-K24+K25+COS(ACOS((K21-K27)/(K23^2+K24^2)^0.5)+ATAN(K24/K23))*K24+K25,0) -> 585 | L33: mm
I35: Eingabedaten | N35: 50+80/200
I36: Lichte Breite | J36: l = | K36: =B3 -> 1000 | L36: mm
I37: Dammbalken | K37: 50/200
I38: Länge Dammbalken | J38: lD = | K38: =K36+2*HLOOKUP(K37,$Q$5:$T$9,5,) -> 1076 | L38: mm
I39: Gesamthöhe Dammbalken | J39: hDG = | K39: =HLOOKUP(K37,$Q$5:$T$9,4,) -> 215 | L39: mm
I40: Nuthöhe Dammbalken | J40: hN = | K40: =HLOOKUP(K37,$Q$5:$T$9,3,) -> 15 | L40: mm
I41: Profiltiefe Wandprofil | J41: t = | K41: =HLOOKUP(K37,$Q$5:$T$10,6,) -> 47 | L41: mm
I42: Toleranz Lichte (für Dichtung etc..) | J42: Dl = | K42: 5 | L42: mm | M42: Festlegung
J44: alphaD1 = | K44: =ACOS((K36+K41)/(K38^2+K39^2)^0.5)/PI()*180 -> 17.41031468 | L44: °
J45: alpha1 = | K45: =K44+ATAN(K39/K38)/PI()*180 -> 28.71000662 | L45: °
J46: üP = | K46: =SIN(K45/180*PI())*K38-K39+K40 -> 316.8853103
I47: Überstand Profil | J47: üP = | K47: =ROUNDUP(SIN(ACOS((K36+K41-K42/2)/(K38^2+K39^2)^0.5)+ATAN(K39/K38))*K38-K39+K40,0) -> 324 | L47: mm
I48: Überstand Sturz | J48: üST = | K48: =ROUNDUP(SIN(ACOS((K36-K42)/(K38^2+K39^2)^0.5)+ATAN(K39/K38))*K38-K39+K40+COS(ACOS((K36-K42)/(K38^2+K39^2)^0.5)+ATAN(K39/K38))*K39+K40,0) -> 625 | L48: mm

Sheet Kalkulation 1 (hidden)
AE1: =VLOOKUP("PREFA HOCHWASSERSCHUTZ SYSTEM",Sprachindex!$A:$Z,Haftungsausschluß!$O$6,FALSE) -> PREFA HOCHWASSERSCHUTZ SYSTEM | AH1: 1
AE2: =VLOOKUP("KALKULATION",Sprachindex!$A:$Z,Haftungsausschluß!$O$6,FALSE) &" " & AH1 -> KALKULATION 1
E4: =VLOOKUP("Firma / Besteller:",Sprachindex!$A:$Z,Haftungsausschluß!$O$6,FALSE) -> Firma / Besteller: | Q4: =VLOOKUP("Bearbeiter:",Sprachindex!A:Z,Haftungsausschluß!$O$6,FALSE) -> Bearbeiter: | R4: ="" ->  | AC4: =VLOOKUP("Kundennummer:",Sprachindex!A:Z,Haftungsausschluß!$O$6,FALSE) -> Kundennummer: | AD4: ="" -> 
D5: =VLOOKUP("Name:",Sprachindex!$A:$Z,Haftungsausschluß!$O$6,FALSE) -> Name: | E5: =IF(Erhebungsbogen!C8>0,Erhebungsbogen!C8,"") ->  | N5: =VLOOKUP("Service:",Sprachindex!A:Z,Haftungsausschluß!$O$6,FALSE) -> Service: | P5: =VLOOKUP("Mengenermittlung/Anfrage",Sprachindex!A:Z,Haftungsausschluß!$O$6,FALSE) -> Mengenermittlung/Anfrage
D6: =VLOOKUP("Straße:",Sprachindex!$A:$Z,Haftungsausschluß!$O$6,FALSE) -> Straße: | E6: =IF(Erhebungsbogen!C10>0,Erhebungsbogen!C10,"") ->  | P6: =VLOOKUP("Bestellung",Sprachindex!A:Z,Haftungsausschluß!$O$6,FALSE) -> Bestellung
D7: =VLOOKUP("Ort:",Sprachindex!$A:$Z,Haftungsausschluß!$O$6,FALSE) -> Ort: | E7: =IF(Erhebungsbogen!C12>0,Erhebungsbogen!C12,"") -> 
D8: =VLOOKUP("Telefon:",Sprachindex!$A:$Z,Haftungsausschluß!$O$6,FALSE) -> Telefon: | E8: =IF(Erhebungsbogen!C14>0,Erhebungsbogen!C14,"") ->  | N8: =VLOOKUP("Farbe:",Sprachindex!A:Z,Haftungsausschluß!$O$6,FALSE) -> Farbe: | Q8: =VLOOKUP("blank",Sprachindex!A:Z,Haftungsausschluß!$O$6,FALSE) -> blank | S8: =VLOOKUP("beschichtet",Sprachindex!A:Z,Haftungsausschluß!$O$6,FALSE) -> beschichtet | W8: =VLOOKUP("Multiplikator",Sprachindex!$A:$Z,Haftungsausschluß!$O$6,FALSE) -> Multiplikator
D9: =VLOOKUP("eMail:",Sprachindex!$A:$Z,Haftungsausschluß!$O$6,FALSE) -> eMail: | E9: =IF(Erhebungsbogen!C16>0,Erhebungsbogen!C16,"") ->  | Q9: RAL oder PREFA Farbe: | R9: =Erhebungsbogen!C37 -> 0 | W9: =VLOOKUP("Anzahl der gleichen Systeme:",Sprachindex!$A:$Z,Haftungsausschluß!$O$6,FALSE) -> Anzahl der gleichen Systeme: | AE9: =IF(Erhebungsbogen!C31=0,1,Erhebungsbogen!C31) -> 1 | AH9: =VLOOKUP("Bodenhülse",Sprachindex!$A:$Z,Haftungsausschluß!$O$6,FALSE) -> Bodenhülse
D10: =VLOOKUP("Kommission:",Sprachindex!$A:$Z,Haftungsausschluß!$O$6,FALSE) -> Kommission: | E10: =IF(Erhebungsbogen!C18>0,Erhebungsbogen!C18,"") ->  | M10: =VLOOKUP("Beschichtung",Sprachindex!$A:$Z,Haftungsausschluß!$O$6,FALSE) -> Beschichtung | R10: =" " &VLOOKUP("Abdeckung",Sprachindex!$A:$Z,Haftungsausschluß!$O$6,FALSE) -> Abdeckung | W10: =VLOOKUP("Ausführungsart",Sprachindex!$A:$Z,Haftungsausschluß!$O$6,FALSE) -> Ausführungsart | AH10: 1
C11: =VLOOKUP("Montageart",Sprachindex!$A:$Z,Haftungsausschluß!$O$6,FALSE) -> Montageart | R11: =" " &VLOOKUP("Wandprofil",Sprachindex!$A:$Z,Haftungsausschluß!$O$6,FALSE) -> Wandprofil | W11: =VLOOKUP("Bodenhülsendeckel",Sprachindex!$A:$Z,Haftungsausschluß!$O$6,FALSE) -> Bodenhülsendeckel | AB11: =" " &VLOOKUP("Aluminium",Sprachindex!$A:$Z,Haftungsausschluß!$O$6,FALSE) -> Aluminium
C12: =VLOOKUP("Links",Sprachindex!$A:$Z,Haftungsausschluß!$O$6,FALSE) -> Links | G12: =VLOOKUP("Rechts",Sprachindex!$A:$Z,Haftungsausschluß!$O$6,FALSE) -> Rechts | R12: =" " &VLOOKUP("Dammbalken",Sprachindex!$A:$Z,Haftungsausschluß!$O$6,FALSE) -> Dammbalken | AB12: =" " &VLOOKUP("Edelstahl (verriegelbar)",Sprachindex!$A:$Z,Haftungsausschluß!$O$6,FALSE) -> Edelstahl (verriegelbar) | AH12: =VLOOKUP("Abdeckung",Sprachindex!$A:$Z,Haftungsausschluß!$O$6,FALSE) -> Abdeckung
R13: =" " &VLOOKUP("Lagerabdeckung",Sprachindex!$A:$Z,Haftungsausschluß!$O$6,FALSE) -> Lagerabdeckung | W13: =VLOOKUP("Abdeckung",Sprachindex!$A:$Z,Haftungsausschluß!$O$6,FALSE) -> Abdeckung | AB13: =" " &VLOOKUP("keine",Sprachindex!$A:$Z,Haftungsausschluß!$O$6,FALSE) -> keine | AH13: =IF(Erhebungsbogen!$P$21=1,2,IF(Erhebungsbogen!$P$21=2,3,1)) -> 1
AB14: =" " &VLOOKUP("Gerade V",Sprachindex!$A:$Z,Haftungsausschluß!$O$6,FALSE) -> Gerade V
M15: =VLOOKUP("System 25:",Sprachindex!$A:$Z,Haftungsausschluß!$O$6,FALSE) -> System 25: | P15: =VLOOKUP("System 50:",Sprachindex!$A:$Z,Haftungsausschluß!$O$6,FALSE) -> System 50: | S15: =VLOOKUP("System 80:",Sprachindex!$A:$Z,Haftungsausschluß!$O$6,FALSE) -> System 80: | AB15: =" " &VLOOKUP("Winkelabdeckung VO",Sprachindex!$A:$Z,Haftungsausschluß!$O$6,FALSE) -> Winkelabdeckung VO | AH15: =VLOOKUP("Zubehör",Sprachindex!$A:$Z,Haftungsausschluß!$O$6,FALSE) -> Zubehör
C16: =VLOOKUP("Vor der Leibung",Sprachindex!$A:$Z,Haftungsausschluß!$O$6,FALSE) -> Vor der Leibung | G16: =VLOOKUP("Vor der Leibung",Sprachindex!$A:$Z,Haftungsausschluß!$O$6,FALSE) -> Vor der Leibung | M16: - | P16: =VLOOKUP("50/150mm",Sprachindex!$A:$Z,Haftungsausschluß!$O$6,FALSE) -> 50/150mm | S16: - | AH16: FALSE | AI16: =VLOOKUP("Sicherungsschraube Abdeckung:",Sprachindex!$A:$Z,Haftungsausschluß!$O$6,FALSE) -> Sicherungsschraube Abdeckung: | AK16: Links | AL16: Rechts | AM16: System | AN16: Rundprofil normal/gr | AO16: Service | AP16: Besch | AV16: (Objekt od. Landsch.)
C17: =VLOOKUP("In der Leibung",Sprachindex!$A:$Z,Haftungsausschluß!$O$6,FALSE) -> In der Leibung | G17: =VLOOKUP("In der Leibung",Sprachindex!$A:$Z,Haftungsausschluß!$O$6,FALSE) -> In der Leibung | M17: =VLOOKUP("25/200mm",Sprachindex!$A:$Z,Haftungsausschluß!$O$6,FALSE) -> 25/200mm | P17: =VLOOKUP("50/200mm",Sprachindex!$A:$Z,Haftungsausschluß!$O$6,FALSE) -> 50/200mm | S17: =VLOOKUP("80/200mm",Sprachindex!$A:$Z,Haftungsausschluß!$O$6,FALSE) -> 80/200mm | W17: =VLOOKUP("Zubehör",Sprachindex!$A:$Z,Haftungsausschluß!$O$6,FALSE) -> Zubehör | AH17: FALSE | AI17: =VLOOKUP("Niederhalter Dammbalken:max.1750",Sprachindex!$A:$Z,Haftungsausschluß!$O$6,FALSE) -> Niederhalter Dammbalken:max.1750 | AK17: =Erhebungsbogen!$O$21 -> 1 | AL17: =Erhebungsbogen!$O$21 -> 1 | AM17: 3 | AN17: 1 | AO17: 2 | AP17: 1 | AV17: 1
C18: =VLOOKUP("Bündig",Sprachindex!$A:$Z,Haftungsausschluß!$O$6,FALSE) -> Bündig | G18: =VLOOKUP("Bündig",Sprachindex!$A:$Z,Haftungsausschluß!$O$6,FALSE) -> Bündig | W18: =" " &VLOOKUP("Sicherungsschraube Abdeckung:",Sprachindex!$A:$Z,Haftungsausschluß!$O$6,FALSE) -> Sicherungsschraube Abdeckung: | AH18: =IF(Erhebungsbogen!P29=1,TRUE,FALSE) -> TRUE | AI18: =VLOOKUP("Spannstück mit Sterngriff:",Sprachindex!$A:$Z,Haftungsausschluß!$O$6,FALSE) -> Spannstück mit Sterngriff:
M19: =VLOOKUP("Rundprofil",Sprachindex!$A:$Z,Haftungsausschluß!$O$6,FALSE) -> Rundprofil | W19: =" " &VLOOKUP("Niederhalter Dammbalken:max.1750",Sprachindex!$A:$Z,Haftungsausschluß!$O$6,FALSE) -> Niederhalter Dammbalken:max.1750 | AD19: =VLOOKUP("Stk",Sprachindex!$A:$Z,Haftungsausschluß!$O$6,FALSE) -> Stk | AH19: =IF(Erhebungsbogen!P29=2,TRUE,FALSE) -> FALSE | AI19: =VLOOKUP("Spannstück mit 6-Kantschraube:",Sprachindex!$A:$Z,Haftungsausschluß!$O$6,FALSE) -> Spannstück mit 6-Kantschraube: | AK19: MontageartLinks1
C20: =VLOOKUP("Dateneingabe",Sprachindex!$A:$Z,Haftungsausschluß!$O$6,FALSE) -> Dateneingabe | N20: =VLOOKUP("Rundprofil",Sprachindex!$A:$Z,Haftungsausschluß!$O$6,FALSE) -> Rundprofil | W20: =" " &VLOOKUP("Spannstück mit Sterngriff:",Sprachindex!$A:$Z,Haftungsausschluß!$O$6,FALSE) -> Spannstück mit Sterngriff: | AH20: =Erhebungsbogen!P54 -> FALSE | AI20: =VLOOKUP("Dauerbodendichtung:",Sprachindex!$A:$Z,Haftungsausschluß!$O$6,FALSE) -> Dauerbodendichtung:
C21: =VLOOKUP("Lichteweite [mm]:",Sprachindex!$A:$Z,Haftungsausschluß!$O$6,FALSE) -> Lichteweite [mm]: | I21: 0 | N21: =VLOOKUP("Rundprofil Groß",Sprachindex!$A:$Z,Haftungsausschluß!$O$6,FALSE) -> Rundprofil Groß | Q21: =VLOOKUP("Stk",Sprachindex!$A:$Z,Haftungsausschluß!$O$6,FALSE) -> Stk | W21: =" " &VLOOKUP("Spannstück mit 6-Kantschraube:",Sprachindex!$A:$Z,Haftungsausschluß!$O$6,FALSE) -> Spannstück mit 6-Kantschraube: | AH21: =Erhebungsbogen!P39 -> FALSE | AI21: =VLOOKUP("Halterungen Dammbalken:",Sprachindex!$A:$Z,Haftungsausschluß!$O$6,FALSE) -> Halterungen Dammbalken:
C22: =IF(OR(AK17=1,AL17=1),VLOOKUP("zusätzlicher Randabstand:",Sprachindex!$A:$Z,Haftungsausschluß!$O$6,FALSE),"") -> zusätzlicher Randabstand: | I22: =Erhebungsbogen!J54 -> 0 | M22: =VLOOKUP("Rundprofil 90°",Sprachindex!$A:$Z,Haftungsausschluß!$O$6,FALSE) -> Rundprofil 90° | W22: =" " &VLOOKUP("Dauerbodendichtung:",Sprachindex!$A:$Z,Haftungsausschluß!$O$6,FALSE) -> Dauerbodendichtung: | AH22: =Erhebungsbogen!P46 -> FALSE | AI22: =VLOOKUP("Lagerabdeckung",Sprachindex!$A:$Z,Haftungsausschluß!$O$6,FALSE) -> Lagerabdeckung
C23: =VLOOKUP("Stauhöhe (BHW) [mm]:",Sprachindex!$A:$Z,Haftungsausschluß!$O$6,FALSE) -> Stauhöhe (BHW) [mm]: | I23: 0 | M23: =VLOOKUP("Rundprofil Vario",Sprachindex!$A:$Z,Haftungsausschluß!$O$6,FALSE) -> Rundprofil Vario | W23: =" " &VLOOKUP("Halterungen Dammbalken:",Sprachindex!$A:$Z,Haftungsausschluß!$O$6,FALSE) -> Halterungen Dammbalken: | AH23: FALSE | AI23: =VLOOKUP("Hebehilfe für Bodenhülsendeckel",Sprachindex!$A:$Z,Haftungsausschluß!$O$6,FALSE) -> Hebehilfe für Bodenhülsendeckel | AM23: VarioSteher
C24: =VLOOKUP("Freibord [mm]:",Sprachindex!$A:$Z,Haftungsausschluß!$O$6,FALSE) -> Freibord [mm]: | M24: =IF((Q22+Q23)>=I26,VLOOKUP("ACHTUNG: zu viele Rundprofile gewählt",Sprachindex!$A:$Z,Haftungsausschluß!$O$6,FALSE),"") ->  | W24: =" " &VLOOKUP("Lagerabdeckung",Sprachindex!$A:$Z,Haftungsausschluß!$O$6,FALSE) -> Lagerabdeckung | AH24: FALSE | AI24: =VLOOKUP("Dichtungsroller 25/50",Sprachindex!$A:$Z,Haftungsausschluß!$O$6,FALSE) -> Dichtungsroller 25/50 | AM24: =IF(AM17=1,"","15°") -> 15°
C25: =IF(I25>2150,VLOOKUP("Profilhöhe zu hoch!",Sprachindex!$A:$Z,Haftungsausschluß!$O$6,FALSE),VLOOKUP("erf. Profilhöhe f. Spanner:",Sprachindex!$A:$Z,Haftungsausschluß!$O$6,FALSE)) -> erf. Profilhöhe f. Spanner: | I25: 120 | M25: =VLOOKUP("Sonderkosten",Sprachindex!$A:$Z,Haftungsausschluß!$O$6,FALSE) -> Sonderkosten | W25: =" " &VLOOKUP("Hebehilfe für Bodenhülsendeckel",Sprachindex!$A:$Z,Haftungsausschluß!$O$6,FALSE) -> Hebehilfe für Bodenhülsendeckel | AD25: =VLOOKUP("Stk",Sprachindex!$A:$Z,Haftungsausschluß!$O$6,FALSE) -> Stk | AH25: FALSE | AI25: =VLOOKUP("Dichtungsroller 80",Sprachindex!$A:$Z,Haftungsausschluß!$O$6,FALSE) -> Dichtungsroller 80 | AM25: =IF(AM17=1,"","30°") -> 30°
C26: =VLOOKUP("Anzahl der Felder:",Sprachindex!$A:$Z,Haftungsausschluß!$O$6,FALSE) -> Anzahl der Felder: | I26: 1 | M26: =" " &VLOOKUP("Sonderanfertigung",Sprachindex!$A:$Z,Haftungsausschluß!$O$6,FALSE) -> Sonderanfertigung | T26: =VLOOKUP("Stk",Sprachindex!$A:$Z,Haftungsausschluß!$O$6,FALSE) -> Stk | W26: =" " &VLOOKUP("Dichtungsroller 25/50",Sprachindex!$A:$Z,Haftungsausschluß!$O$6,FALSE) -> Dichtungsroller 25/50 | AD26: =VLOOKUP("Stk",Sprachindex!$A:$Z,Haftungsausschluß!$O$6,FALSE) -> Stk | AH26: =VLOOKUP("Sonderkosten",Sprachindex!$A:$Z,Haftungsausschluß!$O$6,FALSE) -> Sonderkosten | AM26: =IF(AM17=1,"","45°") -> 45°
C27: =VLOOKUP("Anströmwinkel [°]:",Sprachindex!$A:$Z,Haftungsausschluß!$O$6,FALSE) -> Anströmwinkel [°]: | I27: 0 | M27: =" " &VLOOKUP("Längenänderung Wandprofil",Sprachindex!$A:$Z,Haftungsausschluß!$O$6,FALSE) -> Längenänderung Wandprofil | T27: =VLOOKUP("Stk",Sprachindex!$A:$Z,Haftungsausschluß!$O$6,FALSE) -> Stk | W27: =" " &VLOOKUP("Dichtungsroller 80",Sprachindex!$A:$Z,Haftungsausschluß!$O$6,FALSE) -> Dichtungsroller 80 | AD27: =VLOOKUP("Stk",Sprachindex!$A:$Z,Haftungsausschluß!$O$6,FALSE) -> Stk | AH27: FALSE | AI27: =VLOOKUP("Verankerung aufgeschweißt 300mm",Sprachindex!$A:$Z,Haftungsausschluß!$O$6,FALSE) -> Verankerung aufgeschweißt 300mm | AM27: =IF(AM17=1,"","60°") -> 60°
M28: =" " &VLOOKUP("Ausfräsung Wandprofil für DB",Sprachindex!$A:$Z,Haftungsausschluß!$O$6,FALSE) -> Ausfräsung Wandprofil für DB | T28: =VLOOKUP("Stk",Sprachindex!$A:$Z,Haftungsausschluß!$O$6,FALSE) -> Stk | W28: =IF(Haftungsausschluß!L22=2," " &VLOOKUP("Montagematerial",Sprachindex!$A:$Z,Haftungsausschluß!$O$6,FALSE),"") ->  | AD28: =VLOOKUP("Pa",Sprachindex!$A:$Z,Haftungsausschluß!$O$6,FALSE) -> Pa | AH28: FALSE | AI28: =VLOOKUP("Längenänderung Wandprofil",Sprachindex!$A:$Z,Haftungsausschluß!$O$6,FALSE) -> Längenänderung Wandprofil | AM28: =IF(OR(AM17=2,AM17=3),"75°","") -> 75° | AO28: =28+AK17 -> 29 | AP28: =28+AL17 -> 29 | AR28: =28+AN17 -> 29 | AS28: =28+IF(I26>8,8,I26) -> 29 | AT28: =28+IF(I26>8,9,I26) -> 29 | BA28: =28+IF(I26>8,9,I26) -> 29
M29: =" " &VLOOKUP("Aufpreis Planungsstunde",Sprachindex!$A:$Z,Haftungsausschluß!$O$6,FALSE) -> Aufpreis Planungsstunde | T29: =VLOOKUP("Std",Sprachindex!$A:$Z,Haftungsausschluß!$O$6,FALSE) -> Std | W29: =IF(Haftungsausschluß!L22=2," " &VLOOKUP("Montage",Sprachindex!$A:$Z,Haftungsausschluß!$O$6,FALSE),"") ->  | AD29: =VLOOKUP("Pa",Sprachindex!$A:$Z,Haftungsausschluß!$O$6,FALSE) -> Pa | AH29: FALSE | AI29: =VLOOKUP("Ausfräsung Wandprofil für DB",Sprachindex!$A:$Z,Haftungsausschluß!$O$6,FALSE) -> Ausfräsung Wandprofil für DB | AT29: 1
W30: =IF(Haftungsausschluß!L22=2," " &VLOOKUP("Fahrtkosten",Sprachindex!$A:$Z,Haftungsausschluß!$O$6,FALSE),"") ->  | AD30: =VLOOKUP("Pa",Sprachindex!$A:$Z,Haftungsausschluß!$O$6,FALSE) -> Pa | AH30: FALSE | AI30: =VLOOKUP("Aufpreis Planungsstunde",Sprachindex!$A:$Z,Haftungsausschluß!$O$6,FALSE) -> Aufpreis Planungsstunde | AT30: =" 1 2" -> 1 2 | BA30: =" 1" -> 1
AT31: =" 1 2 3" -> 1 2 3 | BA31: =" 1 2" -> 1 2
W32: =VLOOKUP("Definition Feld Innenlichte:",Sprachindex!$A:$Z,Haftungsausschluß!$O$6,FALSE) -> Definition Feld Innenlichte: | AH32: =VLOOKUP("Beschichtung",Sprachindex!$A:$Z,Haftungsausschluß!$O$6,FALSE) -> Beschichtung | AT32: =" 1 2 3 4" -> 1 2 3 4 | BA32: =" 1 2 3" -> 1 2 3
C33: =VLOOKUP("Feld Nr.",Sprachindex!$A:$Z,Haftungsausschluß!$O$6,FALSE) -> Feld Nr. | AH33: =Erhebungsbogen!O39 -> FALSE | AI33: =VLOOKUP("Dammbalken",Sprachindex!$A:$Z,Haftungsausschluß!$O$6,FALSE) -> Dammbalken | AT33: =" 1 2 3 4 5" -> 1 2 3 4 5 | BA33: =" 1 2 3 4" -> 1 2 3 4
AH34: =Erhebungsbogen!O40 -> FALSE | AI34: =VLOOKUP("Wandprofil",Sprachindex!$A:$Z,Haftungsausschluß!$O$6,FALSE) -> Wandprofil | AT34: =" 1 2 3 4 5 6" -> 1 2 3 4 5 6 | BA34: =" 1 2 3 4 5" -> 1 2 3 4 5
AH35: =Erhebungsbogen!O41 -> FALSE | AI35: =VLOOKUP("Abdeckung",Sprachindex!$A:$Z,Haftungsausschluß!$O$6,FALSE) -> Abdeckung | AT35: =" 1 2 3 4 5 6 7" -> 1 2 3 4 5 6 7 | BA35: =" 1 2 3 4 5 6" -> 1 2 3 4 5 6
AH36: =Erhebungsbogen!O42 -> FALSE | AI36: =VLOOKUP("Lagerabdeckung",Sprachindex!$A:$Z,Haftungsausschluß!$O$6,FALSE) -> Lagerabdeckung | AT36: =" 1 2 3 4 5 6 7 8" -> 1 2 3 4 5 6 7 8 | BA36: =" 1 2 3 4 5 6 7" -> 1 2 3 4 5 6 7
C37: =VLOOKUP("Steher Nr.",Sprachindex!$A:$Z,Haftungsausschluß!$O$6,FALSE) -> Steher Nr. | AH37: FALSE | AI37: Montagematerial | AT37: =" 1 2 3 4 5 6 ... " & I26 -> 1 2 3 4 5 6 ... 1 | BA37: =" 1 2 3 4 5 … " & I26-1 -> 1 2 3 4 5 … 0
AH38: FALSE | AI38: Montage
C39: =IF(AND(AND(AP17=2,AH33),MAX(E42:G230)>3000),"Achtung! Maximallänge bei Beschichtung 3000mm","") ->  | N39: =VLOOKUP("Statische Ausnutzung Dammbalken in %",Sprachindex!$A:$Z,Haftungsausschluß!$O$6,FALSE) -> Statische Ausnutzung Dammbalken in % | X39: =VLOOKUP("Statische Ausnutzung Steher in %",Sprachindex!$A:$Z,Haftungsausschluß!$O$6,FALSE) -> Statische Ausnutzung Steher in % | AH39: FALSE | AI39: Fahrtkosten
C40: =VLOOKUP("Feld Nr.",Sprachindex!$A:$Z,Haftungsausschluß!$O$6,FALSE) -> Feld Nr. | E40: =VLOOKUP("Länge",Sprachindex!$A:$Z,Haftungsausschluß!$O$6,FALSE) -> Länge | N40: =VLOOKUP("Hydrostatisch & -dynamisch",Sprachindex!$A:$Z,Haftungsausschluß!$O$6,FALSE) -> Hydrostatisch & -dynamisch | T40: =VLOOKUP("mit Treibgut",Sprachindex!$A:$Z,Haftungsausschluß!$O$6,FALSE) -> mit Treibgut | X40: =VLOOKUP("Hydrostatisch & -dynamisch",Sprachindex!$A:$Z,Haftungsausschluß!$O$6,FALSE) -> Hydrostatisch & -dynamisch | AD40: =VLOOKUP("mit Treibgut",Sprachindex!$A:$Z,Haftungsausschluß!$O$6,FALSE) -> mit Treibgut
E41: =VLOOKUP("Plan-Dammbalken",Sprachindex!$A:$Z,Haftungsausschluß!$O$6,FALSE) -> Plan-Dammbalken | H41: =VLOOKUP("[L] Innenlichte",Sprachindex!$A:$Z,Haftungsausschluß!$O$6,FALSE) -> [L] Innenlichte | N41: =VLOOKUP("Feld Nr.",Sprachindex!$A:$Z,Haftungsausschluß!$O$6,FALSE) -> Feld Nr. | P41: =VLOOKUP("Durchbiegung",Sprachindex!$A:$Z,Haftungsausschluß!$O$6,FALSE) -> Durchbiegung | R41: =VLOOKUP("Tragsicherheitsauslastung",Sprachindex!$A:$Z,Haftungsausschluß!$O$6,FALSE) -> Tragsicherheitsauslastung | X41: =VLOOKUP("Steher Nr.",Sprachindex!$A:$Z,Haftungsausschluß!$O$6,FALSE) -> Steher Nr. | Z41: =VLOOKUP("Durchbiegung",Sprachindex!$A:$Z,Haftungsausschluß!$O$6,FALSE) -> Durchbiegung | AB41: =VLOOKUP("Tragsicherheitsauslastung",Sprachindex!$A:$Z,Haftungsausschluß!$O$6,FALSE) -> Tragsicherheitsauslastung | AV41: Stk | AW41: Länge | AX41: Zeilenbeschriftungen | AY41: Summe von Stk
C42: 1 | E42: 86 | M42: 136 | N42: 1 | P42: 1 / | Q42: -27237228 | R42: -0.01 | AV42: 0 | AW42: 86 | AX42: (Leer) | ABS42: 0.78
M43: 531.5 | AI43: 86 | AJ43: * | AK43: 4.12 | AL43: / | AM43: 1000 | AN43: = | AO43: 0.35432 | AX43: 86 | AY43: 0 | ABS43: 0.78
AI44: 481.5 | AJ44: * | AK44: 4.12 | AL44: / | AM44: 1000 | AN44: = | AO44: 1.98378 | BB44: Stk | BC44: Länge | ABS44: 0.78
AI45: 2662 | AJ45: * | AK45: 4.12 | AL45: / | AM45: 1000 | AN45: = | AO45: 10.96744 | BB45: 1 b | BC45: 5395 | ABS45: 0.78
AI46: 1577.2 | AJ46: * | AK46: 4.12 | AL46: / | AM46: 1000 | AN46: = | AO46: 6.498064
AI47: 1577.2 | AJ47: * | AK47: 4.12 | AL47: / | AM47: 1000 | AN47: = | AO47: 6.498064
AI48: 63 | AJ48: * | AK48: 4.12 | AL48: / | AM48: 1000 | AN48: = | AO48: 0.25956
AI49: 63 | AJ49: * | AK49: 4.12 | AL49: / | AM49: 1000 | AN49: = | AO49: 0.25956
AI50: 63 | AJ50: * | AK50: 4.12 | AL50: / | AM50: 1000 | AN50: = | AO50: 0.25956
AI51: 63 | AJ51: * | AK51: 4.12 | AL51: / | AM51: 1000 | AN51: = | AO51: 0.25956
AI52: 63 | AJ52: * | AK52: 4.12 | AL52: / | AM52: 1000 | AN52: = | AO52: 0.25956
AI53: 229.25 | AJ53: * | AK53: 7.784 | AL53: / | AM53: 1000 | AN53: = | AO53: 1.784482
AI54: 229.25 | AJ54: * | AK54: 7.784 | AL54: / | AM54: 1000 | AN54: = | AO54: 1.784482
AI55: 229.25 | AJ55: * | AK55: 7.784 | AL55: / | AM55: 1000 | AN55: = | AO55: 1.784482
AI56: 229.25 | AJ56: * | AK56: 7.784 | AL56: / | AM56: 1000 | AN56: = | AO56: 1.784482
AI57: 229.25 | AJ57: * | AK57: 7.784 | AL57: / | AM57: 1000 | AN57: = | AO57: 1.784482
AI58: 229.25 | AJ58: * | AK58: 7.784 | AL58: / | AM58: 1000 | AN58: = | AO58: 1.784482
AI59: 229.25 | AJ59: * | AK59: 7.784 | AL59: / | AM59: 1000 | AN59: = | AO59: 1.784482
AI60: 229.25 | AJ60: * | AK60: 7.784 | AL60: / | AM60: 1000 | AN60: = | AO60: 1.784482
AI61: 229.25 | AJ61: * | AK61: 7.784 | AL61: / | AM61: 1000 | AN61: = | AO61: 1.784482
AI62: 229.25 | AJ62: * | AK62: 7.784 | AL62: / | AM62: 1000 | AN62: = | AO62: 1.784482
AI63: 4031.428571 | AJ63: * | AK63: 4.12 | AL63: / | AM63: 1000 | AN63: = | AO63: 16.60948571
AI64: 4031.428571 | AJ64: * | AK64: 4.12 | AL64: / | AM64: 1000 | AN64: = | AO64: 16.60948571
AI65: 4031.428571 | AJ65: * | AK65: 4.12 | AL65: / | AM65: 1000 | AN65: = | AO65: 16.60948571
AI66: 4031.428571 | AJ66: * | AK66: 4.12 | AL66: / | AM66: 1000 | AN66: = | AO66: 16.60948571
AI67: 4031.428571 | AJ67: * | AK67: 4.12 | AL67: / | AM67: 1000 | AN67: = | AO67: 16.60948571
AI68: 4031.428571 | AJ68: * | AK68: 4.12 | AL68: / | AM68: 1000 | AN68: = | AO68: 16.60948571
AI69: 4031.428571 | AJ69: * | AK69: 4.12 | AL69: / | AM69: 1000 | AN69: = | AO69: 16.60948571
AI70: 4031.428571 | AJ70: * | AK70: 4.12 | AL70: / | AM70: 1000 | AN70: = | AO70: 16.60948571
AI71: 4031.428571 | AJ71: * | AK71: 4.12 | AL71: / | AM71: 1000 | AN71: = | AO71: 16.60948571
AI72: 4031.428571 | AJ72: * | AK72: 4.12 | AL72: / | AM72: 1000 | AN72: = | AO72: 16.60948571
AI73: 4031.428571 | AJ73: * | AK73: 4.12 | AL73: / | AM73: 1000 | AN73: = | AO73: 16.60948571
AI74: 4031.428571 | AJ74: * | AK74: 4.12 | AL74: / | AM74: 1000 | AN74: = | AO74: 16.60948571
AI75: 4031.428571 | AJ75: * | AK75: 4.12 | AL75: / | AM75: 1000 | AN75: = | AO75: 16.60948571
AI76: 4031.428571 | AJ76: * | AK76: 4.12 | AL76: / | AM76: 1000 | AN76: = | AO76: 16.60948571
AI77: 4031.428571 | AJ77: * | AK77: 4.12 | AL77: / | AM77: 1000 | AN77: = | AO77: 16.60948571
AI78: 4031.428571 | AJ78: * | AK78: 4.12 | AL78: / | AM78: 1000 | AN78: = | AO78: 16.60948571
AI79: 4031.428571 | AJ79: * | AK79: 4.12 | AL79: / | AM79: 1000 | AN79: = | AO79: 16.60948571
AI80: 4031.428571 | AJ80: * | AK80: 4.12 | AL80: / | AM80: 1000 | AN80: = | AO80: 16.60948571
AI81: 4031.428571 | AJ81: * | AK81: 4.12 | AL81: / | AM81: 1000 | AN81: = | AO81: 16.60948571
AI82: 4031.428571 | AJ82: * | AK82: 4.12 | AL82: / | AM82: 1000 | AN82: = | AO82: 16.60948571
AI83: 4031.428571 | AJ83: * | AK83: 4.12 | AL83: / | AM83: 1000 | AN83: = | AO83: 16.60948571
AI84: 4031.428571 | AJ84: * | AK84: 4.12 | AL84: / | AM84: 1000 | AN84: = | AO84: 16.60948571
AI85: 4031.428571 | AJ85: * | AK85: 4.12 | AL85: / | AM85: 1000 | AN85: = | AO85: 16.60948571
AI86: 4031.428571 | AJ86: * | AK86: 4.12 | AL86: / | AM86: 1000 | AN86: = | AO86: 16.60948571
AI87: 4031.428571 | AJ87: * | AK87: 4.12 | AL87: / | AM87: 1000 | AN87: = | AO87: 16.60948571
AI88: 4031.428571 | AJ88: * | AK88: 4.12 | AL88: / | AM88: 1000 | AN88: = | AO88: 16.60948571
AI89: 4031.428571 | AJ89: * | AK89: 4.12 | AL89: / | AM89: 1000 | AN89: = | AO89: 16.60948571
AI90: 4031.428571 | AJ90: * | AK90: 4.12 | AL90: / | AM90: 1000 | AN90: = | AO90: 16.60948571
AI91: 4031.428571 | AJ91: * | AK91: 4.12 | AL91: / | AM91: 1000 | AN91: = | AO91: 16.60948571
AI92: -10.2 | AJ92: * | AK92: 4.12 | AL92: / | AM92: 1000 | AN92: = | AO92: -0.042024
AI93: 55.275 | AJ93: * | AK93: 7.784 | AL93: / | AM93: 1000 | AN93: = | AO93: 0.4302606
AI94: 55.275 | AJ94: * | AK94: 7.784 | AL94: / | AM94: 1000 | AN94: = | AO94: 0.4302606
AI95: 55.275 | AJ95: * | AK95: 7.784 | AL95: / | AM95: 1000 | AN95: = | AO95: 0.4302606
AI96: 55.275 | AJ96: * | AK96: 7.784 | AL96: / | AM96: 1000 | AN96: = | AO96: 0.4302606
AI97: 55.275 | AJ97: * | AK97: 7.784 | AL97: / | AM97: 1000 | AN97: = | AO97: 0.4302606
AI98: 55.275 | AJ98: * | AK98: 7.784 | AL98: / | AM98: 1000 | AN98: = | AO98: 0.4302606
AI99: 55.275 | AJ99: * | AK99: 7.784 | AL99: / | AM99: 1000 | AN99: = | AO99: 0.4302606
AI100: 55.275 | AJ100: * | AK100: 7.784 | AL100: / | AM100: 1000 | AN100: = | AO100: 0.4302606
AI101: 55.275 | AJ101: * | AK101: 7.784 | AL101: / | AM101: 1000 | AN101: = | AO101: 0.4302606
AI102: 55.275 | AJ102: * | AK102: 7.784 | AL102: / | AM102: 1000 | AN102: = | AO102: 0.4302606
AI103: 55.275 | AJ103: * | AK103: 7.784 | AL103: / | AM103: 1000 | AN103: = | AO103: 0.4302606
AI104: 55.275 | AJ104: * | AK104: 7.784 | AL104: / | AM104: 1000 | AN104: = | AO104: 0.4302606
AI105: 55.275 | AJ105: * | AK105: 7.784 | AL105: / | AM105: 1000 | AN105: = | AO105: 0.4302606
AI106: 55.275 | AJ106: * | AK106: 7.784 | AL106: / | AM106: 1000 | AN106: = | AO106: 0.4302606
AI107: 55.275 | AJ107: * | AK107: 7.784 | AL107: / | AM107: 1000 | AN107: = | AO107: 0.4302606
AI108: 55.275 | AJ108: * | AK108: 7.784 | AL108: / | AM108: 1000 | AN108: = | AO108: 0.4302606
AI109: 55.275 | AJ109: * | AK109: 7.784 | AL109: / | AM109: 1000 | AN109: = | AO109: 0.4302606
AI110: 55.275 | AJ110: * | AK110: 7.784 | AL110: / | AM110: 1000 | AN110: = | AO110: 0.4302606
AI111: 55.275 | AJ111: * | AK111: 7.784 | AL111: / | AM111: 1000 | AN111: = | AO111: 0.4302606
AI112: 55.275 | AJ112: * | AK112: 7.784 | AL112: / | AM112: 1000 | AN112: = | AO112: 0.4302606
AI113: 55.275 | AJ113: * | AK113: 7.784 | AL113: / | AM113: 1000 | AN113: = | AO113: 0.4302606
AI114: 55.275 | AJ114: * | AK114: 7.784 | AL114: / | AM114: 1000 | AN114: = | AO114: 0.4302606
AI115: 55.275 | AJ115: * | AK115: 7.784 | AL115: / | AM115: 1000 | AN115: = | AO115: 0.4302606
AI116: 55.275 | AJ116: * | AK116: 7.784 | AL116: / | AM116: 1000 | AN116: = | AO116: 0.4302606
AI117: 55.275 | AJ117: * | AK117: 7.784 | AL117: / | AM117: 1000 | AN117: = | AO117: 0.4302606
AI118: 55.275 | AJ118: * | AK118: 7.784 | AL118: / | AM118: 1000 | AN118: = | AO118: 0.4302606
AI119: 55.275 | AJ119: * | AK119: 7.784 | AL119: / | AM119: 1000 | AN119: = | AO119: 0.4302606
AI120: 55.275 | AJ120: * | AK120: 7.784 | AL120: / | AM120: 1000 | AN120: = | AO120: 0.4302606
AI121: 55.275 | AJ121: * | AK121: 7.784 | AL121: / | AM121: 1000 | AN121: = | AO121: 0.4302606
AI122: 55.275 | AJ122: * | AK122: 7.784 | AL122: / | AM122: 1000 | AN122: = | AO122: 0.4302606
AI123: 55.275 | AJ123: * | AK123: 7.784 | AL123: / | AM123: 1000 | AN123: = | AO123: 0.4302606
AI124: 55.275 | AJ124: * | AK124: 7.784 | AL124: / | AM124: 1000 | AN124: = | AO124: 0.4302606
AI125: 55.275 | AJ125: * | AK125: 7.784 | AL125: / | AM125: 1000 | AN125: = | AO125: 0.4302606
AI126: 55.275 | AJ126: * | AK126: 7.784 | AL126: / | AM126: 1000 | AN126: = | AO126: 0.4302606
AI127: 55.275 | AJ127: * | AK127: 7.784 | AL127: / | AM127: 1000 | AN127: = | AO127: 0.4302606
AI128: 55.275 | AJ128: * | AK128: 7.784 | AL128: / | AM128: 1000 | AN128: = | AO128: 0.4302606
AI129: 55.275 | AJ129: * | AK129: 7.784 | AL129: / | AM129: 1000 | AN129: = | AO129: 0.4302606
AI130: 55.275 | AJ130: * | AK130: 7.784 | AL130: / | AM130: 1000 | AN130: = | AO130: 0.4302606
AI131: 55.275 | AJ131: * | AK131: 7.784 | AL131: / | AM131: 1000 | AN131: = | AO131: 0.4302606
AI132: 55.275 | AJ132: * | AK132: 7.784 | AL132: / | AM132: 1000 | AN132: = | AO132: 0.4302606
AI133: 55.275 | AJ133: * | AK133: 7.784 | AL133: / | AM133: 1000 | AN133: = | AO133: 0.4302606
AI134: 55.275 | AJ134: * | AK134: 7.784 | AL134: / | AM134: 1000 | AN134: = | AO134: 0.4302606
AI135: 55.275 | AJ135: * | AK135: 7.784 | AL135: / | AM135: 1000 | AN135: = | AO135: 0.4302606
AI136: 55.275 | AJ136: * | AK136: 7.784 | AL136: / | AM136: 1000 | AN136: = | AO136: 0.4302606
AI137: 55.275 | AJ137: * | AK137: 7.784 | AL137: / | AM137: 1000 | AN137: = | AO137: 0.4302606
AI138: 55.275 | AJ138: * | AK138: 7.784 | AL138: / | AM138: 1000 | AN138: = | AO138: 0.4302606
AI139: 55.275 | AJ139: * | AK139: 7.784 | AL139: / | AM139: 1000 | AN139: = | AO139: 0.4302606
AI140: 55.275 | AJ140: * | AK140: 7.784 | AL140: / | AM140: 1000 | AN140: = | AO140: 0.4302606
AI141: 55.275 | AJ141: * | AK141: 7.784 | AL141: / | AM141: 1000 | AN141: = | AO141: 0.4302606
AI142: 55.275 | AJ142: * | AK142: 7.784 | AL142: / | AM142: 1000 | AN142: = | AO142: 0.4302606
AI143: 55.275 | AJ143: * | AK143: 7.784 | AL143: / | AM143: 1000 | AN143: = | AO143: 0.4302606
AI144: 55.275 | AJ144: * | AK144: 7.784 | AL144: / | AM144: 1000 | AN144: = | AO144: 0.4302606
AI145: 55.275 | AJ145: * | AK145: 7.784 | AL145: / | AM145: 1000 | AN145: = | AO145: 0.4302606
AI146: 55.275 | AJ146: * | AK146: 7.784 | AL146: / | AM146: 1000 | AN146: = | AO146: 0.4302606
AI147: 55.275 | AJ147: * | AK147: 7.784 | AL147: / | AM147: 1000 | AN147: = | AO147: 0.4302606
AI148: 55.275 | AJ148: * | AK148: 7.784 | AL148: / | AM148: 1000 | AN148: = | AO148: 0.4302606
AI149: 55.275 | AJ149: * | AK149: 7.784 | AL149: / | AM149: 1000 | AN149: = | AO149: 0.4302606
AI150: 55.275 | AJ150: * | AK150: 7.784 | AL150: / | AM150: 1000 | AN150: = | AO150: 0.4302606
AI151: 55.275 | AJ151: * | AK151: 7.784 | AL151: / | AM151: 1000 | AN151: = | AO151: 0.4302606
AI152: 55.275 | AJ152: * | AK152: 7.784 | AL152: / | AM152: 1000 | AN152: = | AO152: 0.4302606
AI153: 55.275 | AJ153: * | AK153: 7.784 | AL153: / | AM153: 1000 | AN153: = | AO153: 0.4302606
AI154: 55.275 | AJ154: * | AK154: 7.784 | AL154: / | AM154: 1000 | AN154: = | AO154: 0.4302606
AI155: 55.275 | AJ155: * | AK155: 7.784 | AL155: / | AM155: 1000 | AN155: = | AO155: 0.4302606
AI156: 55.275 | AJ156: * | AK156: 7.784 | AL156: / | AM156: 1000 | AN156: = | AO156: 0.4302606
AI157: 55.275 | AJ157: * | AK157: 7.784 | AL157: / | AM157: 1000 | AN157: = | AO157: 0.4302606
AI158: 55.275 | AJ158: * | AK158: 7.784 | AL158: / | AM158: 1000 | AN158: = | AO158: 0.4302606
AI159: 55.275 | AJ159: * | AK159: 7.784 | AL159: / | AM159: 1000 | AN159: = | AO159: 0.4302606
AI160: 55.275 | AJ160: * | AK160: 7.784 | AL160: / | AM160: 1000 | AN160: = | AO160: 0.4302606
AI161: 55.275 | AJ161: * | AK161: 7.784 | AL161: / | AM161: 1000 | AN161: = | AO161: 0.4302606
AI162: 55.275 | AJ162: * | AK162: 7.784 | AL162: / | AM162: 1000 | AN162: = | AO162: 0.4302606
AI163: 55.275 | AJ163: * | AK163: 7.784 | AL163: / | AM163: 1000 | AN163: = | AO163: 0.4302606
AI164: 55.275 | AJ164: * | AK164: 7.784 | AL164: / | AM164: 1000 | AN164: = | AO164: 0.4302606
AI165: 55.275 | AJ165: * | AK165: 7.784 | AL165: / | AM165: 1000 | AN165: = | AO165: 0.4302606
AI166: 55.275 | AJ166: * | AK166: 7.784 | AL166: / | AM166: 1000 | AN166: = | AO166: 0.4302606
AI167: 55.275 | AJ167: * | AK167: 7.784 | AL167: / | AM167: 1000 | AN167: = | AO167: 0.4302606
AI168: 55.275 | AJ168: * | AK168: 7.784 | AL168: / | AM168: 1000 | AN168: = | AO168: 0.4302606
AI169: 55.275 | AJ169: * | AK169: 7.784 | AL169: / | AM169: 1000 | AN169: = | AO169: 0.4302606
AI170: 55.275 | AJ170: * | AK170: 7.784 | AL170: / | AM170: 1000 | AN170: = | AO170: 0.4302606
AI171: 55.275 | AJ171: * | AK171: 7.784 | AL171: / | AM171: 1000 | AN171: = | AO171: 0.4302606
AI172: 55.275 | AJ172: * | AK172: 7.784 | AL172: / | AM172: 1000 | AN172: = | AO172: 0.4302606
AI173: 55.275 | AJ173: * | AK173: 7.784 | AL173: / | AM173: 1000 | AN173: = | AO173: 0.4302606
AI174: 55.275 | AJ174: * | AK174: 7.784 | AL174: / | AM174: 1000 | AN174: = | AO174: 0.4302606
AI175: 55.275 | AJ175: * | AK175: 7.784 | AL175: / | AM175: 1000 | AN175: = | AO175: 0.4302606
AI176: 55.275 | AJ176: * | AK176: 7.784 | AL176: / | AM176: 1000 | AN176: = | AO176: 0.4302606
AI177: 55.275 | AJ177: * | AK177: 7.784 | AL177: / | AM177: 1000 | AN177: = | AO177: 0.4302606
AI178: 55.275 | AJ178: * | AK178: 7.784 | AL178: / | AM178: 1000 | AN178: = | AO178: 0.4302606
AI179: 55.275 | AJ179: * | AK179: 7.784 | AL179: / | AM179: 1000 | AN179: = | AO179: 0.4302606
AI180: 55.275 | AJ180: * | AK180: 7.784 | AL180: / | AM180: 1000 | AN180: = | AO180: 0.4302606
AI181: 55.275 | AJ181: * | AK181: 7.784 | AL181: / | AM181: 1000 | AN181: = | AO181: 0.4302606
AI182: 55.275 | AJ182: * | AK182: 7.784 | AL182: / | AM182: 1000 | AN182: = | AO182: 0.4302606
AI183: 55.275 | AJ183: * | AK183: 7.784 | AL183: / | AM183: 1000 | AN183: = | AO183: 0.4302606
AI184: 55.275 | AJ184: * | AK184: 7.784 | AL184: / | AM184: 1000 | AN184: = | AO184: 0.4302606
AI185: 55.275 | AJ185: * | AK185: 7.784 | AL185: / | AM185: 1000 | AN185: = | AO185: 0.4302606
AI186: 55.275 | AJ186: * | AK186: 7.784 | AL186: / | AM186: 1000 | AN186: = | AO186: 0.4302606
AI187: 55.275 | AJ187: * | AK187: 7.784 | AL187: / | AM187: 1000 | AN187: = | AO187: 0.4302606
AI188: 55.275 | AJ188: * | AK188: 7.784 | AL188: / | AM188: 1000 | AN188: = | AO188: 0.4302606
AI189: 55.275 | AJ189: * | AK189: 7.784 | AL189: / | AM189: 1000 | AN189: = | AO189: 0.4302606
AI190: 55.275 | AJ190: * | AK190: 7.784 | AL190: / | AM190: 1000 | AN190: = | AO190: 0.4302606
AI191: 55.275 | AJ191: * | AK191: 7.784 | AL191: / | AM191: 1000 | AN191: = | AO191: 0.4302606
AI192: 55.275 | AJ192: * | AK192: 7.784 | AL192: / | AM192: 1000 | AN192: = | AO192: 0.4302606
AI193: 55.275 | AJ193: * | AK193: 7.784 | AL193: / | AM193: 1000 | AN193: = | AO193: 0.4302606
AI194: 55.275 | AJ194: * | AK194: 7.784 | AL194: / | AM194: 1000 | AN194: = | AO194: 0.4302606
AI195: 55.275 | AJ195: * | AK195: 7.784 | AL195: / | AM195: 1000 | AN195: = | AO195: 0.4302606
AI196: 55.275 | AJ196: * | AK196: 7.784 | AL196: / | AM196: 1000 | AN196: = | AO196: 0.4302606
AI197: 55.275 | AJ197: * | AK197: 7.784 | AL197: / | AM197: 1000 | AN197: = | AO197: 0.4302606
AI198: 55.275 | AJ198: * | AK198: 7.784 | AL198: / | AM198: 1000 | AN198: = | AO198: 0.4302606
AI199: 55.275 | AJ199: * | AK199: 7.784 | AL199: / | AM199: 1000 | AN199: = | AO199: 0.4302606
AI200: 55.275 | AJ200: * | AK200: 7.784 | AL200: / | AM200: 1000 | AN200: = | AO200: 0.4302606
AI201: 55.275 | AJ201: * | AK201: 7.784 | AL201: / | AM201: 1000 | AN201: = | AO201: 0.4302606 | AV201: 5 | AW201: 55.275
... 41 more rows

Sheet HWS Experten (hidden)
A1: Nr. | B1: Firma | D1: Vorname | E1: Name | F1: Strasse | G1: PLZ | H1: Ort | I1: Telefon | J1: Mail | K1: Bestätigung | L1: Programm | M1: Mittagessen | N1: Zertifikat | O1: Rechnung | P1: Website | Q1: CRM | R1: Muster | S1: Preis
A2: 0 | B2: PREFA | C2: =IF(Erhebungsbogen!C8='HWS Experten'!B2,1,0) -> 0
A3: 1 | B3: E.Lutz AG | C3: =IF(Erhebungsbogen!C8='HWS Experten'!B3,1,0) -> 0 | D3: Marc | E3: Hilfiker | F3: Rothenring 9A | G3: 6015 | H3: Luzern | I3: +41 41 260 77 77 | J3: info@elutzag.ch | K3: Ja | L3: Ja | M3: Ja | N3: Ja | O3: JA | P3: Ja | Q3: Ja | R3: JA | S3: 150 | T3: 161.55
A4: 2 | B4: E.Lutz AG | C4: =IF(Erhebungsbogen!C8='HWS Experten'!B4,1,0) -> 0 | D4: Patrick | E4: Kretz | F4: Rothenring 9A | G4: 6015 | H4: Luzern | I4: +41 41 260 77 77 | J4: info@elutzag.ch | K4: Ja | L4: Ja | M4: Ja | N4: Ja | O4: JA | P4: Ja | Q4: Ja | S4: 150 | T4: 161.55
A5: 3 | B5: Spenglerei Schuler GmbH | C5: =IF(Erhebungsbogen!C8='HWS Experten'!B5,1,0) -> 0 | D5: Marco | E5: Schuler | F5: Höhenweg 10 | G5: 6418 | H5: Rothenthurm | I5: +41 79 786 17 57 | J5: spenglerei-schuler@bluewin.ch | K5: Ja | L5: Ja | M5: Ja | N5: Ja | O5: JA | P5: Ja | Q5: Ja | R5: JA | S5: 150 | T5: 161.55
A6: 4 | B6: Preisig AG | C6: =IF(Erhebungsbogen!C8='HWS Experten'!B6,1,0) -> 0 | D6: Michael | E6: Hotz | F6: Siewerdtstr. 9 | G6: 8050 | H6: Zürich | I6: +41 44 315 41 44 | J6: michael.hotz@preisig.ch | K6: Ja | L6: Ja | M6: Ja | N6: Ja | O6: JA | P6: Ja | Q6: Ja | R6: JA | S6: 150 | T6: 161.55
A7: 5 | B7: Preisig AG | C7: =IF(Erhebungsbogen!C8='HWS Experten'!B7,1,0) -> 0 | D7: Lars | E7: Frank | F7: Siewerdtstr. 9 | G7: 8050 | H7: Zürich | I7: +41 44 315 41 44 | J7: michael.hotz@preisig.ch | K7: Ja | L7: Ja | M7: Ja | N7: Ja | O7: JA | P7: Ja | Q7: Ja | S7: 150 | T7: 161.55
A8: 6 | B8: Dach-Walser AG | C8: =IF(Erhebungsbogen!C8='HWS Experten'!B8,1,0) -> 0 | D8: Roger | E8: Walser | F8: Bodenstrasse 2 | G8: 8882 | H8: Unterterzen | I8: +41 79 430 80 23 | J8: dach-walser@bluewin.ch | K8: Ja | L8: Ja | M8: Ja | N8: Ja | O8: JA | P8: Ja | Q8: Ja | R8: JA | S8: 150 | T8: 161.55
A9: 7 | B9: Gurtner Haustechnik GmbH | C9: =IF(Erhebungsbogen!C8='HWS Experten'!B9,1,0) -> 0 | D9: Roland | E9: Gurtner | F9: Dorfstrasse 60 | G9: 8468 | H9: Guntalingen | I9: +41 52 301 10 50 | J9: gurtner@gurtner-haus.ch | K9: Ja | L9: Ja | M9: Ja | N9: Ja | O9: JA | P9: Ja | Q9: Ja | S9: 150 | T9: 161.55
A10: 8 | B10: GYR AG | C10: =IF(Erhebungsbogen!C8='HWS Experten'!B10,1,0) -> 0 | D10: Fabian | E10: Gyr | F10: Kapellstrasse 15 | G10: 8854 | H10: Galgenen | I10: +41 44 687 10 71 | J10: info@gyrmetallbau.ch | K10: Ja | L10: Ja | M10: Ja | N10: Ja | O10: JA | P10: Ja | Q10: Ja | R10: JA | S10: 150 | T10: 161.55
B13: =[1]Total!D2 -> HWS Juli | E13: 150 | I13: 1 TG | S13: =SUM(S3:S10) -> 1200
C14: =SUM(C2:C10) -> 0
B17: TEXT FÜR SCHULUNG:
B18: Hochwasserschutz Expertenkurs
C21: HWS Experten Sonderrabatt
C27: =Erhebungsbogen!C8 -> 0

Sheet HWS-Stückliste-Kalk-1 (hidden)
H3: 0 | Q3: 1
G4: =VLOOKUP("Service:",Sprachindex!A:Z,Haftungsausschluß!$O$6,FALSE) -> Service: | H4: =IF('Kalkulation 1'!AO17=1,VLOOKUP("Mengenermittlung/Anfrage",Sprachindex!A:Z,Haftungsausschluß!$O$6,FALSE),VLOOKUP("Bestellung",Sprachindex!A:Z,Haftungsausschluß!$O$6,FALSE)) -> Bestellung | M4: =VLOOKUP("Datum:",Sprachindex!A:Z,Haftungsausschluß!$O$6,FALSE) -> Datum: | N4: =TODAY() -> 2022-08-16 | P4: =VLOOKUP("Preis",Sprachindex!A:Z,Haftungsausschluß!$O$6,FALSE) -> Preis | Q4: 1 | R4: Preis
D5: =VLOOKUP("Firma / Besteller:",Sprachindex!A:Z,Haftungsausschluß!$O$6,FALSE) -> Firma / Besteller: | H5: =VLOOKUP("Kalkulation",Sprachindex!A:Z,Haftungsausschluß!$O$6,FALSE) & " " &Q3 -> KALKULATION 1 | P5: =VLOOKUP("exkl. MwSt.",Sprachindex!A:Z,Haftungsausschluß!$O$6,FALSE) -> exkl. MwSt. | Q5: 1 | R5: Beschichtung | W5: ='Kalkulation 1'!AV17 -> 1
C6: =VLOOKUP("Name:",Sprachindex!A:Z,Haftungsausschluß!$O$6,FALSE) -> Name: | D6: ='Kalkulation 1'!E5 ->  | G6: =VLOOKUP("Farbe:",Sprachindex!A:Z,Haftungsausschluß!$O$6,FALSE) -> Farbe: | H6: =IF(H7="",VLOOKUP("blank",Sprachindex!A:Z,Haftungsausschluß!$O$6,FALSE),IF('Kalkulation 1'!AP17=1,VLOOKUP("blank",Sprachindex!A:Z,Haftungsausschluß!$O$6,FALSE),VLOOKUP("beschichtet",Sprachindex!A:Z,Haftungsausschluß!$O$6,FALSE) & ": " & H3)) -> blank | P6: =VLOOKUP("inkl. MwSt.",Sprachindex!A:Z,Haftungsausschluß!$O$6,FALSE) -> inkl. MwSt. | Q6: =AI205 -> 0 | R6: Besch.Pauschale händisch zum Testen definiert | W6: =AO205 -> 0
C7: =VLOOKUP("Straße:",Sprachindex!A:Z,Haftungsausschluß!$O$6,FALSE) -> Straße: | D7: ='Kalkulation 1'!E6 ->  | M7: =VLOOKUP("Telefon:",Sprachindex!A:Z,Haftungsausschluß!$O$6,FALSE) -> Telefon: | N7: ='Kalkulation 1'!E8 ->  | Q7: =SUM(O16:O267) -> 552.1 | R7: Summe aller Positionen | W7: =SUM(U16:U267) -> 0
C8: =VLOOKUP("Ort:",Sprachindex!A:Z,Haftungsausschluß!$O$6,FALSE) -> Ort: | D8: ='Kalkulation 1'!E7 ->  | M8: =VLOOKUP("eMail:",Sprachindex!A:Z,Haftungsausschluß!$O$6,FALSE) -> eMail: | N8: ='Kalkulation 1'!E9 -> 
C9: =VLOOKUP("Kommission:",Sprachindex!A:Z,Haftungsausschluß!$O$6,FALSE) -> Kommission:
P10: =IF(Haftungsausschluß!L21=1,VLOOKUP("Rabatt",Sprachindex!A:Z,Haftungsausschluß!$O$6,FALSE),"") -> Rabatt
M11: =VLOOKUP("Bearbeiter:",Sprachindex!A:Z,Haftungsausschluß!$O$6,FALSE) -> Bearbeiter: | N11: ='Kalkulation 1'!R4 ->  | P11: =P12+P13 -> -10
P12: =IF(O268<1000,-10,-14) -> -10
P13: =IF('HWS Experten'!C14>=1,-4,0) -> 0
B14: =VLOOKUP("Filter:",Sprachindex!A:Z,Haftungsausschluß!$O$6,FALSE) -> Filter: | Q14: Kalk 1
B15: =VLOOKUP("Stück",Sprachindex!A:Z,Haftungsausschluß!$O$6,FALSE) -> Stück | C15: =VLOOKUP("Länge",Sprachindex!A:Z,Haftungsausschluß!$O$6,FALSE) -> Länge | D15: =VLOOKUP("Gesamt Länge",Sprachindex!A:Z,Haftungsausschluß!$O$6,FALSE) -> Gesamt Länge | E15: =VLOOKUP("Einheit",Sprachindex!A:Z,Haftungsausschluß!$O$6,FALSE) -> Einheit | F15: =VLOOKUP("Artikel Nr.",Sprachindex!A:Z,Haftungsausschluß!$O$6,FALSE) -> Artikel Nr. | G15: =VLOOKUP("Bezeichnung",Sprachindex!A:Z,Haftungsausschluß!$O$6,FALSE) -> Bezeichnung | N15: =VLOOKUP("Preis pro lfm od. Stk",Sprachindex!A:Z,Haftungsausschluß!$O$6,FALSE) -> Preis pro lfm od. Stk | O15: =VLOOKUP("Preis exkl.MwSt",Sprachindex!A:Z,Haftungsausschluß!$O$6,FALSE) -> Preis exkl.MwSt | Q15: Stk | R15: Länge
D16: =B16*C16/1000 -> 0 | E16: =VLOOKUP("[m]",Sprachindex!$A:$Z,Haftungsausschluß!$O$6,FALSE) -> [m] | F16: =IF($L$14=1,Preisliste!$E$7,Preisliste!$F$7) -> H251000 | G16: =VLOOKUP("Dammbalken 25/200 exkl. Dichtung, gesägt und entgratet",Sprachindex!$A:$Z,Haftungsausschluß!$O$6,FALSE) & " (" & ROUNDUP(C16/1000*2.99,2) & " " & VLOOKUP("kg/Stk",Sprachindex!$A:$Z,Haftungsausschluß!$O$6,FALSE) & ")" & IF('Kalkulation 1'!AH33," " & H3,"") -> Dammbalken 25/200 exkl. Dichtung, gesägt und entgratet (0 kg/Stk) | O16: =N16*D16 -> 0 | R16: =C16 -> 0
D17: =B17*C17/1000 -> 0 | E17: =VLOOKUP("[m]",Sprachindex!$A:$Z,Haftungsausschluß!$O$6,FALSE) -> [m] | F17: =IF($L$14=1,Preisliste!$E$7,Preisliste!$F$7) -> H251000 | G17: =VLOOKUP("Dammbalken 25/200 exkl. Dichtung, gesägt und entgratet",Sprachindex!$A:$Z,Haftungsausschluß!$O$6,FALSE) & " (" & ROUNDUP(C17/1000*2.99,2) & " " & VLOOKUP("kg/Stk",Sprachindex!$A:$Z,Haftungsausschluß!$O$6,FALSE) & ")" & IF('Kalkulation 1'!AH33," " & H3,"") -> Dammbalken 25/200 exkl. Dichtung, gesägt und entgratet (0 kg/Stk) | O17: =N17*D17 -> 0 | R17: =C17 -> 0
D18: =B18*C18/1000 -> 0 | E18: =VLOOKUP("[m]",Sprachindex!$A:$Z,Haftungsausschluß!$O$6,FALSE) -> [m] | F18: =IF($L$14=1,Preisliste!$E$7,Preisliste!$F$7) -> H251000 | G18: =VLOOKUP("Dammbalken 25/200 exkl. Dichtung, gesägt und entgratet",Sprachindex!$A:$Z,Haftungsausschluß!$O$6,FALSE) & " (" & ROUNDUP(C18/1000*2.99,2) & " " & VLOOKUP("kg/Stk",Sprachindex!$A:$Z,Haftungsausschluß!$O$6,FALSE) & ")" & IF('Kalkulation 1'!AH33," " & H3,"") -> Dammbalken 25/200 exkl. Dichtung, gesägt und entgratet (0 kg/Stk) | O18: =N18*D18 -> 0 | R18: 0
D19: 0 | E19: =VLOOKUP("[m]",Sprachindex!$A:$Z,Haftungsausschluß!$O$6,FALSE) -> [m] | F19: =IF($L$14=1,Preisliste!$E$7,Preisliste!$F$7) -> H251000 | G19: =VLOOKUP("Dammbalken 25/200 exkl. Dichtung, gesägt und entgratet",Sprachindex!$A:$Z,Haftungsausschluß!$O$6,FALSE) & " (" & ROUNDUP(C19/1000*2.99,2) & " " & VLOOKUP("kg/Stk",Sprachindex!$A:$Z,Haftungsausschluß!$O$6,FALSE) & ")" & IF('Kalkulation 1'!AH33," " & H3,"") -> Dammbalken 25/200 exkl. Dichtung, gesägt und entgratet (0 kg/Stk) | O19: 0 | R19: 0
D20: 0 | E20: =VLOOKUP("[m]",Sprachindex!$A:$Z,Haftungsausschluß!$O$6,FALSE) -> [m] | F20: =IF($L$14=1,Preisliste!$E$7,Preisliste!$F$7) -> H251000 | G20: =VLOOKUP("Dammbalken 25/200 exkl. Dichtung, gesägt und entgratet",Sprachindex!$A:$Z,Haftungsausschluß!$O$6,FALSE) & " (" & ROUNDUP(C20/1000*2.99,2) & " " & VLOOKUP("kg/Stk",Sprachindex!$A:$Z,Haftungsausschluß!$O$6,FALSE) & ")" & IF('Kalkulation 1'!AH33," " & H3,"") -> Dammbalken 25/200 exkl. Dichtung, gesägt und entgratet (0 kg/Stk) | O20: 0 | R20: 0
D21: 0 | E21: =VLOOKUP("[m]",Sprachindex!$A:$Z,Haftungsausschluß!$O$6,FALSE) -> [m] | F21: =IF($L$14=1,Preisliste!$E$7,Preisliste!$F$7) -> H251000 | G21: =VLOOKUP("Dammbalken 25/200 exkl. Dichtung, gesägt und entgratet",Sprachindex!$A:$Z,Haftungsausschluß!$O$6,FALSE) & " (" & ROUNDUP(C21/1000*2.99,2) & " " & VLOOKUP("kg/Stk",Sprachindex!$A:$Z,Haftungsausschluß!$O$6,FALSE) & ")" & IF('Kalkulation 1'!AH33," " & H3,"") -> Dammbalken 25/200 exkl. Dichtung, gesägt und entgratet (0 kg/Stk) | O21: 0 | R21: 0
D22: 0 | E22: =VLOOKUP("[m]",Sprachindex!$A:$Z,Haftungsausschluß!$O$6,FALSE) -> [m] | F22: =IF($L$14=1,Preisliste!$E$7,Preisliste!$F$7) -> H251000 | G22: =VLOOKUP("Dammbalken 25/200 exkl. Dichtung, gesägt und entgratet",Sprachindex!$A:$Z,Haftungsausschluß!$O$6,FALSE) & " (" & ROUNDUP(C22/1000*2.99,2) & " " & VLOOKUP("kg/Stk",Sprachindex!$A:$Z,Haftungsausschluß!$O$6,FALSE) & ")" & IF('Kalkulation 1'!AH33," " & H3,"") -> Dammbalken 25/200 exkl. Dichtung, gesägt und entgratet (0 kg/Stk) | O22: 0 | R22: 0
D23: 0 | E23: =VLOOKUP("[m]",Sprachindex!$A:$Z,Haftungsausschluß!$O$6,FALSE) -> [m] | F23: =IF($L$14=1,Preisliste!$E$7,Preisliste!$F$7) -> H251000 | G23: =VLOOKUP("Dammbalken 25/200 exkl. Dichtung, gesägt und entgratet",Sprachindex!$A:$Z,Haftungsausschluß!$O$6,FALSE) & " (" & ROUNDUP(C23/1000*2.99,2) & " " & VLOOKUP("kg/Stk",Sprachindex!$A:$Z,Haftungsausschluß!$O$6,FALSE) & ")" & IF('Kalkulation 1'!AH33," " & H3,"") -> Dammbalken 25/200 exkl. Dichtung, gesägt und entgratet (0 kg/Stk) | O23: 0 | R23: 0
D24: 0 | E24: =VLOOKUP("[m]",Sprachindex!$A:$Z,Haftungsausschluß!$O$6,FALSE) -> [m] | F24: =IF($L$14=1,Preisliste!$E$7,Preisliste!$F$7) -> H251000 | G24: =VLOOKUP("Dammbalken 25/200 exkl. Dichtung, gesägt und entgratet",Sprachindex!$A:$Z,Haftungsausschluß!$O$6,FALSE) & " (" & ROUNDUP(C24/1000*2.99,2) & " " & VLOOKUP("kg/Stk",Sprachindex!$A:$Z,Haftungsausschluß!$O$6,FALSE) & ")" & IF('Kalkulation 1'!AH33," " & H3,"") -> Dammbalken 25/200 exkl. Dichtung, gesägt und entgratet (0 kg/Stk) | O24: 0 | R24: 0
D25: 0 | E25: =VLOOKUP("[m]",Sprachindex!$A:$Z,Haftungsausschluß!$O$6,FALSE) -> [m] | F25: =IF($L$14=1,Preisliste!$E$7,Preisliste!$F$7) -> H251000 | G25: =VLOOKUP("Dammbalken 25/200 exkl. Dichtung, gesägt und entgratet",Sprachindex!$A:$Z,Haftungsausschluß!$O$6,FALSE) & " (" & ROUNDUP(C25/1000*2.99,2) & " " & VLOOKUP("kg/Stk",Sprachindex!$A:$Z,Haftungsausschluß!$O$6,FALSE) & ")" & IF('Kalkulation 1'!AH33," " & H3,"") -> Dammbalken 25/200 exkl. Dichtung, gesägt und entgratet (0 kg/Stk) | O25: 0 | R25: 0
D26: 0 | E26: =VLOOKUP("[m]",Sprachindex!$A:$Z,Haftungsausschluß!$O$6,FALSE) -> [m] | F26: =IF($L$14=1,Preisliste!$E$7,Preisliste!$F$7) -> H251000 | G26: =VLOOKUP("Dammbalken 25/200 exkl. Dichtung, gesägt und entgratet",Sprachindex!$A:$Z,Haftungsausschluß!$O$6,FALSE) & " (" & ROUNDUP(C26/1000*2.99,2) & " " & VLOOKUP("kg/Stk",Sprachindex!$A:$Z,Haftungsausschluß!$O$6,FALSE) & ")" & IF('Kalkulation 1'!AH33," " & H3,"") -> Dammbalken 25/200 exkl. Dichtung, gesägt und entgratet (0 kg/Stk) | O26: 0 | R26: 0
D27: 0 | E27: =VLOOKUP("[m]",Sprachindex!$A:$Z,Haftungsausschluß!$O$6,FALSE) -> [m] | F27: =IF($L$14=1,Preisliste!$E$7,Preisliste!$F$7) -> H251000 | G27: =VLOOKUP("Dammbalken 25/200 exkl. Dichtung, gesägt und entgratet",Sprachindex!$A:$Z,Haftungsausschluß!$O$6,FALSE) & " (" & ROUNDUP(C27/1000*2.99,2) & " " & VLOOKUP("kg/Stk",Sprachindex!$A:$Z,Haftungsausschluß!$O$6,FALSE) & ")" & IF('Kalkulation 1'!AH33," " & H3,"") -> Dammbalken 25/200 exkl. Dichtung, gesägt und entgratet (0 kg/Stk) | O27: 0 | R27: 0
D28: 0 | E28: =VLOOKUP("[m]",Sprachindex!$A:$Z,Haftungsausschluß!$O$6,FALSE) -> [m] | F28: =IF($L$14=1,Preisliste!$E$7,Preisliste!$F$7) -> H251000 | G28: =VLOOKUP("Dammbalken 25/200 exkl. Dichtung, gesägt und entgratet",Sprachindex!$A:$Z,Haftungsausschluß!$O$6,FALSE) & " (" & ROUNDUP(C28/1000*2.99,2) & " " & VLOOKUP("kg/Stk",Sprachindex!$A:$Z,Haftungsausschluß!$O$6,FALSE) & ")" & IF('Kalkulation 1'!AH33," " & H3,"") -> Dammbalken 25/200 exkl. Dichtung, gesägt und entgratet (0 kg/Stk) | O28: 0 | R28: 0
D29: 0 | E29: =VLOOKUP("[m]",Sprachindex!$A:$Z,Haftungsausschluß!$O$6,FALSE) -> [m] | F29: =IF($L$14=1,Preisliste!$E$7,Preisliste!$F$7) -> H251000 | G29: =VLOOKUP("Dammbalken 25/200 exkl. Dichtung, gesägt und entgratet",Sprachindex!$A:$Z,Haftungsausschluß!$O$6,FALSE) & " (" & ROUNDUP(C29/1000*2.99,2) & " " & VLOOKUP("kg/Stk",Sprachindex!$A:$Z,Haftungsausschluß!$O$6,FALSE) & ")" & IF('Kalkulation 1'!AH33," " & H3,"") -> Dammbalken 25/200 exkl. Dichtung, gesägt und entgratet (0 kg/Stk) | O29: 0 | R29: 0
D30: 0 | E30: =VLOOKUP("[m]",Sprachindex!$A:$Z,Haftungsausschluß!$O$6,FALSE) -> [m] | F30: =IF($L$14=1,Preisliste!$E$7,Preisliste!$F$7) -> H251000 | G30: =VLOOKUP("Dammbalken 25/200 exkl. Dichtung, gesägt und entgratet",Sprachindex!$A:$Z,Haftungsausschluß!$O$6,FALSE) & " (" & ROUNDUP(C30/1000*2.99,2) & " " & VLOOKUP("kg/Stk",Sprachindex!$A:$Z,Haftungsausschluß!$O$6,FALSE) & ")" & IF('Kalkulation 1'!AH33," " & H3,"") -> Dammbalken 25/200 exkl. Dichtung, gesägt und entgratet (0 kg/Stk) | O30: 0 | R30: 0
D31: 0 | E31: =VLOOKUP("[m]",Sprachindex!$A:$Z,Haftungsausschluß!$O$6,FALSE) -> [m] | F31: =IF($L$14=1,Preisliste!$E$7,Preisliste!$F$7) -> H251000 | G31: =VLOOKUP("Dammbalken 25/200 exkl. Dichtung, gesägt und entgratet",Sprachindex!$A:$Z,Haftungsausschluß!$O$6,FALSE) & " (" & ROUNDUP(C31/1000*2.99,2) & " " & VLOOKUP("kg/Stk",Sprachindex!$A:$Z,Haftungsausschluß!$O$6,FALSE) & ")" & IF('Kalkulation 1'!AH33," " & H3,"") -> Dammbalken 25/200 exkl. Dichtung, gesägt und entgratet (0 kg/Stk) | O31: 0 | R31: 0
D32: 0 | E32: =VLOOKUP("[m]",Sprachindex!$A:$Z,Haftungsausschluß!$O$6,FALSE) -> [m] | F32: =IF($L$14=1,Preisliste!$E$7,Preisliste!$F$7) -> H251000 | G32: =VLOOKUP("Dammbalken 25/200 exkl. Dichtung, gesägt und entgratet",Sprachindex!$A:$Z,Haftungsausschluß!$O$6,FALSE) & " (" & ROUNDUP(C32/1000*2.99,2) & " " & VLOOKUP("kg/Stk",Sprachindex!$A:$Z,Haftungsausschluß!$O$6,FALSE) & ")" & IF('Kalkulation 1'!AH33," " & H3,"") -> Dammbalken 25/200 exkl. Dichtung, gesägt und entgratet (0 kg/Stk) | O32: 0 | R32: 0
D33: 0 | E33: =VLOOKUP("[m]",Sprachindex!$A:$Z,Haftungsausschluß!$O$6,FALSE) -> [m] | F33: =IF($L$14=1,Preisliste!$E$7,Preisliste!$F$7) -> H251000 | G33: =VLOOKUP("Dammbalken 25/200 exkl. Dichtung, gesägt und entgratet",Sprachindex!$A:$Z,Haftungsausschluß!$O$6,FALSE) & " (" & ROUNDUP(C33/1000*2.99,2) & " " & VLOOKUP("kg/Stk",Sprachindex!$A:$Z,Haftungsausschluß!$O$6,FALSE) & ")" & IF('Kalkulation 1'!AH33," " & H3,"") -> Dammbalken 25/200 exkl. Dichtung, gesägt und entgratet (0 kg/Stk) | O33: 0 | R33: 0
D34: 0 | E34: =VLOOKUP("[m]",Sprachindex!$A:$Z,Haftungsausschluß!$O$6,FALSE) -> [m] | F34: =IF($L$14=1,Preisliste!$E$7,Preisliste!$F$7) -> H251000 | G34: =VLOOKUP("Dammbalken 25/200 exkl. Dichtung, gesägt und entgratet",Sprachindex!$A:$Z,Haftungsausschluß!$O$6,FALSE) & " (" & ROUNDUP(C34/1000*2.99,2) & " " & VLOOKUP("kg/Stk",Sprachindex!$A:$Z,Haftungsausschluß!$O$6,FALSE) & ")" & IF('Kalkulation 1'!AH33," " & H3,"") -> Dammbalken 25/200 exkl. Dichtung, gesägt und entgratet (0 kg/Stk) | O34: 0 | R34: 0
D35: 0 | E35: =VLOOKUP("[m]",Sprachindex!$A:$Z,Haftungsausschluß!$O$6,FALSE) -> [m] | F35: =IF($L$14=1,Preisliste!$E$7,Preisliste!$F$7) -> H251000 | G35: =VLOOKUP("Dammbalken 25/200 exkl. Dichtung, gesägt und entgratet",Sprachindex!$A:$Z,Haftungsausschluß!$O$6,FALSE) & " (" & ROUNDUP(C35/1000*2.99,2) & " " & VLOOKUP("kg/Stk",Sprachindex!$A:$Z,Haftungsausschluß!$O$6,FALSE) & ")" & IF('Kalkulation 1'!AH33," " & H3,"") -> Dammbalken 25/200 exkl. Dichtung, gesägt und entgratet (0 kg/Stk) | O35: 0 | R35: 0
D36: 0 | E36: =VLOOKUP("[m]",Sprachindex!$A:$Z,Haftungsausschluß!$O$6,FALSE) -> [m] | F36: =IF($L$14=1,Preisliste!$E$10,Preisliste!$F$10) -> H501000 | G36: =VLOOKUP("Dammbalken 50/150 exkl. Dichtung, gesägt und entgratet",Sprachindex!$A:$Z,Haftungsausschluß!$O$6,FALSE) & " (" & ROUNDUP(C36/1000*5.62,2) & " " & VLOOKUP("kg/Stk",Sprachindex!$A:$Z,Haftungsausschluß!$O$6,FALSE) & ")" & IF('Kalkulation 1'!AH33," " & H3,"") -> Dammbalken 50/150 exkl. Dichtung, gesägt und entgratet (0 kg/Stk) | O36: =N36*D36 -> 0 | R36: 0
D37: 0 | E37: =VLOOKUP("[m]",Sprachindex!$A:$Z,Haftungsausschluß!$O$6,FALSE) -> [m] | F37: =IF($L$14=1,Preisliste!$E$10,Preisliste!$F$10) -> H501000 | G37: =VLOOKUP("Dammbalken 50/150 exkl. Dichtung, gesägt und entgratet",Sprachindex!$A:$Z,Haftungsausschluß!$O$6,FALSE) & " (" & ROUNDUP(C37/1000*5.62,2) & " " & VLOOKUP("kg/Stk",Sprachindex!$A:$Z,Haftungsausschluß!$O$6,FALSE) & ")" & IF('Kalkulation 1'!AH33," " & H3,"") -> Dammbalken 50/150 exkl. Dichtung, gesägt und entgratet (0 kg/Stk) | O37: =N37*D37 -> 0 | R37: 0
D38: 0 | E38: =VLOOKUP("[m]",Sprachindex!$A:$Z,Haftungsausschluß!$O$6,FALSE) -> [m] | F38: =IF($L$14=1,Preisliste!$E$10,Preisliste!$F$10) -> H501000 | G38: =VLOOKUP("Dammbalken 50/150 exkl. Dichtung, gesägt und entgratet",Sprachindex!$A:$Z,Haftungsausschluß!$O$6,FALSE) & " (" & ROUNDUP(C38/1000*5.62,2) & " " & VLOOKUP("kg/Stk",Sprachindex!$A:$Z,Haftungsausschluß!$O$6,FALSE) & ")" & IF('Kalkulation 1'!AH33," " & H3,"") -> Dammbalken 50/150 exkl. Dichtung, gesägt und entgratet (0 kg/Stk) | O38: 0 | R38: 0
D39: 0 | E39: =VLOOKUP("[m]",Sprachindex!$A:$Z,Haftungsausschluß!$O$6,FALSE) -> [m] | F39: =IF($L$14=1,Preisliste!$E$10,Preisliste!$F$10) -> H501000 | G39: =VLOOKUP("Dammbalken 50/150 exkl. Dichtung, gesägt und entgratet",Sprachindex!$A:$Z,Haftungsausschluß!$O$6,FALSE) & " (" & ROUNDUP(C39/1000*5.62,2) & " " & VLOOKUP("kg/Stk",Sprachindex!$A:$Z,Haftungsausschluß!$O$6,FALSE) & ")" & IF('Kalkulation 1'!AH33," " & H3,"") -> Dammbalken 50/150 exkl. Dichtung, gesägt und entgratet (0 kg/Stk) | O39: 0 | R39: 0
D40: 0 | E40: =VLOOKUP("[m]",Sprachindex!$A:$Z,Haftungsausschluß!$O$6,FALSE) -> [m] | F40: =IF($L$14=1,Preisliste!$E$10,Preisliste!$F$10) -> H501000 | G40: =VLOOKUP("Dammbalken 50/150 exkl. Dichtung, gesägt und entgratet",Sprachindex!$A:$Z,Haftungsausschluß!$O$6,FALSE) & " (" & ROUNDUP(C40/1000*5.62,2) & " " & VLOOKUP("kg/Stk",Sprachindex!$A:$Z,Haftungsausschluß!$O$6,FALSE) & ")" & IF('Kalkulation 1'!AH33," " & H3,"") -> Dammbalken 50/150 exkl. Dichtung, gesägt und entgratet (0 kg/Stk) | O40: 0 | R40: 0
D41: 0 | E41: =VLOOKUP("[m]",Sprachindex!$A:$Z,Haftungsausschluß!$O$6,FALSE) -> [m] | F41: =IF($L$14=1,Preisliste!$E$10,Preisliste!$F$10) -> H501000 | G41: =VLOOKUP("Dammbalken 50/150 exkl. Dichtung, gesägt und entgratet",Sprachindex!$A:$Z,Haftungsausschluß!$O$6,FALSE) & " (" & ROUNDUP(C41/1000*5.62,2) & " " & VLOOKUP("kg/Stk",Sprachindex!$A:$Z,Haftungsausschluß!$O$6,FALSE) & ")" & IF('Kalkulation 1'!AH33," " & H3,"") -> Dammbalken 50/150 exkl. Dichtung, gesägt und entgratet (0 kg/Stk) | O41: 0 | R41: 0
D42: 0 | E42: =VLOOKUP("[m]",Sprachindex!$A:$Z,Haftungsausschluß!$O$6,FALSE) -> [m] | F42: =IF($L$14=1,Preisliste!$E$10,Preisliste!$F$10) -> H501000 | G42: =VLOOKUP("Dammbalken 50/150 exkl. Dichtung, gesägt und entgratet",Sprachindex!$A:$Z,Haftungsausschluß!$O$6,FALSE) & " (" & ROUNDUP(C42/1000*5.62,2) & " " & VLOOKUP("kg/Stk",Sprachindex!$A:$Z,Haftungsausschluß!$O$6,FALSE) & ")" & IF('Kalkulation 1'!AH33," " & H3,"") -> Dammbalken 50/150 exkl. Dichtung, gesägt und entgratet (0 kg/Stk) | O42: 0 | R42: 0
D43: 0 | E43: =VLOOKUP("[m]",Sprachindex!$A:$Z,Haftungsausschluß!$O$6,FALSE) -> [m] | F43: =IF($L$14=1,Preisliste!$E$10,Preisliste!$F$10) -> H501000 | G43: =VLOOKUP("Dammbalken 50/150 exkl. Dichtung, gesägt und entgratet",Sprachindex!$A:$Z,Haftungsausschluß!$O$6,FALSE) & " (" & ROUNDUP(C43/1000*5.62,2) & " " & VLOOKUP("kg/Stk",Sprachindex!$A:$Z,Haftungsausschluß!$O$6,FALSE) & ")" & IF('Kalkulation 1'!AH33," " & H3,"") -> Dammbalken 50/150 exkl. Dichtung, gesägt und entgratet (0 kg/Stk) | O43: 0 | R43: 0
D44: 0 | E44: =VLOOKUP("[m]",Sprachindex!$A:$Z,Haftungsausschluß!$O$6,FALSE) -> [m] | F44: =IF($L$14=1,Preisliste!$E$10,Preisliste!$F$10) -> H501000 | G44: =VLOOKUP("Dammbalken 50/150 exkl. Dichtung, gesägt und entgratet",Sprachindex!$A:$Z,Haftungsausschluß!$O$6,FALSE) & " (" & ROUNDUP(C44/1000*5.62,2) & " " & VLOOKUP("kg/Stk",Sprachindex!$A:$Z,Haftungsausschluß!$O$6,FALSE) & ")" & IF('Kalkulation 1'!AH33," " & H3,"") -> Dammbalken 50/150 exkl. Dichtung, gesägt und entgratet (0 kg/Stk) | O44: 0 | R44: 0
D45: 0 | E45: =VLOOKUP("[m]",Sprachindex!$A:$Z,Haftungsausschluß!$O$6,FALSE) -> [m] | F45: =IF($L$14=1,Preisliste!$E$10,Preisliste!$F$10) -> H501000 | G45: =VLOOKUP("Dammbalken 50/150 exkl. Dichtung, gesägt und entgratet",Sprachindex!$A:$Z,Haftungsausschluß!$O$6,FALSE) & " (" & ROUNDUP(C45/1000*5.62,2) & " " & VLOOKUP("kg/Stk",Sprachindex!$A:$Z,Haftungsausschluß!$O$6,FALSE) & ")" & IF('Kalkulation 1'!AH33," " & H3,"") -> Dammbalken 50/150 exkl. Dichtung, gesägt und entgratet (0 kg/Stk) | O45: 0 | R45: 0
D46: 0 | E46: =VLOOKUP("[m]",Sprachindex!$A:$Z,Haftungsausschluß!$O$6,FALSE) -> [m] | F46: =IF($L$14=1,Preisliste!$E$10,Preisliste!$F$10) -> H501000 | G46: =VLOOKUP("Dammbalken 50/150 exkl. Dichtung, gesägt und entgratet",Sprachindex!$A:$Z,Haftungsausschluß!$O$6,FALSE) & " (" & ROUNDUP(C46/1000*5.62,2) & " " & VLOOKUP("kg/Stk",Sprachindex!$A:$Z,Haftungsausschluß!$O$6,FALSE) & ")" & IF('Kalkulation 1'!AH33," " & H3,"") -> Dammbalken 50/150 exkl. Dichtung, gesägt und entgratet (0 kg/Stk) | O46: 0 | R46: 0
D47: 0 | E47: =VLOOKUP("[m]",Sprachindex!$A:$Z,Haftungsausschluß!$O$6,FALSE) -> [m] | F47: =IF($L$14=1,Preisliste!$E$10,Preisliste!$F$10) -> H501000 | G47: =VLOOKUP("Dammbalken 50/150 exkl. Dichtung, gesägt und entgratet",Sprachindex!$A:$Z,Haftungsausschluß!$O$6,FALSE) & " (" & ROUNDUP(C47/1000*5.62,2) & " " & VLOOKUP("kg/Stk",Sprachindex!$A:$Z,Haftungsausschluß!$O$6,FALSE) & ")" & IF('Kalkulation 1'!AH33," " & H3,"") -> Dammbalken 50/150 exkl. Dichtung, gesägt und entgratet (0 kg/Stk) | O47: 0 | R47: 0
D48: 0 | E48: =VLOOKUP("[m]",Sprachindex!$A:$Z,Haftungsausschluß!$O$6,FALSE) -> [m] | F48: =IF($L$14=1,Preisliste!$E$10,Preisliste!$F$10) -> H501000 | G48: =VLOOKUP("Dammbalken 50/150 exkl. Dichtung, gesägt und entgratet",Sprachindex!$A:$Z,Haftungsausschluß!$O$6,FALSE) & " (" & ROUNDUP(C48/1000*5.62,2) & " " & VLOOKUP("kg/Stk",Sprachindex!$A:$Z,Haftungsausschluß!$O$6,FALSE) & ")" & IF('Kalkulation 1'!AH33," " & H3,"") -> Dammbalken 50/150 exkl. Dichtung, gesägt und entgratet (0 kg/Stk) | O48: 0 | R48: 0
D49: 0 | E49: =VLOOKUP("[m]",Sprachindex!$A:$Z,Haftungsausschluß!$O$6,FALSE) -> [m] | F49: =IF($L$14=1,Preisliste!$E$10,Preisliste!$F$10) -> H501000 | G49: =VLOOKUP("Dammbalken 50/150 exkl. Dichtung, gesägt und entgratet",Sprachindex!$A:$Z,Haftungsausschluß!$O$6,FALSE) & " (" & ROUNDUP(C49/1000*5.62,2) & " " & VLOOKUP("kg/Stk",Sprachindex!$A:$Z,Haftungsausschluß!$O$6,FALSE) & ")" & IF('Kalkulation 1'!AH33," " & H3,"") -> Dammbalken 50/150 exkl. Dichtung, gesägt und entgratet (0 kg/Stk) | O49: 0 | R49: 0
D50: 0 | E50: =VLOOKUP("[m]",Sprachindex!$A:$Z,Haftungsausschluß!$O$6,FALSE) -> [m] | F50: =IF($L$14=1,Preisliste!$E$10,Preisliste!$F$10) -> H501000 | G50: =VLOOKUP("Dammbalken 50/150 exkl. Dichtung, gesägt und entgratet",Sprachindex!$A:$Z,Haftungsausschluß!$O$6,FALSE) & " (" & ROUNDUP(C50/1000*5.62,2) & " " & VLOOKUP("kg/Stk",Sprachindex!$A:$Z,Haftungsausschluß!$O$6,FALSE) & ")" & IF('Kalkulation 1'!AH33," " & H3,"") -> Dammbalken 50/150 exkl. Dichtung, gesägt und entgratet (0 kg/Stk) | O50: 0 | R50: 0
D51: 0 | E51: =VLOOKUP("[m]",Sprachindex!$A:$Z,Haftungsausschluß!$O$6,FALSE) -> [m] | F51: =IF($L$14=1,Preisliste!$E$10,Preisliste!$F$10) -> H501000 | G51: =VLOOKUP("Dammbalken 50/150 exkl. Dichtung, gesägt und entgratet",Sprachindex!$A:$Z,Haftungsausschluß!$O$6,FALSE) & " (" & ROUNDUP(C51/1000*5.62,2) & " " & VLOOKUP("kg/Stk",Sprachindex!$A:$Z,Haftungsausschluß!$O$6,FALSE) & ")" & IF('Kalkulation 1'!AH33," " & H3,"") -> Dammbalken 50/150 exkl. Dichtung, gesägt und entgratet (0 kg/Stk) | O51: 0 | R51: 0
D52: 0 | E52: =VLOOKUP("[m]",Sprachindex!$A:$Z,Haftungsausschluß!$O$6,FALSE) -> [m] | F52: =IF($L$14=1,Preisliste!$E$10,Preisliste!$F$10) -> H501000 | G52: =VLOOKUP("Dammbalken 50/150 exkl. Dichtung, gesägt und entgratet",Sprachindex!$A:$Z,Haftungsausschluß!$O$6,FALSE) & " (" & ROUNDUP(C52/1000*5.62,2) & " " & VLOOKUP("kg/Stk",Sprachindex!$A:$Z,Haftungsausschluß!$O$6,FALSE) & ")" & IF('Kalkulation 1'!AH33," " & H3,"") -> Dammbalken 50/150 exkl. Dichtung, gesägt und entgratet (0 kg/Stk) | O52: 0 | R52: 0
D53: 0 | E53: =VLOOKUP("[m]",Sprachindex!$A:$Z,Haftungsausschluß!$O$6,FALSE) -> [m] | F53: =IF($L$14=1,Preisliste!$E$10,Preisliste!$F$10) -> H501000 | G53: =VLOOKUP("Dammbalken 50/150 exkl. Dichtung, gesägt und entgratet",Sprachindex!$A:$Z,Haftungsausschluß!$O$6,FALSE) & " (" & ROUNDUP(C53/1000*5.62,2) & " " & VLOOKUP("kg/Stk",Sprachindex!$A:$Z,Haftungsausschluß!$O$6,FALSE) & ")" & IF('Kalkulation 1'!AH33," " & H3,"") -> Dammbalken 50/150 exkl. Dichtung, gesägt und entgratet (0 kg/Stk) | O53: 0 | R53: 0
D54: 0 | E54: =VLOOKUP("[m]",Sprachindex!$A:$Z,Haftungsausschluß!$O$6,FALSE) -> [m] | F54: =IF($L$14=1,Preisliste!$E$10,Preisliste!$F$10) -> H501000 | G54: =VLOOKUP("Dammbalken 50/150 exkl. Dichtung, gesägt und entgratet",Sprachindex!$A:$Z,Haftungsausschluß!$O$6,FALSE) & " (" & ROUNDUP(C54/1000*5.62,2) & " " & VLOOKUP("kg/Stk",Sprachindex!$A:$Z,Haftungsausschluß!$O$6,FALSE) & ")" & IF('Kalkulation 1'!AH33," " & H3,"") -> Dammbalken 50/150 exkl. Dichtung, gesägt und entgratet (0 kg/Stk) | O54: 0 | R54: 0
D55: 0 | E55: =VLOOKUP("[m]",Sprachindex!$A:$Z,Haftungsausschluß!$O$6,FALSE) -> [m] | F55: =IF($L$14=1,Preisliste!$E$10,Preisliste!$F$10) -> H501000 | G55: =VLOOKUP("Dammbalken 50/150 exkl. Dichtung, gesägt und entgratet",Sprachindex!$A:$Z,Haftungsausschluß!$O$6,FALSE) & " (" & ROUNDUP(C55/1000*5.62,2) & " " & VLOOKUP("kg/Stk",Sprachindex!$A:$Z,Haftungsausschluß!$O$6,FALSE) & ")" & IF('Kalkulation 1'!AH33," " & H3,"") -> Dammbalken 50/150 exkl. Dichtung, gesägt und entgratet (0 kg/Stk) | O55: 0 | R55: 0
C56: 86 | D56: 0 | E56: =VLOOKUP("[m]",Sprachindex!$A:$Z,Haftungsausschluß!$O$6,FALSE) -> [m] | F56: =IF($L$14=1,Preisliste!$E$13,Preisliste!$F$13) -> H501001 | G56: =VLOOKUP("Dammbalken 50/200 exkl. Dichtung, gesägt und entgratet",Sprachindex!$A:$Z,Haftungsausschluß!$O$6,FALSE) & " (" & ROUNDUP(C56/1000*4.12,2) & " " & VLOOKUP("kg/Stk",Sprachindex!$A:$Z,Haftungsausschluß!$O$6,FALSE) & ")" & IF('Kalkulation 1'!AH33," " & H3,"") -> Dammbalken 50/200 exkl. Dichtung, gesägt und entgratet (0.36 kg/Stk) | O56: 0 | R56: 86
D57: 0 | E57: =VLOOKUP("[m]",Sprachindex!$A:$Z,Haftungsausschluß!$O$6,FALSE) -> [m] | F57: =IF($L$14=1,Preisliste!$E$13,Preisliste!$F$13) -> H501001 | G57: =VLOOKUP("Dammbalken 50/200 exkl. Dichtung, gesägt und entgratet",Sprachindex!$A:$Z,Haftungsausschluß!$O$6,FALSE) & " (" & ROUNDUP(C57/1000*4.12,2) & " " & VLOOKUP("kg/Stk",Sprachindex!$A:$Z,Haftungsausschluß!$O$6,FALSE) & ")" & IF('Kalkulation 1'!AH33," " & H3,"") -> Dammbalken 50/200 exkl. Dichtung, gesägt und entgratet (0 kg/Stk) | O57: =N57*D57 -> 0 | R57: 0
D58: 0 | E58: =VLOOKUP("[m]",Sprachindex!$A:$Z,Haftungsausschluß!$O$6,FALSE) -> [m] | F58: =IF($L$14=1,Preisliste!$E$13,Preisliste!$F$13) -> H501001 | G58: =VLOOKUP("Dammbalken 50/200 exkl. Dichtung, gesägt und entgratet",Sprachindex!$A:$Z,Haftungsausschluß!$O$6,FALSE) & " (" & ROUNDUP(C58/1000*4.12,2) & " " & VLOOKUP("kg/Stk",Sprachindex!$A:$Z,Haftungsausschluß!$O$6,FALSE) & ")" & IF('Kalkulation 1'!AH33," " & H3,"") -> Dammbalken 50/200 exkl. Dichtung, gesägt und entgratet (0 kg/Stk) | O58: 0 | R58: 0
D59: 0 | E59: =VLOOKUP("[m]",Sprachindex!$A:$Z,Haftungsausschluß!$O$6,FALSE) -> [m] | F59: =IF($L$14=1,Preisliste!$E$13,Preisliste!$F$13) -> H501001 | G59: =VLOOKUP("Dammbalken 50/200 exkl. Dichtung, gesägt und entgratet",Sprachindex!$A:$Z,Haftungsausschluß!$O$6,FALSE) & " (" & ROUNDUP(C59/1000*4.12,2) & " " & VLOOKUP("kg/Stk",Sprachindex!$A:$Z,Haftungsausschluß!$O$6,FALSE) & ")" & IF('Kalkulation 1'!AH33," " & H3,"") -> Dammbalken 50/200 exkl. Dichtung, gesägt und entgratet (0 kg/Stk) | O59: 0 | R59: 0
D60: 0 | E60: =VLOOKUP("[m]",Sprachindex!$A:$Z,Haftungsausschluß!$O$6,FALSE) -> [m] | F60: =IF($L$14=1,Preisliste!$E$13,Preisliste!$F$13) -> H501001 | G60: =VLOOKUP("Dammbalken 50/200 exkl. Dichtung, gesägt und entgratet",Sprachindex!$A:$Z,Haftungsausschluß!$O$6,FALSE) & " (" & ROUNDUP(C60/1000*4.12,2) & " " & VLOOKUP("kg/Stk",Sprachindex!$A:$Z,Haftungsausschluß!$O$6,FALSE) & ")" & IF('Kalkulation 1'!AH33," " & H3,"") -> Dammbalken 50/200 exkl. Dichtung, gesägt und entgratet (0 kg/Stk) | O60: 0 | R60: 0
D61: 0 | E61: =VLOOKUP("[m]",Sprachindex!$A:$Z,Haftungsausschluß!$O$6,FALSE) -> [m] | F61: =IF($L$14=1,Preisliste!$E$13,Preisliste!$F$13) -> H501001 | G61: =VLOOKUP("Dammbalken 50/200 exkl. Dichtung, gesägt und entgratet",Sprachindex!$A:$Z,Haftungsausschluß!$O$6,FALSE) & " (" & ROUNDUP(C61/1000*4.12,2) & " " & VLOOKUP("kg/Stk",Sprachindex!$A:$Z,Haftungsausschluß!$O$6,FALSE) & ")" & IF('Kalkulation 1'!AH33," " & H3,"") -> Dammbalken 50/200 exkl. Dichtung, gesägt und entgratet (0 kg/Stk) | O61: 0 | R61: 0
D62: 0 | E62: =VLOOKUP("[m]",Sprachindex!$A:$Z,Haftungsausschluß!$O$6,FALSE) -> [m] | F62: =IF($L$14=1,Preisliste!$E$13,Preisliste!$F$13) -> H501001 | G62: =VLOOKUP("Dammbalken 50/200 exkl. Dichtung, gesägt und entgratet",Sprachindex!$A:$Z,Haftungsausschluß!$O$6,FALSE) & " (" & ROUNDUP(C62/1000*4.12,2) & " " & VLOOKUP("kg/Stk",Sprachindex!$A:$Z,Haftungsausschluß!$O$6,FALSE) & ")" & IF('Kalkulation 1'!AH33," " & H3,"") -> Dammbalken 50/200 exkl. Dichtung, gesägt und entgratet (0 kg/Stk) | O62: 0 | R62: 0
D63: 0 | E63: =VLOOKUP("[m]",Sprachindex!$A:$Z,Haftungsausschluß!$O$6,FALSE) -> [m] | F63: =IF($L$14=1,Preisliste!$E$13,Preisliste!$F$13) -> H501001 | G63: =VLOOKUP("Dammbalken 50/200 exkl. Dichtung, gesägt und entgratet",Sprachindex!$A:$Z,Haftungsausschluß!$O$6,FALSE) & " (" & ROUNDUP(C63/1000*4.12,2) & " " & VLOOKUP("kg/Stk",Sprachindex!$A:$Z,Haftungsausschluß!$O$6,FALSE) & ")" & IF('Kalkulation 1'!AH33," " & H3,"") -> Dammbalken 50/200 exkl. Dichtung, gesägt und entgratet (0 kg/Stk) | O63: 0 | R63: 0
D64: 0 | E64: =VLOOKUP("[m]",Sprachindex!$A:$Z,Haftungsausschluß!$O$6,FALSE) -> [m] | F64: =IF($L$14=1,Preisliste!$E$13,Preisliste!$F$13) -> H501001 | G64: =VLOOKUP("Dammbalken 50/200 exkl. Dichtung, gesägt und entgratet",Sprachindex!$A:$Z,Haftungsausschluß!$O$6,FALSE) & " (" & ROUNDUP(C64/1000*4.12,2) & " " & VLOOKUP("kg/Stk",Sprachindex!$A:$Z,Haftungsausschluß!$O$6,FALSE) & ")" & IF('Kalkulation 1'!AH33," " & H3,"") -> Dammbalken 50/200 exkl. Dichtung, gesägt und entgratet (0 kg/Stk) | O64: 0 | R64: 0
D65: 0 | E65: =VLOOKUP("[m]",Sprachindex!$A:$Z,Haftungsausschluß!$O$6,FALSE) -> [m] | F65: =IF($L$14=1,Preisliste!$E$13,Preisliste!$F$13) -> H501001 | G65: =VLOOKUP("Dammbalken 50/200 exkl. Dichtung, gesägt und entgratet",Sprachindex!$A:$Z,Haftungsausschluß!$O$6,FALSE) & " (" & ROUNDUP(C65/1000*4.12,2) & " " & VLOOKUP("kg/Stk",Sprachindex!$A:$Z,Haftungsausschluß!$O$6,FALSE) & ")" & IF('Kalkulation 1'!AH33," " & H3,"") -> Dammbalken 50/200 exkl. Dichtung, gesägt und entgratet (0 kg/Stk) | O65: 0 | R65: 0
D66: 0 | E66: =VLOOKUP("[m]",Sprachindex!$A:$Z,Haftungsausschluß!$O$6,FALSE) -> [m] | F66: =IF($L$14=1,Preisliste!$E$13,Preisliste!$F$13) -> H501001 | G66: =VLOOKUP("Dammbalken 50/200 exkl. Dichtung, gesägt und entgratet",Sprachindex!$A:$Z,Haftungsausschluß!$O$6,FALSE) & " (" & ROUNDUP(C66/1000*4.12,2) & " " & VLOOKUP("kg/Stk",Sprachindex!$A:$Z,Haftungsausschluß!$O$6,FALSE) & ")" & IF('Kalkulation 1'!AH33," " & H3,"") -> Dammbalken 50/200 exkl. Dichtung, gesägt und entgratet (0 kg/Stk) | O66: 0 | R66: 0
D67: 0 | E67: =VLOOKUP("[m]",Sprachindex!$A:$Z,Haftungsausschluß!$O$6,FALSE) -> [m] | F67: =IF($L$14=1,Preisliste!$E$13,Preisliste!$F$13) -> H501001 | G67: =VLOOKUP("Dammbalken 50/200 exkl. Dichtung, gesägt und entgratet",Sprachindex!$A:$Z,Haftungsausschluß!$O$6,FALSE) & " (" & ROUNDUP(C67/1000*4.12,2) & " " & VLOOKUP("kg/Stk",Sprachindex!$A:$Z,Haftungsausschluß!$O$6,FALSE) & ")" & IF('Kalkulation 1'!AH33," " & H3,"") -> Dammbalken 50/200 exkl. Dichtung, gesägt und entgratet (0 kg/Stk) | O67: 0 | R67: 0
D68: 0 | E68: =VLOOKUP("[m]",Sprachindex!$A:$Z,Haftungsausschluß!$O$6,FALSE) -> [m] | F68: =IF($L$14=1,Preisliste!$E$13,Preisliste!$F$13) -> H501001 | G68: =VLOOKUP("Dammbalken 50/200 exkl. Dichtung, gesägt und entgratet",Sprachindex!$A:$Z,Haftungsausschluß!$O$6,FALSE) & " (" & ROUNDUP(C68/1000*4.12,2) & " " & VLOOKUP("kg/Stk",Sprachindex!$A:$Z,Haftungsausschluß!$O$6,FALSE) & ")" & IF('Kalkulation 1'!AH33," " & H3,"") -> Dammbalken 50/200 exkl. Dichtung, gesägt und entgratet (0 kg/Stk) | O68: 0 | R68: 0
D69: 0 | E69: =VLOOKUP("[m]",Sprachindex!$A:$Z,Haftungsausschluß!$O$6,FALSE) -> [m] | F69: =IF($L$14=1,Preisliste!$E$13,Preisliste!$F$13) -> H501001 | G69: =VLOOKUP("Dammbalken 50/200 exkl. Dichtung, gesägt und entgratet",Sprachindex!$A:$Z,Haftungsausschluß!$O$6,FALSE) & " (" & ROUNDUP(C69/1000*4.12,2) & " " & VLOOKUP("kg/Stk",Sprachindex!$A:$Z,Haftungsausschluß!$O$6,FALSE) & ")" & IF('Kalkulation 1'!AH33," " & H3,"") -> Dammbalken 50/200 exkl. Dichtung, gesägt und entgratet (0 kg/Stk) | O69: 0 | R69: 0
D70: 0 | E70: =VLOOKUP("[m]",Sprachindex!$A:$Z,Haftungsausschluß!$O$6,FALSE) -> [m] | F70: =IF($L$14=1,Preisliste!$E$13,Preisliste!$F$13) -> H501001 | G70: =VLOOKUP("Dammbalken 50/200 exkl. Dichtung, gesägt und entgratet",Sprachindex!$A:$Z,Haftungsausschluß!$O$6,FALSE) & " (" & ROUNDUP(C70/1000*4.12,2) & " " & VLOOKUP("kg/Stk",Sprachindex!$A:$Z,Haftungsausschluß!$O$6,FALSE) & ")" & IF('Kalkulation 1'!AH33," " & H3,"") -> Dammbalken 50/200 exkl. Dichtung, gesägt und entgratet (0 kg/Stk) | O70: 0 | R70: 0
D71: 0 | E71: =VLOOKUP("[m]",Sprachindex!$A:$Z,Haftungsausschluß!$O$6,FALSE) -> [m] | F71: =IF($L$14=1,Preisliste!$E$13,Preisliste!$F$13) -> H501001 | G71: =VLOOKUP("Dammbalken 50/200 exkl. Dichtung, gesägt und entgratet",Sprachindex!$A:$Z,Haftungsausschluß!$O$6,FALSE) & " (" & ROUNDUP(C71/1000*4.12,2) & " " & VLOOKUP("kg/Stk",Sprachindex!$A:$Z,Haftungsausschluß!$O$6,FALSE) & ")" & IF('Kalkulation 1'!AH33," " & H3,"") -> Dammbalken 50/200 exkl. Dichtung, gesägt und entgratet (0 kg/Stk) | O71: 0 | R71: 0
D72: 0 | E72: =VLOOKUP("[m]",Sprachindex!$A:$Z,Haftungsausschluß!$O$6,FALSE) -> [m] | F72: =IF($L$14=1,Preisliste!$E$13,Preisliste!$F$13) -> H501001 | G72: =VLOOKUP("Dammbalken 50/200 exkl. Dichtung, gesägt und entgratet",Sprachindex!$A:$Z,Haftungsausschluß!$O$6,FALSE) & " (" & ROUNDUP(C72/1000*4.12,2) & " " & VLOOKUP("kg/Stk",Sprachindex!$A:$Z,Haftungsausschluß!$O$6,FALSE) & ")" & IF('Kalkulation 1'!AH33," " & H3,"") -> Dammbalken 50/200 exkl. Dichtung, gesägt und entgratet (0 kg/Stk) | O72: 0 | R72: 0
D73: 0 | E73: =VLOOKUP("[m]",Sprachindex!$A:$Z,Haftungsausschluß!$O$6,FALSE) -> [m] | F73: =IF($L$14=1,Preisliste!$E$13,Preisliste!$F$13) -> H501001 | G73: =VLOOKUP("Dammbalken 50/200 exkl. Dichtung, gesägt und entgratet",Sprachindex!$A:$Z,Haftungsausschluß!$O$6,FALSE) & " (" & ROUNDUP(C73/1000*4.12,2) & " " & VLOOKUP("kg/Stk",Sprachindex!$A:$Z,Haftungsausschluß!$O$6,FALSE) & ")" & IF('Kalkulation 1'!AH33," " & H3,"") -> Dammbalken 50/200 exkl. Dichtung, gesägt und entgratet (0 kg/Stk) | O73: 0 | R73: 0
D74: 0 | E74: =VLOOKUP("[m]",Sprachindex!$A:$Z,Haftungsausschluß!$O$6,FALSE) -> [m] | F74: =IF($L$14=1,Preisliste!$E$13,Preisliste!$F$13) -> H501001 | G74: =VLOOKUP("Dammbalken 50/200 exkl. Dichtung, gesägt und entgratet",Sprachindex!$A:$Z,Haftungsausschluß!$O$6,FALSE) & " (" & ROUNDUP(C74/1000*4.12,2) & " " & VLOOKUP("kg/Stk",Sprachindex!$A:$Z,Haftungsausschluß!$O$6,FALSE) & ")" & IF('Kalkulation 1'!AH33," " & H3,"") -> Dammbalken 50/200 exkl. Dichtung, gesägt und entgratet (0 kg/Stk) | O74: 0 | R74: 0
D75: 0 | E75: =VLOOKUP("[m]",Sprachindex!$A:$Z,Haftungsausschluß!$O$6,FALSE) -> [m] | F75: =IF($L$14=1,Preisliste!$E$13,Preisliste!$F$13) -> H501001 | G75: =VLOOKUP("Dammbalken 50/200 exkl. Dichtung, gesägt und entgratet",Sprachindex!$A:$Z,Haftungsausschluß!$O$6,FALSE) & " (" & ROUNDUP(C75/1000*4.12,2) & " " & VLOOKUP("kg/Stk",Sprachindex!$A:$Z,Haftungsausschluß!$O$6,FALSE) & ")" & IF('Kalkulation 1'!AH33," " & H3,"") -> Dammbalken 50/200 exkl. Dichtung, gesägt und entgratet (0 kg/Stk) | O75: 0 | R75: 0
D76: 0 | E76: =VLOOKUP("[m]",Sprachindex!$A:$Z,Haftungsausschluß!$O$6,FALSE) -> [m] | F76: =IF($L$14=1,Preisliste!$E$16,Preisliste!$F$16) -> H801001 | G76: =VLOOKUP("Dammbalken 80/200 exkl. Dichtung, gesägt und entgratet",Sprachindex!$A:$Z,Haftungsausschluß!$O$6,FALSE) & " (" & ROUNDUP(C76/1000*7.78,2) & " " & VLOOKUP("kg/Stk",Sprachindex!$A:$Z,Haftungsausschluß!$O$6,FALSE) & ")" & IF('Kalkulation 1'!AH33," " & H3,"") -> Dammbalken 80/200 exkl. Dichtung, gesägt und entgratet (0 kg/Stk) | O76: 0 | R76: 0
D77: 0 | E77: =VLOOKUP("[m]",Sprachindex!$A:$Z,Haftungsausschluß!$O$6,FALSE) -> [m] | F77: =IF($L$14=1,Preisliste!$E$16,Preisliste!$F$16) -> H801001 | G77: =VLOOKUP("Dammbalken 80/200 exkl. Dichtung, gesägt und entgratet",Sprachindex!$A:$Z,Haftungsausschluß!$O$6,FALSE) & " (" & ROUNDUP(C77/1000*7.78,2) & " " & VLOOKUP("kg/Stk",Sprachindex!$A:$Z,Haftungsausschluß!$O$6,FALSE) & ")" & IF('Kalkulation 1'!AH33," " & H3,"") -> Dammbalken 80/200 exkl. Dichtung, gesägt und entgratet (0 kg/Stk) | O77: =N77*D77 -> 0 | R77: 0
D78: 0 | E78: =VLOOKUP("[m]",Sprachindex!$A:$Z,Haftungsausschluß!$O$6,FALSE) -> [m] | F78: =IF($L$14=1,Preisliste!$E$16,Preisliste!$F$16) -> H801001 | G78: =VLOOKUP("Dammbalken 80/200 exkl. Dichtung, gesägt und entgratet",Sprachindex!$A:$Z,Haftungsausschluß!$O$6,FALSE) & " (" & ROUNDUP(C78/1000*7.78,2) & " " & VLOOKUP("kg/Stk",Sprachindex!$A:$Z,Haftungsausschluß!$O$6,FALSE) & ")" & IF('Kalkulation 1'!AH33," " & H3,"") -> Dammbalken 80/200 exkl. Dichtung, gesägt und entgratet (0 kg/Stk) | O78: 0 | R78: 0
D79: 0 | E79: =VLOOKUP("[m]",Sprachindex!$A:$Z,Haftungsausschluß!$O$6,FALSE) -> [m] | F79: =IF($L$14=1,Preisliste!$E$16,Preisliste!$F$16) -> H801001 | G79: =VLOOKUP("Dammbalken 80/200 exkl. Dichtung, gesägt und entgratet",Sprachindex!$A:$Z,Haftungsausschluß!$O$6,FALSE) & " (" & ROUNDUP(C79/1000*7.78,2) & " " & VLOOKUP("kg/Stk",Sprachindex!$A:$Z,Haftungsausschluß!$O$6,FALSE) & ")" & IF('Kalkulation 1'!AH33," " & H3,"") -> Dammbalken 80/200 exkl. Dichtung, gesägt und entgratet (0 kg/Stk) | O79: 0 | R79: 0
D80: 0 | E80: =VLOOKUP("[m]",Sprachindex!$A:$Z,Haftungsausschluß!$O$6,FALSE) -> [m] | F80: =IF($L$14=1,Preisliste!$E$16,Preisliste!$F$16) -> H801001 | G80: =VLOOKUP("Dammbalken 80/200 exkl. Dichtung, gesägt und entgratet",Sprachindex!$A:$Z,Haftungsausschluß!$O$6,FALSE) & " (" & ROUNDUP(C80/1000*7.78,2) & " " & VLOOKUP("kg/Stk",Sprachindex!$A:$Z,Haftungsausschluß!$O$6,FALSE) & ")" & IF('Kalkulation 1'!AH33," " & H3,"") -> Dammbalken 80/200 exkl. Dichtung, gesägt und entgratet (0 kg/Stk) | O80: 0 | R80: 0
D81: 0 | E81: =VLOOKUP("[m]",Sprachindex!$A:$Z,Haftungsausschluß!$O$6,FALSE) -> [m] | F81: =IF($L$14=1,Preisliste!$E$16,Preisliste!$F$16) -> H801001 | G81: =VLOOKUP("Dammbalken 80/200 exkl. Dichtung, gesägt und entgratet",Sprachindex!$A:$Z,Haftungsausschluß!$O$6,FALSE) & " (" & ROUNDUP(C81/1000*7.78,2) & " " & VLOOKUP("kg/Stk",Sprachindex!$A:$Z,Haftungsausschluß!$O$6,FALSE) & ")" & IF('Kalkulation 1'!AH33," " & H3,"") -> Dammbalken 80/200 exkl. Dichtung, gesägt und entgratet (0 kg/Stk) | O81: 0 | R81: =C81 -> 0
D82: =B82*C82/1000 -> 0 | E82: =VLOOKUP("[m]",Sprachindex!$A:$Z,Haftungsausschluß!$O$6,FALSE) -> [m] | F82: =IF($L$14=1,Preisliste!$E$16,Preisliste!$F$16) -> H801001 | G82: =VLOOKUP("Dammbalken 80/200 exkl. Dichtung, gesägt und entgratet",Sprachindex!$A:$Z,Haftungsausschluß!$O$6,FALSE) & " (" & ROUNDUP(C82/1000*7.78,2) & " " & VLOOKUP("kg/Stk",Sprachindex!$A:$Z,Haftungsausschluß!$O$6,FALSE) & ")" & IF('Kalkulation 1'!AH33," " & H3,"") -> Dammbalken 80/200 exkl. Dichtung, gesägt und entgratet (0 kg/Stk) | O82: 0 | R82: 0
D83: 0 | E83: =VLOOKUP("[m]",Sprachindex!$A:$Z,Haftungsausschluß!$O$6,FALSE) -> [m] | F83: =IF($L$14=1,Preisliste!$E$16,Preisliste!$F$16) -> H801001 | G83: =VLOOKUP("Dammbalken 80/200 exkl. Dichtung, gesägt und entgratet",Sprachindex!$A:$Z,Haftungsausschluß!$O$6,FALSE) & " (" & ROUNDUP(C83/1000*7.78,2) & " " & VLOOKUP("kg/Stk",Sprachindex!$A:$Z,Haftungsausschluß!$O$6,FALSE) & ")" & IF('Kalkulation 1'!AH33," " & H3,"") -> Dammbalken 80/200 exkl. Dichtung, gesägt und entgratet (0 kg/Stk) | O83: 0 | R83: 0
D84: 0 | E84: =VLOOKUP("[m]",Sprachindex!$A:$Z,Haftungsausschluß!$O$6,FALSE) -> [m] | F84: =IF($L$14=1,Preisliste!$E$16,Preisliste!$F$16) -> H801001 | G84: =VLOOKUP("Dammbalken 80/200 exkl. Dichtung, gesägt und entgratet",Sprachindex!$A:$Z,Haftungsausschluß!$O$6,FALSE) & " (" & ROUNDUP(C84/1000*7.78,2) & " " & VLOOKUP("kg/Stk",Sprachindex!$A:$Z,Haftungsausschluß!$O$6,FALSE) & ")" & IF('Kalkulation 1'!AH33," " & H3,"") -> Dammbalken 80/200 exkl. Dichtung, gesägt und entgratet (0 kg/Stk) | O84: 0 | R84: 0
D85: 0 | E85: =VLOOKUP("[m]",Sprachindex!$A:$Z,Haftungsausschluß!$O$6,FALSE) -> [m] | F85: =IF($L$14=1,Preisliste!$E$16,Preisliste!$F$16) -> H801001 | G85: =VLOOKUP("Dammbalken 80/200 exkl. Dichtung, gesägt und entgratet",Sprachindex!$A:$Z,Haftungsausschluß!$O$6,FALSE) & " (" & ROUNDUP(C85/1000*7.78,2) & " " & VLOOKUP("kg/Stk",Sprachindex!$A:$Z,Haftungsausschluß!$O$6,FALSE) & ")" & IF('Kalkulation 1'!AH33," " & H3,"") -> Dammbalken 80/200 exkl. Dichtung, gesägt und entgratet (0 kg/Stk) | O85: 0 | R85: 0
D86: 0 | E86: =VLOOKUP("[m]",Sprachindex!$A:$Z,Haftungsausschluß!$O$6,FALSE) -> [m] | F86: =IF($L$14=1,Preisliste!$E$16,Preisliste!$F$16) -> H801001 | G86: =VLOOKUP("Dammbalken 80/200 exkl. Dichtung, gesägt und entgratet",Sprachindex!$A:$Z,Haftungsausschluß!$O$6,FALSE) & " (" & ROUNDUP(C86/1000*7.78,2) & " " & VLOOKUP("kg/Stk",Sprachindex!$A:$Z,Haftungsausschluß!$O$6,FALSE) & ")" & IF('Kalkulation 1'!AH33," " & H3,"") -> Dammbalken 80/200 exkl. Dichtung, gesägt und entgratet (0 kg/Stk) | O86: 0 | R86: 0
D87: 0 | E87: =VLOOKUP("[m]",Sprachindex!$A:$Z,Haftungsausschluß!$O$6,FALSE) -> [m] | F87: =IF($L$14=1,Preisliste!$E$16,Preisliste!$F$16) -> H801001 | G87: =VLOOKUP("Dammbalken 80/200 exkl. Dichtung, gesägt und entgratet",Sprachindex!$A:$Z,Haftungsausschluß!$O$6,FALSE) & " (" & ROUNDUP(C87/1000*7.78,2) & " " & VLOOKUP("kg/Stk",Sprachindex!$A:$Z,Haftungsausschluß!$O$6,FALSE) & ")" & IF('Kalkulation 1'!AH33," " & H3,"") -> Dammbalken 80/200 exkl. Dichtung, gesägt und entgratet (0 kg/Stk) | O87: 0 | R87: 0
D88: 0 | E88: =VLOOKUP("[m]",Sprachindex!$A:$Z,Haftungsausschluß!$O$6,FALSE) -> [m] | F88: =IF($L$14=1,Preisliste!$E$16,Preisliste!$F$16) -> H801001 | G88: =VLOOKUP("Dammbalken 80/200 exkl. Dichtung, gesägt und entgratet",Sprachindex!$A:$Z,Haftungsausschluß!$O$6,FALSE) & " (" & ROUNDUP(C88/1000*7.78,2) & " " & VLOOKUP("kg/Stk",Sprachindex!$A:$Z,Haftungsausschluß!$O$6,FALSE) & ")" & IF('Kalkulation 1'!AH33," " & H3,"") -> Dammbalken 80/200 exkl. Dichtung, gesägt und entgratet (0 kg/Stk) | O88: 0 | R88: 0
D89: 0 | E89: =VLOOKUP("[m]",Sprachindex!$A:$Z,Haftungsausschluß!$O$6,FALSE) -> [m] | F89: =IF($L$14=1,Preisliste!$E$16,Preisliste!$F$16) -> H801001 | G89: =VLOOKUP("Dammbalken 80/200 exkl. Dichtung, gesägt und entgratet",Sprachindex!$A:$Z,Haftungsausschluß!$O$6,FALSE) & " (" & ROUNDUP(C89/1000*7.78,2) & " " & VLOOKUP("kg/Stk",Sprachindex!$A:$Z,Haftungsausschluß!$O$6,FALSE) & ")" & IF('Kalkulation 1'!AH33," " & H3,"") -> Dammbalken 80/200 exkl. Dichtung, gesägt und entgratet (0 kg/Stk) | O89: 0 | R89: 0
D90: 0 | E90: =VLOOKUP("[m]",Sprachindex!$A:$Z,Haftungsausschluß!$O$6,FALSE) -> [m] | F90: =IF($L$14=1,Preisliste!$E$16,Preisliste!$F$16) -> H801001 | G90: =VLOOKUP("Dammbalken 80/200 exkl. Dichtung, gesägt und entgratet",Sprachindex!$A:$Z,Haftungsausschluß!$O$6,FALSE) & " (" & ROUNDUP(C90/1000*7.78,2) & " " & VLOOKUP("kg/Stk",Sprachindex!$A:$Z,Haftungsausschluß!$O$6,FALSE) & ")" & IF('Kalkulation 1'!AH33," " & H3,"") -> Dammbalken 80/200 exkl. Dichtung, gesägt und entgratet (0 kg/Stk) | O90: 0 | R90: 0
D91: 0 | E91: =VLOOKUP("[m]",Sprachindex!$A:$Z,Haftungsausschluß!$O$6,FALSE) -> [m] | F91: =IF($L$14=1,Preisliste!$E$16,Preisliste!$F$16) -> H801001 | G91: =VLOOKUP("Dammbalken 80/200 exkl. Dichtung, gesägt und entgratet",Sprachindex!$A:$Z,Haftungsausschluß!$O$6,FALSE) & " (" & ROUNDUP(C91/1000*7.78,2) & " " & VLOOKUP("kg/Stk",Sprachindex!$A:$Z,Haftungsausschluß!$O$6,FALSE) & ")" & IF('Kalkulation 1'!AH33," " & H3,"") -> Dammbalken 80/200 exkl. Dichtung, gesägt und entgratet (0 kg/Stk) | O91: 0 | R91: 0
D92: 0 | E92: =VLOOKUP("[m]",Sprachindex!$A:$Z,Haftungsausschluß!$O$6,FALSE) -> [m] | F92: =IF($L$14=1,Preisliste!$E$16,Preisliste!$F$16) -> H801001 | G92: =VLOOKUP("Dammbalken 80/200 exkl. Dichtung, gesägt und entgratet",Sprachindex!$A:$Z,Haftungsausschluß!$O$6,FALSE) & " (" & ROUNDUP(C92/1000*7.78,2) & " " & VLOOKUP("kg/Stk",Sprachindex!$A:$Z,Haftungsausschluß!$O$6,FALSE) & ")" & IF('Kalkulation 1'!AH33," " & H3,"") -> Dammbalken 80/200 exkl. Dichtung, gesägt und entgratet (0 kg/Stk) | O92: 0 | R92: 0
D93: 0 | E93: =VLOOKUP("[m]",Sprachindex!$A:$Z,Haftungsausschluß!$O$6,FALSE) -> [m] | F93: =IF($L$14=1,Preisliste!$E$16,Preisliste!$F$16) -> H801001 | G93: =VLOOKUP("Dammbalken 80/200 exkl. Dichtung, gesägt und entgratet",Sprachindex!$A:$Z,Haftungsausschluß!$O$6,FALSE) & " (" & ROUNDUP(C93/1000*7.78,2) & " " & VLOOKUP("kg/Stk",Sprachindex!$A:$Z,Haftungsausschluß!$O$6,FALSE) & ")" & IF('Kalkulation 1'!AH33," " & H3,"") -> Dammbalken 80/200 exkl. Dichtung, gesägt und entgratet (0 kg/Stk) | O93: 0 | R93: 0
D94: 0 | E94: =VLOOKUP("[m]",Sprachindex!$A:$Z,Haftungsausschluß!$O$6,FALSE) -> [m] | F94: =IF($L$14=1,Preisliste!$E$16,Preisliste!$F$16) -> H801001 | G94: =VLOOKUP("Dammbalken 80/200 exkl. Dichtung, gesägt und entgratet",Sprachindex!$A:$Z,Haftungsausschluß!$O$6,FALSE) & " (" & ROUNDUP(C94/1000*7.78,2) & " " & VLOOKUP("kg/Stk",Sprachindex!$A:$Z,Haftungsausschluß!$O$6,FALSE) & ")" & IF('Kalkulation 1'!AH33," " & H3,"") -> Dammbalken 80/200 exkl. Dichtung, gesägt und entgratet (0 kg/Stk) | O94: 0 | R94: 0
D95: 0 | E95: =VLOOKUP("[m]",Sprachindex!$A:$Z,Haftungsausschluß!$O$6,FALSE) -> [m] | F95: =IF($L$14=1,Preisliste!$E$16,Preisliste!$F$16) -> H801001 | G95: =VLOOKUP("Dammbalken 80/200 exkl. Dichtung, gesägt und entgratet",Sprachindex!$A:$Z,Haftungsausschluß!$O$6,FALSE) & " (" & ROUNDUP(C95/1000*7.78,2) & " " & VLOOKUP("kg/Stk",Sprachindex!$A:$Z,Haftungsausschluß!$O$6,FALSE) & ")" & IF('Kalkulation 1'!AH33," " & H3,"") -> Dammbalken 80/200 exkl. Dichtung, gesägt und entgratet (0 kg/Stk) | O95: 0 | R95: 0
C96: 750 | D96: =B96 -> 0 | E96: =VLOOKUP("[Stk]",Sprachindex!$A:$Z,Haftungsausschluß!$O$6,FALSE) -> [Stk] | F96: =IF($L$14=1,Preisliste!$E$19,Preisliste!$F$19) -> H251020 | G96: =VLOOKUP("U-Profil 25 exkl. Dichtung, gebohrt und entgratet",Sprachindex!$A:$Z,Haftungsausschluß!$O$6,FALSE) & IF('Kalkulation 1'!AH34," " & H3,"") -> U-Profil 25 exkl. Dichtung, gebohrt und entgratet | O96: 0
C97: 1350 | D97: =B97 -> 0 | E97: =VLOOKUP("[Stk]",Sprachindex!$A:$Z,Haftungsausschluß!$O$6,FALSE) -> [Stk] | F97: =IF($L$14=1,Preisliste!$E$20,Preisliste!$F$20) -> H251021 | G97: =VLOOKUP("U-Profil 25 exkl. Dichtung, gebohrt und entgratet",Sprachindex!$A:$Z,Haftungsausschluß!$O$6,FALSE) & IF('Kalkulation 1'!AH34," " & H3,"") -> U-Profil 25 exkl. Dichtung, gebohrt und entgratet | O97: =N97*D97 -> 0
C98: 1520 | D98: 0 | E98: =VLOOKUP("[Stk]",Sprachindex!$A:$Z,Haftungsausschluß!$O$6,FALSE) -> [Stk] | F98: =IF($L$14=1,Preisliste!$E$22,Preisliste!$F$22) -> H251011 | G98: =VLOOKUP("U-Profil 25 Sonderlänge exkl. Dichtung, (Stangenware)",Sprachindex!$A:$Z,Haftungsausschluß!$O$6,FALSE) & IF('Kalkulation 1'!AH34," " & H3,"") -> U-Profil 25 Sonderlänge exkl. Dichtung, (Stangenware) | O98: =N98*D98*C98/1000 -> 0
C99: 750 | D99: 0 | E99: =VLOOKUP("[Stk]",Sprachindex!$A:$Z,Haftungsausschluß!$O$6,FALSE) -> [Stk] | F99: =IF($L$14=1,Preisliste!$E$38,Preisliste!$F$38) -> H251200 | G99: =VLOOKUP("Grundprofil 25 exkl. Dichtung, gebohrt und entgratet",Sprachindex!$A:$Z,Haftungsausschluß!$O$6,FALSE) & IF('Kalkulation 1'!AH34," " & H3,"") -> Grundprofil 25 exkl. Dichtung, gebohrt und entgratet | O99: =N99*D99 -> 0
C100: 1350 | D100: 0 | E100: =VLOOKUP("[Stk]",Sprachindex!$A:$Z,Haftungsausschluß!$O$6,FALSE) -> [Stk] | F100: =IF($L$14=1,Preisliste!$E$39,Preisliste!$F$39) -> H251201 | G100: =VLOOKUP("Grundprofil 25 exkl. Dichtung, gebohrt und entgratet",Sprachindex!$A:$Z,Haftungsausschluß!$O$6,FALSE) & IF('Kalkulation 1'!AH34," " & H3,"") -> Grundprofil 25 exkl. Dichtung, gebohrt und entgratet | O100: =N100*D100 -> 0
C101: 1520 | D101: 0 | E101: =VLOOKUP("[Stk]",Sprachindex!$A:$Z,Haftungsausschluß!$O$6,FALSE) -> [Stk] | F101: =IF($L$14=1,Preisliste!$E$22,Preisliste!$F$22) -> H251011 | G101: =VLOOKUP("Grundprofil 25 Sonderlänge exkl. Dichtung, (Stangenware)",Sprachindex!$A:$Z,Haftungsausschluß!$O$6,FALSE) & IF('Kalkulation 1'!AH34," " & H3,"") -> Grundprofil 25 Sonderlänge exkl. Dichtung, (Stangenware) | O101: =N101*D101*C101/1000 -> 0
C102: 750 | D102: 0 | E102: =VLOOKUP("[Stk]",Sprachindex!$A:$Z,Haftungsausschluß!$O$6,FALSE) -> [Stk] | F102: =IF($L$14=1,Preisliste!$E$24,Preisliste!$F$24) -> H501101 | G102: =VLOOKUP("U-Profil 50 exkl. Dichtung, gebohrt und entgratet",Sprachindex!$A:$Z,Haftungsausschluß!$O$6,FALSE) & IF('Kalkulation 1'!AH34," " & H3,"") -> U-Profil 50 exkl. Dichtung, gebohrt und entgratet | O102: =N102*D102 -> 0
C103: 1350 | D103: 0 | E103: =VLOOKUP("[Stk]",Sprachindex!$A:$Z,Haftungsausschluß!$O$6,FALSE) -> [Stk] | F103: =IF($L$14=1,Preisliste!$E$25,Preisliste!$F$25) -> H501111 | G103: =VLOOKUP("U-Profil 50 exkl. Dichtung, gebohrt und entgratet",Sprachindex!$A:$Z,Haftungsausschluß!$O$6,FALSE) & IF('Kalkulation 1'!AH34," " & H3,"") -> U-Profil 50 exkl. Dichtung, gebohrt und entgratet | O103: =N103*D103 -> 0
C104: 1750 | D104: 0 | E104: =VLOOKUP("[Stk]",Sprachindex!$A:$Z,Haftungsausschluß!$O$6,FALSE) -> [Stk] | F104: =IF($L$14=1,Preisliste!$E$26,Preisliste!$F$26) -> H501112 | G104: =VLOOKUP("U-Profil 50 exkl. Dichtung, gebohrt und entgratet",Sprachindex!$A:$Z,Haftungsausschluß!$O$6,FALSE) & IF('Kalkulation 1'!AH34," " & H3,"") -> U-Profil 50 exkl. Dichtung, gebohrt und entgratet | O104: 0
C105: 2150 | D105: 0 | E105: =VLOOKUP("[Stk]",Sprachindex!$A:$Z,Haftungsausschluß!$O$6,FALSE) -> [Stk] | F105: =IF($L$14=1,Preisliste!$E$27,Preisliste!$F$27) -> H501122 | G105: =VLOOKUP("U-Profil 50 exkl. Dichtung, gebohrt und entgratet",Sprachindex!$A:$Z,Haftungsausschluß!$O$6,FALSE) & IF('Kalkulation 1'!AH34," " & H3,"") -> U-Profil 50 exkl. Dichtung, gebohrt und entgratet | O105: 0
C106: 2720 | D106: 0 | E106: =VLOOKUP("[Stk]",Sprachindex!$A:$Z,Haftungsausschluß!$O$6,FALSE) -> [Stk] | F106: =IF($L$14=1,Preisliste!$E$29,Preisliste!$F$29) -> H501191 | G106: =VLOOKUP("U-Profil 50 Sonderlänge exkl. Dichtung, (Stangenware)",Sprachindex!$A:$Z,Haftungsausschluß!$O$6,FALSE) & IF('Kalkulation 1'!AH34," " & H3,"") -> U-Profil 50 Sonderlänge exkl. Dichtung, (Stangenware) | O106: =N106*D106*C106/1000 -> 0
C107: 750 | D107: 0 | E107: =VLOOKUP("[Stk]",Sprachindex!$A:$Z,Haftungsausschluß!$O$6,FALSE) -> [Stk] | F107: =IF($L$14=1,Preisliste!$E$31,Preisliste!$F$31) -> H801101 | G107: =VLOOKUP("U-Profil 80 exkl. Dichtung, gebohrt und entgratet",Sprachindex!$A:$Z,Haftungsausschluß!$O$6,FALSE) & IF('Kalkulation 1'!AH34," " & H3,"") -> U-Profil 80 exkl. Dichtung, gebohrt und entgratet | O107: =N107*D107 -> 0
C108: 1350 | D108: 0 | E108: =VLOOKUP("[Stk]",Sprachindex!$A:$Z,Haftungsausschluß!$O$6,FALSE) -> [Stk] | F108: =IF($L$14=1,Preisliste!$E$32,Preisliste!$F$32) -> H801111 | G108: =VLOOKUP("U-Profil 80 exkl. Dichtung, gebohrt und entgratet",Sprachindex!$A:$Z,Haftungsausschluß!$O$6,FALSE) & IF('Kalkulation 1'!AH34," " & H3,"") -> U-Profil 80 exkl. Dichtung, gebohrt und entgratet | O108: =N108*D108 -> 0
C109: 1750 | D109: 0 | E109: =VLOOKUP("[Stk]",Sprachindex!$A:$Z,Haftungsausschluß!$O$6,FALSE) -> [Stk] | F109: =IF($L$14=1,Preisliste!$E$33,Preisliste!$F$33) -> H801112 | G109: =VLOOKUP("U-Profil 80 exkl. Dichtung, gebohrt und entgratet",Sprachindex!$A:$Z,Haftungsausschluß!$O$6,FALSE) & IF('Kalkulation 1'!AH34," " & H3,"") -> U-Profil 80 exkl. Dichtung, gebohrt und entgratet | O109: 0
C110: 2150 | D110: 0 | E110: =VLOOKUP("[Stk]",Sprachindex!$A:$Z,Haftungsausschluß!$O$6,FALSE) -> [Stk] | F110: =IF($L$14=1,Preisliste!$E$34,Preisliste!$F$34) -> H801122 | G110: =VLOOKUP("U-Profil 80 exkl. Dichtung, gebohrt und entgratet",Sprachindex!$A:$Z,Haftungsausschluß!$O$6,FALSE) & IF('Kalkulation 1'!AH34," " & H3,"") -> U-Profil 80 exkl. Dichtung, gebohrt und entgratet | O110: 0
C111: 2320 | D111: 0 | E111: =VLOOKUP("[Stk]",Sprachindex!$A:$Z,Haftungsausschluß!$O$6,FALSE) -> [Stk] | F111: =IF($L$14=1,Preisliste!$E$36,Preisliste!$F$36) -> H801191 | G111: =VLOOKUP("U-Profil 80 Sonderlänge exkl. Dichtung, (Stangenware)",Sprachindex!$A:$Z,Haftungsausschluß!$O$6,FALSE) & IF('Kalkulation 1'!AH34," " & H3,"") -> U-Profil 80 Sonderlänge exkl. Dichtung, (Stangenware) | O111: =N111*D111*C111/1000 -> 0
B112: 2 | C112: 750 | D112: 2 | E112: =VLOOKUP("[Stk]",Sprachindex!$A:$Z,Haftungsausschluß!$O$6,FALSE) -> [Stk] | F112: =IF($L$14=1,Preisliste!$E$42,Preisliste!$F$42) -> H501201 | G112: =VLOOKUP("Grundprofil 50 exkl. Dichtung, gebohrt und entgratet",Sprachindex!$A:$Z,Haftungsausschluß!$O$6,FALSE) & IF('Kalkulation 1'!AH34," " & H3,"") -> Grundprofil 50 exkl. Dichtung, gebohrt und entgratet | N112: 134.1 | O112: =N112*D112 -> 268.2
C113: 1350 | D113: 0 | E113: =VLOOKUP("[Stk]",Sprachindex!$A:$Z,Haftungsausschluß!$O$6,FALSE) -> [Stk] | F113: =IF($L$14=1,Preisliste!$E$43,Preisliste!$F$43) -> H501211 | G113: =VLOOKUP("Grundprofil 50 exkl. Dichtung, gebohrt und entgratet",Sprachindex!$A:$Z,Haftungsausschluß!$O$6,FALSE) & IF('Kalkulation 1'!AH34," " & H3,"") -> Grundprofil 50 exkl. Dichtung, gebohrt und entgratet | O113: =N113*D113 -> 0
C114: 1750 | D114: 0 | E114: =VLOOKUP("[Stk]",Sprachindex!$A:$Z,Haftungsausschluß!$O$6,FALSE) -> [Stk] | F114: =IF($L$14=1,Preisliste!$E$44,Preisliste!$F$44) -> H501212 | G114: =VLOOKUP("Grundprofil 50 exkl. Dichtung, gebohrt und entgratet",Sprachindex!$A:$Z,Haftungsausschluß!$O$6,FALSE) & IF('Kalkulation 1'!AH34," " & H3,"") -> Grundprofil 50 exkl. Dichtung, gebohrt und entgratet | O114: 0
C115: 2150 | D115: 0 | E115: =VLOOKUP("[Stk]",Sprachindex!$A:$Z,Haftungsausschluß!$O$6,FALSE) -> [Stk] | F115: =IF($L$14=1,Preisliste!$E$45,Preisliste!$F$45) -> H501222 | G115: =VLOOKUP("Grundprofil 50 exkl. Dichtung, gebohrt und entgratet",Sprachindex!$A:$Z,Haftungsausschluß!$O$6,FALSE) & IF('Kalkulation 1'!AH34," " & H3,"") -> Grundprofil 50 exkl. Dichtung, gebohrt und entgratet | O115: 0
C116: 2720 | D116: 0 | E116: =VLOOKUP("[Stk]",Sprachindex!$A:$Z,Haftungsausschluß!$O$6,FALSE) -> [Stk] | F116: =IF($L$14=1,Preisliste!$E$47,Preisliste!$F$47) -> H501291 | G116: =VLOOKUP("Grundprofil 50 Sonderlänge exkl. Dichtung, (Stangenware)",Sprachindex!$A:$Z,Haftungsausschluß!$O$6,FALSE) & IF('Kalkulation 1'!AH34," " & H3,"") -> Grundprofil 50 Sonderlänge exkl. Dichtung, (Stangenware) | O116: 0
C117: 750 | D117: 0 | E117: =VLOOKUP("[Stk]",Sprachindex!$A:$Z,Haftungsausschluß!$O$6,FALSE) -> [Stk] | F117: =IF($L$14=1,Preisliste!$E$49,Preisliste!$F$49) -> H801201 | G117: =VLOOKUP("Grundprofil 80 exkl. Dichtung, gebohrt und entgratet",Sprachindex!$A:$Z,Haftungsausschluß!$O$6,FALSE) & IF('Kalkulation 1'!AH34," " & H3,"") -> Grundprofil 80 exkl. Dichtung, gebohrt und entgratet | O117: =N117*D117 -> 0
C118: 1350 | D118: 0 | E118: =VLOOKUP("[Stk]",Sprachindex!$A:$Z,Haftungsausschluß!$O$6,FALSE) -> [Stk] | F118: =IF($L$14=1,Preisliste!$E$50,Preisliste!$F$50) -> H801211 | G118: =VLOOKUP("Grundprofil 80 exkl. Dichtung, gebohrt und entgratet",Sprachindex!$A:$Z,Haftungsausschluß!$O$6,FALSE) & IF('Kalkulation 1'!AH34," " & H3,"") -> Grundprofil 80 exkl. Dichtung, gebohrt und entgratet | O118: =N118*D118 -> 0
C119: 1750 | D119: 0 | E119: =VLOOKUP("[Stk]",Sprachindex!$A:$Z,Haftungsausschluß!$O$6,FALSE) -> [Stk] | F119: =IF($L$14=1,Preisliste!$E$51,Preisliste!$F$51) -> H801212 | G119: =VLOOKUP("Grundprofil 80 exkl. Dichtung, gebohrt und entgratet",Sprachindex!$A:$Z,Haftungsausschluß!$O$6,FALSE) & IF('Kalkulation 1'!AH34," " & H3,"") -> Grundprofil 80 exkl. Dichtung, gebohrt und entgratet | O119: 0
C120: 2150 | D120: 0 | E120: =VLOOKUP("[Stk]",Sprachindex!$A:$Z,Haftungsausschluß!$O$6,FALSE) -> [Stk] | F120: =IF($L$14=1,Preisliste!$E$52,Preisliste!$F$52) -> H801222 | G120: =VLOOKUP("Grundprofil 80 exkl. Dichtung, gebohrt und entgratet",Sprachindex!$A:$Z,Haftungsausschluß!$O$6,FALSE) & IF('Kalkulation 1'!AH34," " & H3,"") -> Grundprofil 80 exkl. Dichtung, gebohrt und entgratet | O120: 0
C121: 2720 | D121: 0 | E121: =VLOOKUP("[Stk]",Sprachindex!$A:$Z,Haftungsausschluß!$O$6,FALSE) -> [Stk] | F121: =IF($L$14=1,Preisliste!$E$54,Preisliste!$F$54) -> H801291 | G121: =VLOOKUP("Grundprofil 80 Sonderlänge exkl. Dichtung, (Stangenware)",Sprachindex!$A:$Z,Haftungsausschluß!$O$6,FALSE) & IF('Kalkulation 1'!AH34," " & H3,"") -> Grundprofil 80 Sonderlänge exkl. Dichtung, (Stangenware) | O121: =N121*D121*C121/1000 -> 0
C122: 750 | D122: 0 | E122: =VLOOKUP("[Stk]",Sprachindex!$A:$Z,Haftungsausschluß!$O$6,FALSE) -> [Stk] | F122: =IF($L$14=1,Preisliste!$E$56,Preisliste!$F$56) -> H501301 | G122: =VLOOKUP("Rundprofil 50 exkl. Dichtung, gebohrt und entgratet",Sprachindex!$A:$Z,Haftungsausschluß!$O$6,FALSE) & " (7,81" & " " & VLOOKUP("kg/Stk",Sprachindex!$A:$Z,Haftungsausschluß!$O$6,FALSE) & ")" -> Rundprofil 50 exkl. Dichtung, gebohrt und entgratet (7,81 kg/Stk) | O122: =N122*D122 -> 0 | Z122: =ROUNDUP(C122/1000*10.401,2) -> 7.81
C123: 1350 | D123: 0 | E123: =VLOOKUP("[Stk]",Sprachindex!$A:$Z,Haftungsausschluß!$O$6,FALSE) -> [Stk] | F123: =IF($L$14=1,Preisliste!$E$57,Preisliste!$F$57) -> H501311 | G123: =VLOOKUP("Rundprofil 50 exkl. Dichtung, gebohrt und entgratet",Sprachindex!$A:$Z,Haftungsausschluß!$O$6,FALSE) & " (14,05" & " " & VLOOKUP("kg/Stk",Sprachindex!$A:$Z,Haftungsausschluß!$O$6,FALSE) & ")" -> Rundprofil 50 exkl. Dichtung, gebohrt und entgratet (14,05 kg/Stk) | O123: =N123*D123 -> 0 | Z123: =ROUNDUP(C123/1000*10.401,2) -> 14.05
C124: 1750 | D124: 0 | E124: =VLOOKUP("[Stk]",Sprachindex!$A:$Z,Haftungsausschluß!$O$6,FALSE) -> [Stk] | F124: =IF($L$14=1,Preisliste!$E$58,Preisliste!$F$58) -> H501312 | G124: =VLOOKUP("Rundprofil 50 exkl. Dichtung, gebohrt und entgratet",Sprachindex!$A:$Z,Haftungsausschluß!$O$6,FALSE) & " (18,21" & " " & VLOOKUP("kg/Stk",Sprachindex!$A:$Z,Haftungsausschluß!$O$6,FALSE) & ")" -> Rundprofil 50 exkl. Dichtung, gebohrt und entgratet (18,21 kg/Stk) | O124: 0 | Z124: 18.21
C125: 2150 | D125: 0 | E125: =VLOOKUP("[Stk]",Sprachindex!$A:$Z,Haftungsausschluß!$O$6,FALSE) -> [Stk] | F125: =IF($L$14=1,Preisliste!$E$59,Preisliste!$F$59) -> H501322 | G125: =VLOOKUP("Rundprofil 50 exkl. Dichtung, gebohrt und entgratet",Sprachindex!$A:$Z,Haftungsausschluß!$O$6,FALSE) & " (22,37" & " " & VLOOKUP("kg/Stk",Sprachindex!$A:$Z,Haftungsausschluß!$O$6,FALSE) & ")" -> Rundprofil 50 exkl. Dichtung, gebohrt und entgratet (22,37 kg/Stk) | O125: 0 | Z125: 22.37
C126: 2220 | D126: 0 | E126: =VLOOKUP("[Stk]",Sprachindex!$A:$Z,Haftungsausschluß!$O$6,FALSE) -> [Stk] | F126: =IF($L$14=1,Preisliste!$E$60,Preisliste!$F$60) -> 0 | G126: =VLOOKUP("Rundprofil 50 Sonderlänge exkl. Dichtung, (Stangenware)",Sprachindex!$A:$Z,Haftungsausschluß!$O$6,FALSE) -> Rundprofil 50 Sonderlänge exkl. Dichtung, (Stangenware) | O126: =N126*D126*C126/1000 -> 0 | Z126: 23.1
C127: 750 | D127: 0 | E127: =VLOOKUP("[Stk]",Sprachindex!$A:$Z,Haftungsausschluß!$O$6,FALSE) -> [Stk] | F127: =IF($L$14=1,Preisliste!$E$62,Preisliste!$F$62) -> H801301 | G127: =VLOOKUP("Rundprofil 80 exkl. Dichtung, gebohrt und entgratet",Sprachindex!$A:$Z,Haftungsausschluß!$O$6,FALSE) & " (8,45" & " " & VLOOKUP("kg/Stk",Sprachindex!$A:$Z,Haftungsausschluß!$O$6,FALSE) & ")" -> Rundprofil 80 exkl. Dichtung, gebohrt und entgratet (8,45 kg/Stk) | O127: =N127*D127 -> 0 | Z127: =ROUNDUP(C127/1000*11.258,2) -> 8.45
C128: 1350 | D128: 0 | E128: =VLOOKUP("[Stk]",Sprachindex!$A:$Z,Haftungsausschluß!$O$6,FALSE) -> [Stk] | F128: =IF($L$14=1,Preisliste!$E$63,Preisliste!$F$63) -> H801311 | G128: =VLOOKUP("Rundprofil 80 exkl. Dichtung, gebohrt und entgratet",Sprachindex!$A:$Z,Haftungsausschluß!$O$6,FALSE) & " (15,20" & " " & VLOOKUP("kg/Stk",Sprachindex!$A:$Z,Haftungsausschluß!$O$6,FALSE) & ")" -> Rundprofil 80 exkl. Dichtung, gebohrt und entgratet (15,20 kg/Stk) | O128: =N128*D128 -> 0 | Z128: =ROUNDUP(C128/1000*11.258,2) -> 15.2
C129: 1750 | D129: 0 | E129: =VLOOKUP("[Stk]",Sprachindex!$A:$Z,Haftungsausschluß!$O$6,FALSE) -> [Stk] | F129: =IF($L$14=1,Preisliste!$E$64,Preisliste!$F$64) -> H801312 | G129: =VLOOKUP("Rundprofil 80 exkl. Dichtung, gebohrt und entgratet",Sprachindex!$A:$Z,Haftungsausschluß!$O$6,FALSE) & " (19,71" & " " & VLOOKUP("kg/Stk",Sprachindex!$A:$Z,Haftungsausschluß!$O$6,FALSE) & ")" -> Rundprofil 80 exkl. Dichtung, gebohrt und entgratet (19,71 kg/Stk) | O129: 0 | Z129: 19.71
C130: 2150 | D130: 0 | E130: =VLOOKUP("[Stk]",Sprachindex!$A:$Z,Haftungsausschluß!$O$6,FALSE) -> [Stk] | F130: =IF($L$14=1,Preisliste!$E$65,Preisliste!$F$65) -> H801322 | G130: =VLOOKUP("Rundprofil 80 exkl. Dichtung, gebohrt und entgratet",Sprachindex!$A:$Z,Haftungsausschluß!$O$6,FALSE) & " (24,21" & " " & VLOOKUP("kg/Stk",Sprachindex!$A:$Z,Haftungsausschluß!$O$6,FALSE) & ")" -> Rundprofil 80 exkl. Dichtung, gebohrt und entgratet (24,21 kg/Stk) | O130: 0 | Z130: 24.21
C131: 3320 | D131: 0 | E131: =VLOOKUP("[Stk]",Sprachindex!$A:$Z,Haftungsausschluß!$O$6,FALSE) -> [Stk] | F131: =IF($L$14=1,Preisliste!$E$66,Preisliste!$F$66) -> 0 | G131: =VLOOKUP("Rundprofil 80 Sonderlänge exkl. Dichtung, (Stangenware)",Sprachindex!$A:$Z,Haftungsausschluß!$O$6,FALSE) -> Rundprofil 80 Sonderlänge exkl. Dichtung, (Stangenware) | O131: =N131*D131*C131/1000 -> 0 | Z131: 37.38
C132: 750 | D132: 0 | E132: =VLOOKUP("[Stk]",Sprachindex!$A:$Z,Haftungsausschluß!$O$6,FALSE) -> [Stk] | F132: =IF($L$14=1,Preisliste!$E$68,Preisliste!$F$68) -> H801340 | G132: =VLOOKUP("Rundprofil 80 gr. exkl. Dichtung, gebohrt und entgratet",Sprachindex!$A:$Z,Haftungsausschluß!$O$6,FALSE) & " (10,93" & " " & VLOOKUP("kg/Stk",Sprachindex!$A:$Z,Haftungsausschluß!$O$6,FALSE) & ")" -> Rundprofil 80 gr. exkl. Dichtung, gebohrt und entgratet (10,93 kg/Stk) | O132: =N132*D132 -> 0 | Z132: =ROUNDUP(C132/1000*14.5690515,2) -> 10.93
C133: 1350 | D133: 0 | E133: =VLOOKUP("[Stk]",Sprachindex!$A:$Z,Haftungsausschluß!$O$6,FALSE) -> [Stk] | F133: =IF($L$14=1,Preisliste!$E$69,Preisliste!$F$69) -> H801341 | G133: =VLOOKUP("Rundprofil 80 gr. exkl. Dichtung, gebohrt und entgratet",Sprachindex!$A:$Z,Haftungsausschluß!$O$6,FALSE) & " (19,67" & " " & VLOOKUP("kg/Stk",Sprachindex!$A:$Z,Haftungsausschluß!$O$6,FALSE) & ")" -> Rundprofil 80 gr. exkl. Dichtung, gebohrt und entgratet (19,67 kg/Stk) | O133: =N133*D133 -> 0 | Z133: =ROUNDUP(C133/1000*14.5690515,2) -> 19.67
C134: 1750 | D134: 0 | E134: =VLOOKUP("[Stk]",Sprachindex!$A:$Z,Haftungsausschluß!$O$6,FALSE) -> [Stk] | F134: =IF($L$14=1,Preisliste!$E$70,Preisliste!$F$70) -> H801342 | G134: =VLOOKUP("Rundprofil 80 gr. exkl. Dichtung, gebohrt und entgratet",Sprachindex!$A:$Z,Haftungsausschluß!$O$6,FALSE) & " (25,50" & " " & VLOOKUP("kg/Stk",Sprachindex!$A:$Z,Haftungsausschluß!$O$6,FALSE) & ")" -> Rundprofil 80 gr. exkl. Dichtung, gebohrt und entgratet (25,50 kg/Stk) | O134: 0 | Z134: 25.5
C135: 2150 | D135: 0 | E135: =VLOOKUP("[Stk]",Sprachindex!$A:$Z,Haftungsausschluß!$O$6,FALSE) -> [Stk] | F135: =IF($L$14=1,Preisliste!$E$71,Preisliste!$F$71) -> H801343 | G135: =VLOOKUP("Rundprofil 80 gr. exkl. Dichtung, gebohrt und entgratet",Sprachindex!$A:$Z,Haftungsausschluß!$O$6,FALSE) & " (31,33" & " " & VLOOKUP("kg/Stk",Sprachindex!$A:$Z,Haftungsausschluß!$O$6,FALSE) & ")" -> Rundprofil 80 gr. exkl. Dichtung, gebohrt und entgratet (31,33 kg/Stk) | O135: 0 | Z135: 31.33
C136: 3120 | D136: 0 | E136: =VLOOKUP("[Stk]",Sprachindex!$A:$Z,Haftungsausschluß!$O$6,FALSE) -> [Stk] | F136: =IF($L$14=1,Preisliste!$E$72,Preisliste!$F$72) -> 0 | G136: =VLOOKUP("Rundprofil 80 gr. Sonderlänge exkl. Dichtung, (Stangenware)",Sprachindex!$A:$Z,Haftungsausschluß!$O$6,FALSE) -> Rundprofil 80 gr. Sonderlänge exkl. Dichtung, (Stangenware) | O136: =N136*D136*C136/1000 -> 0 | Z136: 45.46
C137: 750 | D137: 0 | E137: =VLOOKUP("[Stk]",Sprachindex!$A:$Z,Haftungsausschluß!$O$6,FALSE) -> [Stk] | F137: =IF($L$14=1,Preisliste!$E$74,Preisliste!$F$74) -> H501600 | G137: =VLOOKUP("Rundprofil 50-90° exkl. Dichtung, gebohrt und entgratet",Sprachindex!$A:$Z,Haftungsausschluß!$O$6,FALSE) -> Rundprofil 50-90° exkl. Dichtung, gebohrt und entgratet | O137: =N137*D137 -> 0
C138: 1350 | D138: 0 | E138: =VLOOKUP("[Stk]",Sprachindex!$A:$Z,Haftungsausschluß!$O$6,FALSE) -> [Stk] | F138: =IF($L$14=1,Preisliste!$E$75,Preisliste!$F$75) -> H501601 | G138: =VLOOKUP("Rundprofil 50-90° exkl. Dichtung, gebohrt und entgratet",Sprachindex!$A:$Z,Haftungsausschluß!$O$6,FALSE) -> Rundprofil 50-90° exkl. Dichtung, gebohrt und entgratet | O138: =N138*D138 -> 0
C139: 1750 | D139: 0 | E139: =VLOOKUP("[Stk]",Sprachindex!$A:$Z,Haftungsausschluß!$O$6,FALSE) -> [Stk] | F139: =IF($L$14=1,Preisliste!$E$76,Preisliste!$F$76) -> H501602 | G139: =VLOOKUP("Rundprofil 50-90° exkl. Dichtung, gebohrt und entgratet",Sprachindex!$A:$Z,Haftungsausschluß!$O$6,FALSE) -> Rundprofil 50-90° exkl. Dichtung, gebohrt und entgratet | O139: 0
C140: 2150 | D140: 0 | E140: =VLOOKUP("[Stk]",Sprachindex!$A:$Z,Haftungsausschluß!$O$6,FALSE) -> [Stk] | F140: =IF($L$14=1,Preisliste!$E$77,Preisliste!$F$77) -> H501603 | G140: =VLOOKUP("Rundprofil 50-90° exkl. Dichtung, gebohrt und entgratet",Sprachindex!$A:$Z,Haftungsausschluß!$O$6,FALSE) -> Rundprofil 50-90° exkl. Dichtung, gebohrt und entgratet | O140: 0
C141: 2720 | D141: 0 | E141: =VLOOKUP("[Stk]",Sprachindex!$A:$Z,Haftungsausschluß!$O$6,FALSE) -> [Stk] | F141: =IF($L$14=1,Preisliste!$E$78,Preisliste!$F$78) -> 0 | G141: =VLOOKUP("Rundprofil 50-90° Sonderlänge exkl. Dichtung, (Stangenware)",Sprachindex!$A:$Z,Haftungsausschluß!$O$6,FALSE) -> Rundprofil 50-90° Sonderlänge exkl. Dichtung, (Stangenware) | O141: =N141*D141*C141/1000 -> 0
C142: 750 | D142: 0 | E142: =VLOOKUP("[Stk]",Sprachindex!$A:$Z,Haftungsausschluß!$O$6,FALSE) -> [Stk] | F142: =IF($L$14=1,Preisliste!$E$80,Preisliste!$F$80) -> H801600 | G142: =VLOOKUP("Rundprofil 80-90° exkl. Dichtung, gebohrt und entgratet",Sprachindex!$A:$Z,Haftungsausschluß!$O$6,FALSE) -> Rundprofil 80-90° exkl. Dichtung, gebohrt und entgratet | O142: =N142*D142 -> 0
C143: 1350 | D143: 0 | E143: =VLOOKUP("[Stk]",Sprachindex!$A:$Z,Haftungsausschluß!$O$6,FALSE) -> [Stk] | F143: =IF($L$14=1,Preisliste!$E$81,Preisliste!$F$81) -> H801601 | G143: =VLOOKUP("Rundprofil 80-90° exkl. Dichtung, gebohrt und entgratet",Sprachindex!$A:$Z,Haftungsausschluß!$O$6,FALSE) -> Rundprofil 80-90° exkl. Dichtung, gebohrt und entgratet | O143: =N143*D143 -> 0
C144: 1750 | D144: 0 | E144: =VLOOKUP("[Stk]",Sprachindex!$A:$Z,Haftungsausschluß!$O$6,FALSE) -> [Stk] | F144: =IF($L$14=1,Preisliste!$E$82,Preisliste!$F$82) -> H801602 | G144: =VLOOKUP("Rundprofil 80-90° exkl. Dichtung, gebohrt und entgratet",Sprachindex!$A:$Z,Haftungsausschluß!$O$6,FALSE) -> Rundprofil 80-90° exkl. Dichtung, gebohrt und entgratet | O144: 0
C145: 2150 | D145: 0 | E145: =VLOOKUP("[Stk]",Sprachindex!$A:$Z,Haftungsausschluß!$O$6,FALSE) -> [Stk] | F145: =IF($L$14=1,Preisliste!$E$83,Preisliste!$F$83) -> H801603 | G145: =VLOOKUP("Rundprofil 80-90° exkl. Dichtung, gebohrt und entgratet",Sprachindex!$A:$Z,Haftungsausschluß!$O$6,FALSE) -> Rundprofil 80-90° exkl. Dichtung, gebohrt und entgratet | O145: 0
C146: 3120 | D146: 0 | E146: =VLOOKUP("[Stk]",Sprachindex!$A:$Z,Haftungsausschluß!$O$6,FALSE) -> [Stk] | F146: =IF($L$14=1,Preisliste!$E$84,Preisliste!$F$84) -> 0 | G146: =VLOOKUP("Rundprofil 80-90° Sonderlänge exkl. Dichtung, (Stangenware)",Sprachindex!$A:$Z,Haftungsausschluß!$O$6,FALSE) -> Rundprofil 80-90° Sonderlänge exkl. Dichtung, (Stangenware) | O146: =N146*D146*C146/1000 -> 0
C147: 750 | D147: 0 | E147: =VLOOKUP("[Stk]",Sprachindex!$A:$Z,Haftungsausschluß!$O$6,FALSE) -> [Stk] | F147: =IF($L$14=1,Preisliste!$E$86,Preisliste!$F$86) -> H501610 | G147: =VLOOKUP("Rundprofil 50-Vario exkl. Dichtung, gebohrt und entgratet",Sprachindex!$A:$Z,Haftungsausschluß!$O$6,FALSE) -> Rundprofil 50-Vario exkl. Dichtung, gebohrt und entgratet | O147: =N147*D147 -> 0
C148: 1350 | D148: 0 | E148: =VLOOKUP("[Stk]",Sprachindex!$A:$Z,Haftungsausschluß!$O$6,FALSE) -> [Stk] | F148: =IF($L$14=1,Preisliste!$E$87,Preisliste!$F$87) -> H501611 | G148: =VLOOKUP("Rundprofil 50-Vario exkl. Dichtung, gebohrt und entgratet",Sprachindex!$A:$Z,Haftungsausschluß!$O$6,FALSE) -> Rundprofil 50-Vario exkl. Dichtung, gebohrt und entgratet | O148: =N148*D148 -> 0
C149: 1750 | D149: 0 | E149: =VLOOKUP("[Stk]",Sprachindex!$A:$Z,Haftungsausschluß!$O$6,FALSE) -> [Stk] | F149: =IF($L$14=1,Preisliste!$E$88,Preisliste!$F$88) -> H501612 | G149: =VLOOKUP("Rundprofil 50-Vario exkl. Dichtung, gebohrt und entgratet",Sprachindex!$A:$Z,Haftungsausschluß!$O$6,FALSE) -> Rundprofil 50-Vario exkl. Dichtung, gebohrt und entgratet | O149: 0
C150: 2150 | D150: 0 | E150: =VLOOKUP("[Stk]",Sprachindex!$A:$Z,Haftungsausschluß!$O$6,FALSE) -> [Stk] | F150: =IF($L$14=1,Preisliste!$E$89,Preisliste!$F$89) -> H501613 | G150: =VLOOKUP("Rundprofil 50-Vario exkl. Dichtung, gebohrt und entgratet",Sprachindex!$A:$Z,Haftungsausschluß!$O$6,FALSE) -> Rundprofil 50-Vario exkl. Dichtung, gebohrt und entgratet | O150: 0
C151: 3120 | D151: 0 | E151: =VLOOKUP("[Stk]",Sprachindex!$A:$Z,Haftungsausschluß!$O$6,FALSE) -> [Stk] | F151: =IF($L$14=1,Preisliste!$E$90,Preisliste!$F$90) -> 0 | G151: =VLOOKUP("Rundprofil 50-Vario Sonderlänge exkl. Dichtung, (Stangenware)",Sprachindex!$A:$Z,Haftungsausschluß!$O$6,FALSE) -> Rundprofil 50-Vario Sonderlänge exkl. Dichtung, (Stangenware) | O151: =N151*D151*C151/1000 -> 0
C152: 750 | D152: 0 | E152: =VLOOKUP("[Stk]",Sprachindex!$A:$Z,Haftungsausschluß!$O$6,FALSE) -> [Stk] | F152: =IF($L$14=1,Preisliste!$E$92,Preisliste!$F$92) -> H801610 | G152: =VLOOKUP("Rundprofil 80-Vario exkl. Dichtung, gebohrt und entgratet",Sprachindex!$A:$Z,Haftungsausschluß!$O$6,FALSE) -> Rundprofil 80-Vario exkl. Dichtung, gebohrt und entgratet | O152: =N152*D152 -> 0
C153: 1350 | D153: 0 | E153: =VLOOKUP("[Stk]",Sprachindex!$A:$Z,Haftungsausschluß!$O$6,FALSE) -> [Stk] | F153: =IF($L$14=1,Preisliste!$E$93,Preisliste!$F$93) -> H801611 | G153: =VLOOKUP("Rundprofil 80-Vario exkl. Dichtung, gebohrt und entgratet",Sprachindex!$A:$Z,Haftungsausschluß!$O$6,FALSE) -> Rundprofil 80-Vario exkl. Dichtung, gebohrt und entgratet | O153: =N153*D153 -> 0
C154: 1750 | D154: 0 | E154: =VLOOKUP("[Stk]",Sprachindex!$A:$Z,Haftungsausschluß!$O$6,FALSE) -> [Stk] | F154: =IF($L$14=1,Preisliste!$E$94,Preisliste!$F$94) -> H801612 | G154: =VLOOKUP("Rundprofil 80-Vario exkl. Dichtung, gebohrt und entgratet",Sprachindex!$A:$Z,Haftungsausschluß!$O$6,FALSE) -> Rundprofil 80-Vario exkl. Dichtung, gebohrt und entgratet | O154: 0
C155: 2150 | D155: 0 | E155: =VLOOKUP("[Stk]",Sprachindex!$A:$Z,Haftungsausschluß!$O$6,FALSE) -> [Stk] | F155: =IF($L$14=1,Preisliste!$E$95,Preisliste!$F$95) -> H801613 | G155: =VLOOKUP("Rundprofil 80-Vario exkl. Dichtung, gebohrt und entgratet",Sprachindex!$A:$Z,Haftungsausschluß!$O$6,FALSE) -> Rundprofil 80-Vario exkl. Dichtung, gebohrt und entgratet | O155: 0
C156: 3120 | D156: 0 | E156: =VLOOKUP("[Stk]",Sprachindex!$A:$Z,Haftungsausschluß!$O$6,FALSE) -> [Stk] | F156: =IF($L$14=1,Preisliste!$E$96,Preisliste!$F$96) -> 0 | G156: =VLOOKUP("Rundprofil 80-Vario Sonderlänge exkl. Dichtung, (Stangenware)",Sprachindex!$A:$Z,Haftungsausschluß!$O$6,FALSE) -> Rundprofil 80-Vario Sonderlänge exkl. Dichtung, (Stangenware) | O156: =N156*D156*C156/1000 -> 0
D157: =B157 -> 0 | E157: =VLOOKUP("[Stk]",Sprachindex!$A:$Z,Haftungsausschluß!$O$6,FALSE) -> [Stk] | F157: =IF($L$14=1,Preisliste!$E$98,Preisliste!$F$98) -> H001030 | G157: =VLOOKUP("Bodenhülse 50/80 beschichtet inkl. Aluminiumdeckel und Dichtung",Sprachindex!$A:$Z,Haftungsausschluß!$O$6,FALSE) -> Bodenhülse 50/80 beschichtet inkl. Aluminiumdeckel und Dichtung | O157: =N157*D157 -> 0
D158: =B158 -> 0 | E158: =VLOOKUP("[Stk]",Sprachindex!$A:$Z,Haftungsausschluß!$O$6,FALSE) -> [Stk] | F158: =IF($L$14=1,Preisliste!$E$99,Preisliste!$F$99) -> H001040 | G158: =VLOOKUP("Bodenhülse 50/80 beschichtet inkl. Edelstahldeckel und Dichtung",Sprachindex!$A:$Z,Haftungsausschluß!$O$6,FALSE) -> Bodenhülse 50/80 beschichtet inkl. Edelstahldeckel und Dichtung | O158: =N158*D158 -> 0
D159: 0 | E159: =VLOOKUP("[Stk]",Sprachindex!$A:$Z,Haftungsausschluß!$O$6,FALSE) -> [Stk] | F159: =IF($L$14=1,Preisliste!$E$101,Preisliste!$F$101) -> H001031 | G159: =VLOOKUP("Bodenhülse (GROSS) 50 Vario und 80 beschichtet inkl. Aluminiumdeckel und Dichtung",Sprachindex!$A:$Z,Haftungsausschluß!$O$6,FALSE) -> Bodenhülse (GROSS) 50 Vario und 80 beschichtet inkl. Aluminiumdeckel und Dichtung | O159: =N159*D159 -> 0
D160: 0 | E160: =VLOOKUP("[Stk]",Sprachindex!$A:$Z,Haftungsausschluß!$O$6,FALSE) -> [Stk] | F160: =IF($L$14=1,Preisliste!$E$102,Preisliste!$F$102) -> H001041 | G160: =VLOOKUP("Bodenhülse (GROSS) 50 Vario und 80 beschichtet inkl. Edelstahldeckel und Dichtung",Sprachindex!$A:$Z,Haftungsausschluß!$O$6,FALSE) -> Bodenhülse (GROSS) 50 Vario und 80 beschichtet inkl. Edelstahldeckel und Dichtung | O160: 0
C161: 750 | D161: 0 | E161: =VLOOKUP("[Stk]",Sprachindex!$A:$Z,Haftungsausschluß!$O$6,FALSE) -> [Stk] | F161: =IF($L$14=1,Preisliste!$E$104,Preisliste!$F$104) -> H501031 | G161: =VLOOKUP("Niederhalter inkl. Spannstück, Verbundanker und Gewindestange",Sprachindex!$A:$Z,Haftungsausschluß!$O$6,FALSE) -> Niederhalter inkl. Spannstück, Verbundanker und Gewindestange | O161: 0
C162: 1350 | D162: 0 | E162: =VLOOKUP("[Stk]",Sprachindex!$A:$Z,Haftungsausschluß!$O$6,FALSE) -> [Stk] | F162: =IF($L$14=1,Preisliste!$E$105,Preisliste!$F$105) -> H501041 | G162: =VLOOKUP("Niederhalter inkl. Spannstück, Verbundanker und Gewindestange",Sprachindex!$A:$Z,Haftungsausschluß!$O$6,FALSE) -> Niederhalter inkl. Spannstück, Verbundanker und Gewindestange | O162: 0
C163: 1750 | D163: 0 | E163: =VLOOKUP("[Stk]",Sprachindex!$A:$Z,Haftungsausschluß!$O$6,FALSE) -> [Stk] | F163: =IF($L$14=1,Preisliste!$E$106,Preisliste!$F$106) -> H501042 | G163: =VLOOKUP("Niederhalter inkl. Spannstück, Verbundanker und Gewindestange",Sprachindex!$A:$Z,Haftungsausschluß!$O$6,FALSE) -> Niederhalter inkl. Spannstück, Verbundanker und Gewindestange | O163: 0
B164: 2 | D164: 2 | E164: =VLOOKUP("[Stk]",Sprachindex!$A:$Z,Haftungsausschluß!$O$6,FALSE) -> [Stk] | F164: =IF($L$14=1,Preisliste!$E$109,Preisliste!$F$109) -> H001071 | G164: =VLOOKUP("Spannstück mit Sterngriff",Sprachindex!$A:$Z,Haftungsausschluß!$O$6,FALSE) -> Spannstück mit Sterngriff | N164: 97.15 | O164: =N164*D164 -> 194.3
D165: 0 | E165: =VLOOKUP("[Stk]",Sprachindex!$A:$Z,Haftungsausschluß!$O$6,FALSE) -> [Stk] | F165: =IF($L$14=1,Preisliste!$E$110,Preisliste!$F$110) -> H001061 | G165: =VLOOKUP("Spannstück mit 6-Kantschraube",Sprachindex!$A:$Z,Haftungsausschluß!$O$6,FALSE) -> Spannstück mit 6-Kantschraube | O165: =N165*D165 -> 0
D166: 0 | E166: =VLOOKUP("[lfm]",Sprachindex!$A:$Z,Haftungsausschluß!$O$6,FALSE) -> [lfm] | F166: =IF($L$14=1,Preisliste!$E$114,Preisliste!$F$114) -> H251900 | G166: =VLOOKUP("Bodendichtung 25",Sprachindex!$A:$Z,Haftungsausschluß!$O$6,FALSE) -> Bodendichtung 25 | O166: =N166*D166 -> 0
B167: 1 | D167: 1 | E167: =VLOOKUP("[lfm]",Sprachindex!$A:$Z,Haftungsausschluß!$O$6,FALSE) -> [lfm] | F167: =IF($L$14=1,Preisliste!$E$115,Preisliste!$F$115) -> H501901 | G167: =VLOOKUP("Bodendichtung 50",Sprachindex!$A:$Z,Haftungsausschluß!$O$6,FALSE) -> Bodendichtung 50 | N167: 27.5 | O167: =N167*D167 -> 27.5 | Q167: 86
D168: =B168 -> 0 | E168: =VLOOKUP("[lfm]",Sprachindex!$A:$Z,Haftungsausschluß!$O$6,FALSE) -> [lfm] | F168: =IF($L$14=1,Preisliste!$E$116,Preisliste!$F$116) -> H801901 | G168: =VLOOKUP("Bodendichtung 80",Sprachindex!$A:$Z,Haftungsausschluß!$O$6,FALSE) -> Bodendichtung 80 | O168: 0
D169: 0 | E169: =VLOOKUP("[VPE]",Sprachindex!$A:$Z,Haftungsausschluß!$O$6,FALSE) -> [VPE] | F169: =IF($L$14=1,Preisliste!$E$117,Preisliste!$F$117) -> H001080 | G169: =VLOOKUP("Dammbalkendichtung (50+80)",Sprachindex!$A:$Z,Haftungsausschluß!$O$6,FALSE) -> Dammbalkendichtung (50+80) | O169: 0
D170: 0 | E170: =VLOOKUP("[VPE]",Sprachindex!$A:$Z,Haftungsausschluß!$O$6,FALSE) -> [VPE] | F170: =IF($L$14=1,Preisliste!$E$118,Preisliste!$F$118) -> H251901 | G170: =VLOOKUP("Dammbalkendichtung (25)",Sprachindex!$A:$Z,Haftungsausschluß!$O$6,FALSE) -> Dammbalkendichtung (25) | O170: 0
B171: 1 | D171: 1 | E171: =VLOOKUP("[VPE]",Sprachindex!$A:$Z,Haftungsausschluß!$O$6,FALSE) -> [VPE] | F171: =IF($L$14=1,Preisliste!$E$119,Preisliste!$F$119) -> H001090 | G171: =VLOOKUP("Grundprofildichtung",Sprachindex!$A:$Z,Haftungsausschluß!$O$6,FALSE) -> Grundprofildichtung | N171: 62.1 | O171: 62.1 | Q171: 3000
D172: 0 | E172: =VLOOKUP("[lfm]",Sprachindex!$A:$Z,Haftungsausschluß!$O$6,FALSE) -> [lfm] | F172: =IF($L$14=1,Preisliste!$E$120,Preisliste!$F$120) -> H001081 | G172: =VLOOKUP("Dauerbodendichtung 50",Sprachindex!$A:$Z,Haftungsausschluß!$O$6,FALSE) -> Dauerbodendichtung 50 | O172: 0
D173: 0 | E173: =VLOOKUP("[lfm]",Sprachindex!$A:$Z,Haftungsausschluß!$O$6,FALSE) -> [lfm] | F173: =IF($L$14=1,Preisliste!$E$121,Preisliste!$F$121) -> H001082 | G173: =VLOOKUP("Dauerbodendichtung 80",Sprachindex!$A:$Z,Haftungsausschluß!$O$6,FALSE) -> Dauerbodendichtung 80 | O173: 0
C174: 750 | D174: 0 | E174: =VLOOKUP("[Stk]",Sprachindex!$A:$Z,Haftungsausschluß!$O$6,FALSE) -> [Stk] | F174: =IF($L$14=1,Preisliste!$E$123,Preisliste!$F$123) -> H251050 | G174: =VLOOKUP("Abdeckung VO 25, entgratet",Sprachindex!$A:$Z,Haftungsausschluß!$O$6,FALSE) & IF('Kalkulation 1'!AH35," " & H3,"") -> Abdeckung VO 25, entgratet | O174: 0
C175: 1350 | D175: 0 | E175: =VLOOKUP("[Stk]",Sprachindex!$A:$Z,Haftungsausschluß!$O$6,FALSE) -> [Stk] | F175: =IF($L$14=1,Preisliste!$E$124,Preisliste!$F$124) -> H251051 | G175: =VLOOKUP("Abdeckung VO 25, entgratet",Sprachindex!$A:$Z,Haftungsausschluß!$O$6,FALSE) & IF('Kalkulation 1'!AH35," " & H3,"") -> Abdeckung VO 25, entgratet | O175: =N175*D175 -> 0
C176: 750 | D176: 0 | E176: =VLOOKUP("[Stk]",Sprachindex!$A:$Z,Haftungsausschluß!$O$6,FALSE) -> [Stk] | F176: =IF($L$14=1,Preisliste!$E$126,Preisliste!$F$126) -> H501401 | G176: =VLOOKUP("Abdeckung VO 50, gebohrt und entgratet",Sprachindex!$A:$Z,Haftungsausschluß!$O$6,FALSE) & IF('Kalkulation 1'!AH35," " & H3,"") -> Abdeckung VO 50, gebohrt und entgratet | O176: 0
C177: 1350 | D177: 0 | E177: =VLOOKUP("[Stk]",Sprachindex!$A:$Z,Haftungsausschluß!$O$6,FALSE) -> [Stk] | F177: =IF($L$14=1,Preisliste!$E$127,Preisliste!$F$127) -> H501411 | G177: =VLOOKUP("Abdeckung VO 50, gebohrt und entgratet",Sprachindex!$A:$Z,Haftungsausschluß!$O$6,FALSE) & IF('Kalkulation 1'!AH35," " & H3,"") -> Abdeckung VO 50, gebohrt und entgratet | O177: 0
C178: 1750 | D178: 0 | E178: =VLOOKUP("[Stk]",Sprachindex!$A:$Z,Haftungsausschluß!$O$6,FALSE) -> [Stk] | F178: =IF($L$14=1,Preisliste!$E$128,Preisliste!$F$128) -> H501412 | G178: =VLOOKUP("Abdeckung VO 50, gebohrt und entgratet",Sprachindex!$A:$Z,Haftungsausschluß!$O$6,FALSE) & IF('Kalkulation 1'!AH35," " & H3,"") -> Abdeckung VO 50, gebohrt und entgratet | O178: 0
C179: 2150 | D179: 0 | E179: =VLOOKUP("[Stk]",Sprachindex!$A:$Z,Haftungsausschluß!$O$6,FALSE) -> [Stk] | F179: =IF($L$14=1,Preisliste!$E$129,Preisliste!$F$129) -> H501422 | G179: =VLOOKUP("Abdeckung VO 50, gebohrt und entgratet",Sprachindex!$A:$Z,Haftungsausschluß!$O$6,FALSE) & IF('Kalkulation 1'!AH35," " & H3,"") -> Abdeckung VO 50, gebohrt und entgratet | O179: 0
C180: 750 | D180: 0 | E180: =VLOOKUP("[Stk]",Sprachindex!$A:$Z,Haftungsausschluß!$O$6,FALSE) -> [Stk] | F180: =IF($L$14=1,Preisliste!$E$141,Preisliste!$F$141) -> H801401 | G180: =VLOOKUP("Abdeckung VO 80, gebohrt und entgratet",Sprachindex!$A:$Z,Haftungsausschluß!$O$6,FALSE) & IF('Kalkulation 1'!AH35," " & H3,"") -> Abdeckung VO 80, gebohrt und entgratet | O180: 0
C181: 1350 | D181: 0 | E181: =VLOOKUP("[Stk]",Sprachindex!$A:$Z,Haftungsausschluß!$O$6,FALSE) -> [Stk] | F181: =IF($L$14=1,Preisliste!$E$142,Preisliste!$F$142) -> H801411 | G181: =VLOOKUP("Abdeckung VO 80, gebohrt und entgratet",Sprachindex!$A:$Z,Haftungsausschluß!$O$6,FALSE) & IF('Kalkulation 1'!AH35," " & H3,"") -> Abdeckung VO 80, gebohrt und entgratet | O181: =N181*D181 -> 0
C182: 1750 | D182: 0 | E182: =VLOOKUP("[Stk]",Sprachindex!$A:$Z,Haftungsausschluß!$O$6,FALSE) -> [Stk] | F182: =IF($L$14=1,Preisliste!$E$143,Preisliste!$F$143) -> H801412 | G182: =VLOOKUP("Abdeckung VO 80, gebohrt und entgratet",Sprachindex!$A:$Z,Haftungsausschluß!$O$6,FALSE) & IF('Kalkulation 1'!AH35," " & H3,"") -> Abdeckung VO 80, gebohrt und entgratet | O182: 0
C183: 2150 | D183: 0 | E183: =VLOOKUP("[Stk]",Sprachindex!$A:$Z,Haftungsausschluß!$O$6,FALSE) -> [Stk] | F183: =IF($L$14=1,Preisliste!$E$144,Preisliste!$F$144) -> H801422 | G183: =VLOOKUP("Abdeckung VO 80, gebohrt und entgratet",Sprachindex!$A:$Z,Haftungsausschluß!$O$6,FALSE) & IF('Kalkulation 1'!AH35," " & H3,"") -> Abdeckung VO 80, gebohrt und entgratet | O183: 0
C184: 750 | D184: 0 | E184: =VLOOKUP("[Stk]",Sprachindex!$A:$Z,Haftungsausschluß!$O$6,FALSE) -> [Stk] | F184: =IF($L$14=1,Preisliste!$E$131,Preisliste!$F$131) -> H251040 | G184: =VLOOKUP("Abdeckung V 25, entgratet",Sprachindex!$A:$Z,Haftungsausschluß!$O$6,FALSE) & IF('Kalkulation 1'!AH35," " & H3,"") -> Abdeckung V 25, entgratet | O184: 0
C185: 1350 | D185: 0 | E185: =VLOOKUP("[Stk]",Sprachindex!$A:$Z,Haftungsausschluß!$O$6,FALSE) -> [Stk] | F185: =IF($L$14=1,Preisliste!$E$132,Preisliste!$F$132) -> H251041 | G185: =VLOOKUP("Abdeckung V 25, entgratet",Sprachindex!$A:$Z,Haftungsausschluß!$O$6,FALSE) & IF('Kalkulation 1'!AH35," " & H3,"") -> Abdeckung V 25, entgratet | O185: 0
C186: 750 | D186: 0 | E186: =VLOOKUP("[Stk]",Sprachindex!$A:$Z,Haftungsausschluß!$O$6,FALSE) -> [Stk] | F186: =IF($L$14=1,Preisliste!$E$135,Preisliste!$F$135) -> H501501 | G186: =VLOOKUP("Abdeckung V 50, gebohrt und entgratet",Sprachindex!$A:$Z,Haftungsausschluß!$O$6,FALSE) & IF('Kalkulation 1'!AH35," " & H3,"") -> Abdeckung V 50, gebohrt und entgratet | O186: 0
C187: 1350 | D187: 0 | E187: =VLOOKUP("[Stk]",Sprachindex!$A:$Z,Haftungsausschluß!$O$6,FALSE) -> [Stk] | F187: =IF($L$14=1,Preisliste!$E$136,Preisliste!$F$136) -> H501511 | G187: =VLOOKUP("Abdeckung V 50, gebohrt und entgratet",Sprachindex!$A:$Z,Haftungsausschluß!$O$6,FALSE) & IF('Kalkulation 1'!AH35," " & H3,"") -> Abdeckung V 50, gebohrt und entgratet | O187: =N187*D187 -> 0
C188: 1750 | D188: 0 | E188: =VLOOKUP("[Stk]",Sprachindex!$A:$Z,Haftungsausschluß!$O$6,FALSE) -> [Stk] | F188: =IF($L$14=1,Preisliste!$E$137,Preisliste!$F$137) -> H501512 | G188: =VLOOKUP("Abdeckung V 50, gebohrt und entgratet",Sprachindex!$A:$Z,Haftungsausschluß!$O$6,FALSE) & IF('Kalkulation 1'!AH35," " & H3,"") -> Abdeckung V 50, gebohrt und entgratet | O188: 0
C189: 2150 | D189: 0 | E189: =VLOOKUP("[Stk]",Sprachindex!$A:$Z,Haftungsausschluß!$O$6,FALSE) -> [Stk] | F189: =IF($L$14=1,Preisliste!$E$138,Preisliste!$F$138) -> H501522 | G189: =VLOOKUP("Abdeckung V 50, gebohrt und entgratet",Sprachindex!$A:$Z,Haftungsausschluß!$O$6,FALSE) & IF('Kalkulation 1'!AH35," " & H3,"") -> Abdeckung V 50, gebohrt und entgratet | O189: 0
C190: 750 | D190: 0 | E190: =VLOOKUP("[Stk]",Sprachindex!$A:$Z,Haftungsausschluß!$O$6,FALSE) -> [Stk] | F190: =IF($L$14=1,Preisliste!$E$146,Preisliste!$F$146) -> H801501 | G190: =VLOOKUP("Abdeckung V 80, gebohrt und entgratet",Sprachindex!$A:$Z,Haftungsausschluß!$O$6,FALSE) & IF('Kalkulation 1'!AH35," " & H3,"") -> Abdeckung V 80, gebohrt und entgratet | O190: 0
C191: 1350 | D191: 0 | E191: =VLOOKUP("[Stk]",Sprachindex!$A:$Z,Haftungsausschluß!$O$6,FALSE) -> [Stk] | F191: =IF($L$14=1,Preisliste!$E$147,Preisliste!$F$147) -> H801511 | G191: =VLOOKUP("Abdeckung V 80, gebohrt und entgratet",Sprachindex!$A:$Z,Haftungsausschluß!$O$6,FALSE) & IF('Kalkulation 1'!AH35," " & H3,"") -> Abdeckung V 80, gebohrt und entgratet | O191: =N191*D191 -> 0
C192: 1750 | D192: 0 | E192: =VLOOKUP("[Stk]",Sprachindex!$A:$Z,Haftungsausschluß!$O$6,FALSE) -> [Stk] | F192: =IF($L$14=1,Preisliste!$E$148,Preisliste!$F$148) -> H801512 | G192: =VLOOKUP("Abdeckung V 80, gebohrt und entgratet",Sprachindex!$A:$Z,Haftungsausschluß!$O$6,FALSE) & IF('Kalkulation 1'!AH35," " & H3,"") -> Abdeckung V 80, gebohrt und entgratet | O192: 0
C193: 2150 | D193: 0 | E193: =VLOOKUP("[Stk]",Sprachindex!$A:$Z,Haftungsausschluß!$O$6,FALSE) -> [Stk] | F193: =IF($L$14=1,Preisliste!$E$149,Preisliste!$F$149) -> H801522 | G193: =VLOOKUP("Abdeckung V 80, gebohrt und entgratet",Sprachindex!$A:$Z,Haftungsausschluß!$O$6,FALSE) & IF('Kalkulation 1'!AH35," " & H3,"") -> Abdeckung V 80, gebohrt und entgratet | O193: 0
D194: 0 | E194: =VLOOKUP("[Stk]",Sprachindex!$A:$Z,Haftungsausschluß!$O$6,FALSE) -> [Stk] | F194: =IF($L$14=1,Preisliste!$E$152,Preisliste!$F$152) -> H001010 | G194: =VLOOKUP("Sicherungsschraube für Abdeckung",Sprachindex!$A:$Z,Haftungsausschluß!$O$6,FALSE) -> Sicherungsschraube für Abdeckung | O194: 0
D195: 0 | E195: =VLOOKUP("[Paar]",Sprachindex!$A:$Z,Haftungsausschluß!$O$6,FALSE) -> [Paar] | F195: =IF($L$14=1,Preisliste!$E$154,Preisliste!$F$154) -> H001020 | G195: =VLOOKUP("Halterung für Dammbalken",Sprachindex!$A:$Z,Haftungsausschluß!$O$6,FALSE) -> Halterung für Dammbalken | O195: =N195*D195 -> 0
D196: 0 | E196: =VLOOKUP("[Stk]",Sprachindex!$A:$Z,Haftungsausschluß!$O$6,FALSE) -> [Stk] | F196: =IF($L$14=1,Preisliste!$E$155,Preisliste!$F$155) -> H002010 | G196: =VLOOKUP("Lagerabdeckung (Mittelteil)",Sprachindex!$A:$Z,Haftungsausschluß!$O$6,FALSE) & IF('Kalkulation 1'!AH36," " & H3,"") -> Lagerabdeckung (Mittelteil) | O196: 0
D197: =B197 -> 0 | E197: =VLOOKUP("[lfm]",Sprachindex!$A:$Z,Haftungsausschluß!$O$6,FALSE) -> [lfm] | F197: =IF($L$14=1,Preisliste!$E$113,Preisliste!$F$113) -> H001083 | G197: =VLOOKUP("Dauerbodendichtung 25",Sprachindex!$A:$Z,Haftungsausschluß!$O$6,FALSE) -> Dauerbodendichtung 25 | O197: 0
D198: 0 | E198: =VLOOKUP("[Stk]",Sprachindex!$A:$Z,Haftungsausschluß!$O$6,FALSE) -> [Stk] | F198: =IF($L$14=1,Preisliste!$E$156,Preisliste!$F$156) -> H002011 | G198: =VLOOKUP("Lagerabdeckung (Seitenteil)",Sprachindex!$A:$Z,Haftungsausschluß!$O$6,FALSE) & IF('Kalkulation 1'!AH36," " & H3,"") -> Lagerabdeckung (Seitenteil) | O198: 0
D199: 0 | E199: =VLOOKUP("[Stk]",Sprachindex!$A:$Z,Haftungsausschluß!$O$6,FALSE) -> [Stk] | F199: =IF($L$14=1,Preisliste!$E$162,Preisliste!$F$162) -> H001101 | G199: =VLOOKUP("Hebehilfe für Bodenhülsendeckel",Sprachindex!$A:$Z,Haftungsausschluß!$O$6,FALSE) -> Hebehilfe für Bodenhülsendeckel | O199: =N199*D199 -> 0
D200: 0 | E200: =VLOOKUP("[Stk]",Sprachindex!$A:$Z,Haftungsausschluß!$O$6,FALSE) -> [Stk] | F200: =IF($L$14=1,Preisliste!$E$165,Preisliste!$F$165) -> - | G200: =VLOOKUP("Aufpreis Ausfräsung Wandprofil für Dammbalken",Sprachindex!$A:$Z,Haftungsausschluß!$O$6,FALSE) -> Aufpreis Ausfräsung Wandprofil für Dammbalken | O200: =N200*D200 -> 0
D201: 0 | E201: =VLOOKUP("[Stk]",Sprachindex!$A:$Z,Haftungsausschluß!$O$6,FALSE) -> [Stk] | F201: =IF($L$14=1,Preisliste!$E$166,Preisliste!$F$166) -> - | G201: =VLOOKUP("Aufpreis Längenänderung Wandprofil",Sprachindex!$A:$Z,Haftungsausschluß!$O$6,FALSE) -> Aufpreis Längenänderung Wandprofil | O201: =N201*D201 -> 0
D202: 0 | E202: =VLOOKUP("[Stk]",Sprachindex!$A:$Z,Haftungsausschluß!$O$6,FALSE) -> [Stk] | F202: =IF($L$14=1,Preisliste!$E$167,Preisliste!$F$167) -> - | G202: =VLOOKUP("Aufpreis Verankerung aufgeschweißt (a 300mm)",Sprachindex!$A:$Z,Haftungsausschluß!$O$6,FALSE) -> Aufpreis Verankerung aufgeschweißt (a 300mm) | O202: =N202*D202 -> 0
... 73 more rows

Sheet HWS-Stückliste-Kalk-Komplett (hidden)
G4: =VLOOKUP("Service:",Sprachindex!A:Z,Haftungsausschluß!$O$6,FALSE) -> Service: | H4: =IF('Kalkulation 1'!AO17=1,VLOOKUP("Mengenermittlung/Anfrage",Sprachindex!A:Z,Haftungsausschluß!$O$6,FALSE),VLOOKUP("Bestellung",Sprachindex!A:Z,Haftungsausschluß!$O$6,FALSE)) -> Bestellung | M4: =VLOOKUP("Datum:",Sprachindex!A:Z,Haftungsausschluß!$O$6,FALSE) -> Datum: | N4: =TODAY() -> 2022-08-16 | P4: =VLOOKUP("Preis",Sprachindex!A:Z,Haftungsausschluß!$O$6,FALSE) -> Preis | Q4: 1 | R4: Preis
D5: =VLOOKUP("Firma / Besteller:",Sprachindex!A:Z,Haftungsausschluß!$O$6,FALSE) -> Firma / Besteller: | P5: =VLOOKUP("exkl. MwSt.",Sprachindex!A:Z,Haftungsausschluß!$O$6,FALSE) -> exkl. MwSt. | Q5: ='Kalkulation 1'!AP17 -> 1 | R5: Beschichtung
C6: =VLOOKUP("Name:",Sprachindex!A:Z,Haftungsausschluß!$O$6,FALSE) -> Name: | D6: ='Kalkulation 1'!E5 ->  | G6: =VLOOKUP("Farbe:",Sprachindex!A:Z,Haftungsausschluß!$O$6,FALSE) -> Farbe: | H6: =IF('Kalkulation 1'!AP17=1,VLOOKUP("blank",Sprachindex!A:Z,Haftungsausschluß!$O$6,FALSE),VLOOKUP("beschichtet",Sprachindex!A:Z,Haftungsausschluß!$O$6,FALSE) & ": " & 'Kalkulation 1'!R9) -> blank | P6: =VLOOKUP("inkl. MwSt.",Sprachindex!A:Z,Haftungsausschluß!$O$6,FALSE) -> inkl. MwSt. | Q6: 0 | R6: Besch.Pauschale händisch zum Testen definiert
C7: =VLOOKUP("Straße:",Sprachindex!A:Z,Haftungsausschluß!$O$6,FALSE) -> Straße: | D7: ='Kalkulation 1'!E6 ->  | H7: - Lagerabdeckung | M7: =VLOOKUP("Telefon:",Sprachindex!A:Z,Haftungsausschluß!$O$6,FALSE) -> Telefon: | N7: ='Kalkulation 1'!E8 ->  | Q7: =SUM(O16:O668) -> 0 | R7: Summe aller Positionen
C8: =VLOOKUP("Ort:",Sprachindex!A:Z,Haftungsausschluß!$O$6,FALSE) -> Ort: | D8: ='Kalkulation 1'!E7 ->  | M8: =VLOOKUP("eMail:",Sprachindex!A:Z,Haftungsausschluß!$O$6,FALSE) -> eMail: | N8: ='Kalkulation 1'!E9 -> 
P10: =IF(Haftungsausschluß!L21=1,VLOOKUP("Rabatt",Sprachindex!A:Z,Haftungsausschluß!$O$6,FALSE),"") -> Rabatt
M11: =VLOOKUP("Bearbeiter:",Sprachindex!A:Z,Haftungsausschluß!$O$6,FALSE) -> Bearbeiter: | N11: ='Kalkulation 1'!R4 ->  | P11: =P12+P13 -> -10
P12: =IF(O669<1000,-10,-14) -> -10
P13: =IF('HWS Experten'!C29=1,-4,0) -> 0
B14: =VLOOKUP("Filter:",Sprachindex!A:Z,Haftungsausschluß!$O$6,FALSE) -> Filter:
B15: =VLOOKUP("Stück",Sprachindex!A:Z,Haftungsausschluß!$O$6,FALSE) -> Stück | C15: =VLOOKUP("Länge",Sprachindex!A:Z,Haftungsausschluß!$O$6,FALSE) -> Länge | D15: =VLOOKUP("Gesamt Länge",Sprachindex!A:Z,Haftungsausschluß!$O$6,FALSE) -> Gesamt Länge | E15: =VLOOKUP("Einheit",Sprachindex!A:Z,Haftungsausschluß!$O$6,FALSE) -> Einheit | F15: =VLOOKUP("Artikel Nr.",Sprachindex!A:Z,Haftungsausschluß!$O$6,FALSE) -> Artikel Nr. | G15: =VLOOKUP("Bezeichnung",Sprachindex!A:Z,Haftungsausschluß!$O$6,FALSE) -> Bezeichnung | N15: =VLOOKUP("Preis pro lfm od. Stk",Sprachindex!A:Z,Haftungsausschluß!$O$6,FALSE) -> Preis pro lfm od. Stk | O15: =VLOOKUP("Preis exkl.MwSt",Sprachindex!A:Z,Haftungsausschluß!$O$6,FALSE) -> Preis exkl.MwSt | Q15: 25/200 | S15: 50/150 | U15: 50/200 | W15: 80/200
C16: 0 | D16: =B16*C16/1000 -> 0 | E16: =VLOOKUP("[m]",Sprachindex!$A:$Z,Haftungsausschluß!$O$6,FALSE) -> [m] | F16: =IF($L$14=1,Preisliste!$E$7,Preisliste!$F$7) -> H251000 | G16: =VLOOKUP("Dammbalken 25/200 exkl. Dichtung, gesägt und entgratet",Sprachindex!$A:$Z,Haftungsausschluß!$O$6,FALSE) & " (" & ROUNDUP(C16/1000*2.99,2) & " " & VLOOKUP("kg/Stk",Sprachindex!$A:$Z,Haftungsausschluß!$O$6,FALSE) & ")" & IF('Kalkulation 1'!$AH$33," " & 'Kalkulation 1'!$R$9,"") -> Dammbalken 25/200 exkl. Dichtung, gesägt und entgratet (0 kg/Stk) | O16: =N16*D16 -> 0 | Q16: Länge | R16: Stk | S16: Länge | T16: Stk | U16: Länge | V16: Stk | W16: Länge | X16: Stk | AA16: 25/200 | AD16: 50/150 | AG16: 50/200 | AJ16: 80/200
C17: 0 | D17: =B17*C17/1000 -> 0 | E17: =VLOOKUP("[m]",Sprachindex!$A:$Z,Haftungsausschluß!$O$6,FALSE) -> [m] | F17: =IF($L$14=1,Preisliste!$E$7,Preisliste!$F$7) -> H251000 | G17: =VLOOKUP("Dammbalken 25/200 exkl. Dichtung, gesägt und entgratet",Sprachindex!$A:$Z,Haftungsausschluß!$O$6,FALSE) & " (" & ROUNDUP(C17/1000*2.99,2) & " " & VLOOKUP("kg/Stk",Sprachindex!$A:$Z,Haftungsausschluß!$O$6,FALSE) & ")" & IF('Kalkulation 1'!$AH$33," " & 'Kalkulation 1'!$R$9,"") -> Dammbalken 25/200 exkl. Dichtung, gesägt und entgratet (0 kg/Stk) | O17: =N17*D17 -> 0 | U17: 1086 | V17: 5 | AA17: Zeilenbeschriftungen | AB17: Summe von Stk | AD17: Zeilenbeschriftungen | AE17: Summe von Stk | AG17: Zeilenbeschriftungen | AH17: Summe von Stk | AJ17: Zeilenbeschriftungen | AK17: Summe von Stk
C18: 0 | D18: =B18*C18/1000 -> 0 | E18: =VLOOKUP("[m]",Sprachindex!$A:$Z,Haftungsausschluß!$O$6,FALSE) -> [m] | F18: =IF($L$14=1,Preisliste!$E$7,Preisliste!$F$7) -> H251000 | G18: =VLOOKUP("Dammbalken 25/200 exkl. Dichtung, gesägt und entgratet",Sprachindex!$A:$Z,Haftungsausschluß!$O$6,FALSE) & " (" & ROUNDUP(C18/1000*2.99,2) & " " & VLOOKUP("kg/Stk",Sprachindex!$A:$Z,Haftungsausschluß!$O$6,FALSE) & ")" & IF('Kalkulation 1'!$AH$33," " & 'Kalkulation 1'!$R$9,"") -> Dammbalken 25/200 exkl. Dichtung, gesägt und entgratet (0 kg/Stk) | O18: =N18*D18 -> 0 | AA18: (Leer) | AD18: (Leer) | AG18: (Leer) | AJ18: (Leer)
C19: 0 | D19: 0 | E19: =VLOOKUP("[m]",Sprachindex!$A:$Z,Haftungsausschluß!$O$6,FALSE) -> [m] | F19: =IF($L$14=1,Preisliste!$E$7,Preisliste!$F$7) -> H251000 | G19: =VLOOKUP("Dammbalken 25/200 exkl. Dichtung, gesägt und entgratet",Sprachindex!$A:$Z,Haftungsausschluß!$O$6,FALSE) & " (" & ROUNDUP(C19/1000*2.99,2) & " " & VLOOKUP("kg/Stk",Sprachindex!$A:$Z,Haftungsausschluß!$O$6,FALSE) & ")" & IF('Kalkulation 1'!$AH$33," " & 'Kalkulation 1'!$R$9,"") -> Dammbalken 25/200 exkl. Dichtung, gesägt und entgratet (0 kg/Stk) | O19: 0 | AG19: 1086 | AH19: 5
C20: 0 | D20: 0 | E20: =VLOOKUP("[m]",Sprachindex!$A:$Z,Haftungsausschluß!$O$6,FALSE) -> [m] | F20: =IF($L$14=1,Preisliste!$E$7,Preisliste!$F$7) -> H251000 | G20: =VLOOKUP("Dammbalken 25/200 exkl. Dichtung, gesägt und entgratet",Sprachindex!$A:$Z,Haftungsausschluß!$O$6,FALSE) & " (" & ROUNDUP(C20/1000*2.99,2) & " " & VLOOKUP("kg/Stk",Sprachindex!$A:$Z,Haftungsausschluß!$O$6,FALSE) & ")" & IF('Kalkulation 1'!$AH$33," " & 'Kalkulation 1'!$R$9,"") -> Dammbalken 25/200 exkl. Dichtung, gesägt und entgratet (0 kg/Stk) | O20: 0
C21: 0 | D21: 0 | E21: =VLOOKUP("[m]",Sprachindex!$A:$Z,Haftungsausschluß!$O$6,FALSE) -> [m] | F21: =IF($L$14=1,Preisliste!$E$7,Preisliste!$F$7) -> H251000 | G21: =VLOOKUP("Dammbalken 25/200 exkl. Dichtung, gesägt und entgratet",Sprachindex!$A:$Z,Haftungsausschluß!$O$6,FALSE) & " (" & ROUNDUP(C21/1000*2.99,2) & " " & VLOOKUP("kg/Stk",Sprachindex!$A:$Z,Haftungsausschluß!$O$6,FALSE) & ")" & IF('Kalkulation 1'!$AH$33," " & 'Kalkulation 1'!$R$9,"") -> Dammbalken 25/200 exkl. Dichtung, gesägt und entgratet (0 kg/Stk) | O21: 0
C22: 0 | D22: 0 | E22: =VLOOKUP("[m]",Sprachindex!$A:$Z,Haftungsausschluß!$O$6,FALSE) -> [m] | F22: =IF($L$14=1,Preisliste!$E$7,Preisliste!$F$7) -> H251000 | G22: =VLOOKUP("Dammbalken 25/200 exkl. Dichtung, gesägt und entgratet",Sprachindex!$A:$Z,Haftungsausschluß!$O$6,FALSE) & " (" & ROUNDUP(C22/1000*2.99,2) & " " & VLOOKUP("kg/Stk",Sprachindex!$A:$Z,Haftungsausschluß!$O$6,FALSE) & ")" & IF('Kalkulation 1'!$AH$33," " & 'Kalkulation 1'!$R$9,"") -> Dammbalken 25/200 exkl. Dichtung, gesägt und entgratet (0 kg/Stk) | O22: 0
C23: 0 | D23: 0 | E23: =VLOOKUP("[m]",Sprachindex!$A:$Z,Haftungsausschluß!$O$6,FALSE) -> [m] | F23: =IF($L$14=1,Preisliste!$E$7,Preisliste!$F$7) -> H251000 | G23: =VLOOKUP("Dammbalken 25/200 exkl. Dichtung, gesägt und entgratet",Sprachindex!$A:$Z,Haftungsausschluß!$O$6,FALSE) & " (" & ROUNDUP(C23/1000*2.99,2) & " " & VLOOKUP("kg/Stk",Sprachindex!$A:$Z,Haftungsausschluß!$O$6,FALSE) & ")" & IF('Kalkulation 1'!$AH$33," " & 'Kalkulation 1'!$R$9,"") -> Dammbalken 25/200 exkl. Dichtung, gesägt und entgratet (0 kg/Stk) | O23: 0
C24: 0 | D24: 0 | E24: =VLOOKUP("[m]",Sprachindex!$A:$Z,Haftungsausschluß!$O$6,FALSE) -> [m] | F24: =IF($L$14=1,Preisliste!$E$7,Preisliste!$F$7) -> H251000 | G24: =VLOOKUP("Dammbalken 25/200 exkl. Dichtung, gesägt und entgratet",Sprachindex!$A:$Z,Haftungsausschluß!$O$6,FALSE) & " (" & ROUNDUP(C24/1000*2.99,2) & " " & VLOOKUP("kg/Stk",Sprachindex!$A:$Z,Haftungsausschluß!$O$6,FALSE) & ")" & IF('Kalkulation 1'!$AH$33," " & 'Kalkulation 1'!$R$9,"") -> Dammbalken 25/200 exkl. Dichtung, gesägt und entgratet (0 kg/Stk) | O24: 0
C25: 0 | D25: 0 | E25: =VLOOKUP("[m]",Sprachindex!$A:$Z,Haftungsausschluß!$O$6,FALSE) -> [m] | F25: =IF($L$14=1,Preisliste!$E$7,Preisliste!$F$7) -> H251000 | G25: =VLOOKUP("Dammbalken 25/200 exkl. Dichtung, gesägt und entgratet",Sprachindex!$A:$Z,Haftungsausschluß!$O$6,FALSE) & " (" & ROUNDUP(C25/1000*2.99,2) & " " & VLOOKUP("kg/Stk",Sprachindex!$A:$Z,Haftungsausschluß!$O$6,FALSE) & ")" & IF('Kalkulation 1'!$AH$33," " & 'Kalkulation 1'!$R$9,"") -> Dammbalken 25/200 exkl. Dichtung, gesägt und entgratet (0 kg/Stk) | O25: 0
C26: 0 | D26: 0 | E26: =VLOOKUP("[m]",Sprachindex!$A:$Z,Haftungsausschluß!$O$6,FALSE) -> [m] | F26: =IF($L$14=1,Preisliste!$E$7,Preisliste!$F$7) -> H251000 | G26: =VLOOKUP("Dammbalken 25/200 exkl. Dichtung, gesägt und entgratet",Sprachindex!$A:$Z,Haftungsausschluß!$O$6,FALSE) & " (" & ROUNDUP(C26/1000*2.99,2) & " " & VLOOKUP("kg/Stk",Sprachindex!$A:$Z,Haftungsausschluß!$O$6,FALSE) & ")" & IF('Kalkulation 1'!$AH$33," " & 'Kalkulation 1'!$R$9,"") -> Dammbalken 25/200 exkl. Dichtung, gesägt und entgratet (0 kg/Stk) | O26: 0
C27: 0 | D27: 0 | E27: =VLOOKUP("[m]",Sprachindex!$A:$Z,Haftungsausschluß!$O$6,FALSE) -> [m] | F27: =IF($L$14=1,Preisliste!$E$7,Preisliste!$F$7) -> H251000 | G27: =VLOOKUP("Dammbalken 25/200 exkl. Dichtung, gesägt und entgratet",Sprachindex!$A:$Z,Haftungsausschluß!$O$6,FALSE) & " (" & ROUNDUP(C27/1000*2.99,2) & " " & VLOOKUP("kg/Stk",Sprachindex!$A:$Z,Haftungsausschluß!$O$6,FALSE) & ")" & IF('Kalkulation 1'!$AH$33," " & 'Kalkulation 1'!$R$9,"") -> Dammbalken 25/200 exkl. Dichtung, gesägt und entgratet (0 kg/Stk) | O27: 0
C28: 0 | D28: 0 | E28: =VLOOKUP("[m]",Sprachindex!$A:$Z,Haftungsausschluß!$O$6,FALSE) -> [m] | F28: =IF($L$14=1,Preisliste!$E$7,Preisliste!$F$7) -> H251000 | G28: =VLOOKUP("Dammbalken 25/200 exkl. Dichtung, gesägt und entgratet",Sprachindex!$A:$Z,Haftungsausschluß!$O$6,FALSE) & " (" & ROUNDUP(C28/1000*2.99,2) & " " & VLOOKUP("kg/Stk",Sprachindex!$A:$Z,Haftungsausschluß!$O$6,FALSE) & ")" & IF('Kalkulation 1'!$AH$33," " & 'Kalkulation 1'!$R$9,"") -> Dammbalken 25/200 exkl. Dichtung, gesägt und entgratet (0 kg/Stk) | O28: 0
C29: 0 | D29: 0 | E29: =VLOOKUP("[m]",Sprachindex!$A:$Z,Haftungsausschluß!$O$6,FALSE) -> [m] | F29: =IF($L$14=1,Preisliste!$E$7,Preisliste!$F$7) -> H251000 | G29: =VLOOKUP("Dammbalken 25/200 exkl. Dichtung, gesägt und entgratet",Sprachindex!$A:$Z,Haftungsausschluß!$O$6,FALSE) & " (" & ROUNDUP(C29/1000*2.99,2) & " " & VLOOKUP("kg/Stk",Sprachindex!$A:$Z,Haftungsausschluß!$O$6,FALSE) & ")" & IF('Kalkulation 1'!$AH$33," " & 'Kalkulation 1'!$R$9,"") -> Dammbalken 25/200 exkl. Dichtung, gesägt und entgratet (0 kg/Stk) | O29: 0
C30: 0 | D30: 0 | E30: =VLOOKUP("[m]",Sprachindex!$A:$Z,Haftungsausschluß!$O$6,FALSE) -> [m] | F30: =IF($L$14=1,Preisliste!$E$7,Preisliste!$F$7) -> H251000 | G30: =VLOOKUP("Dammbalken 25/200 exkl. Dichtung, gesägt und entgratet",Sprachindex!$A:$Z,Haftungsausschluß!$O$6,FALSE) & " (" & ROUNDUP(C30/1000*2.99,2) & " " & VLOOKUP("kg/Stk",Sprachindex!$A:$Z,Haftungsausschluß!$O$6,FALSE) & ")" & IF('Kalkulation 1'!$AH$33," " & 'Kalkulation 1'!$R$9,"") -> Dammbalken 25/200 exkl. Dichtung, gesägt und entgratet (0 kg/Stk) | O30: 0
C31: 0 | D31: 0 | E31: =VLOOKUP("[m]",Sprachindex!$A:$Z,Haftungsausschluß!$O$6,FALSE) -> [m] | F31: =IF($L$14=1,Preisliste!$E$7,Preisliste!$F$7) -> H251000 | G31: =VLOOKUP("Dammbalken 25/200 exkl. Dichtung, gesägt und entgratet",Sprachindex!$A:$Z,Haftungsausschluß!$O$6,FALSE) & " (" & ROUNDUP(C31/1000*2.99,2) & " " & VLOOKUP("kg/Stk",Sprachindex!$A:$Z,Haftungsausschluß!$O$6,FALSE) & ")" & IF('Kalkulation 1'!$AH$33," " & 'Kalkulation 1'!$R$9,"") -> Dammbalken 25/200 exkl. Dichtung, gesägt und entgratet (0 kg/Stk) | O31: 0
C32: 0 | D32: 0 | E32: =VLOOKUP("[m]",Sprachindex!$A:$Z,Haftungsausschluß!$O$6,FALSE) -> [m] | F32: =IF($L$14=1,Preisliste!$E$7,Preisliste!$F$7) -> H251000 | G32: =VLOOKUP("Dammbalken 25/200 exkl. Dichtung, gesägt und entgratet",Sprachindex!$A:$Z,Haftungsausschluß!$O$6,FALSE) & " (" & ROUNDUP(C32/1000*2.99,2) & " " & VLOOKUP("kg/Stk",Sprachindex!$A:$Z,Haftungsausschluß!$O$6,FALSE) & ")" & IF('Kalkulation 1'!$AH$33," " & 'Kalkulation 1'!$R$9,"") -> Dammbalken 25/200 exkl. Dichtung, gesägt und entgratet (0 kg/Stk) | O32: 0
C33: 0 | D33: 0 | E33: =VLOOKUP("[m]",Sprachindex!$A:$Z,Haftungsausschluß!$O$6,FALSE) -> [m] | F33: =IF($L$14=1,Preisliste!$E$7,Preisliste!$F$7) -> H251000 | G33: =VLOOKUP("Dammbalken 25/200 exkl. Dichtung, gesägt und entgratet",Sprachindex!$A:$Z,Haftungsausschluß!$O$6,FALSE) & " (" & ROUNDUP(C33/1000*2.99,2) & " " & VLOOKUP("kg/Stk",Sprachindex!$A:$Z,Haftungsausschluß!$O$6,FALSE) & ")" & IF('Kalkulation 1'!$AH$33," " & 'Kalkulation 1'!$R$9,"") -> Dammbalken 25/200 exkl. Dichtung, gesägt und entgratet (0 kg/Stk) | O33: 0
C34: 0 | D34: 0 | E34: =VLOOKUP("[m]",Sprachindex!$A:$Z,Haftungsausschluß!$O$6,FALSE) -> [m] | F34: =IF($L$14=1,Preisliste!$E$7,Preisliste!$F$7) -> H251000 | G34: =VLOOKUP("Dammbalken 25/200 exkl. Dichtung, gesägt und entgratet",Sprachindex!$A:$Z,Haftungsausschluß!$O$6,FALSE) & " (" & ROUNDUP(C34/1000*2.99,2) & " " & VLOOKUP("kg/Stk",Sprachindex!$A:$Z,Haftungsausschluß!$O$6,FALSE) & ")" & IF('Kalkulation 1'!$AH$33," " & 'Kalkulation 1'!$R$9,"") -> Dammbalken 25/200 exkl. Dichtung, gesägt und entgratet (0 kg/Stk) | O34: 0
C35: 0 | D35: 0 | E35: =VLOOKUP("[m]",Sprachindex!$A:$Z,Haftungsausschluß!$O$6,FALSE) -> [m] | F35: =IF($L$14=1,Preisliste!$E$7,Preisliste!$F$7) -> H251000 | G35: =VLOOKUP("Dammbalken 25/200 exkl. Dichtung, gesägt und entgratet",Sprachindex!$A:$Z,Haftungsausschluß!$O$6,FALSE) & " (" & ROUNDUP(C35/1000*2.99,2) & " " & VLOOKUP("kg/Stk",Sprachindex!$A:$Z,Haftungsausschluß!$O$6,FALSE) & ")" & IF('Kalkulation 1'!$AH$33," " & 'Kalkulation 1'!$R$9,"") -> Dammbalken 25/200 exkl. Dichtung, gesägt und entgratet (0 kg/Stk) | O35: 0
C36: 2950 | D36: 0 | E36: =VLOOKUP("[m]",Sprachindex!$A:$Z,Haftungsausschluß!$O$6,FALSE) -> [m] | F36: =IF($L$14=1,Preisliste!$E$10,Preisliste!$F$10) -> H501000 | G36: =VLOOKUP("Dammbalken 50/150 exkl. Dichtung, gesägt und entgratet",Sprachindex!$A:$Z,Haftungsausschluß!$O$6,FALSE) & " (" & ROUNDUP(C36/1000*5.62,2) & " " & VLOOKUP("kg/Stk",Sprachindex!$A:$Z,Haftungsausschluß!$O$6,FALSE) & ")" & IF('Kalkulation 1'!$AH$33," " & 'Kalkulation 1'!$R$9,"") -> Dammbalken 50/150 exkl. Dichtung, gesägt und entgratet (16.58 kg/Stk) | O36: 0
C37: 1950 | D37: 0 | E37: =VLOOKUP("[m]",Sprachindex!$A:$Z,Haftungsausschluß!$O$6,FALSE) -> [m] | F37: =IF($L$14=1,Preisliste!$E$10,Preisliste!$F$10) -> H501000 | G37: =VLOOKUP("Dammbalken 50/150 exkl. Dichtung, gesägt und entgratet",Sprachindex!$A:$Z,Haftungsausschluß!$O$6,FALSE) & " (" & ROUNDUP(C37/1000*5.62,2) & " " & VLOOKUP("kg/Stk",Sprachindex!$A:$Z,Haftungsausschluß!$O$6,FALSE) & ")" & IF('Kalkulation 1'!$AH$33," " & 'Kalkulation 1'!$R$9,"") -> Dammbalken 50/150 exkl. Dichtung, gesägt und entgratet (10.96 kg/Stk) | O37: 0
C38: 1015 | D38: 0 | E38: =VLOOKUP("[m]",Sprachindex!$A:$Z,Haftungsausschluß!$O$6,FALSE) -> [m] | F38: =IF($L$14=1,Preisliste!$E$10,Preisliste!$F$10) -> H501000 | G38: =VLOOKUP("Dammbalken 50/150 exkl. Dichtung, gesägt und entgratet",Sprachindex!$A:$Z,Haftungsausschluß!$O$6,FALSE) & " (" & ROUNDUP(C38/1000*5.62,2) & " " & VLOOKUP("kg/Stk",Sprachindex!$A:$Z,Haftungsausschluß!$O$6,FALSE) & ")" & IF('Kalkulation 1'!$AH$33," " & 'Kalkulation 1'!$R$9,"") -> Dammbalken 50/150 exkl. Dichtung, gesägt und entgratet (5.71 kg/Stk) | O38: 0
C39: 376 | D39: 0 | E39: =VLOOKUP("[m]",Sprachindex!$A:$Z,Haftungsausschluß!$O$6,FALSE) -> [m] | F39: =IF($L$14=1,Preisliste!$E$10,Preisliste!$F$10) -> H501000 | G39: =VLOOKUP("Dammbalken 50/150 exkl. Dichtung, gesägt und entgratet",Sprachindex!$A:$Z,Haftungsausschluß!$O$6,FALSE) & " (" & ROUNDUP(C39/1000*5.62,2) & " " & VLOOKUP("kg/Stk",Sprachindex!$A:$Z,Haftungsausschluß!$O$6,FALSE) & ")" & IF('Kalkulation 1'!$AH$33," " & 'Kalkulation 1'!$R$9,"") -> Dammbalken 50/150 exkl. Dichtung, gesägt und entgratet (2.12 kg/Stk) | O39: 0
C40: 0 | D40: 0 | E40: =VLOOKUP("[m]",Sprachindex!$A:$Z,Haftungsausschluß!$O$6,FALSE) -> [m] | F40: =IF($L$14=1,Preisliste!$E$10,Preisliste!$F$10) -> H501000 | G40: =VLOOKUP("Dammbalken 50/150 exkl. Dichtung, gesägt und entgratet",Sprachindex!$A:$Z,Haftungsausschluß!$O$6,FALSE) & " (" & ROUNDUP(C40/1000*5.62,2) & " " & VLOOKUP("kg/Stk",Sprachindex!$A:$Z,Haftungsausschluß!$O$6,FALSE) & ")" & IF('Kalkulation 1'!$AH$33," " & 'Kalkulation 1'!$R$9,"") -> Dammbalken 50/150 exkl. Dichtung, gesägt und entgratet (0 kg/Stk) | O40: 0
C41: 0 | D41: 0 | E41: =VLOOKUP("[m]",Sprachindex!$A:$Z,Haftungsausschluß!$O$6,FALSE) -> [m] | F41: =IF($L$14=1,Preisliste!$E$10,Preisliste!$F$10) -> H501000 | G41: =VLOOKUP("Dammbalken 50/150 exkl. Dichtung, gesägt und entgratet",Sprachindex!$A:$Z,Haftungsausschluß!$O$6,FALSE) & " (" & ROUNDUP(C41/1000*5.62,2) & " " & VLOOKUP("kg/Stk",Sprachindex!$A:$Z,Haftungsausschluß!$O$6,FALSE) & ")" & IF('Kalkulation 1'!$AH$33," " & 'Kalkulation 1'!$R$9,"") -> Dammbalken 50/150 exkl. Dichtung, gesägt und entgratet (0 kg/Stk) | O41: 0
C42: 0 | D42: 0 | E42: =VLOOKUP("[m]",Sprachindex!$A:$Z,Haftungsausschluß!$O$6,FALSE) -> [m] | F42: =IF($L$14=1,Preisliste!$E$10,Preisliste!$F$10) -> H501000 | G42: =VLOOKUP("Dammbalken 50/150 exkl. Dichtung, gesägt und entgratet",Sprachindex!$A:$Z,Haftungsausschluß!$O$6,FALSE) & " (" & ROUNDUP(C42/1000*5.62,2) & " " & VLOOKUP("kg/Stk",Sprachindex!$A:$Z,Haftungsausschluß!$O$6,FALSE) & ")" & IF('Kalkulation 1'!$AH$33," " & 'Kalkulation 1'!$R$9,"") -> Dammbalken 50/150 exkl. Dichtung, gesägt und entgratet (0 kg/Stk) | O42: 0
C43: 0 | D43: 0 | E43: =VLOOKUP("[m]",Sprachindex!$A:$Z,Haftungsausschluß!$O$6,FALSE) -> [m] | F43: =IF($L$14=1,Preisliste!$E$10,Preisliste!$F$10) -> H501000 | G43: =VLOOKUP("Dammbalken 50/150 exkl. Dichtung, gesägt und entgratet",Sprachindex!$A:$Z,Haftungsausschluß!$O$6,FALSE) & " (" & ROUNDUP(C43/1000*5.62,2) & " " & VLOOKUP("kg/Stk",Sprachindex!$A:$Z,Haftungsausschluß!$O$6,FALSE) & ")" & IF('Kalkulation 1'!$AH$33," " & 'Kalkulation 1'!$R$9,"") -> Dammbalken 50/150 exkl. Dichtung, gesägt und entgratet (0 kg/Stk) | O43: 0
C44: 0 | D44: 0 | E44: =VLOOKUP("[m]",Sprachindex!$A:$Z,Haftungsausschluß!$O$6,FALSE) -> [m] | F44: =IF($L$14=1,Preisliste!$E$10,Preisliste!$F$10) -> H501000 | G44: =VLOOKUP("Dammbalken 50/150 exkl. Dichtung, gesägt und entgratet",Sprachindex!$A:$Z,Haftungsausschluß!$O$6,FALSE) & " (" & ROUNDUP(C44/1000*5.62,2) & " " & VLOOKUP("kg/Stk",Sprachindex!$A:$Z,Haftungsausschluß!$O$6,FALSE) & ")" & IF('Kalkulation 1'!$AH$33," " & 'Kalkulation 1'!$R$9,"") -> Dammbalken 50/150 exkl. Dichtung, gesägt und entgratet (0 kg/Stk) | O44: 0
C45: 0 | D45: 0 | E45: =VLOOKUP("[m]",Sprachindex!$A:$Z,Haftungsausschluß!$O$6,FALSE) -> [m] | F45: =IF($L$14=1,Preisliste!$E$10,Preisliste!$F$10) -> H501000 | G45: =VLOOKUP("Dammbalken 50/150 exkl. Dichtung, gesägt und entgratet",Sprachindex!$A:$Z,Haftungsausschluß!$O$6,FALSE) & " (" & ROUNDUP(C45/1000*5.62,2) & " " & VLOOKUP("kg/Stk",Sprachindex!$A:$Z,Haftungsausschluß!$O$6,FALSE) & ")" & IF('Kalkulation 1'!$AH$33," " & 'Kalkulation 1'!$R$9,"") -> Dammbalken 50/150 exkl. Dichtung, gesägt und entgratet (0 kg/Stk) | O45: 0
C46: 0 | D46: 0 | E46: =VLOOKUP("[m]",Sprachindex!$A:$Z,Haftungsausschluß!$O$6,FALSE) -> [m] | F46: =IF($L$14=1,Preisliste!$E$10,Preisliste!$F$10) -> H501000 | G46: =VLOOKUP("Dammbalken 50/150 exkl. Dichtung, gesägt und entgratet",Sprachindex!$A:$Z,Haftungsausschluß!$O$6,FALSE) & " (" & ROUNDUP(C46/1000*5.62,2) & " " & VLOOKUP("kg/Stk",Sprachindex!$A:$Z,Haftungsausschluß!$O$6,FALSE) & ")" & IF('Kalkulation 1'!$AH$33," " & 'Kalkulation 1'!$R$9,"") -> Dammbalken 50/150 exkl. Dichtung, gesägt und entgratet (0 kg/Stk) | O46: 0
C47: 0 | D47: 0 | E47: =VLOOKUP("[m]",Sprachindex!$A:$Z,Haftungsausschluß!$O$6,FALSE) -> [m] | F47: =IF($L$14=1,Preisliste!$E$10,Preisliste!$F$10) -> H501000 | G47: =VLOOKUP("Dammbalken 50/150 exkl. Dichtung, gesägt und entgratet",Sprachindex!$A:$Z,Haftungsausschluß!$O$6,FALSE) & " (" & ROUNDUP(C47/1000*5.62,2) & " " & VLOOKUP("kg/Stk",Sprachindex!$A:$Z,Haftungsausschluß!$O$6,FALSE) & ")" & IF('Kalkulation 1'!$AH$33," " & 'Kalkulation 1'!$R$9,"") -> Dammbalken 50/150 exkl. Dichtung, gesägt und entgratet (0 kg/Stk) | O47: 0
C48: 0 | D48: 0 | E48: =VLOOKUP("[m]",Sprachindex!$A:$Z,Haftungsausschluß!$O$6,FALSE) -> [m] | F48: =IF($L$14=1,Preisliste!$E$10,Preisliste!$F$10) -> H501000 | G48: =VLOOKUP("Dammbalken 50/150 exkl. Dichtung, gesägt und entgratet",Sprachindex!$A:$Z,Haftungsausschluß!$O$6,FALSE) & " (" & ROUNDUP(C48/1000*5.62,2) & " " & VLOOKUP("kg/Stk",Sprachindex!$A:$Z,Haftungsausschluß!$O$6,FALSE) & ")" & IF('Kalkulation 1'!$AH$33," " & 'Kalkulation 1'!$R$9,"") -> Dammbalken 50/150 exkl. Dichtung, gesägt und entgratet (0 kg/Stk) | O48: 0
C49: 0 | D49: 0 | E49: =VLOOKUP("[m]",Sprachindex!$A:$Z,Haftungsausschluß!$O$6,FALSE) -> [m] | F49: =IF($L$14=1,Preisliste!$E$10,Preisliste!$F$10) -> H501000 | G49: =VLOOKUP("Dammbalken 50/150 exkl. Dichtung, gesägt und entgratet",Sprachindex!$A:$Z,Haftungsausschluß!$O$6,FALSE) & " (" & ROUNDUP(C49/1000*5.62,2) & " " & VLOOKUP("kg/Stk",Sprachindex!$A:$Z,Haftungsausschluß!$O$6,FALSE) & ")" & IF('Kalkulation 1'!$AH$33," " & 'Kalkulation 1'!$R$9,"") -> Dammbalken 50/150 exkl. Dichtung, gesägt und entgratet (0 kg/Stk) | O49: 0
C50: 0 | D50: 0 | E50: =VLOOKUP("[m]",Sprachindex!$A:$Z,Haftungsausschluß!$O$6,FALSE) -> [m] | F50: =IF($L$14=1,Preisliste!$E$10,Preisliste!$F$10) -> H501000 | G50: =VLOOKUP("Dammbalken 50/150 exkl. Dichtung, gesägt und entgratet",Sprachindex!$A:$Z,Haftungsausschluß!$O$6,FALSE) & " (" & ROUNDUP(C50/1000*5.62,2) & " " & VLOOKUP("kg/Stk",Sprachindex!$A:$Z,Haftungsausschluß!$O$6,FALSE) & ")" & IF('Kalkulation 1'!$AH$33," " & 'Kalkulation 1'!$R$9,"") -> Dammbalken 50/150 exkl. Dichtung, gesägt und entgratet (0 kg/Stk) | O50: 0
C51: 0 | D51: 0 | E51: =VLOOKUP("[m]",Sprachindex!$A:$Z,Haftungsausschluß!$O$6,FALSE) -> [m] | F51: =IF($L$14=1,Preisliste!$E$10,Preisliste!$F$10) -> H501000 | G51: =VLOOKUP("Dammbalken 50/150 exkl. Dichtung, gesägt und entgratet",Sprachindex!$A:$Z,Haftungsausschluß!$O$6,FALSE) & " (" & ROUNDUP(C51/1000*5.62,2) & " " & VLOOKUP("kg/Stk",Sprachindex!$A:$Z,Haftungsausschluß!$O$6,FALSE) & ")" & IF('Kalkulation 1'!$AH$33," " & 'Kalkulation 1'!$R$9,"") -> Dammbalken 50/150 exkl. Dichtung, gesägt und entgratet (0 kg/Stk) | O51: 0
C52: 0 | D52: 0 | E52: =VLOOKUP("[m]",Sprachindex!$A:$Z,Haftungsausschluß!$O$6,FALSE) -> [m] | F52: =IF($L$14=1,Preisliste!$E$10,Preisliste!$F$10) -> H501000 | G52: =VLOOKUP("Dammbalken 50/150 exkl. Dichtung, gesägt und entgratet",Sprachindex!$A:$Z,Haftungsausschluß!$O$6,FALSE) & " (" & ROUNDUP(C52/1000*5.62,2) & " " & VLOOKUP("kg/Stk",Sprachindex!$A:$Z,Haftungsausschluß!$O$6,FALSE) & ")" & IF('Kalkulation 1'!$AH$33," " & 'Kalkulation 1'!$R$9,"") -> Dammbalken 50/150 exkl. Dichtung, gesägt und entgratet (0 kg/Stk) | O52: 0
C53: 0 | D53: 0 | E53: =VLOOKUP("[m]",Sprachindex!$A:$Z,Haftungsausschluß!$O$6,FALSE) -> [m] | F53: =IF($L$14=1,Preisliste!$E$10,Preisliste!$F$10) -> H501000 | G53: =VLOOKUP("Dammbalken 50/150 exkl. Dichtung, gesägt und entgratet",Sprachindex!$A:$Z,Haftungsausschluß!$O$6,FALSE) & " (" & ROUNDUP(C53/1000*5.62,2) & " " & VLOOKUP("kg/Stk",Sprachindex!$A:$Z,Haftungsausschluß!$O$6,FALSE) & ")" & IF('Kalkulation 1'!$AH$33," " & 'Kalkulation 1'!$R$9,"") -> Dammbalken 50/150 exkl. Dichtung, gesägt und entgratet (0 kg/Stk) | O53: 0
C54: 0 | D54: 0 | E54: =VLOOKUP("[m]",Sprachindex!$A:$Z,Haftungsausschluß!$O$6,FALSE) -> [m] | F54: =IF($L$14=1,Preisliste!$E$10,Preisliste!$F$10) -> H501000 | G54: =VLOOKUP("Dammbalken 50/150 exkl. Dichtung, gesägt und entgratet",Sprachindex!$A:$Z,Haftungsausschluß!$O$6,FALSE) & " (" & ROUNDUP(C54/1000*5.62,2) & " " & VLOOKUP("kg/Stk",Sprachindex!$A:$Z,Haftungsausschluß!$O$6,FALSE) & ")" & IF('Kalkulation 1'!$AH$33," " & 'Kalkulation 1'!$R$9,"") -> Dammbalken 50/150 exkl. Dichtung, gesägt und entgratet (0 kg/Stk) | O54: 0
C55: 0 | D55: 0 | E55: =VLOOKUP("[m]",Sprachindex!$A:$Z,Haftungsausschluß!$O$6,FALSE) -> [m] | F55: =IF($L$14=1,Preisliste!$E$10,Preisliste!$F$10) -> H501000 | G55: =VLOOKUP("Dammbalken 50/150 exkl. Dichtung, gesägt und entgratet",Sprachindex!$A:$Z,Haftungsausschluß!$O$6,FALSE) & " (" & ROUNDUP(C55/1000*5.62,2) & " " & VLOOKUP("kg/Stk",Sprachindex!$A:$Z,Haftungsausschluß!$O$6,FALSE) & ")" & IF('Kalkulation 1'!$AH$33," " & 'Kalkulation 1'!$R$9,"") -> Dammbalken 50/150 exkl. Dichtung, gesägt und entgratet (0 kg/Stk) | O55: 0
C56: 0 | D56: 0 | E56: =VLOOKUP("[m]",Sprachindex!$A:$Z,Haftungsausschluß!$O$6,FALSE) -> [m] | F56: =IF($L$14=1,Preisliste!$E$13,Preisliste!$F$13) -> H501001 | G56: =VLOOKUP("Dammbalken 50/200 exkl. Dichtung, gesägt und entgratet",Sprachindex!$A:$Z,Haftungsausschluß!$O$6,FALSE) & " (" & ROUNDUP(C56/1000*4.12,2) & " " & VLOOKUP("kg/Stk",Sprachindex!$A:$Z,Haftungsausschluß!$O$6,FALSE) & ")" & IF('Kalkulation 1'!$AH$33," " & 'Kalkulation 1'!$R$9,"") -> Dammbalken 50/200 exkl. Dichtung, gesägt und entgratet (0 kg/Stk) | O56: 0
C57: 0 | D57: 0 | E57: =VLOOKUP("[m]",Sprachindex!$A:$Z,Haftungsausschluß!$O$6,FALSE) -> [m] | F57: =IF($L$14=1,Preisliste!$E$13,Preisliste!$F$13) -> H501001 | G57: =VLOOKUP("Dammbalken 50/200 exkl. Dichtung, gesägt und entgratet",Sprachindex!$A:$Z,Haftungsausschluß!$O$6,FALSE) & " (" & ROUNDUP(C57/1000*4.12,2) & " " & VLOOKUP("kg/Stk",Sprachindex!$A:$Z,Haftungsausschluß!$O$6,FALSE) & ")" & IF('Kalkulation 1'!$AH$33," " & 'Kalkulation 1'!$R$9,"") -> Dammbalken 50/200 exkl. Dichtung, gesägt und entgratet (0 kg/Stk) | O57: 0
C58: 0 | D58: 0 | E58: =VLOOKUP("[m]",Sprachindex!$A:$Z,Haftungsausschluß!$O$6,FALSE) -> [m] | F58: =IF($L$14=1,Preisliste!$E$13,Preisliste!$F$13) -> H501001 | G58: =VLOOKUP("Dammbalken 50/200 exkl. Dichtung, gesägt und entgratet",Sprachindex!$A:$Z,Haftungsausschluß!$O$6,FALSE) & " (" & ROUNDUP(C58/1000*4.12,2) & " " & VLOOKUP("kg/Stk",Sprachindex!$A:$Z,Haftungsausschluß!$O$6,FALSE) & ")" & IF('Kalkulation 1'!$AH$33," " & 'Kalkulation 1'!$R$9,"") -> Dammbalken 50/200 exkl. Dichtung, gesägt und entgratet (0 kg/Stk) | O58: 0
C59: 0 | D59: 0 | E59: =VLOOKUP("[m]",Sprachindex!$A:$Z,Haftungsausschluß!$O$6,FALSE) -> [m] | F59: =IF($L$14=1,Preisliste!$E$13,Preisliste!$F$13) -> H501001 | G59: =VLOOKUP("Dammbalken 50/200 exkl. Dichtung, gesägt und entgratet",Sprachindex!$A:$Z,Haftungsausschluß!$O$6,FALSE) & " (" & ROUNDUP(C59/1000*4.12,2) & " " & VLOOKUP("kg/Stk",Sprachindex!$A:$Z,Haftungsausschluß!$O$6,FALSE) & ")" & IF('Kalkulation 1'!$AH$33," " & 'Kalkulation 1'!$R$9,"") -> Dammbalken 50/200 exkl. Dichtung, gesägt und entgratet (0 kg/Stk) | O59: 0
C60: 0 | D60: 0 | E60: =VLOOKUP("[m]",Sprachindex!$A:$Z,Haftungsausschluß!$O$6,FALSE) -> [m] | F60: =IF($L$14=1,Preisliste!$E$13,Preisliste!$F$13) -> H501001 | G60: =VLOOKUP("Dammbalken 50/200 exkl. Dichtung, gesägt und entgratet",Sprachindex!$A:$Z,Haftungsausschluß!$O$6,FALSE) & " (" & ROUNDUP(C60/1000*4.12,2) & " " & VLOOKUP("kg/Stk",Sprachindex!$A:$Z,Haftungsausschluß!$O$6,FALSE) & ")" & IF('Kalkulation 1'!$AH$33," " & 'Kalkulation 1'!$R$9,"") -> Dammbalken 50/200 exkl. Dichtung, gesägt und entgratet (0 kg/Stk) | O60: 0
C61: 0 | D61: 0 | E61: =VLOOKUP("[m]",Sprachindex!$A:$Z,Haftungsausschluß!$O$6,FALSE) -> [m] | F61: =IF($L$14=1,Preisliste!$E$13,Preisliste!$F$13) -> H501001 | G61: =VLOOKUP("Dammbalken 50/200 exkl. Dichtung, gesägt und entgratet",Sprachindex!$A:$Z,Haftungsausschluß!$O$6,FALSE) & " (" & ROUNDUP(C61/1000*4.12,2) & " " & VLOOKUP("kg/Stk",Sprachindex!$A:$Z,Haftungsausschluß!$O$6,FALSE) & ")" & IF('Kalkulation 1'!$AH$33," " & 'Kalkulation 1'!$R$9,"") -> Dammbalken 50/200 exkl. Dichtung, gesägt und entgratet (0 kg/Stk) | O61: 0
C62: 0 | D62: 0 | E62: =VLOOKUP("[m]",Sprachindex!$A:$Z,Haftungsausschluß!$O$6,FALSE) -> [m] | F62: =IF($L$14=1,Preisliste!$E$13,Preisliste!$F$13) -> H501001 | G62: =VLOOKUP("Dammbalken 50/200 exkl. Dichtung, gesägt und entgratet",Sprachindex!$A:$Z,Haftungsausschluß!$O$6,FALSE) & " (" & ROUNDUP(C62/1000*4.12,2) & " " & VLOOKUP("kg/Stk",Sprachindex!$A:$Z,Haftungsausschluß!$O$6,FALSE) & ")" & IF('Kalkulation 1'!$AH$33," " & 'Kalkulation 1'!$R$9,"") -> Dammbalken 50/200 exkl. Dichtung, gesägt und entgratet (0 kg/Stk) | O62: 0
C63: 0 | D63: 0 | E63: =VLOOKUP("[m]",Sprachindex!$A:$Z,Haftungsausschluß!$O$6,FALSE) -> [m] | F63: =IF($L$14=1,Preisliste!$E$13,Preisliste!$F$13) -> H501001 | G63: =VLOOKUP("Dammbalken 50/200 exkl. Dichtung, gesägt und entgratet",Sprachindex!$A:$Z,Haftungsausschluß!$O$6,FALSE) & " (" & ROUNDUP(C63/1000*4.12,2) & " " & VLOOKUP("kg/Stk",Sprachindex!$A:$Z,Haftungsausschluß!$O$6,FALSE) & ")" & IF('Kalkulation 1'!$AH$33," " & 'Kalkulation 1'!$R$9,"") -> Dammbalken 50/200 exkl. Dichtung, gesägt und entgratet (0 kg/Stk) | O63: 0
C64: 0 | D64: 0 | E64: =VLOOKUP("[m]",Sprachindex!$A:$Z,Haftungsausschluß!$O$6,FALSE) -> [m] | F64: =IF($L$14=1,Preisliste!$E$13,Preisliste!$F$13) -> H501001 | G64: =VLOOKUP("Dammbalken 50/200 exkl. Dichtung, gesägt und entgratet",Sprachindex!$A:$Z,Haftungsausschluß!$O$6,FALSE) & " (" & ROUNDUP(C64/1000*4.12,2) & " " & VLOOKUP("kg/Stk",Sprachindex!$A:$Z,Haftungsausschluß!$O$6,FALSE) & ")" & IF('Kalkulation 1'!$AH$33," " & 'Kalkulation 1'!$R$9,"") -> Dammbalken 50/200 exkl. Dichtung, gesägt und entgratet (0 kg/Stk) | O64: 0
C65: 0 | D65: 0 | E65: =VLOOKUP("[m]",Sprachindex!$A:$Z,Haftungsausschluß!$O$6,FALSE) -> [m] | F65: =IF($L$14=1,Preisliste!$E$13,Preisliste!$F$13) -> H501001 | G65: =VLOOKUP("Dammbalken 50/200 exkl. Dichtung, gesägt und entgratet",Sprachindex!$A:$Z,Haftungsausschluß!$O$6,FALSE) & " (" & ROUNDUP(C65/1000*4.12,2) & " " & VLOOKUP("kg/Stk",Sprachindex!$A:$Z,Haftungsausschluß!$O$6,FALSE) & ")" & IF('Kalkulation 1'!$AH$33," " & 'Kalkulation 1'!$R$9,"") -> Dammbalken 50/200 exkl. Dichtung, gesägt und entgratet (0 kg/Stk) | O65: 0
C66: 0 | D66: 0 | E66: =VLOOKUP("[m]",Sprachindex!$A:$Z,Haftungsausschluß!$O$6,FALSE) -> [m] | F66: =IF($L$14=1,Preisliste!$E$13,Preisliste!$F$13) -> H501001 | G66: =VLOOKUP("Dammbalken 50/200 exkl. Dichtung, gesägt und entgratet",Sprachindex!$A:$Z,Haftungsausschluß!$O$6,FALSE) & " (" & ROUNDUP(C66/1000*4.12,2) & " " & VLOOKUP("kg/Stk",Sprachindex!$A:$Z,Haftungsausschluß!$O$6,FALSE) & ")" & IF('Kalkulation 1'!$AH$33," " & 'Kalkulation 1'!$R$9,"") -> Dammbalken 50/200 exkl. Dichtung, gesägt und entgratet (0 kg/Stk) | O66: 0
C67: 0 | D67: 0 | E67: =VLOOKUP("[m]",Sprachindex!$A:$Z,Haftungsausschluß!$O$6,FALSE) -> [m] | F67: =IF($L$14=1,Preisliste!$E$13,Preisliste!$F$13) -> H501001 | G67: =VLOOKUP("Dammbalken 50/200 exkl. Dichtung, gesägt und entgratet",Sprachindex!$A:$Z,Haftungsausschluß!$O$6,FALSE) & " (" & ROUNDUP(C67/1000*4.12,2) & " " & VLOOKUP("kg/Stk",Sprachindex!$A:$Z,Haftungsausschluß!$O$6,FALSE) & ")" & IF('Kalkulation 1'!$AH$33," " & 'Kalkulation 1'!$R$9,"") -> Dammbalken 50/200 exkl. Dichtung, gesägt und entgratet (0 kg/Stk) | O67: 0
C68: 0 | D68: 0 | E68: =VLOOKUP("[m]",Sprachindex!$A:$Z,Haftungsausschluß!$O$6,FALSE) -> [m] | F68: =IF($L$14=1,Preisliste!$E$13,Preisliste!$F$13) -> H501001 | G68: =VLOOKUP("Dammbalken 50/200 exkl. Dichtung, gesägt und entgratet",Sprachindex!$A:$Z,Haftungsausschluß!$O$6,FALSE) & " (" & ROUNDUP(C68/1000*4.12,2) & " " & VLOOKUP("kg/Stk",Sprachindex!$A:$Z,Haftungsausschluß!$O$6,FALSE) & ")" & IF('Kalkulation 1'!$AH$33," " & 'Kalkulation 1'!$R$9,"") -> Dammbalken 50/200 exkl. Dichtung, gesägt und entgratet (0 kg/Stk) | O68: 0
C69: 0 | D69: 0 | E69: =VLOOKUP("[m]",Sprachindex!$A:$Z,Haftungsausschluß!$O$6,FALSE) -> [m] | F69: =IF($L$14=1,Preisliste!$E$13,Preisliste!$F$13) -> H501001 | G69: =VLOOKUP("Dammbalken 50/200 exkl. Dichtung, gesägt und entgratet",Sprachindex!$A:$Z,Haftungsausschluß!$O$6,FALSE) & " (" & ROUNDUP(C69/1000*4.12,2) & " " & VLOOKUP("kg/Stk",Sprachindex!$A:$Z,Haftungsausschluß!$O$6,FALSE) & ")" & IF('Kalkulation 1'!$AH$33," " & 'Kalkulation 1'!$R$9,"") -> Dammbalken 50/200 exkl. Dichtung, gesägt und entgratet (0 kg/Stk) | O69: 0
C70: 0 | D70: 0 | E70: =VLOOKUP("[m]",Sprachindex!$A:$Z,Haftungsausschluß!$O$6,FALSE) -> [m] | F70: =IF($L$14=1,Preisliste!$E$13,Preisliste!$F$13) -> H501001 | G70: =VLOOKUP("Dammbalken 50/200 exkl. Dichtung, gesägt und entgratet",Sprachindex!$A:$Z,Haftungsausschluß!$O$6,FALSE) & " (" & ROUNDUP(C70/1000*4.12,2) & " " & VLOOKUP("kg/Stk",Sprachindex!$A:$Z,Haftungsausschluß!$O$6,FALSE) & ")" & IF('Kalkulation 1'!$AH$33," " & 'Kalkulation 1'!$R$9,"") -> Dammbalken 50/200 exkl. Dichtung, gesägt und entgratet (0 kg/Stk) | O70: 0
C71: 0 | D71: 0 | E71: =VLOOKUP("[m]",Sprachindex!$A:$Z,Haftungsausschluß!$O$6,FALSE) -> [m] | F71: =IF($L$14=1,Preisliste!$E$13,Preisliste!$F$13) -> H501001 | G71: =VLOOKUP("Dammbalken 50/200 exkl. Dichtung, gesägt und entgratet",Sprachindex!$A:$Z,Haftungsausschluß!$O$6,FALSE) & " (" & ROUNDUP(C71/1000*4.12,2) & " " & VLOOKUP("kg/Stk",Sprachindex!$A:$Z,Haftungsausschluß!$O$6,FALSE) & ")" & IF('Kalkulation 1'!$AH$33," " & 'Kalkulation 1'!$R$9,"") -> Dammbalken 50/200 exkl. Dichtung, gesägt und entgratet (0 kg/Stk) | O71: 0
C72: 0 | D72: 0 | E72: =VLOOKUP("[m]",Sprachindex!$A:$Z,Haftungsausschluß!$O$6,FALSE) -> [m] | F72: =IF($L$14=1,Preisliste!$E$13,Preisliste!$F$13) -> H501001 | G72: =VLOOKUP("Dammbalken 50/200 exkl. Dichtung, gesägt und entgratet",Sprachindex!$A:$Z,Haftungsausschluß!$O$6,FALSE) & " (" & ROUNDUP(C72/1000*4.12,2) & " " & VLOOKUP("kg/Stk",Sprachindex!$A:$Z,Haftungsausschluß!$O$6,FALSE) & ")" & IF('Kalkulation 1'!$AH$33," " & 'Kalkulation 1'!$R$9,"") -> Dammbalken 50/200 exkl. Dichtung, gesägt und entgratet (0 kg/Stk) | O72: 0
C73: 0 | D73: 0 | E73: =VLOOKUP("[m]",Sprachindex!$A:$Z,Haftungsausschluß!$O$6,FALSE) -> [m] | F73: =IF($L$14=1,Preisliste!$E$13,Preisliste!$F$13) -> H501001 | G73: =VLOOKUP("Dammbalken 50/200 exkl. Dichtung, gesägt und entgratet",Sprachindex!$A:$Z,Haftungsausschluß!$O$6,FALSE) & " (" & ROUNDUP(C73/1000*4.12,2) & " " & VLOOKUP("kg/Stk",Sprachindex!$A:$Z,Haftungsausschluß!$O$6,FALSE) & ")" & IF('Kalkulation 1'!$AH$33," " & 'Kalkulation 1'!$R$9,"") -> Dammbalken 50/200 exkl. Dichtung, gesägt und entgratet (0 kg/Stk) | O73: 0
C74: 0 | D74: 0 | E74: =VLOOKUP("[m]",Sprachindex!$A:$Z,Haftungsausschluß!$O$6,FALSE) -> [m] | F74: =IF($L$14=1,Preisliste!$E$13,Preisliste!$F$13) -> H501001 | G74: =VLOOKUP("Dammbalken 50/200 exkl. Dichtung, gesägt und entgratet",Sprachindex!$A:$Z,Haftungsausschluß!$O$6,FALSE) & " (" & ROUNDUP(C74/1000*4.12,2) & " " & VLOOKUP("kg/Stk",Sprachindex!$A:$Z,Haftungsausschluß!$O$6,FALSE) & ")" & IF('Kalkulation 1'!$AH$33," " & 'Kalkulation 1'!$R$9,"") -> Dammbalken 50/200 exkl. Dichtung, gesägt und entgratet (0 kg/Stk) | O74: 0
C75: 0 | D75: 0 | E75: =VLOOKUP("[m]",Sprachindex!$A:$Z,Haftungsausschluß!$O$6,FALSE) -> [m] | F75: =IF($L$14=1,Preisliste!$E$13,Preisliste!$F$13) -> H501001 | G75: =VLOOKUP("Dammbalken 50/200 exkl. Dichtung, gesägt und entgratet",Sprachindex!$A:$Z,Haftungsausschluß!$O$6,FALSE) & " (" & ROUNDUP(C75/1000*4.12,2) & " " & VLOOKUP("kg/Stk",Sprachindex!$A:$Z,Haftungsausschluß!$O$6,FALSE) & ")" & IF('Kalkulation 1'!$AH$33," " & 'Kalkulation 1'!$R$9,"") -> Dammbalken 50/200 exkl. Dichtung, gesägt und entgratet (0 kg/Stk) | O75: 0
C76: 1015 | D76: 0 | E76: =VLOOKUP("[m]",Sprachindex!$A:$Z,Haftungsausschluß!$O$6,FALSE) -> [m] | F76: =IF($L$14=1,Preisliste!$E$16,Preisliste!$F$16) -> H801001 | G76: =VLOOKUP("Dammbalken 80/200 exkl. Dichtung, gesägt und entgratet",Sprachindex!$A:$Z,Haftungsausschluß!$O$6,FALSE) & " (" & ROUNDUP(C76/1000*7.78,2) & " " & VLOOKUP("kg/Stk",Sprachindex!$A:$Z,Haftungsausschluß!$O$6,FALSE) & ")" & IF('Kalkulation 1'!$AH$33," " & 'Kalkulation 1'!$R$9,"") -> Dammbalken 80/200 exkl. Dichtung, gesägt und entgratet (7.9 kg/Stk) | O76: 0
C77: 0 | D77: 0 | E77: =VLOOKUP("[m]",Sprachindex!$A:$Z,Haftungsausschluß!$O$6,FALSE) -> [m] | F77: =IF($L$14=1,Preisliste!$E$16,Preisliste!$F$16) -> H801001 | G77: =VLOOKUP("Dammbalken 80/200 exkl. Dichtung, gesägt und entgratet",Sprachindex!$A:$Z,Haftungsausschluß!$O$6,FALSE) & " (" & ROUNDUP(C77/1000*7.78,2) & " " & VLOOKUP("kg/Stk",Sprachindex!$A:$Z,Haftungsausschluß!$O$6,FALSE) & ")" & IF('Kalkulation 1'!$AH$33," " & 'Kalkulation 1'!$R$9,"") -> Dammbalken 80/200 exkl. Dichtung, gesägt und entgratet (0 kg/Stk) | O77: 0
C78: 0 | D78: 0 | E78: =VLOOKUP("[m]",Sprachindex!$A:$Z,Haftungsausschluß!$O$6,FALSE) -> [m] | F78: =IF($L$14=1,Preisliste!$E$16,Preisliste!$F$16) -> H801001 | G78: =VLOOKUP("Dammbalken 80/200 exkl. Dichtung, gesägt und entgratet",Sprachindex!$A:$Z,Haftungsausschluß!$O$6,FALSE) & " (" & ROUNDUP(C78/1000*7.78,2) & " " & VLOOKUP("kg/Stk",Sprachindex!$A:$Z,Haftungsausschluß!$O$6,FALSE) & ")" & IF('Kalkulation 1'!$AH$33," " & 'Kalkulation 1'!$R$9,"") -> Dammbalken 80/200 exkl. Dichtung, gesägt und entgratet (0 kg/Stk) | O78: 0
C79: 0 | D79: 0 | E79: =VLOOKUP("[m]",Sprachindex!$A:$Z,Haftungsausschluß!$O$6,FALSE) -> [m] | F79: =IF($L$14=1,Preisliste!$E$16,Preisliste!$F$16) -> H801001 | G79: =VLOOKUP("Dammbalken 80/200 exkl. Dichtung, gesägt und entgratet",Sprachindex!$A:$Z,Haftungsausschluß!$O$6,FALSE) & " (" & ROUNDUP(C79/1000*7.78,2) & " " & VLOOKUP("kg/Stk",Sprachindex!$A:$Z,Haftungsausschluß!$O$6,FALSE) & ")" & IF('Kalkulation 1'!$AH$33," " & 'Kalkulation 1'!$R$9,"") -> Dammbalken 80/200 exkl. Dichtung, gesägt und entgratet (0 kg/Stk) | O79: 0
C80: 0 | D80: 0 | E80: =VLOOKUP("[m]",Sprachindex!$A:$Z,Haftungsausschluß!$O$6,FALSE) -> [m] | F80: =IF($L$14=1,Preisliste!$E$16,Preisliste!$F$16) -> H801001 | G80: =VLOOKUP("Dammbalken 80/200 exkl. Dichtung, gesägt und entgratet",Sprachindex!$A:$Z,Haftungsausschluß!$O$6,FALSE) & " (" & ROUNDUP(C80/1000*7.78,2) & " " & VLOOKUP("kg/Stk",Sprachindex!$A:$Z,Haftungsausschluß!$O$6,FALSE) & ")" & IF('Kalkulation 1'!$AH$33," " & 'Kalkulation 1'!$R$9,"") -> Dammbalken 80/200 exkl. Dichtung, gesägt und entgratet (0 kg/Stk) | O80: 0
C81: 0 | D81: 0 | E81: =VLOOKUP("[m]",Sprachindex!$A:$Z,Haftungsausschluß!$O$6,FALSE) -> [m] | F81: =IF($L$14=1,Preisliste!$E$16,Preisliste!$F$16) -> H801001 | G81: =VLOOKUP("Dammbalken 80/200 exkl. Dichtung, gesägt und entgratet",Sprachindex!$A:$Z,Haftungsausschluß!$O$6,FALSE) & " (" & ROUNDUP(C81/1000*7.78,2) & " " & VLOOKUP("kg/Stk",Sprachindex!$A:$Z,Haftungsausschluß!$O$6,FALSE) & ")" & IF('Kalkulation 1'!$AH$33," " & 'Kalkulation 1'!$R$9,"") -> Dammbalken 80/200 exkl. Dichtung, gesägt und entgratet (0 kg/Stk) | O81: 0
C82: 0 | D82: =B82*C82/1000 -> 0 | E82: =VLOOKUP("[m]",Sprachindex!$A:$Z,Haftungsausschluß!$O$6,FALSE) -> [m] | F82: =IF($L$14=1,Preisliste!$E$16,Preisliste!$F$16) -> H801001 | G82: =VLOOKUP("Dammbalken 80/200 exkl. Dichtung, gesägt und entgratet",Sprachindex!$A:$Z,Haftungsausschluß!$O$6,FALSE) & " (" & ROUNDUP(C82/1000*7.78,2) & " " & VLOOKUP("kg/Stk",Sprachindex!$A:$Z,Haftungsausschluß!$O$6,FALSE) & ")" & IF('Kalkulation 1'!$AH$33," " & 'Kalkulation 1'!$R$9,"") -> Dammbalken 80/200 exkl. Dichtung, gesägt und entgratet (0 kg/Stk) | O82: =N82*D82 -> 0
C83: 0 | D83: 0 | E83: =VLOOKUP("[m]",Sprachindex!$A:$Z,Haftungsausschluß!$O$6,FALSE) -> [m] | F83: =IF($L$14=1,Preisliste!$E$16,Preisliste!$F$16) -> H801001 | G83: =VLOOKUP("Dammbalken 80/200 exkl. Dichtung, gesägt und entgratet",Sprachindex!$A:$Z,Haftungsausschluß!$O$6,FALSE) & " (" & ROUNDUP(C83/1000*7.78,2) & " " & VLOOKUP("kg/Stk",Sprachindex!$A:$Z,Haftungsausschluß!$O$6,FALSE) & ")" & IF('Kalkulation 1'!$AH$33," " & 'Kalkulation 1'!$R$9,"") -> Dammbalken 80/200 exkl. Dichtung, gesägt und entgratet (0 kg/Stk) | O83: 0
C84: 0 | D84: 0 | E84: =VLOOKUP("[m]",Sprachindex!$A:$Z,Haftungsausschluß!$O$6,FALSE) -> [m] | F84: =IF($L$14=1,Preisliste!$E$16,Preisliste!$F$16) -> H801001 | G84: =VLOOKUP("Dammbalken 80/200 exkl. Dichtung, gesägt und entgratet",Sprachindex!$A:$Z,Haftungsausschluß!$O$6,FALSE) & " (" & ROUNDUP(C84/1000*7.78,2) & " " & VLOOKUP("kg/Stk",Sprachindex!$A:$Z,Haftungsausschluß!$O$6,FALSE) & ")" & IF('Kalkulation 1'!$AH$33," " & 'Kalkulation 1'!$R$9,"") -> Dammbalken 80/200 exkl. Dichtung, gesägt und entgratet (0 kg/Stk) | O84: 0
C85: 0 | D85: 0 | E85: =VLOOKUP("[m]",Sprachindex!$A:$Z,Haftungsausschluß!$O$6,FALSE) -> [m] | F85: =IF($L$14=1,Preisliste!$E$16,Preisliste!$F$16) -> H801001 | G85: =VLOOKUP("Dammbalken 80/200 exkl. Dichtung, gesägt und entgratet",Sprachindex!$A:$Z,Haftungsausschluß!$O$6,FALSE) & " (" & ROUNDUP(C85/1000*7.78,2) & " " & VLOOKUP("kg/Stk",Sprachindex!$A:$Z,Haftungsausschluß!$O$6,FALSE) & ")" & IF('Kalkulation 1'!$AH$33," " & 'Kalkulation 1'!$R$9,"") -> Dammbalken 80/200 exkl. Dichtung, gesägt und entgratet (0 kg/Stk) | O85: 0
C86: 0 | D86: 0 | E86: =VLOOKUP("[m]",Sprachindex!$A:$Z,Haftungsausschluß!$O$6,FALSE) -> [m] | F86: =IF($L$14=1,Preisliste!$E$16,Preisliste!$F$16) -> H801001 | G86: =VLOOKUP("Dammbalken 80/200 exkl. Dichtung, gesägt und entgratet",Sprachindex!$A:$Z,Haftungsausschluß!$O$6,FALSE) & " (" & ROUNDUP(C86/1000*7.78,2) & " " & VLOOKUP("kg/Stk",Sprachindex!$A:$Z,Haftungsausschluß!$O$6,FALSE) & ")" & IF('Kalkulation 1'!$AH$33," " & 'Kalkulation 1'!$R$9,"") -> Dammbalken 80/200 exkl. Dichtung, gesägt und entgratet (0 kg/Stk) | O86: 0
C87: 0 | D87: 0 | E87: =VLOOKUP("[m]",Sprachindex!$A:$Z,Haftungsausschluß!$O$6,FALSE) -> [m] | F87: =IF($L$14=1,Preisliste!$E$16,Preisliste!$F$16) -> H801001 | G87: =VLOOKUP("Dammbalken 80/200 exkl. Dichtung, gesägt und entgratet",Sprachindex!$A:$Z,Haftungsausschluß!$O$6,FALSE) & " (" & ROUNDUP(C87/1000*7.78,2) & " " & VLOOKUP("kg/Stk",Sprachindex!$A:$Z,Haftungsausschluß!$O$6,FALSE) & ")" & IF('Kalkulation 1'!$AH$33," " & 'Kalkulation 1'!$R$9,"") -> Dammbalken 80/200 exkl. Dichtung, gesägt und entgratet (0 kg/Stk) | O87: 0
C88: 0 | D88: 0 | E88: =VLOOKUP("[m]",Sprachindex!$A:$Z,Haftungsausschluß!$O$6,FALSE) -> [m] | F88: =IF($L$14=1,Preisliste!$E$16,Preisliste!$F$16) -> H801001 | G88: =VLOOKUP("Dammbalken 80/200 exkl. Dichtung, gesägt und entgratet",Sprachindex!$A:$Z,Haftungsausschluß!$O$6,FALSE) & " (" & ROUNDUP(C88/1000*7.78,2) & " " & VLOOKUP("kg/Stk",Sprachindex!$A:$Z,Haftungsausschluß!$O$6,FALSE) & ")" & IF('Kalkulation 1'!$AH$33," " & 'Kalkulation 1'!$R$9,"") -> Dammbalken 80/200 exkl. Dichtung, gesägt und entgratet (0 kg/Stk) | O88: 0
C89: 0 | D89: 0 | E89: =VLOOKUP("[m]",Sprachindex!$A:$Z,Haftungsausschluß!$O$6,FALSE) -> [m] | F89: =IF($L$14=1,Preisliste!$E$16,Preisliste!$F$16) -> H801001 | G89: =VLOOKUP("Dammbalken 80/200 exkl. Dichtung, gesägt und entgratet",Sprachindex!$A:$Z,Haftungsausschluß!$O$6,FALSE) & " (" & ROUNDUP(C89/1000*7.78,2) & " " & VLOOKUP("kg/Stk",Sprachindex!$A:$Z,Haftungsausschluß!$O$6,FALSE) & ")" & IF('Kalkulation 1'!$AH$33," " & 'Kalkulation 1'!$R$9,"") -> Dammbalken 80/200 exkl. Dichtung, gesägt und entgratet (0 kg/Stk) | O89: 0
C90: 0 | D90: 0 | E90: =VLOOKUP("[m]",Sprachindex!$A:$Z,Haftungsausschluß!$O$6,FALSE) -> [m] | F90: =IF($L$14=1,Preisliste!$E$16,Preisliste!$F$16) -> H801001 | G90: =VLOOKUP("Dammbalken 80/200 exkl. Dichtung, gesägt und entgratet",Sprachindex!$A:$Z,Haftungsausschluß!$O$6,FALSE) & " (" & ROUNDUP(C90/1000*7.78,2) & " " & VLOOKUP("kg/Stk",Sprachindex!$A:$Z,Haftungsausschluß!$O$6,FALSE) & ")" & IF('Kalkulation 1'!$AH$33," " & 'Kalkulation 1'!$R$9,"") -> Dammbalken 80/200 exkl. Dichtung, gesägt und entgratet (0 kg/Stk) | O90: 0
C91: 0 | D91: 0 | E91: =VLOOKUP("[m]",Sprachindex!$A:$Z,Haftungsausschluß!$O$6,FALSE) -> [m] | F91: =IF($L$14=1,Preisliste!$E$16,Preisliste!$F$16) -> H801001 | G91: =VLOOKUP("Dammbalken 80/200 exkl. Dichtung, gesägt und entgratet",Sprachindex!$A:$Z,Haftungsausschluß!$O$6,FALSE) & " (" & ROUNDUP(C91/1000*7.78,2) & " " & VLOOKUP("kg/Stk",Sprachindex!$A:$Z,Haftungsausschluß!$O$6,FALSE) & ")" & IF('Kalkulation 1'!$AH$33," " & 'Kalkulation 1'!$R$9,"") -> Dammbalken 80/200 exkl. Dichtung, gesägt und entgratet (0 kg/Stk) | O91: 0
C92: 0 | D92: 0 | E92: =VLOOKUP("[m]",Sprachindex!$A:$Z,Haftungsausschluß!$O$6,FALSE) -> [m] | F92: =IF($L$14=1,Preisliste!$E$16,Preisliste!$F$16) -> H801001 | G92: =VLOOKUP("Dammbalken 80/200 exkl. Dichtung, gesägt und entgratet",Sprachindex!$A:$Z,Haftungsausschluß!$O$6,FALSE) & " (" & ROUNDUP(C92/1000*7.78,2) & " " & VLOOKUP("kg/Stk",Sprachindex!$A:$Z,Haftungsausschluß!$O$6,FALSE) & ")" & IF('Kalkulation 1'!$AH$33," " & 'Kalkulation 1'!$R$9,"") -> Dammbalken 80/200 exkl. Dichtung, gesägt und entgratet (0 kg/Stk) | O92: 0
C93: 0 | D93: 0 | E93: =VLOOKUP("[m]",Sprachindex!$A:$Z,Haftungsausschluß!$O$6,FALSE) -> [m] | F93: =IF($L$14=1,Preisliste!$E$16,Preisliste!$F$16) -> H801001 | G93: =VLOOKUP("Dammbalken 80/200 exkl. Dichtung, gesägt und entgratet",Sprachindex!$A:$Z,Haftungsausschluß!$O$6,FALSE) & " (" & ROUNDUP(C93/1000*7.78,2) & " " & VLOOKUP("kg/Stk",Sprachindex!$A:$Z,Haftungsausschluß!$O$6,FALSE) & ")" & IF('Kalkulation 1'!$AH$33," " & 'Kalkulation 1'!$R$9,"") -> Dammbalken 80/200 exkl. Dichtung, gesägt und entgratet (0 kg/Stk) | O93: 0
C94: 0 | D94: 0 | E94: =VLOOKUP("[m]",Sprachindex!$A:$Z,Haftungsausschluß!$O$6,FALSE) -> [m] | F94: =IF($L$14=1,Preisliste!$E$16,Preisliste!$F$16) -> H801001 | G94: =VLOOKUP("Dammbalken 80/200 exkl. Dichtung, gesägt und entgratet",Sprachindex!$A:$Z,Haftungsausschluß!$O$6,FALSE) & " (" & ROUNDUP(C94/1000*7.78,2) & " " & VLOOKUP("kg/Stk",Sprachindex!$A:$Z,Haftungsausschluß!$O$6,FALSE) & ")" & IF('Kalkulation 1'!$AH$33," " & 'Kalkulation 1'!$R$9,"") -> Dammbalken 80/200 exkl. Dichtung, gesägt und entgratet (0 kg/Stk) | O94: 0
C95: 0 | D95: 0 | E95: =VLOOKUP("[m]",Sprachindex!$A:$Z,Haftungsausschluß!$O$6,FALSE) -> [m] | F95: =IF($L$14=1,Preisliste!$E$16,Preisliste!$F$16) -> H801001 | G95: =VLOOKUP("Dammbalken 80/200 exkl. Dichtung, gesägt und entgratet",Sprachindex!$A:$Z,Haftungsausschluß!$O$6,FALSE) & " (" & ROUNDUP(C95/1000*7.78,2) & " " & VLOOKUP("kg/Stk",Sprachindex!$A:$Z,Haftungsausschluß!$O$6,FALSE) & ")" & IF('Kalkulation 1'!$AH$33," " & 'Kalkulation 1'!$R$9,"") -> Dammbalken 80/200 exkl. Dichtung, gesägt und entgratet (0 kg/Stk) | O95: 0
C96: 750 | D96: =B96 -> 0 | E96: =VLOOKUP("[Stk]",Sprachindex!$A:$Z,Haftungsausschluß!$O$6,FALSE) -> [Stk] | F96: =IF($L$14=1,Preisliste!$E$19,Preisliste!$F$19) -> H251020 | G96: =VLOOKUP("U-Profil 25 exkl. Dichtung, gebohrt und entgratet",Sprachindex!$A:$Z,Haftungsausschluß!$O$6,FALSE) & IF('Kalkulation 1'!$AH$34," " & 'Kalkulation 1'!$R$9,"") -> U-Profil 25 exkl. Dichtung, gebohrt und entgratet | O96: 0
C97: 1350 | D97: =B97 -> 0 | E97: =VLOOKUP("[Stk]",Sprachindex!$A:$Z,Haftungsausschluß!$O$6,FALSE) -> [Stk] | F97: =IF($L$14=1,Preisliste!$E$20,Preisliste!$F$20) -> H251021 | G97: =VLOOKUP("U-Profil 25 exkl. Dichtung, gebohrt und entgratet",Sprachindex!$A:$Z,Haftungsausschluß!$O$6,FALSE) & IF('Kalkulation 1'!$AH$34," " & 'Kalkulation 1'!$R$9,"") -> U-Profil 25 exkl. Dichtung, gebohrt und entgratet | O97: 0
C98: 1520 | D98: 0 | E98: =VLOOKUP("[Stk]",Sprachindex!$A:$Z,Haftungsausschluß!$O$6,FALSE) -> [Stk] | F98: =IF($L$14=1,Preisliste!$E$21,Preisliste!$F$21) -> 0 | G98: =VLOOKUP("U-Profil 25 Sonderlänge exkl. Dichtung, (Stangenware)",Sprachindex!$A:$Z,Haftungsausschluß!$O$6,FALSE) -> U-Profil 25 Sonderlänge exkl. Dichtung, (Stangenware) | O98: 0
C99: 750 | D99: 0 | E99: =VLOOKUP("[Stk]",Sprachindex!$A:$Z,Haftungsausschluß!$O$6,FALSE) -> [Stk] | F99: =IF($L$14=1,Preisliste!$E$38,Preisliste!$F$38) -> H251200 | G99: =VLOOKUP("Grundprofil 25 exkl. Dichtung, gebohrt und entgratet",Sprachindex!$A:$Z,Haftungsausschluß!$O$6,FALSE) & IF('Kalkulation 1'!$AH$34," " & 'Kalkulation 1'!$R$9,"") -> Grundprofil 25 exkl. Dichtung, gebohrt und entgratet | O99: 0
C100: 1350 | D100: 0 | E100: =VLOOKUP("[Stk]",Sprachindex!$A:$Z,Haftungsausschluß!$O$6,FALSE) -> [Stk] | F100: =IF($L$14=1,Preisliste!$E$39,Preisliste!$F$39) -> H251201 | G100: =VLOOKUP("Grundprofil 25 exkl. Dichtung, gebohrt und entgratet",Sprachindex!$A:$Z,Haftungsausschluß!$O$6,FALSE) & IF('Kalkulation 1'!$AH$34," " & 'Kalkulation 1'!$R$9,"") -> Grundprofil 25 exkl. Dichtung, gebohrt und entgratet | O100: 0
C101: 1720 | D101: 0 | E101: =VLOOKUP("[Stk]",Sprachindex!$A:$Z,Haftungsausschluß!$O$6,FALSE) -> [Stk] | F101: =IF($L$14=1,Preisliste!$E$40,Preisliste!$F$40) -> H251291 | G101: =VLOOKUP("Grundprofil 25 Sonderlänge exkl. Dichtung, (Stangenware)",Sprachindex!$A:$Z,Haftungsausschluß!$O$6,FALSE) -> Grundprofil 25 Sonderlänge exkl. Dichtung, (Stangenware) | O101: 0
C102: 750 | D102: 0 | E102: =VLOOKUP("[Stk]",Sprachindex!$A:$Z,Haftungsausschluß!$O$6,FALSE) -> [Stk] | F102: =IF($L$14=1,Preisliste!$E$24,Preisliste!$F$24) -> H501101 | G102: =VLOOKUP("U-Profil 50 exkl. Dichtung, gebohrt und entgratet",Sprachindex!$A:$Z,Haftungsausschluß!$O$6,FALSE) & IF('Kalkulation 1'!$AH$34," " & 'Kalkulation 1'!$R$9,"") -> U-Profil 50 exkl. Dichtung, gebohrt und entgratet | O102: 0
C103: 1350 | D103: 0 | E103: =VLOOKUP("[Stk]",Sprachindex!$A:$Z,Haftungsausschluß!$O$6,FALSE) -> [Stk] | F103: =IF($L$14=1,Preisliste!$E$25,Preisliste!$F$25) -> H501111 | G103: =VLOOKUP("U-Profil 50 exkl. Dichtung, gebohrt und entgratet",Sprachindex!$A:$Z,Haftungsausschluß!$O$6,FALSE) & IF('Kalkulation 1'!$AH$34," " & 'Kalkulation 1'!$R$9,"") -> U-Profil 50 exkl. Dichtung, gebohrt und entgratet | O103: 0
C104: 1750 | D104: 0 | E104: =VLOOKUP("[Stk]",Sprachindex!$A:$Z,Haftungsausschluß!$O$6,FALSE) -> [Stk] | F104: =IF($L$14=1,Preisliste!$E$26,Preisliste!$F$26) -> H501112 | G104: =VLOOKUP("U-Profil 50 exkl. Dichtung, gebohrt und entgratet",Sprachindex!$A:$Z,Haftungsausschluß!$O$6,FALSE) & IF('Kalkulation 1'!$AH$34," " & 'Kalkulation 1'!$R$9,"") -> U-Profil 50 exkl. Dichtung, gebohrt und entgratet | O104: 0
C105: 2150 | D105: 0 | E105: =VLOOKUP("[Stk]",Sprachindex!$A:$Z,Haftungsausschluß!$O$6,FALSE) -> [Stk] | F105: =IF($L$14=1,Preisliste!$E$27,Preisliste!$F$27) -> H501122 | G105: =VLOOKUP("U-Profil 50 exkl. Dichtung, gebohrt und entgratet",Sprachindex!$A:$Z,Haftungsausschluß!$O$6,FALSE) & IF('Kalkulation 1'!$AH$34," " & 'Kalkulation 1'!$R$9,"") -> U-Profil 50 exkl. Dichtung, gebohrt und entgratet | O105: 0
C106: 2320 | D106: 0 | E106: =VLOOKUP("[Stk]",Sprachindex!$A:$Z,Haftungsausschluß!$O$6,FALSE) -> [Stk] | F106: =IF($L$14=1,Preisliste!$E$28,Preisliste!$F$28) -> 0 | G106: =VLOOKUP("U-Profil 50 Sonderlänge exkl. Dichtung, (Stangenware)",Sprachindex!$A:$Z,Haftungsausschluß!$O$6,FALSE) -> U-Profil 50 Sonderlänge exkl. Dichtung, (Stangenware) | O106: 0
C107: 750 | D107: 0 | E107: =VLOOKUP("[Stk]",Sprachindex!$A:$Z,Haftungsausschluß!$O$6,FALSE) -> [Stk] | F107: =IF($L$14=1,Preisliste!$E$31,Preisliste!$F$31) -> H801101 | G107: =VLOOKUP("U-Profil 80 exkl. Dichtung, gebohrt und entgratet",Sprachindex!$A:$Z,Haftungsausschluß!$O$6,FALSE) & IF('Kalkulation 1'!$AH$34," " & 'Kalkulation 1'!$R$9,"") -> U-Profil 80 exkl. Dichtung, gebohrt und entgratet | O107: 0
C108: 1350 | D108: 0 | E108: =VLOOKUP("[Stk]",Sprachindex!$A:$Z,Haftungsausschluß!$O$6,FALSE) -> [Stk] | F108: =IF($L$14=1,Preisliste!$E$32,Preisliste!$F$32) -> H801111 | G108: =VLOOKUP("U-Profil 80 exkl. Dichtung, gebohrt und entgratet",Sprachindex!$A:$Z,Haftungsausschluß!$O$6,FALSE) & IF('Kalkulation 1'!$AH$34," " & 'Kalkulation 1'!$R$9,"") -> U-Profil 80 exkl. Dichtung, gebohrt und entgratet | O108: 0
C109: 1750 | D109: 0 | E109: =VLOOKUP("[Stk]",Sprachindex!$A:$Z,Haftungsausschluß!$O$6,FALSE) -> [Stk] | F109: =IF($L$14=1,Preisliste!$E$33,Preisliste!$F$33) -> H801112 | G109: =VLOOKUP("U-Profil 80 exkl. Dichtung, gebohrt und entgratet",Sprachindex!$A:$Z,Haftungsausschluß!$O$6,FALSE) & IF('Kalkulation 1'!$AH$34," " & 'Kalkulation 1'!$R$9,"") -> U-Profil 80 exkl. Dichtung, gebohrt und entgratet | O109: 0
C110: 2150 | D110: 0 | E110: =VLOOKUP("[Stk]",Sprachindex!$A:$Z,Haftungsausschluß!$O$6,FALSE) -> [Stk] | F110: =IF($L$14=1,Preisliste!$E$34,Preisliste!$F$34) -> H801122 | G110: =VLOOKUP("U-Profil 80 exkl. Dichtung, gebohrt und entgratet",Sprachindex!$A:$Z,Haftungsausschluß!$O$6,FALSE) & IF('Kalkulation 1'!$AH$34," " & 'Kalkulation 1'!$R$9,"") -> U-Profil 80 exkl. Dichtung, gebohrt und entgratet | O110: 0
C111: 2320 | D111: 0 | E111: =VLOOKUP("[Stk]",Sprachindex!$A:$Z,Haftungsausschluß!$O$6,FALSE) -> [Stk] | F111: =IF($L$14=1,Preisliste!$E$35,Preisliste!$F$35) -> 0 | G111: =VLOOKUP("U-Profil 80 Sonderlänge exkl. Dichtung, (Stangenware)",Sprachindex!$A:$Z,Haftungsausschluß!$O$6,FALSE) -> U-Profil 80 Sonderlänge exkl. Dichtung, (Stangenware) | O111: 0
C112: 750 | D112: 0 | E112: =VLOOKUP("[Stk]",Sprachindex!$A:$Z,Haftungsausschluß!$O$6,FALSE) -> [Stk] | F112: =IF($L$14=1,Preisliste!$E$42,Preisliste!$F$42) -> H501201 | G112: =VLOOKUP("Grundprofil 50 (H-Profil v.d.L.) exkl. Dichtung, gebohrt und entgratet",Sprachindex!$A:$Z,Haftungsausschluß!$O$6,FALSE) & IF('Kalkulation 1'!$AH$34," " & 'Kalkulation 1'!$R$9,"") -> Grundprofil 50 (H-Profil v.d.L.) exkl. Dichtung, gebohrt und entgratet | O112: 0
C113: 1350 | D113: 0 | E113: =VLOOKUP("[Stk]",Sprachindex!$A:$Z,Haftungsausschluß!$O$6,FALSE) -> [Stk] | F113: =IF($L$14=1,Preisliste!$E$43,Preisliste!$F$43) -> H501211 | G113: =VLOOKUP("Grundprofil 50 exkl. Dichtung, gebohrt und entgratet",Sprachindex!$A:$Z,Haftungsausschluß!$O$6,FALSE) & IF('Kalkulation 1'!$AH$34," " & 'Kalkulation 1'!$R$9,"") -> Grundprofil 50 exkl. Dichtung, gebohrt und entgratet | N113: 142.6 | O113: 0
C114: 1750 | D114: 0 | E114: =VLOOKUP("[Stk]",Sprachindex!$A:$Z,Haftungsausschluß!$O$6,FALSE) -> [Stk] | F114: =IF($L$14=1,Preisliste!$E$44,Preisliste!$F$44) -> H501212 | G114: =VLOOKUP("Grundprofil 50 (H-Profil v.d.L.) exkl. Dichtung, gebohrt und entgratet",Sprachindex!$A:$Z,Haftungsausschluß!$O$6,FALSE) & IF('Kalkulation 1'!$AH$34," " & 'Kalkulation 1'!$R$9,"") -> Grundprofil 50 (H-Profil v.d.L.) exkl. Dichtung, gebohrt und entgratet | O114: 0
C115: 2150 | D115: 0 | E115: =VLOOKUP("[Stk]",Sprachindex!$A:$Z,Haftungsausschluß!$O$6,FALSE) -> [Stk] | F115: =IF($L$14=1,Preisliste!$E$45,Preisliste!$F$45) -> H501222 | G115: =VLOOKUP("Grundprofil 50 (H-Profil v.d.L.) exkl. Dichtung, gebohrt und entgratet",Sprachindex!$A:$Z,Haftungsausschluß!$O$6,FALSE) & IF('Kalkulation 1'!$AH$34," " & 'Kalkulation 1'!$R$9,"") -> Grundprofil 50 (H-Profil v.d.L.) exkl. Dichtung, gebohrt und entgratet | O115: 0
C116: 3420 | D116: 0 | E116: =VLOOKUP("[Stk]",Sprachindex!$A:$Z,Haftungsausschluß!$O$6,FALSE) -> [Stk] | F116: =IF($L$14=1,Preisliste!$E$46,Preisliste!$F$46) -> 0 | G116: =VLOOKUP("Grundprofil 50 (H-Profil v.d.L.) Sonderlänge exkl. Dichtung, (Stangenware)",Sprachindex!$A:$Z,Haftungsausschluß!$O$6,FALSE) -> Grundprofil 50 (H-Profil v.d.L.) Sonderlänge exkl. Dichtung, (Stangenware) | O116: 0
C117: 750 | D117: 0 | E117: =VLOOKUP("[Stk]",Sprachindex!$A:$Z,Haftungsausschluß!$O$6,FALSE) -> [Stk] | F117: =IF($L$14=1,Preisliste!$E$49,Preisliste!$F$49) -> H801201 | G117: =VLOOKUP("Grundprofil 80 (H-Profil v.d.L.) exkl. Dichtung, gebohrt und entgratet",Sprachindex!$A:$Z,Haftungsausschluß!$O$6,FALSE) & IF('Kalkulation 1'!$AH$34," " & 'Kalkulation 1'!$R$9,"") -> Grundprofil 80 (H-Profil v.d.L.) exkl. Dichtung, gebohrt und entgratet | O117: 0
C118: 1350 | D118: 0 | E118: =VLOOKUP("[Stk]",Sprachindex!$A:$Z,Haftungsausschluß!$O$6,FALSE) -> [Stk] | F118: =IF($L$14=1,Preisliste!$E$50,Preisliste!$F$50) -> H801211 | G118: =VLOOKUP("Grundprofil 80 (H-Profil v.d.L.) exkl. Dichtung, gebohrt und entgratet",Sprachindex!$A:$Z,Haftungsausschluß!$O$6,FALSE) & IF('Kalkulation 1'!$AH$34," " & 'Kalkulation 1'!$R$9,"") -> Grundprofil 80 (H-Profil v.d.L.) exkl. Dichtung, gebohrt und entgratet | O118: 0
C119: 1750 | D119: 0 | E119: =VLOOKUP("[Stk]",Sprachindex!$A:$Z,Haftungsausschluß!$O$6,FALSE) -> [Stk] | F119: =IF($L$14=1,Preisliste!$E$51,Preisliste!$F$51) -> H801212 | G119: =VLOOKUP("Grundprofil 80 (H-Profil v.d.L.) exkl. Dichtung, gebohrt und entgratet",Sprachindex!$A:$Z,Haftungsausschluß!$O$6,FALSE) & IF('Kalkulation 1'!$AH$34," " & 'Kalkulation 1'!$R$9,"") -> Grundprofil 80 (H-Profil v.d.L.) exkl. Dichtung, gebohrt und entgratet | O119: 0
C120: 2150 | D120: 0 | E120: =VLOOKUP("[Stk]",Sprachindex!$A:$Z,Haftungsausschluß!$O$6,FALSE) -> [Stk] | F120: =IF($L$14=1,Preisliste!$E$52,Preisliste!$F$52) -> H801222 | G120: =VLOOKUP("Grundprofil 80 (H-Profil v.d.L.) exkl. Dichtung, gebohrt und entgratet",Sprachindex!$A:$Z,Haftungsausschluß!$O$6,FALSE) & IF('Kalkulation 1'!$AH$34," " & 'Kalkulation 1'!$R$9,"") -> Grundprofil 80 (H-Profil v.d.L.) exkl. Dichtung, gebohrt und entgratet | O120: 0
C121: 3320 | D121: 0 | E121: =VLOOKUP("[Stk]",Sprachindex!$A:$Z,Haftungsausschluß!$O$6,FALSE) -> [Stk] | F121: =IF($L$14=1,Preisliste!$E$53,Preisliste!$F$53) -> 0 | G121: =VLOOKUP("Grundprofil 80 (H-Profil v.d.L.) Sonderlänge exkl. Dichtung, (Stangenware)",Sprachindex!$A:$Z,Haftungsausschluß!$O$6,FALSE) -> Grundprofil 80 (H-Profil v.d.L.) Sonderlänge exkl. Dichtung, (Stangenware) | O121: 0
C122: 750 | D122: 0 | E122: =VLOOKUP("[Stk]",Sprachindex!$A:$Z,Haftungsausschluß!$O$6,FALSE) -> [Stk] | F122: =IF($L$14=1,Preisliste!$E$56,Preisliste!$F$56) -> H501301 | G122: =VLOOKUP("Rundprofil 50 exkl. Dichtung, gebohrt und entgratet",Sprachindex!$A:$Z,Haftungsausschluß!$O$6,FALSE) & " (7,81" & " " & VLOOKUP("kg/Stk",Sprachindex!$A:$Z,Haftungsausschluß!$O$6,FALSE) & ")" -> Rundprofil 50 exkl. Dichtung, gebohrt und entgratet (7,81 kg/Stk) | O122: 0
C123: 1350 | D123: 0 | E123: =VLOOKUP("[Stk]",Sprachindex!$A:$Z,Haftungsausschluß!$O$6,FALSE) -> [Stk] | F123: =IF($L$14=1,Preisliste!$E$57,Preisliste!$F$57) -> H501311 | G123: =VLOOKUP("Rundprofil 50 exkl. Dichtung, gebohrt und entgratet",Sprachindex!$A:$Z,Haftungsausschluß!$O$6,FALSE) & " (14,05" & " " & VLOOKUP("kg/Stk",Sprachindex!$A:$Z,Haftungsausschluß!$O$6,FALSE) & ")" -> Rundprofil 50 exkl. Dichtung, gebohrt und entgratet (14,05 kg/Stk) | O123: 0
C124: 1750 | D124: 0 | E124: =VLOOKUP("[Stk]",Sprachindex!$A:$Z,Haftungsausschluß!$O$6,FALSE) -> [Stk] | F124: =IF($L$14=1,Preisliste!$E$58,Preisliste!$F$58) -> H501312 | G124: =VLOOKUP("Rundprofil 50 exkl. Dichtung, gebohrt und entgratet",Sprachindex!$A:$Z,Haftungsausschluß!$O$6,FALSE) & " (18,21" & " " & VLOOKUP("kg/Stk",Sprachindex!$A:$Z,Haftungsausschluß!$O$6,FALSE) & ")" -> Rundprofil 50 exkl. Dichtung, gebohrt und entgratet (18,21 kg/Stk) | O124: 0
C125: 2150 | D125: 0 | E125: =VLOOKUP("[Stk]",Sprachindex!$A:$Z,Haftungsausschluß!$O$6,FALSE) -> [Stk] | F125: =IF($L$14=1,Preisliste!$E$59,Preisliste!$F$59) -> H501322 | G125: =VLOOKUP("Rundprofil 50 exkl. Dichtung, gebohrt und entgratet",Sprachindex!$A:$Z,Haftungsausschluß!$O$6,FALSE) & " (22,37" & " " & VLOOKUP("kg/Stk",Sprachindex!$A:$Z,Haftungsausschluß!$O$6,FALSE) & ")" -> Rundprofil 50 exkl. Dichtung, gebohrt und entgratet (22,37 kg/Stk) | O125: 0
C126: 3420 | D126: 0 | E126: =VLOOKUP("[Stk]",Sprachindex!$A:$Z,Haftungsausschluß!$O$6,FALSE) -> [Stk] | F126: =IF($L$14=1,Preisliste!$E$60,Preisliste!$F$60) -> 0 | G126: =VLOOKUP("Rundprofil 50 Sonderlänge exkl. Dichtung, (Stangenware)",Sprachindex!$A:$Z,Haftungsausschluß!$O$6,FALSE) -> Rundprofil 50 Sonderlänge exkl. Dichtung, (Stangenware) | O126: 0
C127: 750 | D127: 0 | E127: =VLOOKUP("[Stk]",Sprachindex!$A:$Z,Haftungsausschluß!$O$6,FALSE) -> [Stk] | F127: =IF($L$14=1,Preisliste!$E$62,Preisliste!$F$62) -> H801301 | G127: =VLOOKUP("Rundprofil 80 exkl. Dichtung, gebohrt und entgratet",Sprachindex!$A:$Z,Haftungsausschluß!$O$6,FALSE) & " (8,45" & " " & VLOOKUP("kg/Stk",Sprachindex!$A:$Z,Haftungsausschluß!$O$6,FALSE) & ")" -> Rundprofil 80 exkl. Dichtung, gebohrt und entgratet (8,45 kg/Stk) | O127: 0
C128: 1350 | D128: 0 | E128: =VLOOKUP("[Stk]",Sprachindex!$A:$Z,Haftungsausschluß!$O$6,FALSE) -> [Stk] | F128: =IF($L$14=1,Preisliste!$E$63,Preisliste!$F$63) -> H801311 | G128: =VLOOKUP("Rundprofil 80 exkl. Dichtung, gebohrt und entgratet",Sprachindex!$A:$Z,Haftungsausschluß!$O$6,FALSE) & " (15,20" & " " & VLOOKUP("kg/Stk",Sprachindex!$A:$Z,Haftungsausschluß!$O$6,FALSE) & ")" -> Rundprofil 80 exkl. Dichtung, gebohrt und entgratet (15,20 kg/Stk) | O128: 0
C129: 1750 | D129: 0 | E129: =VLOOKUP("[Stk]",Sprachindex!$A:$Z,Haftungsausschluß!$O$6,FALSE) -> [Stk] | F129: =IF($L$14=1,Preisliste!$E$64,Preisliste!$F$64) -> H801312 | G129: =VLOOKUP("Rundprofil 80 exkl. Dichtung, gebohrt und entgratet",Sprachindex!$A:$Z,Haftungsausschluß!$O$6,FALSE) & " (19,71" & " " & VLOOKUP("kg/Stk",Sprachindex!$A:$Z,Haftungsausschluß!$O$6,FALSE) & ")" -> Rundprofil 80 exkl. Dichtung, gebohrt und entgratet (19,71 kg/Stk) | O129: 0
C130: 2150 | D130: 0 | E130: =VLOOKUP("[Stk]",Sprachindex!$A:$Z,Haftungsausschluß!$O$6,FALSE) -> [Stk] | F130: =IF($L$14=1,Preisliste!$E$65,Preisliste!$F$65) -> H801322 | G130: =VLOOKUP("Rundprofil 80 exkl. Dichtung, gebohrt und entgratet",Sprachindex!$A:$Z,Haftungsausschluß!$O$6,FALSE) & " (24,21" & " " & VLOOKUP("kg/Stk",Sprachindex!$A:$Z,Haftungsausschluß!$O$6,FALSE) & ")" -> Rundprofil 80 exkl. Dichtung, gebohrt und entgratet (24,21 kg/Stk) | O130: 0
C131: 3320 | D131: 0 | E131: =VLOOKUP("[Stk]",Sprachindex!$A:$Z,Haftungsausschluß!$O$6,FALSE) -> [Stk] | F131: =IF($L$14=1,Preisliste!$E$66,Preisliste!$F$66) -> 0 | G131: =VLOOKUP("Rundprofil 80 Sonderlänge exkl. Dichtung, (Stangenware)",Sprachindex!$A:$Z,Haftungsausschluß!$O$6,FALSE) -> Rundprofil 80 Sonderlänge exkl. Dichtung, (Stangenware) | O131: 0
C132: 750 | D132: 0 | E132: =VLOOKUP("[Stk]",Sprachindex!$A:$Z,Haftungsausschluß!$O$6,FALSE) -> [Stk] | F132: =IF($L$14=1,Preisliste!$E$68,Preisliste!$F$68) -> H801340 | G132: =VLOOKUP("Rundprofil 80 gr. exkl. Dichtung, gebohrt und entgratet",Sprachindex!$A:$Z,Haftungsausschluß!$O$6,FALSE) & " (10,93" & " " & VLOOKUP("kg/Stk",Sprachindex!$A:$Z,Haftungsausschluß!$O$6,FALSE) & ")" -> Rundprofil 80 gr. exkl. Dichtung, gebohrt und entgratet (10,93 kg/Stk) | O132: 0
C133: 1350 | D133: 0 | E133: =VLOOKUP("[Stk]",Sprachindex!$A:$Z,Haftungsausschluß!$O$6,FALSE) -> [Stk] | F133: =IF($L$14=1,Preisliste!$E$69,Preisliste!$F$69) -> H801341 | G133: =VLOOKUP("Rundprofil 80 gr. exkl. Dichtung, gebohrt und entgratet",Sprachindex!$A:$Z,Haftungsausschluß!$O$6,FALSE) & " (19,67" & " " & VLOOKUP("kg/Stk",Sprachindex!$A:$Z,Haftungsausschluß!$O$6,FALSE) & ")" -> Rundprofil 80 gr. exkl. Dichtung, gebohrt und entgratet (19,67 kg/Stk) | O133: 0
C134: 1750 | D134: 0 | E134: =VLOOKUP("[Stk]",Sprachindex!$A:$Z,Haftungsausschluß!$O$6,FALSE) -> [Stk] | F134: =IF($L$14=1,Preisliste!$E$70,Preisliste!$F$70) -> H801342 | G134: =VLOOKUP("Rundprofil 80 gr. exkl. Dichtung, gebohrt und entgratet",Sprachindex!$A:$Z,Haftungsausschluß!$O$6,FALSE) & " (25,50" & " " & VLOOKUP("kg/Stk",Sprachindex!$A:$Z,Haftungsausschluß!$O$6,FALSE) & ")" -> Rundprofil 80 gr. exkl. Dichtung, gebohrt und entgratet (25,50 kg/Stk) | O134: 0
C135: 2150 | D135: 0 | E135: =VLOOKUP("[Stk]",Sprachindex!$A:$Z,Haftungsausschluß!$O$6,FALSE) -> [Stk] | F135: =IF($L$14=1,Preisliste!$E$71,Preisliste!$F$71) -> H801343 | G135: =VLOOKUP("Rundprofil 80 gr. exkl. Dichtung, gebohrt und entgratet",Sprachindex!$A:$Z,Haftungsausschluß!$O$6,FALSE) & " (31,33" & " " & VLOOKUP("kg/Stk",Sprachindex!$A:$Z,Haftungsausschluß!$O$6,FALSE) & ")" -> Rundprofil 80 gr. exkl. Dichtung, gebohrt und entgratet (31,33 kg/Stk) | O135: 0
C136: 2320 | D136: 0 | E136: =VLOOKUP("[Stk]",Sprachindex!$A:$Z,Haftungsausschluß!$O$6,FALSE) -> [Stk] | F136: =IF($L$14=1,Preisliste!$E$72,Preisliste!$F$72) -> 0 | G136: =VLOOKUP("Rundprofil 80 gr. Sonderlänge exkl. Dichtung, (Stangenware)",Sprachindex!$A:$Z,Haftungsausschluß!$O$6,FALSE) -> Rundprofil 80 gr. Sonderlänge exkl. Dichtung, (Stangenware) | O136: 0
C137: 750 | D137: 0 | E137: =VLOOKUP("[Stk]",Sprachindex!$A:$Z,Haftungsausschluß!$O$6,FALSE) -> [Stk] | F137: =IF($L$14=1,Preisliste!$E$74,Preisliste!$F$74) -> H501600 | G137: =VLOOKUP("Rundprofil 50-90° exkl. Dichtung, gebohrt und entgratet",Sprachindex!$A:$Z,Haftungsausschluß!$O$6,FALSE) -> Rundprofil 50-90° exkl. Dichtung, gebohrt und entgratet | O137: 0
C138: 1350 | D138: 0 | E138: =VLOOKUP("[Stk]",Sprachindex!$A:$Z,Haftungsausschluß!$O$6,FALSE) -> [Stk] | F138: =IF($L$14=1,Preisliste!$E$75,Preisliste!$F$75) -> H501601 | G138: =VLOOKUP("Rundprofil 50-90° exkl. Dichtung, gebohrt und entgratet",Sprachindex!$A:$Z,Haftungsausschluß!$O$6,FALSE) -> Rundprofil 50-90° exkl. Dichtung, gebohrt und entgratet | O138: 0
C139: 1750 | D139: 0 | E139: =VLOOKUP("[Stk]",Sprachindex!$A:$Z,Haftungsausschluß!$O$6,FALSE) -> [Stk] | F139: =IF($L$14=1,Preisliste!$E$76,Preisliste!$F$76) -> H501602 | G139: =VLOOKUP("Rundprofil 50-90° exkl. Dichtung, gebohrt und entgratet",Sprachindex!$A:$Z,Haftungsausschluß!$O$6,FALSE) -> Rundprofil 50-90° exkl. Dichtung, gebohrt und entgratet | O139: 0
C140: 2150 | D140: 0 | E140: =VLOOKUP("[Stk]",Sprachindex!$A:$Z,Haftungsausschluß!$O$6,FALSE) -> [Stk] | F140: =IF($L$14=1,Preisliste!$E$77,Preisliste!$F$77) -> H501603 | G140: =VLOOKUP("Rundprofil 50-90° exkl. Dichtung, gebohrt und entgratet",Sprachindex!$A:$Z,Haftungsausschluß!$O$6,FALSE) -> Rundprofil 50-90° exkl. Dichtung, gebohrt und entgratet | O140: 0
C141: 2320 | D141: 0 | E141: =VLOOKUP("[Stk]",Sprachindex!$A:$Z,Haftungsausschluß!$O$6,FALSE) -> [Stk] | F141: =IF($L$14=1,Preisliste!$E$78,Preisliste!$F$78) -> 0 | G141: =VLOOKUP("Rundprofil 50-90° Sonderlänge exkl. Dichtung, (Stangenware)",Sprachindex!$A:$Z,Haftungsausschluß!$O$6,FALSE) -> Rundprofil 50-90° Sonderlänge exkl. Dichtung, (Stangenware) | O141: 0
C142: 750 | D142: 0 | E142: =VLOOKUP("[Stk]",Sprachindex!$A:$Z,Haftungsausschluß!$O$6,FALSE) -> [Stk] | F142: =IF($L$14=1,Preisliste!$E$80,Preisliste!$F$80) -> H801600 | G142: =VLOOKUP("Rundprofil 80-90° exkl. Dichtung, gebohrt und entgratet",Sprachindex!$A:$Z,Haftungsausschluß!$O$6,FALSE) -> Rundprofil 80-90° exkl. Dichtung, gebohrt und entgratet | O142: 0
C143: 1350 | D143: 0 | E143: =VLOOKUP("[Stk]",Sprachindex!$A:$Z,Haftungsausschluß!$O$6,FALSE) -> [Stk] | F143: =IF($L$14=1,Preisliste!$E$81,Preisliste!$F$81) -> H801601 | G143: =VLOOKUP("Rundprofil 80-90° exkl. Dichtung, gebohrt und entgratet",Sprachindex!$A:$Z,Haftungsausschluß!$O$6,FALSE) -> Rundprofil 80-90° exkl. Dichtung, gebohrt und entgratet | O143: 0
C144: 1750 | D144: 0 | E144: =VLOOKUP("[Stk]",Sprachindex!$A:$Z,Haftungsausschluß!$O$6,FALSE) -> [Stk] | F144: =IF($L$14=1,Preisliste!$E$82,Preisliste!$F$82) -> H801602 | G144: =VLOOKUP("Rundprofil 80-90° exkl. Dichtung, gebohrt und entgratet",Sprachindex!$A:$Z,Haftungsausschluß!$O$6,FALSE) -> Rundprofil 80-90° exkl. Dichtung, gebohrt und entgratet | O144: 0
C145: 2150 | D145: 0 | E145: =VLOOKUP("[Stk]",Sprachindex!$A:$Z,Haftungsausschluß!$O$6,FALSE) -> [Stk] | F145: =IF($L$14=1,Preisliste!$E$83,Preisliste!$F$83) -> H801603 | G145: =VLOOKUP("Rundprofil 80-90° exkl. Dichtung, gebohrt und entgratet",Sprachindex!$A:$Z,Haftungsausschluß!$O$6,FALSE) -> Rundprofil 80-90° exkl. Dichtung, gebohrt und entgratet | O145: 0
C146: 3320 | D146: 0 | E146: =VLOOKUP("[Stk]",Sprachindex!$A:$Z,Haftungsausschluß!$O$6,FALSE) -> [Stk] | F146: =IF($L$14=1,Preisliste!$E$84,Preisliste!$F$84) -> 0 | G146: =VLOOKUP("Rundprofil 80-90° Sonderlänge exkl. Dichtung, (Stangenware)",Sprachindex!$A:$Z,Haftungsausschluß!$O$6,FALSE) -> Rundprofil 80-90° Sonderlänge exkl. Dichtung, (Stangenware) | O146: =N146*D146 -> 0
C147: 750 | D147: 0 | E147: =VLOOKUP("[Stk]",Sprachindex!$A:$Z,Haftungsausschluß!$O$6,FALSE) -> [Stk] | F147: =IF($L$14=1,Preisliste!$E$86,Preisliste!$F$86) -> H501610 | G147: =VLOOKUP("Rundprofil 50-Vario exkl. Dichtung, gebohrt und entgratet",Sprachindex!$A:$Z,Haftungsausschluß!$O$6,FALSE) -> Rundprofil 50-Vario exkl. Dichtung, gebohrt und entgratet | O147: 0
C148: 1350 | D148: 0 | E148: =VLOOKUP("[Stk]",Sprachindex!$A:$Z,Haftungsausschluß!$O$6,FALSE) -> [Stk] | F148: =IF($L$14=1,Preisliste!$E$87,Preisliste!$F$87) -> H501611 | G148: =VLOOKUP("Rundprofil 50-Vario exkl. Dichtung, gebohrt und entgratet",Sprachindex!$A:$Z,Haftungsausschluß!$O$6,FALSE) -> Rundprofil 50-Vario exkl. Dichtung, gebohrt und entgratet | O148: 0
C149: 1750 | D149: 0 | E149: =VLOOKUP("[Stk]",Sprachindex!$A:$Z,Haftungsausschluß!$O$6,FALSE) -> [Stk] | F149: =IF($L$14=1,Preisliste!$E$88,Preisliste!$F$88) -> H501612 | G149: =VLOOKUP("Rundprofil 50-Vario exkl. Dichtung, gebohrt und entgratet",Sprachindex!$A:$Z,Haftungsausschluß!$O$6,FALSE) -> Rundprofil 50-Vario exkl. Dichtung, gebohrt und entgratet | O149: 0
C150: 2150 | D150: 0 | E150: =VLOOKUP("[Stk]",Sprachindex!$A:$Z,Haftungsausschluß!$O$6,FALSE) -> [Stk] | F150: =IF($L$14=1,Preisliste!$E$89,Preisliste!$F$89) -> H501613 | G150: =VLOOKUP("Rundprofil 50-Vario exkl. Dichtung, gebohrt und entgratet",Sprachindex!$A:$Z,Haftungsausschluß!$O$6,FALSE) -> Rundprofil 50-Vario exkl. Dichtung, gebohrt und entgratet | O150: 0
C151: 3420 | D151: 0 | E151: =VLOOKUP("[Stk]",Sprachindex!$A:$Z,Haftungsausschluß!$O$6,FALSE) -> [Stk] | F151: =IF($L$14=1,Preisliste!$E$90,Preisliste!$F$90) -> 0 | G151: =VLOOKUP("Rundprofil 50-Vario Sonderlänge exkl. Dichtung, (Stangenware)",Sprachindex!$A:$Z,Haftungsausschluß!$O$6,FALSE) -> Rundprofil 50-Vario Sonderlänge exkl. Dichtung, (Stangenware) | O151: 0
C152: 750 | D152: 0 | E152: =VLOOKUP("[Stk]",Sprachindex!$A:$Z,Haftungsausschluß!$O$6,FALSE) -> [Stk] | F152: =IF($L$14=1,Preisliste!$E$92,Preisliste!$F$92) -> H801610 | G152: =VLOOKUP("Rundprofil 80-Vario exkl. Dichtung, gebohrt und entgratet",Sprachindex!$A:$Z,Haftungsausschluß!$O$6,FALSE) -> Rundprofil 80-Vario exkl. Dichtung, gebohrt und entgratet | O152: 0
C153: 1350 | D153: 0 | E153: =VLOOKUP("[Stk]",Sprachindex!$A:$Z,Haftungsausschluß!$O$6,FALSE) -> [Stk] | F153: =IF($L$14=1,Preisliste!$E$93,Preisliste!$F$93) -> H801611 | G153: =VLOOKUP("Rundprofil 80-Vario exkl. Dichtung, gebohrt und entgratet",Sprachindex!$A:$Z,Haftungsausschluß!$O$6,FALSE) -> Rundprofil 80-Vario exkl. Dichtung, gebohrt und entgratet | O153: 0
C154: 1750 | D154: 0 | E154: =VLOOKUP("[Stk]",Sprachindex!$A:$Z,Haftungsausschluß!$O$6,FALSE) -> [Stk] | F154: =IF($L$14=1,Preisliste!$E$94,Preisliste!$F$94) -> H801612 | G154: =VLOOKUP("Rundprofil 80-Vario exkl. Dichtung, gebohrt und entgratet",Sprachindex!$A:$Z,Haftungsausschluß!$O$6,FALSE) -> Rundprofil 80-Vario exkl. Dichtung, gebohrt und entgratet | O154: 0
C155: 2150 | D155: 0 | E155: =VLOOKUP("[Stk]",Sprachindex!$A:$Z,Haftungsausschluß!$O$6,FALSE) -> [Stk] | F155: =IF($L$14=1,Preisliste!$E$95,Preisliste!$F$95) -> H801613 | G155: =VLOOKUP("Rundprofil 80-Vario exkl. Dichtung, gebohrt und entgratet",Sprachindex!$A:$Z,Haftungsausschluß!$O$6,FALSE) -> Rundprofil 80-Vario exkl. Dichtung, gebohrt und entgratet | O155: 0
C156: 3320 | D156: 0 | E156: =VLOOKUP("[Stk]",Sprachindex!$A:$Z,Haftungsausschluß!$O$6,FALSE) -> [Stk] | F156: =IF($L$14=1,Preisliste!$E$96,Preisliste!$F$96) -> 0 | G156: =VLOOKUP("Rundprofil 80-Vario Sonderlänge exkl. Dichtung, (Stangenware)",Sprachindex!$A:$Z,Haftungsausschluß!$O$6,FALSE) -> Rundprofil 80-Vario Sonderlänge exkl. Dichtung, (Stangenware) | O156: 0
D157: =B157 -> 0 | E157: =VLOOKUP("[Stk]",Sprachindex!$A:$Z,Haftungsausschluß!$O$6,FALSE) -> [Stk] | F157: =IF($L$14=1,Preisliste!$E$98,Preisliste!$F$98) -> H001030 | G157: =VLOOKUP("Bodenhülse 50/80 beschichtet inkl. Aluminiumdeckel und Dichtung",Sprachindex!$A:$Z,Haftungsausschluß!$O$6,FALSE) -> Bodenhülse 50/80 beschichtet inkl. Aluminiumdeckel und Dichtung | O157: 0
D158: =B158 -> 0 | E158: =VLOOKUP("[Stk]",Sprachindex!$A:$Z,Haftungsausschluß!$O$6,FALSE) -> [Stk] | F158: =IF($L$14=1,Preisliste!$E$99,Preisliste!$F$99) -> H001040 | G158: =VLOOKUP("Bodenhülse 50/80 beschichtet inkl. Edelstahldeckel und Dichtung",Sprachindex!$A:$Z,Haftungsausschluß!$O$6,FALSE) -> Bodenhülse 50/80 beschichtet inkl. Edelstahldeckel und Dichtung | O158: 0
D159: 0 | E159: =VLOOKUP("[Stk]",Sprachindex!$A:$Z,Haftungsausschluß!$O$6,FALSE) -> [Stk] | F159: =IF($L$14=1,Preisliste!$E$101,Preisliste!$F$101) -> H001031 | G159: =VLOOKUP("Bodenhülse (GROSS) 50 Vario und 80 beschichtet inkl. Aluminiumdeckel und Dichtung",Sprachindex!$A:$Z,Haftungsausschluß!$O$6,FALSE) -> Bodenhülse (GROSS) 50 Vario und 80 beschichtet inkl. Aluminiumdeckel und Dichtung | O159: 0
D160: 0 | E160: =VLOOKUP("[Stk]",Sprachindex!$A:$Z,Haftungsausschluß!$O$6,FALSE) -> [Stk] | F160: =IF($L$14=1,Preisliste!$E$102,Preisliste!$F$102) -> H001041 | G160: =VLOOKUP("Bodenhülse (GROSS) 50 Vario und 80 beschichtet inkl. Edelstahldeckel und Dichtung",Sprachindex!$A:$Z,Haftungsausschluß!$O$6,FALSE) -> Bodenhülse (GROSS) 50 Vario und 80 beschichtet inkl. Edelstahldeckel und Dichtung | O160: 0
C161: 750 | D161: 0 | E161: =VLOOKUP("[Stk]",Sprachindex!$A:$Z,Haftungsausschluß!$O$6,FALSE) -> [Stk] | F161: =IF($L$14=1,Preisliste!$E$104,Preisliste!$F$104) -> H501031 | G161: =VLOOKUP("Niederhalter inkl. Spannstück, Verbundanker und Gewindestange",Sprachindex!$A:$Z,Haftungsausschluß!$O$6,FALSE) -> Niederhalter inkl. Spannstück, Verbundanker und Gewindestange | O161: 0
C162: 1350 | D162: 0 | E162: =VLOOKUP("[Stk]",Sprachindex!$A:$Z,Haftungsausschluß!$O$6,FALSE) -> [Stk] | F162: =IF($L$14=1,Preisliste!$E$105,Preisliste!$F$105) -> H501041 | G162: =VLOOKUP("Niederhalter inkl. Spannstück, Verbundanker und Gewindestange",Sprachindex!$A:$Z,Haftungsausschluß!$O$6,FALSE) -> Niederhalter inkl. Spannstück, Verbundanker und Gewindestange | O162: 0
C163: 1750 | D163: 0 | E163: =VLOOKUP("[Stk]",Sprachindex!$A:$Z,Haftungsausschluß!$O$6,FALSE) -> [Stk] | F163: =IF($L$14=1,Preisliste!$E$106,Preisliste!$F$106) -> H501042 | G163: =VLOOKUP("Niederhalter inkl. Spannstück, Verbundanker und Gewindestange",Sprachindex!$A:$Z,Haftungsausschluß!$O$6,FALSE) -> Niederhalter inkl. Spannstück, Verbundanker und Gewindestange | O163: 0
D164: 0 | E164: =VLOOKUP("[Stk]",Sprachindex!$A:$Z,Haftungsausschluß!$O$6,FALSE) -> [Stk] | F164: =IF($L$14=1,Preisliste!$E$109,Preisliste!$F$109) -> H001071 | G164: =VLOOKUP("Spannstück mit Sterngriff",Sprachindex!$A:$Z,Haftungsausschluß!$O$6,FALSE) -> Spannstück mit Sterngriff | N164: 65.63 | O164: 0
D165: 0 | E165: =VLOOKUP("[Stk]",Sprachindex!$A:$Z,Haftungsausschluß!$O$6,FALSE) -> [Stk] | F165: =IF($L$14=1,Preisliste!$E$110,Preisliste!$F$110) -> H001061 | G165: =VLOOKUP("Spannstück mit 6-Kantschraube",Sprachindex!$A:$Z,Haftungsausschluß!$O$6,FALSE) -> Spannstück mit 6-Kantschraube | O165: 0
D166: 0 | E166: =VLOOKUP("[lfm]",Sprachindex!$A:$Z,Haftungsausschluß!$O$6,FALSE) -> [lfm] | F166: =IF($L$14=1,Preisliste!$E$114,Preisliste!$F$114) -> H251900 | G166: =VLOOKUP("Bodendichtung 25",Sprachindex!$A:$Z,Haftungsausschluß!$O$6,FALSE) -> Bodendichtung 25 | O166: 0
D167: 0 | E167: =VLOOKUP("[lfm]",Sprachindex!$A:$Z,Haftungsausschluß!$O$6,FALSE) -> [lfm] | F167: =IF($L$14=1,Preisliste!$E$115,Preisliste!$F$115) -> H501901 | G167: =VLOOKUP("Bodendichtung 50",Sprachindex!$A:$Z,Haftungsausschluß!$O$6,FALSE) -> Bodendichtung 50 | N167: 18.6 | O167: 0
D168: 0 | E168: =VLOOKUP("[lfm]",Sprachindex!$A:$Z,Haftungsausschluß!$O$6,FALSE) -> [lfm] | F168: =IF($L$14=1,Preisliste!$E$116,Preisliste!$F$116) -> H801901 | G168: =VLOOKUP("Bodendichtung 80",Sprachindex!$A:$Z,Haftungsausschluß!$O$6,FALSE) -> Bodendichtung 80 | O168: 0
D169: 0 | E169: =VLOOKUP("[VPE]",Sprachindex!$A:$Z,Haftungsausschluß!$O$6,FALSE) -> [VPE] | F169: =IF($L$14=1,Preisliste!$E$117,Preisliste!$F$117) -> H001080 | G169: =VLOOKUP("Dammbalkendichtung (50+80)",Sprachindex!$A:$Z,Haftungsausschluß!$O$6,FALSE) -> Dammbalkendichtung (50+80) | N169: 45.86 | O169: 0
D170: 0 | E170: =VLOOKUP("[VPE]",Sprachindex!$A:$Z,Haftungsausschluß!$O$6,FALSE) -> [VPE] | F170: =IF($L$14=1,Preisliste!$E$118,Preisliste!$F$118) -> H251901 | G170: =VLOOKUP("Dammbalkendichtung (25)",Sprachindex!$A:$Z,Haftungsausschluß!$O$6,FALSE) -> Dammbalkendichtung (25) | O170: 0
D171: 0 | E171: =VLOOKUP("[VPE]",Sprachindex!$A:$Z,Haftungsausschluß!$O$6,FALSE) -> [VPE] | F171: =IF($L$14=1,Preisliste!$E$119,Preisliste!$F$119) -> H001090 | G171: =VLOOKUP("Grundprofildichtung",Sprachindex!$A:$Z,Haftungsausschluß!$O$6,FALSE) -> Grundprofildichtung | N171: 41.93 | O171: 0
D172: 0 | E172: =VLOOKUP("[lfm]",Sprachindex!$A:$Z,Haftungsausschluß!$O$6,FALSE) -> [lfm] | F172: =IF($L$14=1,Preisliste!$E$120,Preisliste!$F$120) -> H001081 | G172: =VLOOKUP("Dauerbodendichtung 50",Sprachindex!$A:$Z,Haftungsausschluß!$O$6,FALSE) -> Dauerbodendichtung 50 | O172: 0
D173: 0 | E173: =VLOOKUP("[lfm]",Sprachindex!$A:$Z,Haftungsausschluß!$O$6,FALSE) -> [lfm] | F173: =IF($L$14=1,Preisliste!$E$121,Preisliste!$F$121) -> H001082 | G173: =VLOOKUP("Dauerbodendichtung 80",Sprachindex!$A:$Z,Haftungsausschluß!$O$6,FALSE) -> Dauerbodendichtung 80 | O173: 0
C174: 750 | D174: 0 | E174: =VLOOKUP("[Stk]",Sprachindex!$A:$Z,Haftungsausschluß!$O$6,FALSE) -> [Stk] | F174: =IF($L$14=1,Preisliste!$E$123,Preisliste!$F$123) -> H251050 | G174: =VLOOKUP("Abdeckung VO 25, entgratet",Sprachindex!$A:$Z,Haftungsausschluß!$O$6,FALSE) & IF('Kalkulation 1'!$AH$35," " & 'Kalkulation 1'!$R$9,"") -> Abdeckung VO 25, entgratet | O174: 0
C175: 1350 | D175: 0 | E175: =VLOOKUP("[Stk]",Sprachindex!$A:$Z,Haftungsausschluß!$O$6,FALSE) -> [Stk] | F175: =IF($L$14=1,Preisliste!$E$124,Preisliste!$F$124) -> H251051 | G175: =VLOOKUP("Abdeckung VO 25, entgratet",Sprachindex!$A:$Z,Haftungsausschluß!$O$6,FALSE) & IF('Kalkulation 1'!$AH$35," " & 'Kalkulation 1'!$R$9,"") -> Abdeckung VO 25, entgratet | O175: 0
C176: 750 | D176: 0 | E176: =VLOOKUP("[Stk]",Sprachindex!$A:$Z,Haftungsausschluß!$O$6,FALSE) -> [Stk] | F176: =IF($L$14=1,Preisliste!$E$126,Preisliste!$F$126) -> H501401 | G176: =VLOOKUP("Abdeckung VO 50, gebohrt und entgratet",Sprachindex!$A:$Z,Haftungsausschluß!$O$6,FALSE) & IF('Kalkulation 1'!$AH$35," " & 'Kalkulation 1'!$R$9,"") -> Abdeckung VO 50, gebohrt und entgratet | O176: 0
C177: 1350 | D177: 0 | E177: =VLOOKUP("[Stk]",Sprachindex!$A:$Z,Haftungsausschluß!$O$6,FALSE) -> [Stk] | F177: =IF($L$14=1,Preisliste!$E$127,Preisliste!$F$127) -> H501411 | G177: =VLOOKUP("Abdeckung VO 50, gebohrt und entgratet",Sprachindex!$A:$Z,Haftungsausschluß!$O$6,FALSE) & IF('Kalkulation 1'!$AH$35," " & 'Kalkulation 1'!$R$9,"") -> Abdeckung VO 50, gebohrt und entgratet | O177: 0
C178: 1750 | D178: 0 | E178: =VLOOKUP("[Stk]",Sprachindex!$A:$Z,Haftungsausschluß!$O$6,FALSE) -> [Stk] | F178: =IF($L$14=1,Preisliste!$E$128,Preisliste!$F$128) -> H501412 | G178: =VLOOKUP("Abdeckung VO 50, gebohrt und entgratet",Sprachindex!$A:$Z,Haftungsausschluß!$O$6,FALSE) & IF('Kalkulation 1'!$AH$35," " & 'Kalkulation 1'!$R$9,"") -> Abdeckung VO 50, gebohrt und entgratet | O178: 0
C179: 2150 | D179: 0 | E179: =VLOOKUP("[Stk]",Sprachindex!$A:$Z,Haftungsausschluß!$O$6,FALSE) -> [Stk] | F179: =IF($L$14=1,Preisliste!$E$129,Preisliste!$F$129) -> H501422 | G179: =VLOOKUP("Abdeckung VO 50, gebohrt und entgratet",Sprachindex!$A:$Z,Haftungsausschluß!$O$6,FALSE) & IF('Kalkulation 1'!$AH$35," " & 'Kalkulation 1'!$R$9,"") -> Abdeckung VO 50, gebohrt und entgratet | O179: 0
C180: 750 | D180: 0 | E180: =VLOOKUP("[Stk]",Sprachindex!$A:$Z,Haftungsausschluß!$O$6,FALSE) -> [Stk] | F180: =IF($L$14=1,Preisliste!$E$141,Preisliste!$F$141) -> H801401 | G180: =VLOOKUP("Abdeckung VO 80, gebohrt und entgratet",Sprachindex!$A:$Z,Haftungsausschluß!$O$6,FALSE) & IF('Kalkulation 1'!$AH$35," " & 'Kalkulation 1'!$R$9,"") -> Abdeckung VO 80, gebohrt und entgratet | O180: 0
C181: 1350 | D181: 0 | E181: =VLOOKUP("[Stk]",Sprachindex!$A:$Z,Haftungsausschluß!$O$6,FALSE) -> [Stk] | F181: =IF($L$14=1,Preisliste!$E$142,Preisliste!$F$142) -> H801411 | G181: =VLOOKUP("Abdeckung VO 80, gebohrt und entgratet",Sprachindex!$A:$Z,Haftungsausschluß!$O$6,FALSE) & IF('Kalkulation 1'!$AH$35," " & 'Kalkulation 1'!$R$9,"") -> Abdeckung VO 80, gebohrt und entgratet | O181: 0
C182: 1750 | D182: 0 | E182: =VLOOKUP("[Stk]",Sprachindex!$A:$Z,Haftungsausschluß!$O$6,FALSE) -> [Stk] | F182: =IF($L$14=1,Preisliste!$E$143,Preisliste!$F$143) -> H801412 | G182: =VLOOKUP("Abdeckung VO 80, gebohrt und entgratet",Sprachindex!$A:$Z,Haftungsausschluß!$O$6,FALSE) & IF('Kalkulation 1'!$AH$35," " & 'Kalkulation 1'!$R$9,"") -> Abdeckung VO 80, gebohrt und entgratet | O182: 0
C183: 2150 | D183: 0 | E183: =VLOOKUP("[Stk]",Sprachindex!$A:$Z,Haftungsausschluß!$O$6,FALSE) -> [Stk] | F183: =IF($L$14=1,Preisliste!$E$144,Preisliste!$F$144) -> H801422 | G183: =VLOOKUP("Abdeckung VO 80, gebohrt und entgratet",Sprachindex!$A:$Z,Haftungsausschluß!$O$6,FALSE) & IF('Kalkulation 1'!$AH$35," " & 'Kalkulation 1'!$R$9,"") -> Abdeckung VO 80, gebohrt und entgratet | O183: 0
C184: 750 | D184: 0 | E184: =VLOOKUP("[Stk]",Sprachindex!$A:$Z,Haftungsausschluß!$O$6,FALSE) -> [Stk] | F184: =IF($L$14=1,Preisliste!$E$131,Preisliste!$F$131) -> H251040 | G184: =VLOOKUP("Abdeckung V 25, entgratet",Sprachindex!$A:$Z,Haftungsausschluß!$O$6,FALSE) & IF('Kalkulation 1'!$AH$35," " & 'Kalkulation 1'!$R$9,"") -> Abdeckung V 25, entgratet | O184: 0
C185: 1350 | D185: 0 | E185: =VLOOKUP("[Stk]",Sprachindex!$A:$Z,Haftungsausschluß!$O$6,FALSE) -> [Stk] | F185: =IF($L$14=1,Preisliste!$E$132,Preisliste!$F$132) -> H251041 | G185: =VLOOKUP("Abdeckung V 25, entgratet",Sprachindex!$A:$Z,Haftungsausschluß!$O$6,FALSE) & IF('Kalkulation 1'!$AH$35," " & 'Kalkulation 1'!$R$9,"") -> Abdeckung V 25, entgratet | O185: 0
C186: 750 | D186: 0 | E186: =VLOOKUP("[Stk]",Sprachindex!$A:$Z,Haftungsausschluß!$O$6,FALSE) -> [Stk] | F186: =IF($L$14=1,Preisliste!$E$135,Preisliste!$F$135) -> H501501 | G186: =VLOOKUP("Abdeckung V 50, gebohrt und entgratet",Sprachindex!$A:$Z,Haftungsausschluß!$O$6,FALSE) & IF('Kalkulation 1'!$AH$35," " & 'Kalkulation 1'!$R$9,"") -> Abdeckung V 50, gebohrt und entgratet | O186: 0
C187: 1350 | D187: 0 | E187: =VLOOKUP("[Stk]",Sprachindex!$A:$Z,Haftungsausschluß!$O$6,FALSE) -> [Stk] | F187: =IF($L$14=1,Preisliste!$E$136,Preisliste!$F$136) -> H501511 | G187: =VLOOKUP("Abdeckung V 50, gebohrt und entgratet",Sprachindex!$A:$Z,Haftungsausschluß!$O$6,FALSE) & IF('Kalkulation 1'!$AH$35," " & 'Kalkulation 1'!$R$9,"") -> Abdeckung V 50, gebohrt und entgratet | N187: 21 | O187: 0
C188: 1750 | D188: 0 | E188: =VLOOKUP("[Stk]",Sprachindex!$A:$Z,Haftungsausschluß!$O$6,FALSE) -> [Stk] | F188: =IF($L$14=1,Preisliste!$E$137,Preisliste!$F$137) -> H501512 | G188: =VLOOKUP("Abdeckung V 50, gebohrt und entgratet",Sprachindex!$A:$Z,Haftungsausschluß!$O$6,FALSE) & IF('Kalkulation 1'!$AH$35," " & 'Kalkulation 1'!$R$9,"") -> Abdeckung V 50, gebohrt und entgratet | O188: 0
C189: 2150 | D189: 0 | E189: =VLOOKUP("[Stk]",Sprachindex!$A:$Z,Haftungsausschluß!$O$6,FALSE) -> [Stk] | F189: =IF($L$14=1,Preisliste!$E$138,Preisliste!$F$138) -> H501522 | G189: =VLOOKUP("Abdeckung V 50, gebohrt und entgratet",Sprachindex!$A:$Z,Haftungsausschluß!$O$6,FALSE) & IF('Kalkulation 1'!$AH$35," " & 'Kalkulation 1'!$R$9,"") -> Abdeckung V 50, gebohrt und entgratet | O189: 0
C190: 750 | D190: 0 | E190: =VLOOKUP("[Stk]",Sprachindex!$A:$Z,Haftungsausschluß!$O$6,FALSE) -> [Stk] | F190: =IF($L$14=1,Preisliste!$E$146,Preisliste!$F$146) -> H801501 | G190: =VLOOKUP("Abdeckung V 80, gebohrt und entgratet",Sprachindex!$A:$Z,Haftungsausschluß!$O$6,FALSE) & IF('Kalkulation 1'!$AH$35," " & 'Kalkulation 1'!$R$9,"") -> Abdeckung V 80, gebohrt und entgratet | O190: 0
C191: 1350 | D191: 0 | E191: =VLOOKUP("[Stk]",Sprachindex!$A:$Z,Haftungsausschluß!$O$6,FALSE) -> [Stk] | F191: =IF($L$14=1,Preisliste!$E$147,Preisliste!$F$147) -> H801511 | G191: =VLOOKUP("Abdeckung V 80, gebohrt und entgratet",Sprachindex!$A:$Z,Haftungsausschluß!$O$6,FALSE) & IF('Kalkulation 1'!$AH$35," " & 'Kalkulation 1'!$R$9,"") -> Abdeckung V 80, gebohrt und entgratet | O191: 0
C192: 1750 | D192: 0 | E192: =VLOOKUP("[Stk]",Sprachindex!$A:$Z,Haftungsausschluß!$O$6,FALSE) -> [Stk] | F192: =IF($L$14=1,Preisliste!$E$148,Preisliste!$F$148) -> H801512 | G192: =VLOOKUP("Abdeckung V 80, gebohrt und entgratet",Sprachindex!$A:$Z,Haftungsausschluß!$O$6,FALSE) & IF('Kalkulation 1'!$AH$35," " & 'Kalkulation 1'!$R$9,"") -> Abdeckung V 80, gebohrt und entgratet | O192: 0
C193: 2150 | D193: 0 | E193: =VLOOKUP("[Stk]",Sprachindex!$A:$Z,Haftungsausschluß!$O$6,FALSE) -> [Stk] | F193: =IF($L$14=1,Preisliste!$E$149,Preisliste!$F$149) -> H801522 | G193: =VLOOKUP("Abdeckung V 80, gebohrt und entgratet",Sprachindex!$A:$Z,Haftungsausschluß!$O$6,FALSE) & IF('Kalkulation 1'!$AH$35," " & 'Kalkulation 1'!$R$9,"") -> Abdeckung V 80, gebohrt und entgratet | O193: 0
D194: 0 | E194: =VLOOKUP("[Stk]",Sprachindex!$A:$Z,Haftungsausschluß!$O$6,FALSE) -> [Stk] | F194: =IF($L$14=1,Preisliste!$E$152,Preisliste!$F$152) -> H001010 | G194: =VLOOKUP("Sicherungsschraube für Abdeckung",Sprachindex!$A:$Z,Haftungsausschluß!$O$6,FALSE) -> Sicherungsschraube für Abdeckung | O194: 0
D195: 0 | E195: =VLOOKUP("[Paar]",Sprachindex!$A:$Z,Haftungsausschluß!$O$6,FALSE) -> [Paar] | F195: =IF($L$14=1,Preisliste!$E$154,Preisliste!$F$154) -> H001020 | G195: =VLOOKUP("Halterung für Dammbalken",Sprachindex!$A:$Z,Haftungsausschluß!$O$6,FALSE) -> Halterung für Dammbalken | O195: 0
D196: 0 | E196: =VLOOKUP("[Stk]",Sprachindex!$A:$Z,Haftungsausschluß!$O$6,FALSE) -> [Stk] | F196: =IF($L$14=1,Preisliste!$E$155,Preisliste!$F$155) -> H002010 | G196: =VLOOKUP("Lagerabdeckung (Mittelteil)",Sprachindex!$A:$Z,Haftungsausschluß!$O$6,FALSE) & IF('Kalkulation 1'!AH36," " & 'Kalkulation 1'!R9,"") -> Lagerabdeckung (Mittelteil) | O196: 0
D197: =B197 -> 0 | E197: =VLOOKUP("[lfm]",Sprachindex!$A:$Z,Haftungsausschluß!$O$6,FALSE) -> [lfm] | F197: =IF($L$14=1,Preisliste!$E$113,Preisliste!$F$113) -> H001083 | G197: =VLOOKUP("Dauerbodendichtung 25",Sprachindex!$A:$Z,Haftungsausschluß!$O$6,FALSE) -> Dauerbodendichtung 25 | O197: 0
D198: 0 | E198: =VLOOKUP("[Stk]",Sprachindex!$A:$Z,Haftungsausschluß!$O$6,FALSE) -> [Stk] | F198: =IF($L$14=1,Preisliste!$E$156,Preisliste!$F$156) -> H002011 | G198: =VLOOKUP("Lagerabdeckung (Seitenteil)",Sprachindex!$A:$Z,Haftungsausschluß!$O$6,FALSE) & IF('Kalkulation 1'!AH36," " & 'Kalkulation 1'!R9,"") -> Lagerabdeckung (Seitenteil) | O198: 0
D199: 0 | E199: =VLOOKUP("[Stk]",Sprachindex!$A:$Z,Haftungsausschluß!$O$6,FALSE) -> [Stk] | F199: =IF($L$14=1,Preisliste!$E$162,Preisliste!$F$162) -> H001101 | G199: =VLOOKUP("Hebehilfe für Bodenhülsendeckel",Sprachindex!$A:$Z,Haftungsausschluß!$O$6,FALSE) -> Hebehilfe für Bodenhülsendeckel | O199: =N199*D199 -> 0
D200: 0 | E200: =VLOOKUP("[Stk]",Sprachindex!$A:$Z,Haftungsausschluß!$O$6,FALSE) -> [Stk] | F200: =IF($L$14=1,Preisliste!$E$165,Preisliste!$F$165) -> - | G200: =VLOOKUP("Aufpreis Ausfräsung Wandprofil für Dammbalken",Sprachindex!$A:$Z,Haftungsausschluß!$O$6,FALSE) -> Aufpreis Ausfräsung Wandprofil für Dammbalken | O200: 0
D201: 0 | E201: =VLOOKUP("[Stk]",Sprachindex!$A:$Z,Haftungsausschluß!$O$6,FALSE) -> [Stk] | F201: =IF($L$14=1,Preisliste!$E$166,Preisliste!$F$166) -> - | G201: =VLOOKUP("Aufpreis Längenänderung Wandprofil",Sprachindex!$A:$Z,Haftungsausschluß!$O$6,FALSE) -> Aufpreis Längenänderung Wandprofil | O201: 0
D202: 0 | E202: =VLOOKUP("[Stk]",Sprachindex!$A:$Z,Haftungsausschluß!$O$6,FALSE) -> [Stk] | F202: =IF($L$14=1,Preisliste!$E$167,Preisliste!$F$167) -> - | G202: =VLOOKUP("Aufpreis Verankerung aufgeschweißt (a 300mm)",Sprachindex!$A:$Z,Haftungsausschluß!$O$6,FALSE) -> Aufpreis Verankerung aufgeschweißt (a 300mm) | O202: 0
D203: 1 | E203: =VLOOKUP("[Stk]",Sprachindex!$A:$Z,Haftungsausschluß!$O$6,FALSE) -> [Stk] | F203: H001103 | G203: =VLOOKUP("Dammbalkenhaken",Sprachindex!$A:$Z,Haftungsausschluß!$O$6,FALSE) -> Dammbalkenhaken | N203: 0 | O203: 0
D204: 0 | E204: =VLOOKUP("[Stk]",Sprachindex!$A:$Z,Haftungsausschluß!$O$6,FALSE) -> [Stk] | F204: H002050 | G204: =VLOOKUP("Dichtungsroller 25/50",Sprachindex!$A:$Z,Haftungsausschluß!$O$6,FALSE) -> Dichtungsroller 25/50 | O204: 0
... 494 more rows

Sheet Statik 1-Zusatzberechnungen-1 (hidden)
A1: Schnittgrößen und Bemessung:
E2: 4 | F2: 3 | G2: 2 | H2: 1 | M2: =IF('Kalkulation 1'!$AM$17=1,$H$3,IF('Kalkulation 1'!$AM$17=2,$G$3,IF('Kalkulation 1'!$AM$17=3,$F$3,IF('Kalkulation 1'!$AM$17=4,$E$3,0)))) -> 50/200
D3: Statik Dammbalken: | E3: 80/200 | F3: 50/200 | G3: 50/150 | H3: 25/200 | M3: 50/200
D4: Trägheitsmoment: J | E4: 3201932 | F4: 644509 | G4: 826200 | H4: 123585 | I4: mm4
A5: charakteristische Belastung der | L5: Materialdaten: | Q5: dyn. Daten:
L6: ENAW 6063 T66 | Q6: Fließgeschwindigkeit: v | R6: =Haftungsausschluß!F31 -> 4 | S6: m/s
A7: Seitenprofile in Druckrichtung | D7: Balkenhöhe h: | E7: 200 | F7: 200 | G7: 150 | H7: 200 | I7: mm | L7: Streckgrenze Rp 0,2: fo | M7: 200 | N7: N/mm2 | Q7: Anströmwinkel: d | R7: 0 | S7: °
D8: Balkenbreite b: | E8: 80 | F8: 50 | G8: 50 | H8: 25 | I8: mm | L8: E Modul: EAL | M8: 70000 | N8: N/mm2 | Q8: anprallende Treibgutmasse: m | R8: =Haftungsausschluß!F32 -> 0.4 | S8: t
A9: w max | D9: Gewicht: | E9: 7.784 | F9: 4.12 | G9: 5.624 | H9: 2.99 | I9: kg | L9: Teilsicherheit Material: gM | M9: 1.1 | Q9: Dichte Wasser inkl. Geschiebe: rw | R9: =Haftungsausschluß!F30 -> 1000 | S9: kg/m³
A10: [kN/m] | D10: Gewicht/m² | E10: =1000/E7*E9 -> 38.92 | F10: =1000/F7*F9 -> 20.6 | G10: 37.49333333 | H10: 14.93 | I10: kg | L10: Wichte Wasser: gw | M10: =R9/10^8 -> 1e-05 | N10: N/mm³ (10kN/m³)
D20: Statik Rundprofil: | E20: S8246 | F20: S6598 | G20: S6598 | H20: S10464
D22: Trägheitsmoment: | E22: 10515101 | F22: 7259076 | G22: 7259076 | H22: 20794202 | I22: mm4
D23: max. Randfaserabstand: | E23: 71 | F23: =137.1-66.2 -> 70.9 | G23: =137.1-66.2 -> 70.9 | H23: 92.75 | I23: mm
D24: Widerstandsmoment: | E24: =E22/E23 -> 148100.0141 | F24: =F22/F23 -> 102384.7109 | G24: 102384.7109 | H24: 224196.248 | I24: mm³
D25: Durchmesser: | E25: 140 | F25: 140 | G25: 140 | H25: 185.5 | I25: mm
D26: Gewicht je lfm: | E26: 11.258 | F26: 10.401 | G26: 10.401 | H26: 14.5690515 | I26: kg/m
L29: Dammbalken Daten | BB29: Steher Daten
L30: Balkenhöhe h: | M30: Balkenbreite b: | N30: Gewicht: | O30: Gewicht/m² | P30: Trägheitsmoment: J | Q30: Widerstandsmoment: | BB30: Durchmesser D: | BC30: Länge Rundprofil lR: | BD30: Gewicht: | BE30: Trägheitsmoment: | BF30: Widerstandsmoment;
L31: mm | M31: mm | N31: kg/m | O31: kg/m² | P31: mm4 | Q31: mm3 | BB31: mm | BC31: mm | BD31: kg | BE31: mm4 | BF31: mm3
L32: 200 | M32: 50 | N32: 4.12 | O32: =1000/L32*N32 -> 20.6 | P32: 644509 | Q32: 25780.36 | BB32: 140 | BC32: 1050 | BD32: 10.92105 | BE32: 7259076 | BF32: 102384.7109
V34: Hydrodynamisch & Hydrostatisch | AJ34: Treibgut | AR34: Kombination Hydrodynamisch + Hydrostatisch + Treibgut
K35: Gewicht je Balken: | L35: Hydrodynamischer Druck am Balken: pStr | M35: Hydrostatischer Druck am Balken: p0 | N35: Hydrostatischer + Hydrodynamischer Druck am Balken: pmax | O35: Durchbiegung HD: f | P35: Durchbiegung HS: f | Q35: Durchbiegung HD+HS: f | R35: Stützweite / Durchbiegung HD: D | S35: Stützweite / Durchbiegung HS: D | T35: Stützweite / Durchbiegung HD+HS: D | V35: Moment zufolge HD: Mk | W35: Moment zufolge HS: Mk | X35: Moment zufolge HD+HS: Mk | Y35: Teilsicherheit Last: gL | Z35: Bemessungsmoment HD: Msd | AA35: Bemessungsmoment HS: Msd | AB35: Bemessungsmoment HD+HS: Msd | AC35: Spannung HD: smax | AD35: Spannung HS: smax | AE35: Spannung HD+HS: smax | AF35: Ausnutzung HD: | AG35: Ausnutzung HS: | AH35: Ausnutzung HD+HS: | AJ35: Ersatzfedersteifigkeit: cf | AK35: Ersatzlast für Treibgutanprall: F | AL35: Moment zufolge Treibgut: MT | AM35: Teilsicherheit Last: gL | AN35: Bemessungsmoment Treibgut: MsdT | AO35: Spannung infolge Treibgut: sT | AP35: Ausnutzung: | AR35: Kombinationsbeiwert: | AS35: Spannung zufolge pStr, p0, F: Sk | AT35: Ausnutzung zufolge pStr, p0, F: | BB35: Hydrodynamischer Druck am steher: pStr | BC35: Hydrostatischer Druck am Steher: p0 | BD35: Hydrostatischer + Hydrodynamischer Druck am Balken: pmax | BG35: Durchbiegung: f | BJ35: Stützweite / Durchbiegung: D | BN35: Moment zufolge Gesamtdruck: Mk | BO35: Teilsicherheit Last: gL | BR35: Bemessungsmoment: Msd | BU35: Spannung: smax | BX35: Ausnutzung: | BZ35: Ersatzfedersteifigkeit: cf | CA35: Ersatzlast für Treibgutanprall: F | CB35: Moment zufolge Treibgut: MT | CC35: Teilsicherheit Last: gL | CD35: Bemessungsmoment Treibgut: MsdT | CE35: Spannung infolge Treibgut: sT | CF35: Ausnutzung: | CH35: Kombinationsbeiwert: | CI35: Spannung zufolge pStr, p0, F: Sk | CJ35: Ausnutzung zufolge pStr, p0, F:
I37: BHW | J37: Dammbalken 1 | K37: 0.35432 | M37: -0.2 | N37: -0.2 | P37: -3.157443256e-06 | Q37: -3.157443256e-06 | S37: -27237227.41 | T37: -27237227.41 | U37: -27237227.41 | W37: -0.0001849 | X37: -0.0001849 | Y37: 1.35 | Z37: 0 | AA37: -0.000249615 | AB37: -0.000249615 | AC37: 0 | AD37: -0.009682370611 | AE37: -0.009682370611 | AF37: 0 | AG37: -5.325303836e-05 | AH37: -5.325303836e-05 | AI37: -5.325303836e-05 | AJ37: 10213960.28 | AK37: 0 | AL37: 0 | AM37: 1.35 | AN37: 0 | AO37: 0 | AP37: 0 | AR37: 1 | AS37: -0.009682370611 | AT37: -5.325303836e-05 | AU37: -5.325303836e-05
I38: BHW+Freibord-Voll | J38: Dammbalken 1 | K38: 0.35432 | M38: -0.2 | N38: -0.2 | P38: -3.157443256e-06 | Q38: -3.157443256e-06 | S38: -27237227.41 | T38: -27237227.41 | W38: -0.0001849 | X38: -0.0001849 | Y38: 1.215 | Z38: 0 | AA38: -0.0002246535 | AB38: -0.0002246535 | AC38: 0 | AD38: -0.00871413355 | AE38: -0.00871413355 | AF38: 0 | AG38: -4.792773452e-05 | AH38: -4.792773452e-05 | AJ38: 10213960.28 | AK38: 0 | AL38: 0 | AM38: 1.215 | AN38: 0 | AO38: 0 | AP38: 0 | AR38: 1 | AS38: -0.00871413355 | AT38: -4.792773452e-05

Sheet HWS-Stückliste-Statik-1 (hidden)
AN1: =VLOOKUP("PREFA HOCHWASSERSCHUTZ SYSTEM",Sprachindex!$A:$Z,Haftungsausschluß!$O$6,FALSE) -> PREFA HOCHWASSERSCHUTZ SYSTEM | CB1: =VLOOKUP("PREFA HOCHWASSERSCHUTZ SYSTEM",Sprachindex!$A:$Z,Haftungsausschluß!$O$6,FALSE) -> PREFA HOCHWASSERSCHUTZ SYSTEM
AN2: =VLOOKUP("KALKULATION",Sprachindex!$A:$Z,Haftungsausschluß!$O$6,FALSE) & " " & T7 -> KALKULATION 1 | CB2: =VLOOKUP("KALKULATION",Sprachindex!$A:$Z,Haftungsausschluß!$O$6,FALSE) & " " & T7 -> KALKULATION 1
E3: =VLOOKUP("Dynamische Daten:",Sprachindex!A:Z,Haftungsausschluß!$O$6,FALSE) -> Dynamische Daten: | AS3: =VLOOKUP("Dynamische Daten:",Sprachindex!A:Z,Haftungsausschluß!$O$6,FALSE) -> Dynamische Daten:
E4: =VLOOKUP("Fließgeschwindigkeit:",Sprachindex!A:Z,Haftungsausschluß!$O$6,FALSE) -> Fließgeschwindigkeit: | K4: =Haftungsausschluß!F31 -> 4 | M4: m/s | O4: =VLOOKUP("STATIK DAMMBALKEN",Sprachindex!A:Z,Haftungsausschluß!$O$6,FALSE) -> STATIK DAMMBALKEN | AE4: =VLOOKUP("Materialdaten:",Sprachindex!A:Z,Haftungsausschluß!$O$6,FALSE) -> Materialdaten: | AN4: ENAW 6063 T66 | AS4: =VLOOKUP("Fließgeschwindigkeit:",Sprachindex!A:Z,Haftungsausschluß!$O$6,FALSE) -> Fließgeschwindigkeit: | AY4: =Haftungsausschluß!F31 -> 4 | BA4: m/s | BC4: =VLOOKUP("STATIK RUNDSTEHER",Sprachindex!A:Z,Haftungsausschluß!$O$6,FALSE) & " " & T7 -> STATIK RUNDSTEHER 1 | BS4: =VLOOKUP("Materialdaten:",Sprachindex!A:Z,Haftungsausschluß!$O$6,FALSE) -> Materialdaten: | CB4: ENAW 6063 T66
E5: =VLOOKUP("Anströmwinkel:",Sprachindex!A:Z,Haftungsausschluß!$O$6,FALSE) -> Anströmwinkel: | M5: ° | AE5: =VLOOKUP("Streckgrenze Rp 0,2:",Sprachindex!A:Z,Haftungsausschluß!$O$6,FALSE) -> Streckgrenze Rp 0,2: | AI5: ='Statik 1-Zusatzberechnungen-1'!M7 -> 200 | AL5: N/mm2 | AS5: =VLOOKUP("Anströmwinkel:",Sprachindex!A:Z,Haftungsausschluß!$O$6,FALSE) -> Anströmwinkel: | BA5: ° | BS5: =VLOOKUP("Streckgrenze Rp 0,2:",Sprachindex!A:Z,Haftungsausschluß!$O$6,FALSE) -> Streckgrenze Rp 0,2: | BW5: ='Statik 1-Zusatzberechnungen-1'!M7 -> 200 | BZ5: N/mm2
E6: =VLOOKUP("anprallende Treibgutmasse:",Sprachindex!A:Z,Haftungsausschluß!$O$6,FALSE) -> anprallende Treibgutmasse: | K6: =Haftungsausschluß!F32 -> 0.4 | M6: t | AE6: =VLOOKUP("E Modul: EAL",Sprachindex!A:Z,Haftungsausschluß!$O$6,FALSE) -> E Modul: EAL | AI6: ='Statik 1-Zusatzberechnungen-1'!M8 -> 70000 | AL6: N/mm2 | AS6: =VLOOKUP("anprallende Treibgutmasse:",Sprachindex!A:Z,Haftungsausschluß!$O$6,FALSE) -> anprallende Treibgutmasse: | AY6: =Haftungsausschluß!F32 -> 0.4 | BA6: t | BS6: =VLOOKUP("E Modul: EAL",Sprachindex!A:Z,Haftungsausschluß!$O$6,FALSE) -> E Modul: EAL | BW6: ='Statik 1-Zusatzberechnungen-1'!M8 -> 70000 | BZ6: N/mm2
E7: =VLOOKUP("Dichte Wasser inkl. Geschiebe:",Sprachindex!A:Z,Haftungsausschluß!$O$6,FALSE) -> Dichte Wasser inkl. Geschiebe: | K7: =Haftungsausschluß!F30 -> 1000 | M7: kg/m³ | T7: 1 | AE7: =VLOOKUP("Teilsicherheit Material:",Sprachindex!A:Z,Haftungsausschluß!$O$6,FALSE) -> Teilsicherheit Material: | AI7: ='Statik 1-Zusatzberechnungen-1'!M9 -> 1.1 | AS7: =VLOOKUP("Dichte Wasser inkl. Geschiebe:",Sprachindex!A:Z,Haftungsausschluß!$O$6,FALSE) -> Dichte Wasser inkl. Geschiebe: | AY7: =Haftungsausschluß!F30 -> 1000 | BA7: kg/m³ | BS7: =VLOOKUP("Teilsicherheit Material:",Sprachindex!A:Z,Haftungsausschluß!$O$6,FALSE) -> Teilsicherheit Material: | BW7: ='Statik 1-Zusatzberechnungen-1'!M9 -> 1.1
B9: =VLOOKUP("Feld Nr.",Sprachindex!$A:$Z,Haftungsausschluß!$O$6,FALSE) -> Feld Nr. | C9: =VLOOKUP("Hydrodynamischer Druck am Balken:",Sprachindex!A:Z,Haftungsausschluß!$O$6,FALSE) & " " & "[N/mm]" -> Hydrodynamischer Druck am Balken: [N/mm] | D9: =VLOOKUP("Hydrostatischer Druck am Balken:",Sprachindex!A:Z,Haftungsausschluß!$O$6,FALSE) & " " & "[N/mm]" -> Hydrostatischer Druck am Balken: [N/mm] | E9: =VLOOKUP("Hydrostatischer + Hydrodynamischer Druck am Balken:",Sprachindex!A:Z,Haftungsausschluß!$O$6,FALSE) & " " & "[N/mm]" -> Hydrostatischer + Hydrodynamischer Druck am Balken: [N/mm] | F9: =VLOOKUP("Durchbiegung HD:",Sprachindex!A:Z,Haftungsausschluß!$O$6,FALSE) & " " & "[mm]" -> Durchbiegung HD: [mm] | G9: =VLOOKUP("Durchbiegung HS:",Sprachindex!A:Z,Haftungsausschluß!$O$6,FALSE) & " " & "[mm]" -> Durchbiegung HS: [mm] | H9: =VLOOKUP("Durchbiegung HD+HS:",Sprachindex!A:Z,Haftungsausschluß!$O$6,FALSE) & " " & "[mm]" -> Durchbiegung HD+HS: [mm] | I9: =VLOOKUP("Stützweite / Durchbiegung HD:",Sprachindex!A:Z,Haftungsausschluß!$O$6,FALSE) -> Stützweite / Durchbiegung HD: | J9: =VLOOKUP("Stützweite / Durchbiegung HS:",Sprachindex!A:Z,Haftungsausschluß!$O$6,FALSE) -> Stützweite / Durchbiegung HS: | K9: =VLOOKUP("Stützweite / Durchbiegung HD+HS:",Sprachindex!A:Z,Haftungsausschluß!$O$6,FALSE) -> Stützweite / Durchbiegung HD+HS: | M9: =VLOOKUP("Hydrodynamisch (HD) & Hydrostatisch (HS)",Sprachindex!A:Z,Haftungsausschluß!$O$6,FALSE) -> Hydrodynamisch (HD) & Hydrostatisch (HS) | N9: =VLOOKUP("Moment zufolge HD:",Sprachindex!A:Z,Haftungsausschluß!$O$6,FALSE) & " " & "[kNm]" -> Moment zufolge HD: [kNm] | O9: =VLOOKUP("Moment zufolge HS:",Sprachindex!A:Z,Haftungsausschluß!$O$6,FALSE) & " " & "[kNm]" -> Moment zufolge HS: [kNm] | P9: =VLOOKUP("Moment zufolge HD+HS:",Sprachindex!A:Z,Haftungsausschluß!$O$6,FALSE) & " " & "[kNm]" -> Moment zufolge HD+HS: [kNm] | Q9: =VLOOKUP("Teilsicherheit Last:",Sprachindex!A:Z,Haftungsausschluß!$O$6,FALSE) -> Teilsicherheit Last: | R9: =VLOOKUP("Bemessungsmoment HD:",Sprachindex!A:Z,Haftungsausschluß!$O$6,FALSE) & " " & "[kNm]" -> Bemessungsmoment HD: [kNm] | S9: =VLOOKUP("Bemessungsmoment HS:",Sprachindex!A:Z,Haftungsausschluß!$O$6,FALSE) & " " & "[kNm]" -> Bemessungsmoment HS: [kNm] | T9: =VLOOKUP("Bemessungsmoment HD+HS:",Sprachindex!A:Z,Haftungsausschluß!$O$6,FALSE) & " " & "[kNm]" -> Bemessungsmoment HD+HS: [kNm] | U9: =VLOOKUP("Spannung HD:",Sprachindex!A:Z,Haftungsausschluß!$O$6,FALSE) & " " & "[N/mm²]" -> Spannung HD: [N/mm²] | V9: =VLOOKUP("Spannung HS:",Sprachindex!A:Z,Haftungsausschluß!$O$6,FALSE) & " " & "[N/mm²]" -> Spannung HS: [N/mm²] | W9: =VLOOKUP("Spannung HD+HS:",Sprachindex!A:Z,Haftungsausschluß!$O$6,FALSE) & " " & "[N/mm²]" -> Spannung HD+HS: [N/mm²] | X9: =VLOOKUP("Ausnutzung HD:",Sprachindex!A:Z,Haftungsausschluß!$O$6,FALSE) -> Ausnutzung HD: | Y9: =VLOOKUP("Ausnutzung HS:",Sprachindex!A:Z,Haftungsausschluß!$O$6,FALSE) -> Ausnutzung HS: | Z9: =VLOOKUP("Ausnutzung HD+HS:",Sprachindex!A:Z,Haftungsausschluß!$O$6,FALSE) -> Ausnutzung HD+HS: | AB9: =VLOOKUP("Treibgut",Sprachindex!A:Z,Haftungsausschluß!$O$6,FALSE) -> Treibgut | AC9: =VLOOKUP("Ersatzfedersteifigkeit:",Sprachindex!A:Z,Haftungsausschluß!$O$6,FALSE) & " " & "[kN/m]" -> Ersatzfedersteifigkeit: [kN/m] | AD9: =VLOOKUP("Ersatzlast für Treibgutanprall:",Sprachindex!A:Z,Haftungsausschluß!$O$6,FALSE) & " " & "[kN]" -> Ersatzlast für Treibgutanprall: [kN] | AE9: =VLOOKUP("Moment zufolge Treibgut:",Sprachindex!A:Z,Haftungsausschluß!$O$6,FALSE) & " " & "[kNm]" -> Moment zufolge Treibgut: [kNm] | AF9: =VLOOKUP("Teilsicherheit Last:",Sprachindex!A:Z,Haftungsausschluß!$O$6,FALSE) -> Teilsicherheit Last: | AG9: =VLOOKUP("Bemessungsmoment Treibgut:",Sprachindex!A:Z,Haftungsausschluß!$O$6,FALSE) & " " & "[kNm]" -> Bemessungsmoment Treibgut: [kNm] | AH9: =VLOOKUP("Spannung infolge Treibgut:",Sprachindex!A:Z,Haftungsausschluß!$O$6,FALSE) & " " & "[N/mm²]" -> Spannung infolge Treibgut: [N/mm²] | AI9: =VLOOKUP("Ausnutzung:",Sprachindex!A:Z,Haftungsausschluß!$O$6,FALSE) -> Ausnutzung: | AK9: =VLOOKUP("Kombination Hydrodynamisch + Hydrostatisch + Treibgut",Sprachindex!A:Z,Haftungsausschluß!$O$6,FALSE) -> Kombination Hydrodynamisch + Hydrostatisch + Treibgut | AL9: =VLOOKUP("Kombinationsbeiwert:",Sprachindex!A:Z,Haftungsausschluß!$O$6,FALSE) -> Kombinationsbeiwert: | AM9: =VLOOKUP("Spannung zufolge",Sprachindex!A:Z,Haftungsausschluß!$O$6,FALSE) &" pStr, p0, F: Sk" & " " & "[N/mm²]" -> Spannung zufolge pStr, p0, F: Sk [N/mm²] | AN9: =VLOOKUP("Ausnutzung zufolge",Sprachindex!A:Z,Haftungsausschluß!$O$6,FALSE) & " pStr, p0, F" -> Ausnutzung zufolge pStr, p0, F | AP9: =VLOOKUP("Steher Nr.",Sprachindex!$A:$Z,Haftungsausschluß!$O$6,FALSE) -> Steher Nr. | AQ9: =VLOOKUP("Hydrodynamischer Druck am Steher:",Sprachindex!A:Z,Haftungsausschluß!$O$6,FALSE) & " " & "[N/mm]" -> Hydrodynamischer Druck am Steher: [N/mm] | AR9: =VLOOKUP("Hydrostatischer Druck am Steher:",Sprachindex!A:Z,Haftungsausschluß!$O$6,FALSE) & " " & "[N/mm]" -> Hydrostatischer Druck am Steher: [N/mm] | AS9: =VLOOKUP("Hydrostatischer + Hydrodynamischer Druck am Balken:",Sprachindex!A:Z,Haftungsausschluß!$O$6,FALSE) & " " & "[N/mm]" -> Hydrostatischer + Hydrodynamischer Druck am Balken: [N/mm] | AT9: =VLOOKUP("Durchbiegung:",Sprachindex!A:Z,Haftungsausschluß!$O$6,FALSE) & " " & "[mm]" -> Durchbiegung: [mm] | AU9: =VLOOKUP("Stützweite / Durchbiegung:",Sprachindex!A:Z,Haftungsausschluß!$O$6,FALSE) -> Stützweite / Durchbiegung: | AW9: =VLOOKUP("Hydrodynamisch (HD) & Hydrostatisch (HS)",Sprachindex!A:Z,Haftungsausschluß!$O$6,FALSE) -> Hydrodynamisch (HD) & Hydrostatisch (HS) | AX9: =VLOOKUP("Moment zufolge Gesamtdruck:",Sprachindex!A:Z,Haftungsausschluß!$O$6,FALSE) & " " & "[kNm]" -> Moment zufolge Gesamtdruck: [kNm] | AY9: =VLOOKUP("Teilsicherheit Last:",Sprachindex!A:Z,Haftungsausschluß!$O$6,FALSE) -> Teilsicherheit Last: | AZ9: =VLOOKUP("Bemessungsmoment:",Sprachindex!A:Z,Haftungsausschluß!$O$6,FALSE) & " " & "[kNm]" -> Bemessungsmoment: [kNm] | BA9: =VLOOKUP("Spannung:",Sprachindex!A:Z,Haftungsausschluß!$O$6,FALSE) & " " & "[N/mm²]" -> Spannung: [N/mm²] | BB9: =VLOOKUP("Ausnutzung:",Sprachindex!A:Z,Haftungsausschluß!$O$6,FALSE) -> Ausnutzung: | BD9: =VLOOKUP("Treibgut",Sprachindex!A:Z,Haftungsausschluß!$O$6,FALSE) -> Treibgut | BE9: =VLOOKUP("Ersatzfedersteifigkeit:",Sprachindex!A:Z,Haftungsausschluß!$O$6,FALSE) & " " & "[kN/m]" -> Ersatzfedersteifigkeit: [kN/m] | BF9: =VLOOKUP("Ersatzlast für Treibgutanprall:",Sprachindex!A:Z,Haftungsausschluß!$O$6,FALSE) & " " & "[kN]" -> Ersatzlast für Treibgutanprall: [kN] | BG9: =VLOOKUP("Moment zufolge Treibgut:",Sprachindex!A:Z,Haftungsausschluß!$O$6,FALSE) & " " & "[kNm]" -> Moment zufolge Treibgut: [kNm] | BH9: =VLOOKUP("Teilsicherheit Last:",Sprachindex!A:Z,Haftungsausschluß!$O$6,FALSE) -> Teilsicherheit Last: | BI9: =VLOOKUP("Bemessungsmoment Treibgut:",Sprachindex!A:Z,Haftungsausschluß!$O$6,FALSE) & " " & "[kNm]" -> Bemessungsmoment Treibgut: [kNm] | BJ9: =VLOOKUP("Spannung infolge Treibgut:",Sprachindex!A:Z,Haftungsausschluß!$O$6,FALSE) & " " & "[N/mm²]" -> Spannung infolge Treibgut: [N/mm²] | BK9: =VLOOKUP("Ausnutzung:",Sprachindex!A:Z,Haftungsausschluß!$O$6,FALSE) -> Ausnutzung: | BM9: =VLOOKUP("Kombination Hydrodynamisch + Hydrostatisch + Treibgut",Sprachindex!A:Z,Haftungsausschluß!$O$6,FALSE) -> Kombination Hydrodynamisch + Hydrostatisch + Treibgut | BN9: =VLOOKUP("Kombinationsbeiwert:",Sprachindex!A:Z,Haftungsausschluß!$O$6,FALSE) -> Kombinationsbeiwert: | BO9: =VLOOKUP("Spannung zufolge",Sprachindex!A:Z,Haftungsausschluß!$O$6,FALSE) & " pStr, p0, F: Sk" & " " & "[N/mm²]" -> Spannung zufolge pStr, p0, F: Sk [N/mm²] | BP9: =VLOOKUP("Ausnutzung zufolge",Sprachindex!A:Z,Haftungsausschluß!$O$6,FALSE) & " pStr, p0, F" -> Ausnutzung zufolge pStr, p0, F
B10: 1 | C10: 0 | D10: -0.2 | E10: -0.2 | F10: 0 | G10: -3.157443256e-06 | H10: -3.157443256e-06 | I10: 0 | J10: -27237227.41 | K10: -27237227.41 | N10: 0 | O10: -0.0001849 | P10: -0.0001849 | Q10: 1.35 | R10: 0 | S10: -0.0002246535 | T10: -0.0002246535 | U10: 0 | V10: -0.00871413355 | W10: -0.00871413355 | X10: 0 | Y10: -4.792773452e-05 | Z10: -4.792773452e-05 | AC10: 10213960.28 | AD10: 0 | AE10: 0 | AF10: 1.35 | AG10: 0 | AH10: 0 | AI10: 0 | AL10: 1 | AM10: -0.00871413355 | AN10: -4.792773452e-05

Sheet Preisliste (hidden)
A2: Systempreisliste PREFA HOCHWASSERSCHUTZ | L2: Umrechnungsfaktor: | M2: 1.1
A3: unverbindlicher empfohlener Richtpreis. Gültigkeit ab 21.03.2022
E4: blank | F4: beschichtet | G4: blank | H4: beschichtet
D5: Einheit | E5: Art.nr. | F5: Art.nr. | G5: Preis | H5: Preis
A6: Dammbalken 25/200 (S12272) exkl. Dichtung:
A7: gesägt und entgratet | D7: [lfm] | E7: H251000 | F7: H251000 | G7: =ROUND(N7*2,1)/2 -> 96.8 | H7: =ROUND(J7*2,1)/2 -> 106.5 | J7: =G7*1.1 -> 106.48 | N7: =Q7*M2 -> 96.8 | Q7: 88
A8: Stangenware 6500 mm | D8: [lfm] | E8: H251010 | F8: H251010 | G8: =ROUND(N8*2,1)/2 -> 469.75 | H8: =ROUND(J8*2,1)/2 -> 516.75 | J8: =G8*1.1 -> 516.725 | N8: =Q8*M2 -> 469.755 | Q8: 427.05
A9: Dammbalken 50/150 (S7308) exkl. Dichtung: | N9: =Q9*M2 -> 0
A10: gesägt und entgratet | D10: [lfm] | E10: H501000 | F10: H501000 | G10: 128.05 | H10: 140.85 | J10: 140.855 | N10: =Q10*M2 -> 128.04 | Q10: 116.4
A11: Stangenware 6500 mm | D11: [lfm] | E11: H501010 | F11: H501010 | G11: 673.9 | H11: 741.3 | J11: 741.29 | N11: =Q11*M2 -> 673.915 | Q11: 612.65
A12: Dammbalken 50/200 (S9368) exkl. Dichtung:
A13: gesägt und entgratet | D13: [lfm] | E13: H501001 | F13: H501001 | G13: 122.3 | H13: 134.55 | J13: 134.53 | N13: =Q13*M2 -> 122.32 | Q13: 111.2
A14: Stangenware 6500 mm | D14: [lfm] | E14: H501011 | F14: H501011 | G14: 711.1 | H14: 782.2 | J14: 782.21 | N14: =Q14*M2 -> 711.095 | Q14: 646.45
A15: Dammbalken 80/200 (S9369) exkl. Dichtung:
A16: gesägt und entgratet | D16: [lfm] | E16: H801001 | F16: H801001 | G16: 188 | H16: 206.8 | J16: 206.8 | N16: =Q16*M2 -> 187.99 | Q16: 170.9
A17: Stangenware 6500 mm | D17: [lfm] | E17: H801011 | F17: H801011 | G17: 1103.25 | H17: 1213.6 | J17: 1213.575 | N17: =Q17*M2 -> 1103.245 | Q17: 1002.95
A18: U-Profil 25 exkl. Dichtung (S12273): in der LAIBUNG
A19: 750 | B19: mm | C19: , gebohrt, entgratet | D19: [Stk] | E19: H251020 | F19: H251020 | G19: 75.15 | H19: 82.65 | J19: 82.665 | N19: =Q19*M2 -> 75.13 | Q19: 68.3
A20: 1350 | B20: mm | C20: , gebohrt, entgratet | D20: [Stk] | E20: H251021 | F20: H251021 | G20: 114.05 | H20: 125.45 | J20: 125.455 | N20: =Q20*M2 -> 114.07 | Q20: 103.7
B21: mm | C21: , gebohrt, entgratet Sonderlänge | D21: [Stk]
A22: Stangenware 6500 mm | D22: [lfm] | E22: H251011 | F22: H251011 | G22: 433.3 | H22: 476.65 | J22: 476.63 | N22: =Q22*M2 -> 433.29 | Q22: 393.9
A23: U-Profil 50 exkl. Dichtung (S7229):
A24: 750 | B24: mm | C24: , gebohrt, entgratet | D24: [Stk] | E24: H501101 | F24: H501101 | G24: 124.3 | H24: 136.75 | J24: 136.73 | N24: =Q24*M2 -> 124.3 | Q24: 113
A25: 1350 | B25: mm | C25: , gebohrt, entgratet | D25: [Stk] | E25: H501111 | F25: H501111 | G25: 191.4 | H25: 210.55 | J25: 210.54 | N25: =Q25*M2 -> 191.4 | Q25: 174
A26: 1750 | B26: mm | C26: , gebohrt, entgratet | D26: [Stk] | E26: H501112 | F26: H501112 | G26: 237.25 | H26: 261 | J26: 260.975 | N26: =Q26*M2 -> 237.27 | Q26: 215.7
A27: 2150 | B27: mm | C27: , gebohrt, entgratet | D27: [Stk] | E27: H501122 | F27: H501122 | G27: 283.8 | H27: 312.2 | J27: 312.18 | N27: =Q27*M2 -> 283.8 | Q27: 258
B28: mm | C28: , gebohrt, entgratet Sonderlänge | D28: [Stk]
A29: Stangenware 6500 mm | D29: [lfm] | E29: H501191 | F29: H501191 | G29: 705.4 | H29: 775.95 | J29: 775.94 | N29: =Q29*M2 -> 705.375 | Q29: 641.25
A30: U-Profil 80 exkl. Dichtung (S8063):
A31: 750 | B31: mm | C31: , gebohrt, entgratet | D31: [Stk] | E31: H801101 | F31: H801101 | G31: 141.9 | H31: 156.1 | J31: 156.09 | N31: =Q31*M2 -> 141.9 | Q31: 129
A32: 1350 | B32: mm | C32: , gebohrt, entgratet | D32: [Stk] | E32: H801111 | F32: H801111 | G32: 222.1 | H32: 244.3 | J32: 244.31 | N32: =Q32*M2 -> 222.09 | Q32: 201.9
A33: 1750 | B33: mm | C33: , gebohrt, entgratet | D33: [Stk] | E33: H801112 | F33: H801112 | G33: 276.75 | H33: 304.45 | J33: 304.425 | N33: =Q33*M2 -> 276.76 | Q33: 251.6
A34: 2150 | B34: mm | C34: , gebohrt, entgratet | D34: [Stk] | E34: H801122 | F34: H801122 | G34: 332.4 | H34: 365.65 | J34: 365.64 | N34: =Q34*M2 -> 332.42 | Q34: 302.2
B35: mm | C35: , gebohrt, entgratet Sonderlänge | D35: [Stk]
A36: Stangenware 6500 mm | D36: [lfm] | E36: H801191 | F36: H801191 | G36: 850.85 | H36: 935.95 | J36: 935.935 | N36: =Q36*M2 -> 850.85 | Q36: 773.5
A37: Grund-Profil 25 exkl. Dichtung: VOR LAIBUNG
A38: 750 | B38: mm | C38: , gebohrt, entgratet | D38: [Stk] | E38: H251200 | F38: H251200 | G38: 87.2 | H38: 95.9 | J38: 95.92 | N38: =Q38*M2 -> 87.175 | Q38: 79.25
A39: 1350 | B39: mm | C39: , gebohrt, entgratet | D39: [Stk] | E39: H251201 | F39: H251201 | G39: 137.45 | H39: 151.2 | J39: 151.195 | N39: =Q39*M2 -> 137.445 | Q39: 124.95
A40: Stangenware 6500 mm | D40: [Stk] | E40: H251291 | F40: H251291 | G40: 568.5 | H40: 625.35 | J40: 625.35 | N40: =Q40*M2 -> 568.48 | Q40: 516.8
A41: Grundprofil 50 exkl. Dichtung (S6577): = H-Profil / v.d. L.
A42: 750 | B42: mm | C42: , gebohrt, entgratet | D42: [Stk] | E42: H501201 | F42: H501201 | G42: 134.1 | H42: 147.5 | J42: 147.51 | N42: =Q42*M2 -> 134.09 | Q42: 121.9
A43: 1350 | B43: mm | C43: , gebohrt, entgratet | D43: [Stk] | E43: H501211 | F43: H501211 | G43: 211.2 | H43: 232.3 | J43: 232.32 | N43: =Q43*M2 -> 211.2 | Q43: 192
A44: 1750 | B44: mm | C44: , gebohrt, entgratet | D44: [Stk] | E44: H501212 | F44: H501212 | G44: 263.1 | H44: 289.4 | J44: 289.41 | N44: =Q44*M2 -> 263.12 | Q44: 239.2
A45: 2150 | B45: mm | C45: , gebohrt, entgratet | D45: [Stk] | E45: H501222 | F45: H501222 | G45: 315.05 | H45: 346.55 | J45: 346.555 | N45: =Q45*M2 -> 315.04 | Q45: 286.4
B46: mm | C46: , gebohrt, entgratet Sonderlänge | D46: [Stk]
A47: Stangenware 6500 mm | D47: [lfm] | E47: H501291 | F47: H501291 | G47: 893.75 | H47: 983.15 | J47: 983.125 | N47: =Q47*M2 -> 893.75 | Q47: 812.5
A48: Grundprofil 80 exkl. Dichtung (S8253): H-Profil / v.d. L.
A49: 750 | B49: mm | C49: , gebohrt, entgratet | D49: [Stk] | E49: H801201 | F49: H801201 | G49: 148.6 | H49: 163.45 | J49: 163.46 | N49: =Q49*M2 -> 148.61 | Q49: 135.1
A50: 1350 | B50: mm | C50: , gebohrt, entgratet | D50: [Stk] | E50: H801211 | F50: H801211 | G50: 237.5 | H50: 261.25 | J50: 261.25 | N50: =Q50*M2 -> 237.49 | Q50: 215.9
A51: 1750 | B51: mm | C51: , gebohrt, entgratet | D51: [Stk] | E51: H801212 | F51: H801212 | G51: 297.1 | H51: 326.8 | J51: 326.81 | N51: =Q51*M2 -> 297.11 | Q51: 270.1
A52: 2150 | B52: mm | C52: , gebohrt, entgratet | D52: [Stk] | E52: H801222 | F52: H801222 | G52: 356.85 | H52: 392.55 | J52: 392.535 | N52: =Q52*M2 -> 356.84 | Q52: 324.4
B53: mm | C53: , gebohrt, entgratet Sonderlänge | D53: [Stk]
A54: Stangenware 6500 mm | D54: [lfm] | E54: H801291 | F54: H801291 | G54: 976.7 | H54: 1074.35 | J54: 1074.37 | N54: =Q54*M2 -> 976.69 | Q54: 887.9
A55: Rundprofil 50 exkl. Dichtung (S6598):
A56: 750 | B56: mm | C56: , gebohrt, entgratet | D56: [Stk] | E56: H501301 | F56: H501301 | G56: 342.55 | N56: =Q56*M2 -> 342.54528 | Q56: 311.4048
A57: 1350 | B57: mm | C57: , gebohrt, entgratet | D57: [Stk] | E57: H501311 | F57: H501311 | G57: 420.4 | N57: =Q57*M2 -> 420.42 | Q57: 382.2
A58: 1750 | B58: mm | C58: , gebohrt, entgratet | D58: [Stk] | E58: H501312 | F58: H501312 | G58: 472 | N58: =Q58*M2 -> 472.01 | Q58: 429.1
A59: 2150 | B59: mm | C59: , gebohrt, entgratet | D59: [Stk] | E59: H501322 | F59: H501322 | G59: 513.25 | N59: =Q59*M2 -> 513.26 | Q59: 466.6
B60: mm | C60: , gebohrt, entgratet Sonderlänge | D60: [Stk]
A61: Rundprofil 80 exkl. Dichtung (S8246):
A62: 750 | B62: mm | C62: , gebohrt, entgratet | D62: [Stk] | E62: H801301 | F62: H801301 | G62: 374.1 | N62: =Q62*M2 -> 374.10912 | Q62: 340.0992
A63: 1350 | B63: mm | C63: , gebohrt, entgratet | D63: [Stk] | E63: H801311 | F63: H801311 | G63: 469.7 | N63: =Q63*M2 -> 469.7 | Q63: 427
A64: 1750 | B64: mm | C64: , gebohrt, entgratet | D64: [Stk] | E64: H801312 | F64: H801312 | G64: 533.5 | N64: =Q64*M2 -> 533.5 | Q64: 485
A65: 2150 | B65: mm | C65: , gebohrt, entgratet | D65: [Stk] | E65: H801322 | F65: H801322 | G65: 597.1 | N65: =Q65*M2 -> 597.08 | Q65: 542.8
B66: mm | C66: , gebohrt, entgratet Sonderlänge | D66: [Stk]
A67: Rundprofil 80 gr. exkl. Dichtung (S10464):
A68: 750 | B68: mm | C68: , gebohrt, entgratet | D68: [Stk] | E68: H801340 | F68: H801340 | G68: 498.4 | N68: =Q68*M2 -> 498.41 | Q68: 453.1
A69: 1350 | B69: mm | C69: , gebohrt, entgratet | D69: [Stk] | E69: H801341 | F69: H801341 | G69: 623.05 | N69: =Q69*M2 -> 623.04 | Q69: 566.4
A70: 1750 | B70: mm | C70: , gebohrt, entgratet | D70: [Stk] | E70: H801342 | F70: H801342 | G70: 706.2 | N70: =Q70*M2 -> 706.2 | Q70: 642
A71: 2150 | B71: mm | C71: , gebohrt, entgratet | D71: [Stk] | E71: H801343 | F71: H801343 | G71: 789.15 | N71: =Q71*M2 -> 789.14 | Q71: 717.4
B72: mm | C72: , gebohrt, entgratet Sonderlänge | D72: [Stk]
A73: Rundprofil 50-90° exkl. Dichtung (S9299):
A74: 750 | B74: mm | C74: , gebohrt, entgratet | D74: [Stk] | E74: H501600 | F74: H501600 | G74: =ROUND(N74*2,1)/2 -> 442.65 | N74: =Q74*M2 -> 442.64 | Q74: 402.4
A75: 1350 | B75: mm | C75: , gebohrt, entgratet | D75: [Stk] | E75: H501601 | F75: H501601 | G75: 516.1 | N75: =Q75*M2 -> 516.12 | Q75: 469.2
A76: 1750 | B76: mm | C76: , gebohrt, entgratet | D76: [Stk] | E76: H501602 | F76: H501602 | G76: 565.05 | N76: =Q76*M2 -> 565.07 | Q76: 513.7
A77: 2150 | B77: mm | C77: , gebohrt, entgratet | D77: [Stk] | E77: H501603 | F77: H501603 | G77: 614.15 | N77: =Q77*M2 -> 614.13 | Q77: 558.3
B78: mm | C78: , gebohrt, entgratet Sonderlänge | D78: [Stk]
A79: Rundprofil 80-90° exkl. Dichtung (S10465):
A80: 750 | B80: mm | C80: , gebohrt, entgratet | D80: [Stk] | E80: H801600 | F80: H801600 | G80: 504.25 | N80: =Q80*M2 -> 504.24 | Q80: 458.4
A81: 1350 | B81: mm | C81: , gebohrt, entgratet | D81: [Stk] | E81: H801601 | F81: H801601 | G81: 632.05 | N81: =Q81*M2 -> 632.06 | Q81: 574.6
A82: 1750 | B82: mm | C82: , gebohrt, entgratet | D82: [Stk] | E82: H801602 | F82: H801602 | G82: 717.4 | N82: =Q82*M2 -> 717.42 | Q82: 652.2
A83: 2150 | B83: mm | C83: , gebohrt, entgratet | D83: [Stk] | E83: H801603 | F83: H801603 | G83: 802.55 | N83: =Q83*M2 -> 802.56 | Q83: 729.6
B84: mm | C84: , gebohrt, entgratet Sonderlänge | D84: [Stk]
A85: Rundprofil 50-Vario exkl. Dichtung (S9523+S9525 od. S9524 od. S9549):
A86: 750 | B86: mm | C86: , gebohrt, entgratet | D86: [Stk] | E86: H501610 | F86: H501610 | G86: 745.45 | N86: =Q86*M2 -> 745.47 | Q86: 677.7
A87: 1350 | B87: mm | C87: , gebohrt, entgratet | D87: [Stk] | E87: H501611 | F87: H501611 | G87: 914.85 | N87: =Q87*M2 -> 914.87 | Q87: 831.7
A88: 1750 | B88: mm | C88: , gebohrt, entgratet | D88: [Stk] | E88: H501612 | F88: H501612 | G88: 1027.85 | N88: =Q88*M2 -> 1027.84 | Q88: 934.4
A89: 2150 | B89: mm | C89: , gebohrt, entgratet | D89: [Stk] | E89: H501613 | F89: H501613 | G89: 1140.7 | N89: =Q89*M2 -> 1140.7 | Q89: 1037
B90: mm | C90: , gebohrt, entgratet Sonderlänge | D90: [Stk]
A91: Rundprofil 80-Vario exkl. Dichtung (S10466+S10462 od. S10463):
A92: 750 | B92: mm | C92: , gebohrt, entgratet | D92: [Stk] | E92: H801610 | F92: H801610 | G92: 582 | N92: =Q92*M2 -> 582.01 | Q92: 529.1
A93: 1350 | B93: mm | C93: , gebohrt, entgratet | D93: [Stk] | E93: H801611 | F93: H801611 | G93: 753.85 | N93: =Q93*M2 -> 753.83 | Q93: 685.3
A94: 1750 | B94: mm | C94: , gebohrt, entgratet | D94: [Stk] | E94: H801612 | F94: H801612 | G94: 868.35 | N94: =Q94*M2 -> 868.34 | Q94: 789.4
A95: 2150 | B95: mm | C95: , gebohrt, entgratet | D95: [Stk] | E95: H801613 | F95: H801613 | G95: 982.85 | N95: =Q95*M2 -> 982.85 | Q95: 893.5
B96: mm | C96: , gebohrt, entgratet Sonderlänge | D96: [Stk]
A97: Bodenhülse 50 beschichtet: (für System 50+80)
A98: inkl. Deckel mit Dichtung (S6516) | D98: [Stk.] | E98: H001030 | F98: H001030 | G98: 407.35 | N98: =Q98*M2 -> 407.33 | Q98: 370.3
A99: inkl. Deckel mit Dichtung NEUES SYSTEM (ehem. Bajonett) | D99: [Stk.] | E99: H001040 | F99: H001040 | G99: 680.9 | N99: =Q99*M2 -> 680.9 | Q99: 619
A100: Bodenhülse 80, Vario beschichtet:
A101: inkl. Deckel mit Dichtung | D101: [Stk.] | E101: H001031 | F101: H001031 | G101: 787.8 | N101: =Q101*M2 -> 787.82 | Q101: 716.2
A102: inkl. Deckel mit Dichtung NEUES SYSTEM (ehem. Bajonett) | D102: [Stk.] | E102: H001041 | F102: H001041 | G102: 828.4 | N102: =Q102*M2 -> 828.41 | Q102: 753.1
A103: Niederhalter + Spannstück + Verbundanker + Gewindestange
A104: 750 | B104: mm | C104: , gesägt, entgratet | D104: [Stk] | E104: H501031 | F104: H501031 | G104: 424.8 | N104: =Q104*M2 -> 424.81824 | Q104: 386.1984
A105: 1350 | B105: mm | C105: , gesägt, entgratet | D105: [Stk] | E105: H501041 | F105: H501041 | G105: 461.45 | N105: =Q105*M2 -> 461.45 | Q105: 419.5
A106: 1750 | B106: mm | C106: , gesägt, entgratet | D106: [Stk] | E106: H501042 | F106: H501042 | G106: 514.45 | N106: =Q106*M2 -> 514.47 | Q106: 467.7
A107: Setzwerkzeug Hilti: Einsatz, Einsteckschaft, Setzwerkzeug | D107: [Stk]
A108: Spannstücke
A109: Spannstückmit Sterngriff | D109: [Stk] | E109: H001071 | F109: H001071 | G109: 97.15 | N109: =Q109*M2 -> 97.13 | Q109: 88.3
A110: Spannstückmit Sechskantschraube | D110: [Stk] | E110: H001061 | F110: H001061 | G110: 100.85 | N110: =Q110*M2 -> 100.87 | Q110: 91.7
Q111: 62.95
A112: Dichtungen
A113: Dauer Bodendichtung 25: | D113: [lfm] | E113: H001083 | F113: H001083 | G113: 35.3 | N113: =Q113*M2 -> 35.31528 | Q113: 32.1048
A114: Bodendichtung 25: | D114: [lfm] | E114: H251900 | F114: H251900 | G114: 27.5 | N114: =Q114*M2 -> 27.5 | Q114: 25
A115: Bodendichtung 50: | D115: [lfm] | E115: H501901 | F115: H501901 | G115: 27.5 | N115: =Q115*M2 -> 27.5 | Q115: 25
A116: Bodendichtung 80: | D116: [lfm] | E116: H801901 | F116: H801901 | G116: 44.35 | N116: =Q116*M2 -> 44.352 | Q116: 40.32
A117: Dichtung Dammbalken (P5208037) | D117: [1 VE =25 lfm] | E117: H001080 | F117: H001080 | G117: 68 | N117: =Q117*M2 -> 67.97868 | Q117: 61.7988
A118: Dichtung Dammbalken ( 25 ) | D118: [1 VE =25 lfm] | E118: H251901 | F118: H251901 | G118: 67.2 | N118: =Q118*M2 -> 67.21 | Q118: 61.1
A119: Dichtung Grundprofil | D119: [1 VE =10 lfm] | E119: H001090 | F119: H001090 | G119: 62.1 | N119: =Q119*M2 -> 62.095 | Q119: 56.45
A120: Dauer Bodendichtung 50: | D120: [lfm] | E120: H001081 | F120: H001081 | G120: 54.3 | N120: =Q120*M2 -> 54.285 | Q120: 49.35
A121: Dauer Bodendichtung 80: | D121: [lfm] | E121: H001082 | F121: H001082 | G121: 91.7 | N121: =Q121*M2 -> 91.685 | Q121: 83.35
A122: Abdeckung VO 25 (S12418 gebogen):
A123: 750 | B123: mm | C123: , gebohrt, entgratet | D123: [Stk] | E123: H251050 | F123: H251050 | G123: 95.45 | H123: =ROUND(J123*2,1)/2 -> 105 | J123: =G123*1.1 -> 104.995 | N123: =Q123*M2 -> 95.425 | Q123: 86.75
A124: 1350 | B124: mm | C124: , gebohrt, entgratet | D124: [Stk] | E124: H251051 | F124: H251051 | G124: 100 | H124: 110 | J124: 110 | N124: =Q124*M2 -> 99.99 | Q124: 90.9
A125: Abdeckung VO 50 (S6599 gebogen):
A126: 750 | B126: mm | C126: , gebohrt, entgratet | D126: [Stk] | E126: H501401 | F126: H501401 | G126: 101.15 | H126: 111.25 | J126: 111.265 | N126: =Q126*M2 -> 101.145 | Q126: 91.95
A127: 1350 | B127: mm | C127: , gebohrt, entgratet | D127: [Stk] | E127: H501411 | F127: H501411 | G127: 106.5 | H127: 117.15 | J127: 117.15 | N127: =Q127*M2 -> 106.48 | Q127: 96.8
A128: 1750 | B128: mm | C128: , gebohrt, entgratet | D128: [Stk] | E128: H501412 | F128: H501412 | G128: 110.1 | H128: 121.1 | J128: 121.11 | N128: =Q128*M2 -> 110.11 | Q128: 100.1
A129: 2150 | B129: mm | C129: , gebohrt, entgratet | D129: [Stk] | E129: H501422 | F129: H501422 | G129: 113.65 | H129: 125 | J129: 125.015 | N129: =Q129*M2 -> 113.63 | Q129: 103.3
A130: Abdeckung V 25 (S12418):
A131: 750 | B131: mm | C131: , gebohrt, entgratet | D131: [Stk] | E131: H251040 | F131: H251040 | G131: 26.75 | H131: 29.45 | J131: 29.425 | N131: =Q131*M2 -> 26.73 | Q131: 24.3
A132: 1350 | B132: mm | C132: , gebohrt, entgratet | D132: [Stk] | E132: H251041 | F132: H251041 | G132: 31.3 | H132: 34.45 | J132: 34.43 | N132: =Q132*M2 -> 31.295 | Q132: 28.45
A133: Stangenware 6500 mm | D133: [lfm] | E133: H251012 | F133: H251012 | G133: 49.35 | H133: 54.3 | J133: 54.285 | N133: =Q133*M2 -> 49.335 | Q133: 44.85
A134: Abdeckung V 50 (S6599):
A135: 750 | B135: mm | C135: , gebohrt, entgratet | D135: [Stk] | E135: H501501 | F135: H501501 | G135: 25.75 | H135: 28.35 | J135: 28.325 | N135: =Q135*M2 -> 25.74264 | Q135: 23.4024
A136: 1350 | B136: mm | C136: , gebohrt, entgratet | D136: [Stk] | E136: H501511 | F136: H501511 | G136: 31.15 | H136: 34.25 | J136: 34.265 | N136: =Q136*M2 -> 31.13 | Q136: 28.3
A137: 1750 | B137: mm | C137: , gebohrt, entgratet | D137: [Stk] | E137: H501512 | F137: H501512 | G137: 34.7 | H137: 38.15 | J137: 38.17 | N137: =Q137*M2 -> 34.705 | Q137: 31.55
A138: 2150 | B138: mm | C138: , gebohrt, entgratet | D138: [Stk] | E138: H501522 | F138: H501522 | G138: =ROUND(N138*2,1)/2 -> 38.35 | H138: 42.2 | J138: 42.185 | N138: =Q138*M2 -> 38.335 | Q138: 34.85
A139: Stangenware 6500 mm | D139: [lfm] | E139: H501591 | F139: H501591 | G139: 99.75 | H139: 109.75 | J139: 109.725 | N139: =Q139*M2 -> 99.77 | Q139: 90.7
A140: Abdeckung VO 80 (S8064 gebogen) :
A141: 750 | B141: mm | C141: , gebohrt, entgratet | D141: [Stk] | E141: H801401 | F141: H801401 | G141: 107.75 | H141: 118.55 | J141: 118.525 | N141: =Q141*M2 -> 107.745 | Q141: 97.95
A142: 1350 | B142: mm | C142: , gebohrt, entgratet | D142: [Stk] | E142: H801411 | F142: H801411 | G142: 118.25 | H142: 130.1 | J142: 130.075 | N142: =Q142*M2 -> 118.25 | Q142: 107.5
A143: 1750 | B143: mm | C143: , gebohrt, entgratet | D143: [Stk] | E143: H801412 | F143: H801412 | G143: 125.4 | H143: 137.95 | J143: 137.94 | N143: =Q143*M2 -> 125.4 | Q143: 114
A144: 2150 | B144: mm | C144: , gebohrt, entgratet | D144: [Stk] | E144: H801422 | F144: H801422 | G144: 132.45 | H144: 145.7 | J144: 145.695 | N144: =Q144*M2 -> 132.44 | Q144: 120.4
A145: Abdeckung V 80 (S8064):
A146: 750 | B146: mm | C146: , gebohrt, entgratet | D146: [Stk] | E146: H801501 | F146: H801501 | G146: 32.35 | H146: 35.6 | J146: 35.585 | N146: =Q146*M2 -> 32.34 | Q146: 29.4
A147: 1350 | B147: mm | C147: , gebohrt, entgratet | D147: [Stk] | E147: H801511 | F147: H801511 | G147: 42.95 | H147: 47.25 | J147: 47.245 | N147: =Q147*M2 -> 42.955 | Q147: 39.05
A148: 1750 | B148: mm | C148: , gebohrt, entgratet | D148: [Stk] | E148: H801512 | F148: H801512 | G148: 50.05 | H148: 55.05 | J148: 55.055 | N148: =Q148*M2 -> 50.05 | Q148: 45.5
A149: 2150 | B149: mm | C149: , gebohrt, entgratet | D149: [Stk] | E149: H801522 | F149: H801522 | G149: 57.1 | H149: 62.8 | J149: 62.81 | N149: =Q149*M2 -> 57.09 | Q149: 51.9
A150: Stangenware 6500 mm | D150: [lfm] | E150: H801590 | F150: H801590 | G150: 139.8 | H150: 153.8 | J150: 153.78 | N150: =Q150*M2 -> 139.81 | Q150: 127.1
A151: Aufpreis für Sicherungsschraube:
A152: Sicherungsschraube für Abdeckung | D152: [1 Stk.] | E152: H001010 | F152: H001010 | G152: 14.7 | N152: =Q152*M2 -> 14.68236 | Q152: 13.3476
A153: Dammbalken Halterung/Lagerabdeckung:
A154: Halterung für 6 Dammbalken | D154: [ 2 Stk] | E154: H001020 | F154: H001020 | G154: 199.75 | N154: =Q154*M2 -> 199.76 | Q154: 181.6
A155: Lagerabdeckung Mittenteil | D155: [EH] | E155: H002010 | F155: H002010 | G155: 116.4 | H155: 128.05 | J155: 128.04 | N155: =Q155*M2 -> 116.38 | Q155: 105.8
A156: Lagerabdeckung (Seitenteil) | D156: [EH] | E156: H002011 | F156: H002011 | G156: 45.7 | H156: 50.25 | J156: 50.27 | N156: =Q156*M2 -> 45.705 | Q156: 41.55
A158: Ersatzteile
A160: Dichtung für Deckel und Bodenhülse klein DM 170 mm | D160: [Stk] | E160: H001091 | F160: H001091 | G160: 20.65 | N160: =Q160*M2 -> 20.625 | Q160: 18.75
A161: Dichtung für Deckel und Bodenhülse groß DM 230 mm | D161: [Stk] | E161: H001092 | F161: H001092 | G161: 29.05 | N161: =Q161*M2 -> 29.04 | Q161: 26.4
A162: Hebehilfe für Bodenhülsendeckel | D162: [Stk] | E162: H001101 | F162: H001101 | G162: 121.75 | N162: =Q162*M2 -> 121.77 | Q162: 110.7
A164: Aufpreise:
A165: Ausfräsung Wandprofil für Dammbalken | D165: PA | E165: - | F165: - | G165: 143.3 | N165: =Q165*M2 -> 143.275 | Q165: 130.25
A166: Längenänderung von 2 Wandprofiln | D166: PA | E166: - | F166: - | G166: 102.5 | N166: =Q166*M2 -> 102.5178 | Q166: 93.198
A167: Verankerung aufgeschweißt (a 300mm) | D167: PA | E167: - | F167: - | G167: 136.35 | N167: =Q167*M2 -> 136.345 | Q167: 123.95
A168: Montagehilfe für Bodenhülse | D168: [Stk] | E168: - | F168: - | G168: 227.25 | N168: =Q168*M2 -> 227.26 | Q168: 206.6
A169: Planungsstunde | D169: [EH] | E169: - | F169: - | G169: 99.9 | N169: =Q169*M2 -> 99.88 | Q169: 90.8
A170: Beschichtungspauschale | D170: [EH] | E170: - | F170: - | G170: 90 | N170: =Q170 -> 90 | Q170: 90
A171: Beschichtungspauschale wird verrechnet ab einen Betrag von: | G171: 300 | N171: =Q171 -> 300 | Q171: 300
A172: Dichtungsroller 25/50 | D172: [Stk] | E172: H002050 | F172: H002050 | G172: 46.05 | K172: NEU | N172: =Q172*M2 -> 46.035 | Q172: 41.85
A173: Dichtungsroller 80 | D173: [Stk] | E173: H002051 | F173: H002051 | G173: 46.05 | K173: NEU | N173: =Q173*M2 -> 46.035 | Q173: 41.85
A174: Kunststoffabdeckung für U-Profil 25 | D174: [Stk] | E174: H001104 | F174: H001104 | G174: 0.65 | K174: NEU | N174: =Q174*M2 -> 0.66 | Q174: 0.6
A175: Frachtkosten | D175: [EH] | G175: 100 | N175: =Q175 -> 100 | Q175: 100
A176: Frachtkosten wird verrechnet ab einen Betrag von: | G176: 5000 | N176: =Q176 -> 1250 | Q176: 1250
A177: Abdeckung VO 25 (S12418 gebogen):
A178: 1750 | B178: mm | C178: , gebohrt, entgratet | D178: [Stk] | E178: H251052 | F178: H251052 | G178: 105.9 | H178: =ROUND(J178*2,1)/2 -> 116.5 | J178: =G178*1.1 -> 116.49 | N178: =Q178*M2 -> 105.875 | Q178: 96.25
A179: 2150 | B179: mm | C179: , gebohrt, entgratet | D179: [Stk] | E179: H251053 | F179: H251043 | G179: 111.6 | H179: 122.75 | J179: 122.76 | N179: =Q179*M2 -> 111.595 | Q179: 101.45
A181: Abdeckung V 25 (S12418):
A182: 1750 | B182: mm | C182: , gebohrt, entgratet | D182: [Stk] | E182: H251042 | F182: H251042 | G182: 38.45 | H182: 42.3 | J182: =G182*1.1 -> 42.295 | N182: =Q182*M2 -> 38.445 | Q182: 34.95
A183: 2150 | B183: mm | C183: , gebohrt, entgratet | D183: [Stk] | E183: H251043 | F183: H251043 | G183: 49.5 | H183: 54.45 | J183: 54.45 | N183: =Q183*M2 -> 49.5 | Q183: 45
A185: U-Profil 25 exkl. Dichtung (S12273): in der LAIBUNG
A186: 1750 | B186: mm | C186: , gebohrt, entgratet | D186: [Stk] | E186: H251022 | F186: H251022 | G186: 126.1 | H186: 138.7 | J186: =G186*1.1 -> 138.71 | N186: =Q186*M2 -> 126.115 | Q186: 114.65
A187: 2150 | B187: mm | C187: , gebohrt, entgratet | D187: [Stk] | E187: H251023 | F187: H251023 | G187: 149.4 | H187: 164.35 | J187: 164.34 | N187: =Q187*M2 -> 149.38 | Q187: 135.8
A189: Grund-Profil 25 exkl. Dichtung: VOR LAIBUNG
A190: 1750 | B190: mm | C190: , gebohrt, entgratet | D190: [Stk] | E190: H251202 | F190: H251202 | G190: 170.95 | H190: 188.05 | J190: =G190*1.1 -> 188.045 | N190: =Q190*M2 -> 170.94 | Q190: 155.4
A191: 2150 | B191: mm | C191: , gebohrt, entgratet | D191: [Stk] | E191: H251203 | F191: H251203 | G191: 204.5 | H191: 224.95 | J191: 224.95 | N191: =Q191*M2 -> 204.49 | Q191: 185.9
A193: Spannstücke gefräst
A194: Spannstück mit Sterngriff gefräst | D194: [Stk] | E194: H001072 | G194: 100.85 | N194: =Q194*M2 -> 100.87 | Q194: 91.7
A195: Spannstück mit Sechskantschraube gefräst | D195: [Stk] | E195: H001062 | G195: 78.65 | N195: =Q195*M2 -> 78.65 | Q195: 71.5
A199: Steher VARIO 50+80
A200: Steher VARIO 15° 80-750 mm (Anfertigung auf Bestellung) | E200: H801610 | F200: H801610 | G200: =ROUND(N200*2,1)/2 -> 583.6 | H200: 641.95 | J200: =G200*1.1 -> 641.96 | N200: =Q200*M2 -> 583.605 | Q200: 530.55
A201: Steher VARIO 15° 80-1350 mm (Anfertigung auf Bestellung) | E201: H801611 | F201: H801611 | G201: 755.7 | H201: 831.25 | J201: 831.27 | N201: =Q201*M2 -> 755.7 | Q201: 687
A202: Steher VARIO 15° 80-1750 mm (Anfertigung auf Bestellung) | E202: H801612 | F202: H801612 | G202: 870.65 | H202: 957.7 | J202: 957.715 | N202: =Q202*M2 -> 870.65 | Q202: 791.5
A203: Steher VARIO 15° 80-2150 mm (Anfertigung auf Bestellung) | E203: H801613 | F203: H801613 | G203: 985.35 | H203: 1083.9 | J203: 1083.885 | N203: =Q203*M2 -> 985.325 | Q203: 895.75
A204: Steher VARIO 30° 80-750 mm (Anfertigung auf Bestellung) | E204: H801620 | F204: H801620 | G204: 583.6 | H204: 641.95 | J204: 641.96 | N204: =Q204*M2 -> 583.605 | Q204: 530.55
A205: Steher VARIO 30° 80-1350 mm (Anfertigung auf Bestellung) | E205: H801621 | F205: H801621 | G205: 755.7 | H205: 831.25 | J205: 831.27 | N205: =Q205*M2 -> 755.7 | Q205: 687
A206: Steher VARIO 30° 80-1750 mm (Anfertigung auf Bestellung) | E206: H801622 | F206: H801622 | G206: 870.65 | H206: 957.7 | J206: 957.715 | N206: =Q206*M2 -> 870.65 | Q206: 791.5
A207: Steher VARIO 30° 80-2150 mm (Anfertigung auf Bestellung) | E207: H801623 | F207: H801623 | G207: 985.35 | H207: 1083.9 | J207: 1083.885 | N207: =Q207*M2 -> 985.325 | Q207: 895.75
A208: Steher VARIO 45° 80-750 mm (Anfertigung auf Bestellung) | E208: H801630 | F208: H801630 | G208: 583.6 | H208: 641.95 | J208: 641.96 | N208: =Q208*M2 -> 583.605 | Q208: 530.55
A209: Steher VARIO 45° 80-1350 mm (Anfertigung auf Bestellung) | E209: H801631 | F209: H801631 | G209: 755.7 | H209: 831.25 | J209: 831.27 | N209: =Q209*M2 -> 755.7 | Q209: 687
A210: Steher VARIO 45° 80-1750 mm (Anfertigung auf Bestellung) | E210: H801632 | F210: H801632 | G210: 870.65 | H210: 957.7 | J210: 957.715 | N210: =Q210*M2 -> 870.65 | Q210: 791.5
A211: Steher VARIO 45° 80-2150 mm (Anfertigung auf Bestellung) | E211: H801633 | F211: H801633 | G211: 985.35 | H211: 1083.9 | J211: 1083.885 | N211: =Q211*M2 -> 985.325 | Q211: 895.75
... 35 more rows

Sheet Sprachindex (hidden)
A1: _DEUTSCH | B1: _ENGLISCH | C1: _FRANZÖSISCH | D1: _ITALIENISCH | E1: _Tschechisch | F1: _Polnisch | G1: _Ungarisch | H1: _Slowakisch | I1: _Niederländisch | J1: _Slovenisch | K1: _Schwedisch | L1: _Dänisch | M1: _Norwegisch | N1: _Kroatisch
A2: [EH] | B2: [U] | C2: [U] | D2: [UM] | E2: [m.j.] | F2: [j.m.] | G2: [EH] | H2: [m.j.] | I2: [eenheid] | J2: [VV] | K2: [Enh.] | L2: [Enhed] | M2: [EH] | N2: [EH]
A3: [L] Innenlichte | B3: [L] interior lights | C3: [E] vide lumière | D3: [L] luce netta | E3: [L] světlá šířka | F3: [L] wymiar wewnętrzny w świetle | G3: [L] Innenlichte | H3: [L] svetlá šírka | I3: [dm] dagmaat | J3: [L] notranja odprtina | K3: [L] Inre öppning | L3: [L] Indvendigt lys | M3: [L] Taklys | N3: [L] Unutrašnja širina
A4: [lfm] | B4: [rm] | C4: [m] | D4: [m] | E4: [bm] | F4: [mb] | G4: [lfm] | H4: [bm] | I4: [strekkende meter] | J4: [tm] | K4: [löpm] | L4: [løb. meter] | M4: [lm] | N4: [d/m]
A5: [m] | B5: [m] | C5: [m] | D5: [m] | E5: [m] | F5: [m] | G5: [m] | H5: [m] | I5: [m] | J5: [m] | K5: [m] | L5: [m] | M5: [m] | N5: [m]
A6: [mm] | B6: [mm] | C6: [mm] | D6: [mm] | E6: [mm] | F6: [mm] | G6: [mm] | H6: [mm] | I6: [mm] | J6: [mm] | K6: [mm] | L6: [mm] | M6: [mm] | N6: [mm]
A7: [Paar] | B7: [pair] | C7: [paire] | D7: [paio] | E7: [pár] | F7: [para] | G7: [pár] | H7: [pár] | I7: [paar-] | J7: [par] | K7: [par] | L7: [par] | M7: [par] | N7: [par]
A8: [Stk] | B8: [pcs] | C8: [pc.] | D8: [pz] | E8: [ks] | F8: [szt.] | G8: [Stk] | H8: [ks] | I8: [stuks] | J8: [kos] | K8: [st] | L8: [Stk.] | M8: [stk.] | N8: [kom]
A9: [VPE] | B9: [packaging unit] | C9: [UE] | D9: [CF] | E9: [bal.] | F9: [VPE] | G9: [CSE] | H9: [balenie] | I9: [Verpakking] | J9: [VPE] | K9: [förpackningsenhet] | L9: [emballageenhed] | M9: [pakningsenhet] | N9: [PA]
A10: +20 % MwSt. | B10: +20 % MwSt. | C10: +7.7 % TVA | D10: +20 % MwSt. | E10: +20 % MwSt. | F10: +20 % MwSt. | G10: +27% áfával | H10: +20 % MwSt. | I10: +20 % MwSt. | J10: +20 % MwSt. | K10: +20 % MwSt. | L10: +20 % MwSt. | M10: +20 % MwSt. | N10: +20 % MwSt. | O10: ACHTUNG! In Ungarn ist 27% Mwst!
A11: 25/200mm | B11: 25/200 mm | C11: 25/200 mm | D11: 25/200mm | E11: 25/200mm | F11: 25/200mm | G11: 25/200mm | H11: 25/200mm | I11: 25/200 mm | J11: 25/200 mm | K11: 25/200 mm | L11: 25/200 mm | M11: 25/200 mm | N11: 25/200mm
A12: 50/150mm | B12: 50/150 mm | C12: 50/150 mm | D12: 50/150mm | E12: 50/150mm | F12: 50/150mm | G12: 50/150mm | H12: 50/150mm | I12: 50/150 mm | J12: 50/150 mm | K12: 50/150 mm | L12: 50/150 mm | M12: 50/150 mm | N12: 50/150mm
A13: 50/200mm | B13: 50/200 mm | C13: 50/200 mm | D13: 50/200mm | E13: 50/200mm | F13: 50/200mm | G13: 50/200mm | H13: 50/200mm | I13: 50/200 mm | J13: 50/200 mm | K13: 50/200 mm | L13: 50/200 mm | M13: 50/200 mm | N13: 50/200mm
A14: 80/200mm | B14: 80/200 mm | C14: 80/200 mm | D14: 80/200mm | E14: 80/200mm | F14: 80/200mm | G14: 80/200mm | H14: 80/200mm | I14: 80/200 mm | J14: 80/200 mm | K14: 80/200 mm | L14: 80/200 mm | M14: 80/200 mm | N14: 80/200mm
A15: Abbildung 1 | B15: Figure 1 | C15: Illustration 1 | D15: disegno 1 | E15: Obr. 1 | F15: Rysunek 1 | G15: 1. ábra | H15: Obrázok 1 | I15: Afbeelding 1 | J15: Slika 1 | K15: Illustration 1 | L15: Figur 1 | M15: Bilde 1 | N15: Slika 1
A16: Abdeckung | B16: Cover | C16: Cache de protection | D16: Coperchio | E16: Kryt | F16: Osłona | G16: Takaróelem | H16: Kryt | I16: Afdekking | J16: Pokrov | K16: Täckplåt | L16: Afdækning | M16: TILDEKKING | N16: Pokrov
A17: Abdeckung V 25, entgratet | B17: Cover V 25, deburred | C17: Cache de protection V 25, ébavuré | D17: Coperchio V 25, sbavato | E17: Kryt V 25, zafixování | F17: Osłona V 25, okrawana | G17: Takaróelem V 25, sorjázott | H17: Kryt V 25, navŕtaný a odhrotovaný | I17: Afdekking V 25, geboord en afgebraamd | J17: Pokrov V 25, z izvrtinami in posnetimi robovi | K17: Täckplåt rak 25, förborrad | L17: Afdækning V 25, afgratet | M17: TILDEKKING V 25, boret og avgradet | N17: Pokrov V 25, bušen i s obrađenim rubovima
A18: Abdeckung V 25, gebohrt und entgratet | B18: Cover V 25, drilled and deburred | C18: Cache de protection V 25, percé et ébavuré | D18: Coperchio V 25, forato e sbavato | E18: Kryt V 25, svrtaný pro zafixování | F18: Osłona V 25, nawiercona i okrawana | G18: Takaróelem V 25, furatolt és sorjázott | H18: Kryt V 25, navŕtaný a odhrotovaný | I18: Afdekking V 25, geboord en afgebraamd | J18: Pokrov V 25, z izvrtinami in posnetimi robovi | K18: Täckplåt rak 25, förborrad | L18: Afdækning V 25, forboret og afgratet | M18: TILDEKKING V 25, boret og avgradet | N18: Pokrov V 25, bušen i s obrađenim rubovima
A19: Abdeckung V 50, gebohrt und entgratet | B19: Cover V 50, drilled and deburred | C19: Cache de protection V 50, percé et ébavuré | D19: Coperchio V 50, forato e sbavato | E19: Kryt V 50, svrtaný pro zafixování | F19: Osłona V 50, nawiercona i okrawana | G19: Takaróelem V 50, furatolt és sorjázott | H19: Kryt V 50, navŕtaný a odhrotovaný | I19: Afdekking V 50, geboord en afgebraamd | J19: Pokrov V 50, z izvrtinami in posnetimi robovi | K19: Täckplåt rak 50, förborrad | L19: Afdækning V 50, forboret og afgratet | M19: TILDEKKING V 50, boret og avgradet | N19: Pokrov V 50, bušen i s obrađenim rubovima
A20: Abdeckung V 80, gebohrt und entgratet | B20: Cover V 80, drilled and deburred | C20: Cache de protection V 80, percé et ébavuré | D20: Coperchio V 80, forato e sbavato | E20: Kryt V 80, svrtaný pro zafixování | F20: Osłona V 80, nawiercona i okrawana | G20: Takaróelem V 80, furatolt és sorjázott | H20: Kryt V 80, navŕtaný a odhrotovaný | I20: Afdekking V 80, geboord en afgebraamd | J20: Pokrov V 80, z izvrtinami in posnetimi robovi | K20: Täckplåt rak 80, förborrad | L20: Afdækning V 80, forboret og afgratet | M20: TILDEKKING V 80, boret og avgradet | N20: Pokrov V 80, bušen i s obrađenim rubovima
A21: Abdeckung VO 25, entgratet | B21: Cover VO 25, deburred | C21: Cache de protection VO 25, ébavuré | D21: Coperchio VO 25, sbavato | E21: Kryt VO 25, zafixování | F21: Osłona VO 25, okrawana | G21: Takaróelem VO 25, sorjázott | H21: Kryt VO 25, navŕtaný a odhrotovaný | I21: Afdekking VO 25, geboord en afgebraamd | J21: Pokrov VO 25, z izvrtinami in posnetimi robovi | K21: Täckplåt m, vinkel 25, förborrad | L21: Afdækning VO 25, afgratet | M21: TILDEKKING VO 25, boret og avgradet | N21: Pokrov VO 25, bušen i s obrađenim rubovima
A22: Abdeckung VO 25, gebohrt und entgratet | B22: Cover VO 25, drilled and deburred | C22: Cache de protection VO 25, percé et ébavuré | D22: Coperchio VO 25, forato e sbavato | E22: Kryt VO 25, svrtaný pro zafixování | F22: Osłona VO 25, nawiercona i okrawana | G22: Takaróelem VO 25, furatolt és sorjázott | H22: Kryt VO 25, navŕtaný a odhrotovaný | I22: Afdekking VO 25, geboord en afgebraamd | J22: Pokrov VO 25, z izvrtinami in posnetimi robovi | K22: Täckplåt m, vinkel 25, förborrad | L22: Afdækning VO 25, forboret og afgratet | M22: TILDEKKING VO 25, boret og avgradet | N22: Pokrov VO 25, bušen i s obrađenim rubovima
A23: Abdeckung VO 50, gebohrt und entgratet | B23: Cover VO 50, drilled and deburred | C23: Cache de protection VO 50, percé et ébavuré | D23: Coperchio VO 50, forato e sbavato | E23: Kryt VO 50, svrtaný pro zafixování | F23: Osłona VO 50, nawiercona i okrawana | G23: Takaróelem VO 50, furatolt és sorjázott | H23: Kryt VO 50, navŕtaný a odhrotovaný | I23: Afdekking VO 50, geboord en afgebraamd | J23: Pokrov VO 50, z izvrtinami in posnetimi robovi | K23: Täckplåt m, vinkel 50, förborrad | L23: Afdækning VO 50, forboret og afgratet | M23: TILDEKKING VO 50, boret og avgradet | N23: Pokrov VO 50, bušen i s obrađenim rubovima
A24: Abdeckung VO 80, gebohrt und entgratet | B24: Cover VO 80, drilled and deburred | C24: Cache de protection VO 80, percé et ébavuré | D24: Coperchio VO 80, forato e sbavato | E24: Kryt VO 80, svrtaný pro zafixování | F24: Osłona VO 80, nawiercona i okrawana | G24: Takaróelem VO 80, furatolt és sorjázott | H24: Kryt VO 80, navŕtaný a odhrotovaný | I24: Afdekking VO 80, geboord en afgebraamd | J24: Pokrov VO 80, z izvrtinami in posnetimi robovi | K24: Täckplåt m, vinkel 80, förborrad | L24: Afdækning VO 80, forboret og afgratet | M24: TILDEKKING VO 80, boret og avgradet | N24: Pokrov VO 80, bušen i s obrađenim rubovima
A25: Achtung! Maximallänge bei Beschichtung 3000mm | B25: Caution! Maximum length with coating 3000 mm | C25: Attention ! Longueur maximum pour le revêtement des batardeaux : 3 000 mm | D25: attenzione, lunghezza max per elementi verniciati 3000mm | E25: Pozor! Maximální délka pro lakování 3000mm | F25: Uwaga: Maksymalna długość elementu lakierowanego 3000 mm | G25: Figyelem! A porszórt elemek maximális hossza 3000mm | H25: Pozor! Maximálna dĺžka pri nátere 3 000 mm | I25: Let op! Maximale lengte bij coating 3000 mm | J25: Pozor! Največja dolžina pri prevleki 3.000 mm | K25: Observera! Maxlängd lackering 3 000mm | L25: Obs! Maksimal længde ved beklædning 3000 mm | M25: Advarsel! Maksimal lengde ved belegg 3000 mm | N25: Pozor! Maksimalna duljina pri plastifikaciji 3000mm
A26: ACHTUNG: zu viele Rundprofile gewählt | B26: CAUTION: too many round profiles have been selected | C26: ATTENTION ! Vous avez sélectionné trop de profils ronds. | D26: ATTENZIONE: troppi montanti circolari selezionati | E26: POZOR: vybráno příliš mnoho kruhových profilů | F26: UWAGA: wybrano zbyt dużo profili okrągłych | G26: FIGYELEM: túl sok körprofilt választott | H26: POZOR: je zvolených priveľa kruhových profilov | I26: LET OP: te veel rondprofielen geselecteerd | J26: POZOR: izbranih je preveč okroglih profilov | K26: Observera: För många rundprofiler har valts | L26: OBS! For mange runde profiler er valgt | M26: ADVARSEL: for mange rundprofiler valgt | N26: POZOR: odabrano previše okruglih profila
A27: Aluminium | B27: Aluminium | C27: Aluminium | D27: alluminio | E27: Aluminium | F27: Aluminium | G27: Alumínium | H27: Hliník | I27: Aluminium | J27: Aluminij | K27: Aluminium | L27: Aluminium | M27: Aluminium | N27: Aluminij
A28: Anprall von Treibgut (nur bei Eingabe von Anströmwinkel) | B28: Impact of floating debris (only where it enters from the angle of the inflow) | C28: Impact des débris flottants (requiert la saisie de l’angle d’incidence) | D28: Urto da detriti (solo inserendo l'angolo di afflusso) | E28: náraz plovoucího předmětu (pouze při zadání přítokového úhlu) | F28: Uderzenie od wody z zanieczyszczeniami (tylko przy wprowadzeniu kąta natarcia) | G28: Uszadék nekicsapódása (csak a beesési szög megadása esetén) | H28: Náraz plávajúceho predmetu (len ak smeruje z prítokového uhla) | I28: Stootkracht van drijvend materiaal (alleen bij invoer van invalshoek) | J28: trk naplavin (samo pri vnosu vpadnega kota), | K28: Påtryckning/belastning, av flytande skräp (bara vid inmatning av infallsvinkel) | L28: Påvirkning fra drivende genstande (kun ved indtastning af tilstrømningsvinklen) | M28: Sammenstøt med drivgods (kun ved inntasting av tilstrømmingsvinkel) | N28: Udar naplavina (samo ako je unesen kut pritjecanja)
A29: anprallende Treibgutmasse: | B29: Impacting mass of flotsam: | C29: Masse des débris flottants : | D29: massa detriti impattanti: | E29: náraz plovoucího předmětu váhy: | F29: anprallende Treibgutmasse: | G29: nekisodródó uszadék: | H29: Hmotnosť narážajúceho predmetu: | I29: Massa van aanstotend drijfmateriaal: | J29: Masa naplavin: | K29: Påtryckande flytande skräpmassa: | L29: Påvirkning fra drivende genstande: | M29: Drivgodsmasse som støter imot: | N29: Udarajuća masa naplavina:
A30: anprallende Treibgutmasse: m | B30: Impacting mass of flotsam: m | C30: Masse des débris flottants : m | D30: massa detriti impattanti: m | E30: náraz plovoucího předmětu váhy: m | F30: oddziaływanie masy zanieczyszczeń: m | G30: Becsapódó uszadék: m | H30: Hmotnosť narážajúceho predmetu: m | I30: Massa van aanstotend drijfmateriaal: m | J30: Masa naplavin: m | K30: Påtryckande flytande skräpmassa: m | L30: Påvirkning fra drivende genstande: m | M30: Drivgodsmasse som støter imot: m | N30: Udarajuća masa naplavina: m
A31: Anströmwinkel [°]: | B31: Inflow angle [°]: | C31: Angle d’incidence [°] : | D31: angolo di afflusso [°]: | E31: Přítokový úhel [°]: | F31: Kąt padania [°]: | G31: Beesési szög [°]: | H31: Prítokový uhol [°]: | I31: Invalshoek [°]: | J31: Vpadni kot [°]: | K31: Infallsvinkel [°]: | L31: Indstrømningsvinkel [°]: | M31: Tilstrømmingsvinkel [°]: | N31: Kut pritjecanja [°]:
A32: Anströmwinkel: | B32: Inflow angle: | C32: Angle d’incidence : | D32: Angolo di afflusso: | E32: Přítokový úhel: | F32: Anströmwinkel: | G32: Beesési szög: | H32: Prítokový uhol: | I32: Invalshoek: | J32: Vpadni kot: | K32: Infallsvinkel: | L32: Indstrømningsvinkel: | M32: Tilstrømmingsvinkel: | N32: Kut pritjecanja:
A33: Anwendungstechnik | B33: Application technology | C33: Service technique | D33: ufficio tecnico | E33: Aplikační technika | F33: Technika zastosowania | G33: Alkalmazástechnika | H33: Technické oddelenie | I33: Toepassingstechniek | J33: Tehnika uporabe | K33: Tillämpningsteknik | L33: Anvendelsesteknik | M33: Bruksteknikk | N33: Primijenjena tehnika
A34: Anzahl der Felder: | B34: Number of fields: | C34: Nombre de travées : | D34: numero campate: | E34: Počet polí: | F34: Liczba przęłseł: | G34: Mezők száma: | H34: Počet polí: | I34: Aantal velden: | J34: Število polj: | K34: Antal fält: | L34: Antal felter: | M34: Antall felter: | N34: Broj polja:
A35: Anzahl der gleichen Systeme: | B35: Number of the same systems: | C35: Nombre de systèmes identiques : | D35: numero campate uguali: | E35: Počet stejných systémů: | F35: Liczba identycznych systemów: | G35: Azonos rendszerek száma: | H35: Počet rovnakých systémov: | I35: Aantal gelijke systemen: | J35: Število enakih sistemov: | K35: Antal identiska system: | L35: Antal tilsvarende systemer: | M35: Antall like systemer: | N35: Broj istih sustava:
A36: Artikel Nr. | B36: Item no | C36: Référence | D36: numero articolo | E36: Art.Nr. | F36: Nr artykułu | G36: Cikkszám | H36: Č. artikla | I36: Artikelnr. | J36: Št. artikla | K36: Artikelnr | L36: Varenr. | M36: Artikkelnr. | N36: Br. artikla
A37: Aufpreis Ausfräsung Wandprofil für Dammbalken | B37: Surcharge for groove milling of side sections for stop logs | C37: Supplément pour fraisage des parties latérales des batardeaux | D37: sovrapprezzo per fresatura montanti laterali | E37: Příplatek za odfrézování bočních dílů pro hrázní bloky | F37: Dopłata za frezowanie części bocznych belek zaporowych | G37: Oldalsó elemek kimarásának felára | H37: Príplatok za vyfrézovanie bočných dielov pre hradidlá | I37: Toeslag uitfrezen zijdelen voor Dambalk | J37: Doplačilo za izrez stranskih delov za zajezitvene lamele | K37: Pristillägg urfräsning profiler för DÄMMBALK | L37: Tillæg for udfræsning af sidevanger til dæmningsbjælker | M37: Pristillegg utfresning av sidedeler for bjelkestengsler | N37: Doplata za obradu frezom bočnih dijelova za dasku brane
A38: Aufpreis Längenänderung Wandprofil | B38: Surcharge for length adjustment of side sections | C38: Supplément pour modification de longueur des parties latérales | D38: sovrapprezzo per modifiche di lunghezza dei montanti | E38: Příplatek za nestandardní délky bočních dílů | F38: Dopłata za zmianę długości profili ściennych | G38: Oldalsó elemek hosszméret-módosításának felára | H38: Príplatok za zmenu dĺžky bočných dielov | I38: Toeslag lengtewijziging zijdelen | J38: Doplačilo za spremembo dolžine stranskih delov | K38: Pristillägg annan längd profiler | L38: Tillæg for ændring af sidevangernes længde | M38: Pristillegg lengdeendring av sidedeler | N38: Doplata za promjenu duljine bočnih dijelova
A39: Aufpreis Planungsstunde | B39: Surcharge for planning appointment | C39: Supplément pour heure d’étude et de conception | D39: sovrapprezzo per ora di progettazione | E39: Příplatek za hodinu projekční práce | F39: Dopłata godzinna za projektowanie | G39: Tervezési óra felára | H39: Príplatok za hodinu plánovania | I39: Toeslag planning (per uur) | J39: Doplačilo za uro načrtovanja | K39: Pristillägg planeringstid | L39: Tillæg for timer til planlægning | M39: Pristillegg planleggingstime | N39: Doplata za sat planiranja
A40: Aufpreis Verankerung aufgeschweißt (a 300mm) | B40: Surcharge for anchoring to be welded (300 mm) | C40: Supplément pour soudure du système d’ancrage (300 mm) | D40: sovrapprezzo per saldatura ancoraggio (a 300mm) | E40: Příplatek za přivařené kotevní trny (á 300mm) | F40: Dopłata za zakotwienie spawane (za 300 mm) | G40: Hegesztett lehorgonyzóelem felára (á 300mm) | H40: Príplatok za privarenie ukotvenia (každých 300 mm) | I40: Toeslag verankering vastgelast (300 mm) | J40: Doplačilo za varjenje sider (na 300 mm) | K40: Pristillägg svetsad förankring (300 mm) | L40: Tillæg for påsvejset forankring (hver 300 mm) | M40: Pristillegg påsveiset forankring (300 mm) | N40: Doplata za navareno usidrenje (300mm)
A41: Ausfräsung Wandprofil für DB | B41: Surcharge for side sections for stop logs | C41: Fraisage des parties latérales des batardeaux | D41: fresatura sulle sponde | E41: Odfrézování bočních dílů pro hrázní bloky | F41: Frezowanie części bocznych belek zapór | G41: Oldalsó elemek kimarása gátgerendához | H41: Vyfrézovanie bočných dielov pre hradidlá | I41: Uitfrezen zijdelen voor SP | J41: Izrez stranskih delov za zajezitveni prečnik | K41: Urfräsning profiler för DB | L41: Udfræsning af sidevanger til dæmningsbjælker | M41: Utfresning av sidedeler for DB | N41: Obrada frezom bočnih dijelova za dasku brane
A42: Ausführungsart | B42: Design type | C42: Type de mise en œuvre | D42: tipo di esecuzione | E42: Typ provedení | F42: Sposób wykonania | G42: Kialakítás | H42: Typ vyhotovenia | I42: Uitvoeringswijze | J42: Vrsta izvedbe | K42: Konstruktionstyp | L42: Arten af udførelsen | M42: Utførelsesmåte | N42: Način izvedbe
A43: Ausnutzung HD: | B43: Utilisation of HD: | C43: Charge statique HD : | D43: Utilizzo HD: | E43: Využití HD: | F43: Ausnutzung HD: | G43: Kihasználtság HD: | H43: Využitie HD: | I43: Benutting HD: | J43: Izkoristek HD: | K43: Utnyttjande HD: | L43: Udnyttelse HD: | M43: Utnyttelse HD: | N43: Iskorištenje HD:
A44: Ausnutzung HD+HS: | B44: Utilisation of HD + HS: | C44: Charge statique HD + HS : | D44: Utilizzo HD+HS: | E44: Využití HD+HS: | F44: Ausnutzung HD+HS: | G44: Kihasználtság HD+HS: | H44: Využitie HD+HS: | I44: Benutting HD+HS: | J44: Izkoristek HD+HS: | K44: Utnyttjande HD+HS: | L44: Udnyttelse HD+HS: | M44: Utnyttelse HD+HS: | N44: Iskorištenje HD+HS:
A45: Ausnutzung HS: | B45: Utilisation of HS: | C45: Charge statique HS : | D45: Utilizzo HS: | E45: Využití HS: | F45: Ausnutzung HS: | G45: Kihasználtság HS: | H45: Využitie HS: | I45: Benutting HS: | J45: Izkoristek HS: | K45: Utnyttjande HS: | L45: Udnyttelse HS: | M45: Utnyttelse HS: | N45: Iskorištenje HS:
A46: Ausnutzung zufolge | B46: Utilisation according to | C46: en fonction de la charge statique | D46: Utilizzo in conformità | E46: Využití od | F46: Ausnutzung zufolge | G46: Kihasználtság a köv. következtében | H46: Využitie v dôsledku | I46: Benutting overeenkomstig | J46: Izkoristek kot posledica | K46: Utnyttjande beroende på | L46: Udnyttelse som følge af | M46: Utnyttelse i følge | N46: Iskorištenje prema
A47: Ausnutzung: | B47: Utilisation: | C47: Charge statique : | D47: Utilizzo: | E47: Využití: | F47: Ausnutzung: | G47: Kihasználtság: | H47: Využitie: | I47: Benutting: | J47: Izkoristek: | K47: Utnyttjande: | L47: Udnyttelse: | M47: Utnyttelse: | N47: Iskorištenje:
A48: Bearbeiter: | B48: Processor: | C48: Partenaire PREFA : | D48: Addetto: | E48: Zpracoval: | F48: Referent: | G48: Feldolgozta: | H48: Spracovateľ: | I48: Verantwoordelijke: | J48: Referent: | K48: Bearbetas av: | L48: Bearbejder: | M48: Ansvarlig: | N48: Odgovorna osoba:
A49: Bei nicht fachgerechter Montage und/oder Wartung oder bei Benutzung von nicht originalem Zubehör übernimmt PREFA keinerlei Haftung. | B49: PREFA assumes no liability in the event of incorrect installation and/or maintenance, or in cases where non-original accessories are used. | C49: Toute responsabilité de PREFA est également exclue en cas de défaut de construction (notamment si le gros œuvre pose des problèmes d’étanchéité) | D49: in caso di installazione e/o manutenzione impropria o se vengono utilizzati accessori non originali, PREFA non si assume alcuna responsabilità. | E49: Při neodborné montáži a/nebo údržbě nebo při použití neoriginálního příslušenství nepřebírá PREFA žádnou záruku. | F49: PREFA nie przejmuje żadnej odpowiedzialności za niewłaściwy montaż i/lub konserwację lub zastosowanie nieoryginalnych akcesoriów. | G49: A rendszer szakszerűtlen beépítéséből és/vagy karbantartásából, vagy a nem gyári alkatrészek használatából eredő károkért a PREFA semmilyen felelősséget nem vállal. | H49: Pri neodbornej montáži a/alebo údržbe alebo pri použití iného ako originálneho príslušenstva nepreberá PREFA žiadnu záruku. | I49: Bij ondeskundige montage/onderhoud of bij gebruik van niet-originele toebehoren is PREFA niet aansprakelijk. | J49: PREFA ne prevzema nobene odgovornosti v primeru nestrokovne montaže in/ali vzdrževanja ali uporabe neoriginalne dodatne opreme. | K49: Om montering och/eller underhåll inte utförs fackmannamässigt, eller tillbehör som inte är originaldelar används, har PREFA inget ansvar. | L49: I tilfælde af ukorrekt installation og/eller vedligeholdelse, eller ved brug af ikke-originalt tilbehør, påtager PREFA sig intet ansvar. | M49: Ved ikke fagmessig montering og/eller vedlikehold eller ved bruk av ikke-originalt tilbehør, fraskriver PREFA seg alt ansvar. | N49: U slučaju nestručne montaže i/ili održavanja ili u slučaju korištenja neoriginalnih dijelova PREFA ne preuzima nikakvu odgovornost.
A50: Bei System 25 nur 1 Feld möglich! | B50: Only 1 field possible for system 25! | C50: Une seule travée possible pour le système 25 ! | D50: con il sistema 25 è realizzabile solamente la campata singola! | E50: U systému 25 možné pouze 1 pole! | F50: Przy systemie 25 możliwe tylko jedno pole! | G50: 25-s rendszernél csak 1 mező lehetséges! | H50: Pre systém 25 je možné len 1 pole! | I50: Bij systeem 25 slechts 1 veld mogelijk! | J50: Pri sistemu 25 je mogoče le 1 polje! | K50: Med system 25 är bara 1 fält möjligt! | L50: Med system 25 er kun 1 felt muligt! | M50: Ved system 25 kun 1 felt mulig! | N50: Za sustav 25 moguće samo 1 polje!
A51: Bemaßung | B51: Dimensioning | C51: Dimensionnement | D51: Bemaßung | E51: Rozměry | F51: Bemaßung | G51: Méretezés | H51: rozmery | I51: Bemaßung | J51: Bemaßung | K51: dimensioner | L51: Mål | M51: Bemaßung | N51: Bemaßung
A52: Bemessungsmoment HD: | B52: Rated torque HD: | C52: Moment de calcul HD : | D52: Coppia nominale HD: | E52: Výpočtový moment HD: | F52: Bemessungsmoment HD: | G52: Mértékadó nyomaték HD: | H52: Menovitý krútiaci moment HD: | I52: Meetmoment HD: | J52: Nazivni navor HD: | K52: Mätmoment HD: | L52: Beregningsmoment HD: | M52: Kalibreringsmoment HD: | N52: Projektirani moment HD:
A53: Bemessungsmoment HD+HS: | B53: Rated torque HD + HS: | C53: Moment de calcul HD + HS : | D53: Coppia nominale HD+HS: | E53: Výpočtový moment HD+HS: | F53: Bemessungsmoment HD+HS: | G53: Mértékadó nyomaték HD+HS: | H53: Menovitý krútiaci moment HD+HS: | I53: Meetmoment HD+HS: | J53: Nazivni navor HD+HS: | K53: Mätmoment HD+HS: | L53: Beregningsmoment HD+HS: | M53: Kalibreringsmoment HD+HS: | N53: Projektirani moment HD+HS:
A54: Bemessungsmoment HS: | B54: Rated torque HS: | C54: Moment de calcul HS : | D54: Coppia nominale HS: | E54: Výpočtový moment HS: | F54: Bemessungsmoment HS: | G54: Mértékadó nyomaték HS: | H54: Menovitý krútiaci moment HS: | I54: Meetmoment HS: | J54: Nazivni navor HS: | K54: Mätmoment HS: | L54: Beregningsmoment HS: | M54: Kalibreringsmoment HS: | N54: Projektirani moment HS:
A55: Bemessungsmoment Treibgut: | B55: Rated torque of flotsam: | C55: Moment de calcul des débris flottants : | D55: Coppia nominale detriti: | E55: Výpočtový moment plovoucí předmět: | F55: Bemessungsmoment Treibgut: | G55: Mértékadó nyomaték uszadék: | H55: Menovitý krútiaci moment plávajúceho predmetu: | I55: Meetmoment drijfmateriaal: | J55: Nazivni navor naplavin: | K55: Mätmoment för flytande skräp: | L55: Beregningsmoment drivende genstande: | M55: Kalibreringsmoment drivgods: | N55: Projektirani moment naplavine:
A56: Bemessungsmoment: | B56: Rated torque: | C56: Moment de calcul : | D56: Coppia nominale: | E56: Výpočtový moment: | F56: Bemessungsmoment: | G56: Mértékadó nyomaték: | H56: Menovitý krútiaci moment: | I56: Meetmoment: | J56: Nazivni navor: | K56: Mätmoment: | L56: Beregningsmoment: | M56: Kalibreringsmoment: | N56: Projektirani moment:
A57: Berechnung U-Profilhöhe bei Montage in Leibung zum Einfädeln | B57: Berechnung U-Profilhöhe bei Montage in Leibung zum Einfädeln | C57: Calcul du profil U-pour le montage en embrasure, vide lumière | D57: Calcolo dell'altezza dei profili a U per l'inserimento | E57: Určení výšky U-Profilu pro umožnění zasunutí hrázního bloku při montáži "zapuštěné do ostění" | F57: Berechnung U-Profilhöhe bei Montage in Leibung zum Einfädeln | G57: U-profilok magasságának számítása nyílásban történő beépítésnél, a gerendák behelyezhetőségének ellenőrzéséhez. | H57: Výpočet výšky U-profilu pri montáži na vloženie do ostenia | I57: Berechnung U-Profilhöhe bei Montage in Leibung zum Einfädeln | J57: Berechnung U-Profilhöhe bei Montage in Leibung zum Einfädeln | K57: Beräkning U-profilhöjd vid diagonal inpassning av dämmbalk | L57: Berechnung U-Profilhöhe bei Montage in Leibung zum Einfädeln | M57: Berechnung U-Profilhöhe bei Montage in Leibung zum Einfädeln | N57: Berechnung U-Profilhöhe bei Montage in Leibung zum Einfädeln
A58: beschichtet | B58: Coated | C58: Thermolaqué | D58: verniciato | E58: lakovaný | F58: powlekany | G58: Bevonatos | H58: S povrchovou úpravou | I58: Gecoat | J58: prevlečeno | K58: Belagd | L58: Beklædt | M58: Med belegg | N58: plastificirano
A59: Beschichtung | B59: Coating | C59: Thermolaquage | D59: verniciatura | E59: Lakování | F59: powłoka | G59: Bevonat | H59: Povrchová úprava | I59: Coating | J59: Prevleka | K59: Beläggning | L59: Beklædning | M59: Belegg | N59: Plastifikacija
A60: Beschichtungspauschale | B60: Beschichtungspauschale | C60: Forfait thermolaquage | D60: Beschichtungspauschale | E60: Beschichtungspauschale | F60: Beschichtungspauschale | G60: Beschichtungspauschale | H60: Beschichtungspauschale | I60: Beschichtungspauschale | J60: Beschichtungspauschale | K60: Beschichtungspauschale | L60: Beschichtungspauschale | M60: Beschichtungspauschale | N60: Beschichtungspauschale
A61: Bestellung | B61: Order | C61: Commande | D61: ordine | E61: Objednávka | F61: Zamówienie | G61: Megrendelés | H61: Objednávka | I61: Bestelling | J61: Naročilo | K61: Beställning | L61: Bestilling | M61: Bestilling | N61: Narudžba
A62: Bezeichnung | B62: Name | C62: Désignation | D62: descrizione | E62: Označení | F62: Oznaczenie | G62: Megnevezés | H62: Označenie | I62: Omschrijving | J62: Ime | K62: Beteckning | L62: Betegnelse | M62: Betegnelse | N62: Oznaka
A63: BHW = Bemessungshochwasser | B63: BHW = Flood water measurement | C63: BHW : hauteur de retenue d’eau | D63: BHW = Misura del livello di piena | E63: BHW = návrhová výška vzdutí | F63: BHW = powódź projektowa | G63: MÁSZ = mértékadó árvízszint | H63: BHW = menovitá výška hladiny vody | I63: BHW = maatgevende hoogwaterstand | J63: BHW = visoka voda za dimenzioniranje | K63: BHW = Högsta högvattennivå | L63: BHW = Design-højvandsstand | M63: BHW = flommåling | N63: BHW = projektna poplava
A64: Bitte wählen | B64: Please select | C64: Veuillez sélectionner | D64: scegliere per favore | E64: Prosím vybrat | F64: Proszę wybrać | G64: Kérjük, válasszon | H64: Prosím, vyberte | I64: Selecteer | J64: Izberite | K64: Välj | L64: Vælg venligst | M64: Vennligst velg | N64: Molimo odabrati
A65: blank | B65: blank | C65: Aluminium naturel | D65: alluminio naturale | E65: přírodní | F65: naturalny | G65: Natúr alumínium | H65: Prírodný hliník | I65: Blank | J65: prazno | K65: Blank / Blankt | L65: blank | M65: blank | N65: prirodni aluminij
A66: Bodendichtung 25 | B66: Ground seal 25 | C66: Joint au sol 25 | D66: guarnizione a pavimento 25 | E66: Spodní těsnění 25 | F66: Uszczelmienie dolne 25 | G66: Talajtömítés 25 | H66: Spodné tesnenie 25 | I66: Bodemafdichting 25 | J66: Talno tesnilo 25 | K66: GOLVTÄTNING 25 | L66: Bundtætning 25 | M66: Bunntetning 25 | N66: Brtvljenje prema tlu 25
A67: Bodendichtung 50 | B67: Ground seal 50 | C67: Joint au sol 50 | D67: guarnizione a pavimento 50 | E67: Spodní těsnění 50 | F67: Uszczelmienie dolne 50 | G67: Talajtömítés 50 | H67: Spodné tesnenie 50 | I67: Bodemafdichting 50 | J67: Talno tesnilo 50 | K67: GOLVTÄTNING 50 | L67: Bundtætning 50 | M67: Bunntetning 50 | N67: Brtvljenje prema tlu 50
A68: Bodendichtung 80 | B68: Ground seal 80 | C68: Joint au sol 80 | D68: guarnizione a pavimento 80 | E68: Spodní těsnění 80 | F68: Uszczelmienie dolne 80 | G68: Talajtömítés 80 | H68: Spodné tesnenie 80 | I68: Bodemafdichting 80 | J68: Talno tesnilo 80 | K68: GOLVTÄTNING 80 | L68: Bundtætning 80 | M68: Bunntetning 80 | N68: Brtvljenje prema tlu 80
A69: Bodenhülse | B69: Ground sleeve | C69: Douille de sol | D69: piantone | E69: Zemní pouzdro | F69: Tuleja do mocowania kolumny | G69: Padlóhüvely | H69: Zemné puzdro | I69: Bodemhuls | J69: Talna puša | K69: Markhylsa | L69: Bundmuffe | M69: JORDANKER | N69: Podna čaška
A70: Bodenhülse (GROSS) 50 Vario und 80 beschichtet inkl. Aluminiumdeckel und Dichtung | B70: Ground sleeve 50/80 Vario aluminium-coated incl. cover with seal | C70: Douille de sol 50/80 Vario ; aluminium prélaqué, fourni avec couvercle et joint | D70: piantone 50/80 Vario alluminio verniciato, compreso coperchio con guarnizione | E70: Zemní pouzdro 50/80 Vario, lakovaný hliník vč. víka s těsněním | F70: Tuleja 50/80 VARIO do mocowania kolumny, aluminum powlekane z deklem i uszczelnieniem | G70: Padlóhüvely Vario 50/80 bevonatos alumínium, tömített fedéllel | H70: Zemné puzdro 50/80 Vario, hliník s povrchovou úpravou vrát. veka s tesnením | I70: Bodemhuls 50/80 Vario aluminium coating incl. deksel met afdichting | J70: Talna puša 50/80, Vario aluminij, vključno s pokrovom in tesnilom | K70: Markhylsa 50/80 Vario aluminium, ytbehandlad, inkl. lock med tätning | L70: Bundmuffe 50/80 beklædt med Vario aluminium, inkl. dæksel med tætning | M70: JORDANKER 50/80 Vario aluminium med belegg inkl. lokk med tetning | N70: Podna čaška 50/80 vario plastificirani aluminij uklj. poklopac s brtvom
A71: Bodenhülse (GROSS) 50 Vario und 80 beschichtet inkl. Edelstahldeckel und Dichtung | B71: Ground sleeve 50/80 Vario stainless steel-coated incl. cover with seal | C71: Douille de sol 50/80 Vario ; acier inoxydable prélaqué, fourni avec couvercle et joint | D71: piantone 50/80 Vario acciaio inox verniciato, compreso coperchio con guarnizione | E71: Zemní pouzdro 50/80 Vario, lakovaný nerez vč. víka s těsněním | F71: Tuleja 50/80 VARIO do mocowania kolumny, stal nierdzewna powlekana z deklem i uszczelnieniem | G71: Padlóhüvely Vario 50/80 rozsdamentes acél, tömített fedéllel | H71: Zemné puzdro 50/80 Vario, ušľachtilá oceľ s povrchovou úpravou vrát. veka s tesnením | I71: Bodemhuls 50/80 Vario rvs coating incl. deksel met afdichting | J71: Talna puša 50/80, Vario nerjavno jeklo, vključno s pokrovom in tesnilom | K71: Markhylsa 50/80 Vario rostfritt stål, ytbehandlad, inkl. lock med tätning | L71: Bundmuffe 50/80 beklædt med Vario rustfrit stål, inkl. dæksel med tætning | M71: JORDANKER 50/80 Vario rustfritt stål med belegg inkl. lokk med tetning | N71: Podna čaška 50/80 vario plastificirani nehrđajući čelik uklj. poklopac s brtvom
A72: Bodenhülse 50/80 beschichtet inkl. Aluminiumdeckel und Dichtung | B72: Ground sleeve 50/80 aluminium-coated incl. cover with seal | C72: Douille de sol 50/80 ; aluminium prélaqué, fourni avec couvercle et joint | D72: piantone 50/80 alluminio verniciato, compreso coperchio con guarnizione | E72: Zemní pouzdro 50/80, lakovaný hliník vč. víka s těsněním | F72: Tuleja 50/80 do mocowania kolumny, aluminum powlekane z deklem i uszczelnieniem | G72: Padlóhüvely 50/80 bevonatos alumínium, tömített fedéllel | H72: Zemné puzdro 50/80 hliník s povrchovou úpravou vrát. veka s tesnením | I72: Bodemhuls 50/80 aluminium coating incl. deksel met afdichting | J72: Talna puša 50/80, prevlečeni aluminij, vključno s pokrovom in tesnilom | K72: Markhylsa 50/80 aluminium, ytbehandlad, inkl. lock med tätning | L72: Bundmuffe 50/80 aluminiumbeklædt, inkl. dæksel med tætning | M72: JORDANKER 50/80 aluminium med belegg inkl. lokk med tetning | N72: Podna čaška 50/80 plastificirani aluminij uklj. poklopac s brtvom
A73: Bodenhülse 50/80 beschichtet inkl. Edelstahldeckel und Dichtung | B73: Ground sleeve 50/80 stainless steel-coated incl. cover with seal | C73: Douille de sol 50/80 ; acier inoxydable prélaqué, fourni avec couvercle et joint | D73: piantone 50/80 acciaio inox verniciato, compreso coperchio con guarnizione | E73: Zemní pouzdro 50/80, lakovaný nerez vč. víka s těsněním | F73: Tuleja 50/80 do mocowania kolumny, stal nierdzewna powlekana z deklem i uszczelnieniem | G73: Padlóhüvely 50/80 rozsdamentes acél, tömített fedéllel | H73: Zemné puzdro 50/80 ušľachtilá oceľ s povrchovou úpravou vrát. veka s tesnením | I73: Bodemhuls 50/80 rvs coating incl. deksel met afdichting | J73: Talna puša 50/80, prevlečeno nerjavno jeklo, vključno s pokrovom in tesnilom | K73: Markhylsa 50/80 rostfritt stål, ytbehandlad, inkl. lock med tätning | L73: Bundmuffe 50/80 beklædt med rustfrit stål, inkl. dæksel med tætning | M73: JORDANKER 50/80 rustfritt stål med belegg inkl. lokk med tetning | N73: Podna čaška 50/80 plastificirani nehrđajući čelik uklj. poklopac s brtvom
A74: Bodenhülsendeckel | B74: Ground sleeve cover | C74: Couvercle de douille de sol | D74: coperchio per piantone | E74: Víko zemního pouzdra | F74: Pokrywa tulei do mocowania kolumny | G74: Padlóhüvely-fedél | H74: Veko zemného puzdra | I74: Bodemhulsdeksel | J74: Pokrov za talno pušo | K74: Lock till Markhylsa | L74: Dæksel til bundmuffe | M74: Jordankerlokk | N74: Poklopac podne čaške
A75: Bündig | B75: Flush | C75: Intégré dans l’embrasure | D75: a filo | E75: Zapuštěný v ostění | F75: zwięzły | G75: Falsíkba süllyesztett | H75: Zapustené | I75: Geïntegreerd | J75: Zvezno | K75: Slät | L75: På niveau | M75: I flukt | N75: U ravnini
A76: Dammbalken | B76: Stop logs | C76: Batardeau | D76: sponda | E76: Hrázní blok | F76: Belka zapory | G76: Gátgerenda | H76: Hradidlo | I76: Dambalk | J76: Zajezitvene lamele | K76: DÄMMBALK | L76: Dæmningsbjælker | M76: Bjelkestengsler / FLOMSIKRINGSELEMENT | N76: Daska brane
A77: Dammbalken 25/200 exkl. Dichtung, gesägt und entgratet | B77: Stop logs 25/200 excl. seal, cut to size and deburred | C77: Batardeau 25/200, fourni sans joint, scié et ébavuré | D77: sponda 25/200 esclusa guarnizione, segato e sbavato | E77: Hrázní blok 25/200, bez těsnění, řezaný na délku, bez otřepů | F77: Belka zapory 25/200, bez uszczelnienia, docięta i okrawana | G77: Gátgerenda 25/200 tömítés nélkül, méretre vágva, sorjázva | H77: Hradidlo 25/200 bez tesnenia, pílené a odhrotované | I77: Dambalk 25/200 excl. afdichting, gezaagd en afgebraamd | J77: Zajezitvena lamela 25/200, brez tesnila, odrezana, s posnetimi robovi | K77: DÄMMBALK 25/200 exkl. tätning, kapad & avgradad | L77: Dæmningsbjælker 25/200 ekskl. tætning, savet og afgratet | M77: FLOMSIKRINGSELEMENT 25/200 ekskl. tetning, saget og avgradet | N77: Daska brane 25/200 bez brtve, piljena i s obrađenim rubovima
